Workbook

Sheet 需求模板 (财务部）
A1: 序号 | B1: 需求说明 | C1: 需求子类 | D1: 需求名称 （或者报表标题） | E1: BI系统表格编制负责人 | F1: 统计范围或合并报围 (用于财务报表) | G1: 频率 | H1: 数据来源描述 | I1: 可查看权限设置 (请参考模板规则) | J1: 备注1： （用于补充\备注。如果有多推送方式，也可在这备注） | K1: 备注2
B2: 新增需求 | C2: 财务分析 | D2: 公司半年报及年报汇报 | E2: 张巧琳 | F2: 股份合并、事业部、单体 | H2: K3 | J2: 另附表
A3: F05 | B3: 新增需求 | C3: 财务分析图表 | D3: 主要指标趋势图 | E3: 张巧琳、顾敏 | F3: 股份合并、事业部、单体 | G3: 月度 | H3: K3/LFS调整表
A4: F01 | B4: 新增需求 | C4: 报表 | D4: 集团合并利润表（合并报表） | E4: 张巧琳、顾敏 | G4: 月度、 | H4: K3/LFS调整表 | I4: 股份公司领导、财务总监、财务总监助理、股份财务经理、股份财务主管、股份资金经理、股份总部会计 | J4: 该套表为股份公司财务管理报表（见合并管理报表的格式），可以一层层往下纂取，查到事业部及单体公司、项目、部门数据，希望做成事业部经理只能查到事业部这个层面的数据，子公司只能查到子公司的 数据
A5: F01 | B5: 新增需求 | C5: 报表 | D5: 股份公司合并利润表（合并报表） | E5: 张巧琳、顾敏 | G5: 月度 | H5: K3/LFS调整表 | I5: 股份公司领导、财务总监、财务总监助理、股份财务经理、股份财务主管、股份资金经理、股份总部会计
A6: F02 | B6: 新增需求 | C6: 报表 | D6: 股份公司各单位主营业务收入统计表 | E6: 张巧琳、顾敏 | F6: 股份合并、事业部、单体 | G6: 月度 | H6: K3/LFS调整表 | I6: 股份公司领导、财务总监、财务总监助理、股份财务经理、股份财务主管、股份资金经理、股份总部会计
A7: F02 | B7: 新增需求 | C7: 报表 | D7: 股份公司各单位毛利统计表 | E7: 张巧琳、顾敏 | F7: 股份合并、事业部、单体 | G7: 月度 | H7: K3/LFS调整表 | I7: 股份公司领导、财务总监、财务总监助理、股份财务经理、股份财务主管、股份资金经理、股份总部会计
A8: F02 | B8: 新增需求 | C8: 报表 | D8: 股份公司各单位净利润统计表 | E8: 张巧琳、顾敏 | F8: 股份合并、事业部、单体 | G8: 月度 | H8: K3/LFS调整表 | I8: 股份公司领导、财务总监、财务总监助理、股份财务经理、股份财务主管、股份资金经理、股份总部会计
A9: F03 | B9: 新增需求 | C9: 报表 | D9: 股份公司各单位总支出明细表 | E9: 张巧琳、顾敏 | F9: 股份合并、事业部、单体 | G9: 月度 | H9: K3/LFS调整表 | I9: 股份公司领导、财务总监、财务总监助理、股份财务经理、股份财务主管、股份资金经理、股份总部会计
A10: F04 | B10: 新增需求 | C10: 报表 | D10: 关联交易统计表 | E10: 张巧琳、顾敏 | F10: 股份合并、事业部、单体 | G10: 月度 | H10: K4/LFS调整表
B11: 新增需求 | C11: 报表 | D11: **公司利润表 | E11: 张巧琳、顾敏 | F11: 单体 | G11: 月度 | H11: K5/LFS调整表 | I11: 股份公司领导、财务总监、财务总监助理、股份财务经理、股份财务主管、股份资金经理、股份总部会计 | J11: 各公司管理报表
B12: 新增需求 | C12: 报表 | D12: **公司总支出统计表 | E12: 张巧琳、顾敏 | F12: 单体 | G12: 月度 | H12: K3/LFS调整表 | I12: 股份公司领导、财务总监、财务总监助理、股份财务经理、股份财务主管、股份资金经理、股份总部会计
B13: 新增需求 | C13: 报表 | D13: **公司主营业务成本明细表 | E13: 张巧琳、顾敏 | F13: 单体 | G13: 月度 | H13: K3/LFS调整表 | I13: 股份公司领导、财务总监、财务总监助理、股份财务经理、股份财务主管、股份资金经理、股份总部会计
B14: 新增需求 | C14: 报表 | D14: **公司期间费用明细表 | E14: 张巧琳、顾敏 | F14: 单体 | G14: 月度 | H14: K3/LFS调整表 | I14: 股份公司领导、财务总监、财务总监助理、股份财务经理、股份财务主管、股份资金经理、股份总部会计
A15: F09 | B15: 新增需求 | C15: 报表 | D15: 人工成本明细表 | E15: 张巧琳、顾敏 | F15: 股份合并、事业部、单体 | G15: 月度 | H15: K5/LFS调整表
A16: F20 | B16: 新增需求 | C16: 资金管理 | D16: 股份各公司应收帐款明细表 | E16: 张巧琳、顾敏 | F16: 股份合并、事业部、单体 | G16: 月度 | H16: K3
A17: F20 | B17: 新增需求 | C17: 资金管理 | D17: 应收帐款催收统计表 | E17: 张巧琳、顾敏 | F17: 股份合并、事业部、单体 | G17: 月度 | H17: K3
B18: 新增需求 | C18: 资金管理 | D18: 现金运营指数 | E18: 张巧琳、顾敏 | F18: 股份合并、事业部、单体 | G18: 月度 | H18: K3
A19: F20 | B19: 新增需求 | C19: 资金管理 | D19: 预收账龄表 | E19: 张巧琳、顾敏 | F19: 股份合并、事业部、单体 | G19: 每月 | H19: K3 | I19: 财务经理、商务经理、总账会计 | K19: 按会计期来查
A20: F20 | B20: 新增需求 | C20: 资金管理 | D20: 预付账龄表 | E20: 张巧琳、顾敏 | F20: 股份合并、事业部、单体 | G20: 每月 | H20: K3 | I20: 财务经理、商务经理、总账会计 | K20: 按会计期来查
A21: F20 | B21: 新增需求 | C21: 资金管理 | D21: 应收账龄表 | E21: 张巧琳、顾敏 | F21: 股份合并、事业部、单体 | G21: 每月 | H21: K3 | I21: 财务经理、商务经理、总账会计 | K21: 按会计期来查
A22: F20 | B22: 新增需求 | C22: 资金管理 | D22: 应付账龄表 | E22: 张巧琳、顾敏 | F22: 股份合并、事业部、单体 | G22: 每月 | H22: K3 | I22: 财务经理、商务经理、总账会计 | K22: 按会计期来查
B23: 新增需求 | C23: 资金管理 | D23: 资金占用 | E23: 曾维君 | F23: 股份合并、事业部、单体 | G23: 每月 | H23: K3、手工、LFS
B24: 新增需求 | C24: 资金管理 | D24: 贷款备查 | E24: 曾维君 | F24: 股份合并、事业部、单体 | G24: 实时 | H24: K4、手工、LFS
B25: 新增需求 | C25: 资金管理 | D25: 资金日历 | E25: 曾维君 | F25: 股份合并、事业部、单体 | G25: 实时 | H25: K5、手工、LFS
C26: 船代 | D26: 分货类收入前十名 | E26: 廖艳玲 | F26: 事业部、单体 | G26: 月度 | H26: LFS
C27: 船代 | D27: 板块收入汇总表 | E27: 廖艳玲 | F27: 事业部、单体 | G27: 月度 | H27: LFS
C28: 船代 | D28: 货类收入汇总表 | E28: 廖艳玲 | F28: 事业部、单体 | G28: 月度 | H28: LFS
C29: 船代 | D29: 单船收入统计表 | E29: 廖艳玲 | F29: 事业部、单体 | G29: 月度 | H29: LFS
D31: 需求模板 (财务部）
D32: 仪表盘
C33: F01 | D33: 集团利润表 | G33: 税务口径（账套） | H33: 资产负债表、现金流量表 | I33: 对外披露报表 | J33: 税务口径+抵消分录 | K33: 仪表盘1
D34: 股份公司税务利润表 | H34: 损益表 | I34: 单体公司（账套）报表
C35: F02 | D35: 附表1-各单位主营业务收入情况表
D36: 附表2-各单位毛利情况表 | G36: 管理口径（账套+还原+预算） | H36: 损益表 | I36: 集团整体业绩 | K36: 仪表盘2
D37: 附表3-各单位净利润情况表 | I37: 事业部
C38: F03 | D38: 附表4-各单位总支出情况表 | I38: 公司
C39: F04 | D39: 附表6-销售关联交易 (经营单位)
C40: F05 | D40: 主要指标月度趋势图 | F40: 凭证取数逻辑：
D41: 现金运营指数 | H41: 集团 | I41: 事业部 | J41: 公司 | K41: 账套
C42: F01 | D42: 单家公司损益表 | F42: 税务口径 | G42: 损益表 | H42: K3+抵消+调整+预算 | I42: 无 | J42: 无 | K42: K3
B43: ? | C43: F03 | D43: 总支出表（单体） | G43: 资产负债表 | H43: 初始+抵消+调整 | I43: 无 | J43: 无 | K43: 初始
C44: F02 | D44: 附表一主营业务成本明细表（单体） | G44: 现金流量表 | H44: 现金+抵消+调整 | I44: 无 | J44: 无 | K44: 现金
B45: ? | C45: F03 | D45: 附表二期间费用明细表（单体） | F45: 管理口径 | G45: 损益表 | H45: K3+抵消+调整+还原+预算 | I45: K3+还原+预算 | J45: K3+还原+预算 | K45: 无
C46: F09 | D46: 人工成本明细表
C47: F10 | D47: 资产负债表 | H47: 注：事业部、公司只有管理口径，账套只有税务口径
C48: F20 | D48: 股份各公司应收帐款明细表 | H48: 仪表盘1 | I48: 仪表盘2 | J48: 仪表盘3
C49: F20 | D49: 应收帐款催收统计表
C50: F20 | D50: 应收账龄表、预收账龄表
C51: F20 | D51: 预付账龄表 | G51: FF27(薪酬类别)
C52: F20 | D52: 应付账龄表 | G52: 社保-工伤保险
C53: F30 | D53: 年报半年报会计数据和财务指标 | G53: 社保-基本养老保险
C54: F40 | D54: 资金占用表 | G54: 社保-基本医疗保险
C55: F40 | D55: 贷款备查表 | G55: 社保-生育保险
C56: F40 | D56: 资金日历 | G56: 社保-失业保险
D57: 分货类收入前10名客户 | G57: 社保重大疾病保险
D58: 板块收入汇总表 | G58: 住房公积金
D59: 货类收入统计表
D60: 单船收入统计明细表
F92: Option Explicit Sub f1() Dim i As Long For i = 1 To ThisWorkbook.Sheets.Count ThisWorkbook.Sheets(1).Range("b" & (i + 70)) = ThisWorkbook.Sheets(i).Name Next End Sub
I1584: 鲅鱼圈项目人力行政专员
I1585: 鲅鱼圈项目业务经理
I1586: 鲅鱼圈项目业务员
I1587: 鲅鱼圈项目总经理
I1588: 北海元亨副总经理
I1589: 北海元亨人力行政专员
I1590: 北海元亨商务员
I1591: 北海元亨调度员
I1592: 北海元亨外勤
I1593: 财务总监
I1594: 仓储部经理
I1595: 仓储部专员
I1596: 仓储财务经理
I1597: 仓储出纳
I1598: 仓储会计
I1599: 船代财务经理
I1600: 船代出纳
I1601: 船代会计
I1602: 船代-结算提醒
I1603: 船代事业部风控
I1604: 船代事业部副总经理
I1605: 船代事业部商务
I1606: 船代事业部市场专员
I1607: 船代事业部调度
I1608: 船代事业部外勤
I1609: 船代事业部总经理
I1610: 东北项目人力行政专员
I1611: 东北项目业务经理
I1612: 东北项目业务员
I1613: 东北项目总经理
I1614: 东莞元亨副总经理
I1615: 东莞元亨人力行政专员
I1616: 东莞元亨商务员
I1617: 东莞元亨调度员
I1618: 东莞元亨外勤
I1619: 防城港元亨副总经理
I1620: 防城港元亨人力行政专员
I1621: 防城港元亨商务员
I1622: 防城港元亨调度员
I1623: 防城港元亨外勤
I1624: 供应商管理（仓储）
I1625: 供应商管理（车队）
I1626: 供应商管理（船代）
I1627: 供应商管理（船公司）
I1628: 供应商管理（检验公司、报关报检）
I1629: 供应商管理（码头、堆场）
I1630: 供应商管理（消毒公司）
I1631: 供应商管理（运输）
I1632: 供应商结算
I1633: 股份财务经理
I1634: 股份出纳
I1635: 股份公司副总经理
I1636: 股份公司总经理
I1637: 股份会计
I1638: 股份资金经理
I1639: 广西侨益副总经理
I1640: 广西侨益人力行政专员
I1641: 广西侨益业务经理
I1642: 广西侨益业务员
I1643: 广西侨益总经理
I1644: 广西悦达人力行政专员
I1645: 广西悦达业务经理
I1646: 广西悦达业务员
I1647: 广西悦达总经理
I1648: 广州惠安茅岗仓仓管
I1649: 广州惠安茅岗仓经理
I1650: 广州惠安明珠仓仓管
I1651: 广州惠安明珠仓经理
I1652: 广州惠安南沙仓仓管
I1653: 广州惠安南沙仓经理
I1654: 广州惠安人力行政专员
I1655: 广州惠安市场部经理
I1656: 广州惠安市场部专员
I1657: 广州惠安信华仓仓管
I1658: 广州惠安信华仓经理
I1659: 广州惠安总经理
I1660: 广州惠安总经理助理
I1661: 广州侨益办单专员
I1662: 广州侨益报价员
I1663: 广州侨益操作经理
I1664: 广州侨益发卡专员
I1665: 广州侨益副总经理
I1666: 广州侨益黄埔通关内勤
I1667: 广州侨益客服经理
I1668: 广州侨益客服主管
I1669: 广州侨益控货复核
I1670: 广州侨益控货专员
I1671: 广州侨益联运经理
I1672: 广州侨益联运专员
I1673: 广州侨益南沙通关内勤
I1674: 广州侨益人力行政经理
I1675: 广州侨益人力行政专员
I1676: 广州侨益商务经理
I1677: 广州侨益商务主管
I1678: 广州侨益商务专员
I1679: 广州侨益市场经理
I1680: 广州侨益市场专员
I1681: 广州侨益通关经理
I1682: 广州侨益总经理
I1683: 广州侨益总经理助理
I1684: 广州生生驳船
I1685: 广州生生航运经理
I1686: 广州生生航运调度
I1687: 广州生生汽运经理
I1688: 广州生生汽运调度
I1689: 广州生生人力行政经理
I1690: 广州生生人力行政专员
I1691: 广州生生市场经理
I1692: 广州生生市场专员
I1693: 广州生生司机
I1694: 广州生生装卸经理
I1695: 广州生生装卸专员
I1696: 广州生生总经理
I1697: 广州元亨船务部经理
I1698: 广州元亨副总经理
I1699: 广州元亨人力行政专员
I1700: 广州元亨商务经理
I1701: 广州元亨商务员
I1702: 广州元亨市场经理
I1703: 广州元亨市场专员
I1704: 广州元亨调度经理
I1705: 广州元亨调度员
I1706: 广州元亨外勤
I1707: 广州元亨外勤经理
I1708: 广州元亨总经理
I1709: 广州悦达人力行政专员
I1710: 广州悦达业务经理
I1711: 广州悦达业务员
I1712: 广州悦达总经理
I1713: 黄埔报关报检员
I1714: 黄埔通关外勤
I1715: 黄埔主管
I1716: 货代财务经理
I1717: 货代出纳
I1718: 货代会计
I1719: 货代事业部客服专员
I1720: 货代事业部商务专员
I1721: 货代事业部市场专员
I1722: 货代事业部通关专员
I1723: 货代事业部总经理
... 86 more rows

Sheet 仪表盘
A1: 管理者财务驾驶仓要求：所有都要求可分别按股份合并，事业部合并，单体公司反映数据，按权限查看，股份领导查看股份合并，事业部领导查看事业部合并，单体公司管理者只能看单体
A2: 如：应收帐款前十大饼图，股份公司领导看合并的应收帐款前十大，各事业部则为本事业部的前十大，净利润与现金流状况，股份则显示每个事业部数据，事业部则显示本事业部各公司的，单体公司则为本公司的，以下各项均按此规则。
A3: 整体业绩情况
A5: 序号 | B5: 指标 | C5: 取数来源 | D5: 指标计算
A6: 1 | B6: 销售额 | C6: K3 | D6: 销售收入
B7: 预算达成率% | C7: K3取实际数，LFS取预算数 | D7: 销售收入/预算销售收入
B8: 同比变动率% | C8: K3 | D8: （本期销售收入-上年同期销售收入）/上年同期销售收入
A10: 2 | B10: 毛利润 | C10: K3 | D10: 收入-成本
B11: 预算达成率% | C11: K3取实际数，LFS取预算数 | D11: 毛利/预算毛利
B12: 同比变动率% | C12: K3 | D12: （本期毛利-上年同期毛利）/上年同期毛利
B13: 净利润率
A14: 3 | B14: 净利润 | C14: K3 | D14: 净利润
B15: 预算达成率% | C15: K3取实际数，LFS取预算数 | D15: 净利润/预算净利润
B16: 同比变动率% | C16: K3 | D16: （本期净利润-上年同期净利润）/上年同期净利润
B17: 净利润率
A18: 3 | B18: 经营管理费用 | C18: K3 | D18: 销售费用+管理费用
B19: 预算进度%
B20: 同比变动率%
A21: 3 | B21: 财务费用 | C21: K3 | D21: 财务费用
A23: 4 | B23: 毛利率 | C23: K3 | D23: 毛利/销售收入
B24: 预算进度%
B25: 同比变动率%
A27: 5 | B27: 各事业部营收占比 | C27: K3 | D27: 可均采用立体饼图，同一事业部在两张图上用同一色
A28: 6 | B28: 各事业部净利占比 | C28: K3 | D28: 可均采用立体饼图，同一事业部在两张图上用同一色
A30: 7 | B30: 各事业部累计亏损单位（替换费用使用情况） | C30: K3 | D30: 可采用柱状图，分页签将全股份中所有亏损单位列出
A32: 8 | B32: 财务状况 | C32: 指标取数均可取K3报表 | D32: 各项指标排布可按以下仪表盘，指标具体意义可参见以下网址
B33: 偿债能力 | D33: https://wenku.baidu.com/view/5ab1fc5bbe23482fb4da4c6f.html?sxts=1568688851991&sxts=1568689605608
B34: 资产负债率 | D34: 资产负债率=负债总额÷资产总额
B35: 产权比率 | D35: 产权比率=负债总额÷所有者权益
B37: 获利能力
B38: 销售毛利率 | D38: 毛利/销售收入
B39: 成本费用利润率 | D39: 利润/(主营业务成本+销售费用+管理费用+财务费用）
B40: 净资产收益率 | D40: 净利润/平均净资产 | E40: 平均净资产=(期初所有者权益+期末所有者权益）/2
B42: 运营及效能
B43: 应收账款周转天数 | D43: 应收账款周转天数=平均应收账款×360÷主营业务收入净额
B44: 人均毛利 | D44: 劳动效率=主营业务毛利÷平均职工人数
B45: 人均费用 | D45: （管理费用+经营费用）/平均职工人数
B46: 人均薪酬 | D46: （管理费用的职工薪酬+经营费用职工薪酬）/平均职工人数（也可取人力的数据）
B53: 这部份折线图取三年数据即可
B80: 把存货周转率改为应收帐款周转天数
B81: 把税金改为应收帐款前十大客户应收帐款饼图

Sheet 集团利润表
A1: 2019年10月份集团合并利润表
A2: 编制单位：侨益集团有限公司 单位：万元
A3: 指标 | B3: 月度对比 | T3: 年度对比 | Y3: 预算对比
B4: 1 | C4: 2 | D4: 3 | E4: 4 | F4: 5 | G4: 6 | H4: 7 | I4: 8 | J4: 9 | K4: 10 | L4: 11 | M4: 12 | N4: 抵消数 | O4: 本月数 | P4: 上月数 | Q4: 增减额 | R4: 增减幅（%） | S4: 上年同期抵消数 | T4: 本年累计 | U4: 本年实际累计 | V4: 上年同期 | W4: 增减额 | X4: 增减% | Y4: 本年预算（含股份支付） | Z4: 含股份支付预算% | AA4: 本年预算 | AB4: 预算进度
A5: 一、营业收入 | B5: =([13]底稿集团利润表!B5)/10000 -> 4445.428225 | C5: =([13]底稿集团利润表!C5)/10000 -> 3468.139114 | D5: =([13]底稿集团利润表!D5)/10000 -> 5923.874037 | E5: =([13]底稿集团利润表!E5)/10000 -> 5403.886681 | F5: =([13]底稿集团利润表!F5)/10000 -> 6846.808551 | G5: =([13]底稿集团利润表!G5)/10000 -> 6981.118891 | H5: =([13]底稿集团利润表!H5)/10000 -> 5544.756581 | I5: =([13]底稿集团利润表!I5)/10000 -> 6437.776868 | J5: =([13]底稿集团利润表!J5)/10000 -> 8105.983424 | K5: =([13]底稿集团利润表!K5)/10000 -> 9483.008815 | L5: =([13]底稿集团利润表!L5)/10000 -> 0 | M5: =([13]底稿集团利润表!M5)/10000 -> 0 | N5: 5103.867801 | O5: =K5 -> 9483.008815 | P5: =J5 -> 8105.983424 | Q5: =O5-P5 -> 1377.025391 | R5: =IF(ISERROR(Q5/P5),"",((Q5)/ABS(P5))) -> 0.1698776471 | S5: 1502.74899 | T5: =SUM(A5:L5)-N5 -> 57536.91338 | U5: =SUM(B5:M5)-N5-U24-U27-U30 -> 57536.91338 | V5: ='[13]2018年集团利润表底稿'!B5-S5 -> 53563.64007 | W5: =U5-V5 -> 3973.273316 | X5: =IF(ISERROR(U5-V5/V5),"",((U5-V5)/ABS(V5))) -> 0.07417855304 | Z5: =IF(ISERROR(T5/Y5),"",(T5)/ABS(Y5)) ->  | AA5: 72045.43368 | AB5: =IF(ISERROR(U5/AA5),"",(U5)/ABS(AA5)) -> 0.7986198493
A6: 减：营业成本 | B6: =([13]底稿集团利润表!B6)/10000 -> 3672.014744 | C6: =([13]底稿集团利润表!C6)/10000 -> 2625.143781 | D6: =([13]底稿集团利润表!D6)/10000 -> 4914.170101 | E6: =([13]底稿集团利润表!E6)/10000 -> 4179.885969 | F6: =([13]底稿集团利润表!F6)/10000 -> 5710.559681 | G6: =([13]底稿集团利润表!G6)/10000 -> 5842.916498 | H6: =([13]底稿集团利润表!H6)/10000 -> 4454.021671 | I6: =([13]底稿集团利润表!I6)/10000 -> 5213.341629 | J6: =([13]底稿集团利润表!J6)/10000 -> 6485.688215 | K6: =([13]底稿集团利润表!K6)/10000 -> 8095.575885 | L6: =([13]底稿集团利润表!L6)/10000 -> 0 | M6: =([13]底稿集团利润表!M6)/10000 -> 0 | N6: 4912.515212 | O6: 8095.575885 | P6: 6485.688215 | Q6: =O6-P6 -> 1609.88767 | R6: 0.2482215636 | S6: 1477.17444 | T6: =SUM(A6:L6)-N6 -> 46280.80296 | U6: =SUM(B6:M6)-N6-V25 -> 46280.80296 | V6: ='[13]2018年集团利润表底稿'!B6-S6 -> 42989.2508 | W6: =U6-V6 -> 3291.55216 | X6: =IF(ISERROR(U6-V6/V6),"",((U6-V6)/ABS(V6))) -> 0.07656686493 | Z6: =IF(ISERROR(T6/Y6),"",(T6)/ABS(Y6)) ->  | AA6: 55561.70806 | AB6: =IF(ISERROR(U6/AA6),"",(U6)/ABS(AA6)) -> 0.8329622068
A7: 二、毛利 | B7: =B5-B6 -> 773.4134804 | C7: =C5-C6 -> 842.995333 | D7: 1009.703937 | E7: 1224.000712 | F7: 1136.24887 | G7: 1138.202393 | H7: 1090.73491 | I7: 1224.435239 | J7: 1620.295209 | K7: 1387.432931 | L7: 0 | M7: 0 | N7: 191.352589 | O7: 1387.432931 | P7: 1620.295209 | Q7: =O7-P7 -> -232.8622783 | R7: -0.1437159581 | S7: =S5-S6 -> 25.57455 | T7: =T5-T6 -> 11256.11042 | U7: =U5-U6 -> 11256.11042 | V7: =V5-V6 -> 10574.38927 | W7: =U7-V7 -> 681.7211561 | X7: 0.0644690808 | AA7: =AA5-AA6 -> 16483.72561 | AB7: =IF(ISERROR(U7/AA7),"",(U7)/ABS(AA7)) -> 0.6828620354
A8: 营业税金及附加 | B8: =([13]底稿集团利润表!B8)/10000 -> 22.492827 | C8: =([13]底稿集团利润表!C8)/10000 -> 25.72753 | D8: =([13]底稿集团利润表!D8)/10000 -> 26.092662 | E8: =([13]底稿集团利润表!E8)/10000 -> 21.590362 | F8: =([13]底稿集团利润表!F8)/10000 -> 20.901078 | G8: =([13]底稿集团利润表!G8)/10000 -> 16.994541 | H8: =([13]底稿集团利润表!H8)/10000 -> 18.938678 | I8: =([13]底稿集团利润表!I8)/10000 -> 19.052871 | J8: =([13]底稿集团利润表!J8)/10000 -> 19.521609 | K8: =([13]底稿集团利润表!K8)/10000 -> 17.212097 | L8: =([13]底稿集团利润表!L8)/10000 -> 0 | M8: =([13]底稿集团利润表!M8)/10000 -> 0 | N8: 0 | O8: 17.212097 | P8: 19.521609 | Q8: =O8-P8 -> -2.309512 | R8: -0.1183054122 | S8: 0 | T8: =SUM(A8:L8)-N8 -> 208.524255 | U8: =SUM(B8:M8) -> 208.524255 | V8: ='[13]2018年集团利润表底稿'!B8 -> 170.919232 | W8: =U8-V8 -> 37.605023 | X8: 0.220016335 | AA8: 249.48713 | AB8: =IF(ISERROR(U8/AA8),"",(U8)/ABS(AA8)) -> 0.8358116709
A9: 销售费用 | B9: =([13]底稿集团利润表!B9)/10000 -> 423.7219801 | C9: =([13]底稿集团利润表!C9)/10000 -> 365.0024958 | D9: =([13]底稿集团利润表!D9)/10000 -> 384.0625855 | E9: =([13]底稿集团利润表!E9)/10000 -> 421.6221514 | F9: =([13]底稿集团利润表!F9)/10000 -> 409.2448653 | G9: =([13]底稿集团利润表!G9)/10000 -> 379.6981281 | H9: =([13]底稿集团利润表!H9)/10000 -> 384.0659926 | I9: =([13]底稿集团利润表!I9)/10000 -> 426.315128 | J9: =([13]底稿集团利润表!J9)/10000 -> 470.5203129 | K9: =([13]底稿集团利润表!K9)/10000 -> 537.3390476 | L9: =([13]底稿集团利润表!L9)/10000 -> 0 | M9: =([13]底稿集团利润表!M9)/10000 -> 0 | N9: 44.652618 | O9: 537.3390476 | P9: 470.5203129 | Q9: 66.81873466 | R9: 0.1420103082 | S9: 25.178439 | T9: =SUM(A9:L9)-N9 -> 4156.940069 | U9: =SUM(B9:M9)-V28 -> 4201.592687 | V9: ='[13]2018年集团利润表底稿'!B9-S9 -> 3992.26349 | W9: 209.3291974 | X9: 0.05243371284 | AA9: 6381.823567 | AB9: =IF(ISERROR(U9/AA9),"",(U9)/ABS(AA9)) -> 0.658368669
A10: 管理费用 | B10: =([13]底稿集团利润表!B10)/10000 -> 304.8425353 | C10: =([13]底稿集团利润表!C10)/10000 -> 313.7030098 | D10: =([13]底稿集团利润表!D10)/10000 -> 459.2940123 | E10: =([13]底稿集团利润表!E10)/10000 -> 433.6031335 | F10: =([13]底稿集团利润表!F10)/10000 -> 484.8477948 | G10: =([13]底稿集团利润表!G10)/10000 -> 378.2908196 | H10: =([13]底稿集团利润表!H10)/10000 -> 350.5130944 | I10: =([13]底稿集团利润表!I10)/10000 -> 325.4686347 | J10: =([13]底稿集团利润表!J10)/10000 -> 366.6141608 | K10: =([13]底稿集团利润表!K10)/10000 -> 343.6854933 | L10: =([13]底稿集团利润表!L10)/10000 -> 0 | M10: =([13]底稿集团利润表!M10)/10000 -> 0 | N10: 146.699971 | O10: 343.6854933 | P10: 366.6141608 | Q10: -22.92866747 | R10: -0.06254168531 | S10: 0.396111 | T10: =SUM(A10:L10)-N10 -> 3614.162717 | U10: =SUM(B10:M10)-V31 -> 3760.862688 | V10: ='[13]2018年集团利润表底稿'!B10-S10 -> 3277.826468 | W10: 483.0362201 | X10: 0.1473647934 | AA10: 4283.304516 | AB10: 0.8780283247
A11: 财务费用 | B11: =([13]底稿集团利润表!B11)/10000 -> 84.16310459 | C11: =([13]底稿集团利润表!C11)/10000 -> 108.446534 | D11: =([13]底稿集团利润表!D11)/10000 -> 102.7917384 | E11: =([13]底稿集团利润表!E11)/10000 -> 115.8066885 | F11: =([13]底稿集团利润表!F11)/10000 -> 10.45696285 | G11: =([13]底稿集团利润表!G11)/10000 -> 213.5288276 | H11: =([13]底稿集团利润表!H11)/10000 -> 201.5597101 | I11: =([13]底稿集团利润表!I11)/10000 -> 122.3257653 | J11: =([13]底稿集团利润表!J11)/10000 -> 111.7045411 | K11: =([13]底稿集团利润表!K11)/10000 -> 75.38709855 | L11: =([13]底稿集团利润表!L11)/10000 -> 0 | M11: =([13]底稿集团利润表!M11)/10000 -> 0 | O11: 75.38709855 | P11: 111.7045411 | Q11: -36.31744259 | R11: -0.3251205566 | T11: =SUM(A11:L11)-N11 -> 1146.170971 | U11: =SUM(B11:M11) -> 1146.170971 | V11: ='[13]2018年集团利润表底稿'!B11 -> 888.7687519 | W11: 257.4022191 | X11: 0.2896166394 | AA11: 1265.139 | AB11: 0.90596446
A12: 资产减值损失 | B12: =([13]底稿集团利润表!B12)/10000 -> -6.917942 | C12: =([13]底稿集团利润表!C12)/10000 -> -12.14452765 | D12: =([13]底稿集团利润表!D12)/10000 -> 73.67398 | E12: =([13]底稿集团利润表!E12)/10000 -> 16.315848 | F12: =([13]底稿集团利润表!F12)/10000 -> -7.741986 | G12: =([13]底稿集团利润表!G12)/10000 -> 51.94846156 | H12: =([13]底稿集团利润表!H12)/10000 -> -56.59191073 | I12: =([13]底稿集团利润表!I12)/10000 -> 62.57344514 | J12: =([13]底稿集团利润表!J12)/10000 -> -36.8031817 | K12: =([13]底稿集团利润表!K12)/10000 -> 13.76440056 | L12: =([13]底稿集团利润表!L12)/10000 -> 0 | M12: =([13]底稿集团利润表!M12)/10000 -> 0 | O12: 13.76440056 | P12: -36.8031817 | Q12: 50.56758226 | R12: 1.374000288 | T12: =SUM(A12:L12)-N12 -> 98.07658719 | U12: 98.07658719 | V12: ='[13]2018年集团利润表底稿'!B12 -> 40.86985717 | W12: 57.20673003 | X12: 1.39972914 | AA12: 127.9383722 | AB12: 0.7665924264
A13: 加：公允价值变动收益 | B13: =([13]底稿集团利润表!B13)/10000 -> 0 | C13: =([13]底稿集团利润表!C13)/10000 -> 0 | D13: =([13]底稿集团利润表!D13)/10000 -> 0 | E13: =([13]底稿集团利润表!E13)/10000 -> 0 | F13: =([13]底稿集团利润表!F13)/10000 -> 0 | G13: =([13]底稿集团利润表!G13)/10000 -> 0 | H13: =([13]底稿集团利润表!H13)/10000 -> 0 | I13: =([13]底稿集团利润表!I13)/10000 -> 0 | J13: =([13]底稿集团利润表!J13)/10000 -> 0 | K13: =([13]底稿集团利润表!K13)/10000 -> 0 | L13: =([13]底稿集团利润表!L13)/10000 -> 0 | M13: =([13]底稿集团利润表!M13)/10000 -> 0 | O13: 0 | P13: 0 | Q13: 0 | T13: =SUM(A13:L13) -> 0 | U13: 0 | V13: ='[13]2018年集团利润表底稿'!B13 -> 0 | W13: 0
A14: 投资收益 | B14: =([13]底稿集团利润表!B14)/10000 -> -9.528193 | C14: =([13]底稿集团利润表!C14)/10000 -> 10.608692 | D14: =([13]底稿集团利润表!D14)/10000 -> 1.886546 | E14: =([13]底稿集团利润表!E14)/10000 -> 1.066399 | F14: =([13]底稿集团利润表!F14)/10000+N14 -> 0.431079 | G14: =([13]底稿集团利润表!G14)/10000+N13 -> 0.341918 | H14: =([13]底稿集团利润表!H14)/10000 -> 0.276164 | I14: =([13]底稿集团利润表!I14)/10000+I16 -> 0.424214 | J14: =([13]底稿集团利润表!J14)/10000 -> 1.156313 | K14: =([13]底稿集团利润表!K14)/10000 -> 0.635226 | L14: =([13]底稿集团利润表!L14)/10000 -> 0 | M14: =([13]底稿集团利润表!M14)/10000 -> 0 | O14: 0.635226 | P14: 1.156313 | Q14: -0.521087 | R14: -0.4506452838 | T14: =SUM(A14:L14) -> 7.298358 | U14: 7.298358 | V14: ='[13]2018年集团利润表底稿'!B14 -> -185.483054 | W14: 192.781412 | X14: 1.039347843 | AA14: 11.5 | AB14: 0.6346398261
A15: 资产处置收益 | O15: 0 | P15: 0 | U15: 0 | V15: ='[13]2018年集团利润表底稿'!B15 -> 0 | W15: 0
A16: 其他收益 | O16: 0 | P16: 0 | R16: =IF(ISERROR(Q16/P16),"",((Q16)/ABS(P16))) ->  | U16: 0 | W16: 0 | AA16: 277.799996
A17: 三、营业利润 | B17: =B7-B8-B9-B10-B11-B12+B13+B14 -> -64.41721766 | C17: 52.86898304 | D17: -34.32449571 | E17: 216.1289274 | F17: 218.9712341 | G17: 98.08353327 | H17: 192.5255095 | I17: 269.123609 | J17: 689.8940797 | K17: 400.6800196 | L17: 0 | M17: 0 | O17: =O7-O8-O9-O10-O11-O12+O13+O14 -> 400.6800196 | P17: =P7-P8-P9-P10-P11-P12+P13+P14 -> 689.8940797 | Q17: =O17-P17 -> -289.2140602 | R17: -0.4192151646 | T17: =T7-T8-T9-T10-T11-T12+T13+T14 -> 2039.534182 | U17: =U7-U8-U9-U10-U11-U12+U13+U14+U15+U16 -> 1848.181593 | V17: ='[13]2018年集团利润表底稿'!B16 -> 2018.258415 | W17: -170.0768216 | X17: -0.08426910069 | AA17: =AA7-AA8-AA9-AA10-AA11-AA12+AA13+AA14+AA15+AA16 -> 4465.333025 | AB17: =IF(ISERROR(U17/AA17),"",(U17)/ABS(AA17)) -> 0.413895578
A18: 加：营业外收入 | B18: =([13]底稿集团利润表!B16)/10000 -> 2.053126 | C18: =([13]底稿集团利润表!C16)/10000 -> 0 | D18: =([13]底稿集团利润表!D16)/10000 -> 2.784168493 | E18: =([13]底稿集团利润表!E16)/10000 -> 0.904156 | F18: =([13]底稿集团利润表!F16)/10000 -> 20.272709 | G18: =([13]底稿集团利润表!G16)/10000 -> 20.646238 | H18: =([13]底稿集团利润表!H16)/10000 -> 18.054245 | I18: =([13]底稿集团利润表!I16)/10000 -> 15.933161 | J18: =([13]底稿集团利润表!J16)/10000 -> 14.511347 | K18: =([13]底稿集团利润表!K16)/10000 -> 18.957506 | L18: =([13]底稿集团利润表!L16)/10000 -> 0 | M18: =([13]底稿集团利润表!M16)/10000 -> 0 | O18: =K18 -> 18.957506 | P18: =J18 -> 14.511347 | Q18: 4.446159 | R18: 0.3063918877 | T18: =SUM(A18:L18)-N18 -> 114.1166565 | U18: =SUM(B18:M18) -> 114.1166565 | V18: ='[13]2018年集团利润表底稿'!B17 -> 366.3913435 | W18: -252.274687 | X18: -0.6885388847 | AA18: 220.397932 | AB18: =IF(ISERROR(U18/AA18),"",(U18)/ABS(AA18)) -> 0.517775532
A19: 减：营业外支出 | B19: =([13]底稿集团利润表!B17)/10000 -> 1.204069 | C19: =([13]底稿集团利润表!C17)/10000 -> 0.00018 | D19: =([13]底稿集团利润表!D17)/10000 -> 0 | E19: =([13]底稿集团利润表!E17)/10000 -> 12.909137 | F19: =([13]底稿集团利润表!F17)/10000 -> -17.168662 | G19: =([13]底稿集团利润表!G17)/10000 -> 0.238705 | H19: =([13]底稿集团利润表!H17)/10000 -> 4.39432 | I19: =([13]底稿集团利润表!I17)/10000 -> 6.139482 | J19: =([13]底稿集团利润表!J17)/10000 -> 14.519227 | K19: =([13]底稿集团利润表!K17)/10000 -> 9.50595 | L19: =([13]底稿集团利润表!L17)/10000 -> 0 | M19: =([13]底稿集团利润表!M17)/10000 -> 0 | O19: 9.50595 | P19: 14.519227 | Q19: -5.013277 | R19: -0.3452853929 | T19: =SUM(A19:L19)-N19 -> 31.742408 | U19: =SUM(B19:M19) -> 31.742408 | V19: ='[13]2018年集团利润表底稿'!B18 -> 84.232828 | W19: -52.49042 | X19: -0.6231587048 | AA19: 0
A20: 四、利润总额 | B20: =B17+B18-B19 -> -63.56816066 | C20: =C17+C18-C19 -> 52.86880304 | D20: =D17+D18-D19 -> -31.54032722 | E20: 204.1239464 | F20: 256.4126051 | G20: 118.4910663 | H20: 206.1854345 | I20: 278.917288 | J20: 689.8861997 | K20: 410.1315756 | L20: 0 | M20: 0 | O20: =O17+O18-O19 -> 410.1315756 | P20: =P17+P18-P19 -> 689.8861997 | Q20: -279.7546242 | R20: -0.405508364 | T20: =T17+T18-T19 -> 2121.908431 | U20: =U17+U18-U19 -> 1930.555842 | V20: ='[13]2018年集团利润表底稿'!B19 -> 2300.41693 | W20: -369.8610886 | X20: -0.1607800237 | AA20: =AA17+AA18-AA19 -> 4685.730957 | AB20: 0.4120074028
A21: 减：所得税费用 | B21: =([13]底稿集团利润表!B19)/10000 -> 62.73207094 | C21: =([13]底稿集团利润表!C19)/10000 -> 85.966453 | D21: =([13]底稿集团利润表!D19)/10000 -> 34.30460285 | E21: =([13]底稿集团利润表!E19)/10000 -> 50.04914825 | F21: =([13]底稿集团利润表!F19)/10000 -> 112.524216 | G21: =([13]底稿集团利润表!G19)/10000 -> 32.97151925 | H21: =([13]底稿集团利润表!H19)/10000 -> 77.05657585 | I21: =([13]底稿集团利润表!I19)/10000 -> 52.696087 | J21: =([13]底稿集团利润表!J19)/10000 -> 127.276804 | K21: =([13]底稿集团利润表!K19)/10000 -> 143.5389221 | L21: =([13]底稿集团利润表!L19)/10000 -> 0 | M21: =([13]底稿集团利润表!M19)/10000 -> 0 | O21: 143.5389221 | P21: 127.276804 | Q21: 16.2621181 | R21: 0.1277696924 | T21: =SUM(A21:L21)-N21 -> 779.1163992 | U21: =SUM(B21:M21)-N21 -> 779.1163992 | V21: ='[13]2018年集团利润表底稿'!B20 -> 842.9779022 | W21: -63.86150291 | X21: -0.07575703082 | AA21: 1397.354267 | AB21: 0.5575654061
A22: 五、净利润 | B22: =B20-B21 -> -126.3002316 | C22: -33.09764996 | D22: -65.84493007 | E22: 154.0747981 | F22: 143.8883891 | G22: 85.51954702 | H22: 129.1288586 | I22: 226.221201 | J22: 562.6093957 | K22: 266.5926535 | L22: 0 | M22: 0 | O22: =O20-O21 -> 266.5926535 | P22: =P20-P21 -> 562.6093957 | Q22: -296.0167423 | R22: -0.52614966 | T22: =T20-T21 -> 1342.792031 | U22: =U20-U21 -> 1151.439442 | V22: ='[13]2018年集团利润表底稿'!B22 -> 1457.439028 | W22: -305.9995856 | X22: -0.2099570409 | AA22: =AA20-AA21 -> 3288.37669 | AB22: 0.3501543622
A23: 内部抵消数 | AC23: 股份合并不含船代 | AE23: 船代 | AG23: 股份合并船代
A24: 主营业务收入 | B24: 主营业务收入 | C24: 主营业务收入 | AC24: 23514511.34 | AE24: 86294.02 | AG24: 15106467.79
A25: 主营业务成本 | B25: 主营业务成本 | C25: 主营业务成本 | AD25: 23514511.34 | AF25: 86294.02 | AH25: 15106467.79
A27: 主营业务收入 | B27: 主营业务收入 | C27: 主营业务收入 | AC27: 1704843.09 | AG27: 305208.39
A28: 销售费用 | B28: 销售费用 | C28: 销售费用 | AD28: 1704843.09 | AH28: 305208.39
A30: 主营业务收入 | B30: 主营业务收入 | C30: 主营业务收入 | AC30: 160211.26 | AG30: 3961.11
A31: 管理费用 | B31: 管理费用 | C31: 管理费用 | AD31: 160211.26 | AH31: 3961.11
A37: 主要对外投资单位经营业绩 | O37: 公司名称 | P37: 本年累计净利 | Q37: 股权比例 | R37: 2018年应享有的净利润权益
O38: 元通船运（香港）有限公司 | Q38: 0.3 | R38: =P38*Q38 -> 0
O39: 广州广物小额贷款有限公司 | Q39: 0.05 | R39: =P39*Q39 -> 0
O40: Trans Link GraJns | Q40: 0.49 | R40: =P40*Q40 -> 0
O41: 合 计： | P41: =SUM(P38:P40) -> 0 | R41: =SUM(R38:R40) -> 0
B48: 10000
V49: 万元 | Z49: 元
T50: 10000 | V50: 本年 | X50: 上年同期 | Z50: 若为负值，则附表也应有负值 | AB50: 预算 | AI50: 勾稽检查
O51: 乘以一万 | V51: =T7-'[13]附表2-各单位毛利情况表'!S53 -> 0 | X51: =V7-'[13]附表2-各单位毛利情况表'!T53 -> 0.0003689999976 | Z51: =V51*10000 -> 0 | AB51: =AA7-'[13]附表2-各单位毛利情况表'!W53 -> 0 | AI51: 净收入
O52: 友联单位是美元 | V52: =T9+T10-'[13]附表4-各单位总支出情况表'!T628 -> 0 | X52: =V9+V10-'[13]附表4-各单位总支出情况表'!U628 -> -0.003875000001 | Z52: 0 | AB52: =AA9+AA10-'[13]附表4-各单位总支出情况表'!X628 -> -0.001829511117 | AI52: 销售费用+管理费用
O53: 友联TL-Financial Statement 08 2017.xlsx取balance sheet 的net income，需换算为人民币 | V53: =T22-'[13]附表3-各单位净利润情况表 '!S53 -> 2.499978109e-07 | X53: =V22-'[13]附表3-各单位净利润情况表 '!T53 -> 0.004576000001 | Z53: 0.002499978109 | AB53: =AA22-'[13]附表3-各单位净利润情况表 '!W53 -> 4.320099833e-11 | AI53: 净利润
O54: 元通PRIMINDS SHIPPING(HONGKONG) CO LTD取P & L_AUG 2017.pdf得Net Income | V54: =T5-'[13]附表1-各单位主营业务收入情况表'!S53 -> 0 | X54: =V5-'[13]附表1-各单位主营业务收入情况表'!T53 -> 0 | Z54: 0 | AI54: 营业收入
O55: 广物取损益表 | V55: ='[13]股份公司税务利润表 '!S52-'[13]附表3-各单位净利润情况表 '!S48 -> 0 | X55: ='[13]股份公司税务利润表 '!T52-'[13]附表3-各单位净利润情况表 '!T48 -> 0 | Z55: 0 | AI55: 股份公司净利润（实际）
R56: 附表3-各单位净利润情况表 '!A1 | Z56: 0
Z57: 0

Sheet 股份公司税务利润表
B1: 2019年10月份股份合并税务利润表
B2: 编制单位：侨益物流股份有限公司 | Y2: 单元：万元
B3: 指标 | C3: 1月 | D3: 2月 | E3: 3月 | F3: 4月 | G3: 5月 | H3: 6月 | I3: 7月 | J3: 8月 | K3: 9月 | L3: 10月 | M3: 11月 | N3: 12月 | O3: 月度对比 | S3: 年度对比 | X3: 预算对比
O4: 本月数 | P4: 上月数 | Q4: 增减额 | R4: 增减幅（%） | S4: 本年累计 | T4: 上年同期 | U4: 股份支付 | V4: 增减额 | W4: 增减幅（%） | X4: 本年预算 | Y4: 预算%
B6: 一、营业收入 | C6: 5171.143162 | D6: 2415.996838 | E6: 6967.242456 | F6: 4466.275983 | G6: 5959.221861 | H6: 6168.211641 | I6: 4326.926312 | J6: 4347.989664 | K6: 6746.066929 | L6: 8638.08785 | O6: =L6 -> 8638.08785 | P6: =K6 -> 6746.066929 | Q6: =O6-P6 -> 1892.020921 | R6: =IF(ISERROR(Q6/P6),"",(Q6/P6)) -> 0.280462815 | S6: =SUM(B6:N6) -> 55207.1627 | T6: 49264.90986 | V6: =S6-T6 -> 5942.252839 | W6: =IF(ISERROR(V6/T6),"",(V6/T6)) -> 0.1206183642 | X6: 72003.43368 | Y6: =IF(ISERROR(S6/X6),"",(S6/X6)) -> 0.7667295832
B7: 减：营业成本 | C7: 4279.761242 | D7: 1933.363713 | E7: 5724.272683 | F7: 3071.36813 | G7: 4737.565009 | H7: 4968.745872 | I7: 3445.253671 | J7: 3338.895767 | K7: 5213.352651 | L7: 7248.552291 | O7: 7248.552291 | P7: 5213.352651 | Q7: =O7-P7 -> 2035.19964 | R7: =IF(ISERROR(Q7/P7),"",(Q7/P7)) -> 0.3903821161 | S7: =SUM(B7:N7) -> 43961.13103 | T7: 38434.70146 | V7: =S7-T7 -> 5526.429569 | W7: =IF(ISERROR(V7/T7),"",(V7/T7)) -> 0.1437874983 | X7: 55549.70806 | Y7: =IF(ISERROR(S7/X7),"",(S7/X7)) -> 0.7913836555
B8: 二、毛利 | C8: =C6-C7 -> 891.38192 | D8: =D6-D7 -> 482.633125 | E8: 1242.969773 | F8: 1394.907853 | G8: 1221.656852 | H8: 1199.465769 | I8: 881.672641 | J8: 1009.093897 | K8: 1532.714278 | L8: 1389.535559 | M8: 0 | N8: 0 | O8: 1389.535559 | P8: 1532.714278 | Q8: -143.178719 | R8: -0.09341514009 | S8: =S6-S7 -> 11246.03167 | T8: 10830.2084 | V8: =V6-V7 -> 415.82327 | W8: 0.03839476165 | X8: =X6-X7 -> 16453.72561 | Y8: 0.6834945429
B9: 税金及附加 | C9: 21.485152 | D9: 23.676054 | E9: 25.96077 | F9: 19.797907 | G9: 20.03139 | H9: 16.61213 | I9: 18.49752 | J9: 18.135803 | K9: 18.143746 | L9: 18.204303 | O9: 18.204303 | P9: 18.143746 | Q9: 0.060557 | R9: 0.003337623884 | S9: =SUM(B9:N9) -> 200.544775 | T9: 165.069608 | V9: =S9-T9 -> 35.475167 | W9: 0.2149103486 | X9: 249.27113 | Y9: 0.8045246756
B10: 销售费用 | C10: 311.318866 | D10: =65.154341+300 -> 365.154341 | E10: 436.998931 | F10: =681.794838-300 -> 381.794838 | G10: 395.524582 | H10: 365.336515 | I10: 417.368128 | J10: 396.10365 | K10: 460.740618 | L10: 532.532894 | O10: 532.532894 | P10: 460.740618 | Q10: 71.792276 | R10: 0.1558192901 | S10: =SUM(B10:N10) -> 4062.873363 | T10: 3583.98068 | V10: =S10-T10 -> 478.892683 | W10: 0.1336203305 | X10: 6368.123567 | Y10: 0.6380016531
B11: 管理费用 | C11: 291.121854 | D11: 244.413067 | E11: 503.567338 | F11: 371.471606 | G11: =266.169725+80.89 -> 347.059725 | H11: =258.794687+75.893185 -> 334.687872 | I11: =239.636404+51.96 -> 291.596404 | J11: =221.715108+47.75 -> 269.465108 | K11: =258.671896+58.69 -> 317.361896 | L11: =230.934254+31.31 -> 262.244254 | O11: 262.244254 | P11: 317.361896 | Q11: -55.117642 | R11: -0.1736744162 | S11: 3232.989124 | T11: 3327.838093 | U11: 472.5 | V11: -94.848969 | W11: -0.02850167777 | X11: 3783.304516 | Y11: =IF(ISERROR((S11+S12)/X11),"",((S11+S12)/X11)) -> 0.8545410792
B12: 研发费用 | O12: 0 | P12: 0 | Q12: 0 | S12: 0 | T12: 0 | V12: 0
B13: 财务费用 | C13: 73.130465 | D13: 102.858661 | E13: 84.003587 | F13: 102.031588 | G13: 1.478068 | H13: 106.776622 | I13: 90.873206 | J13: 107.97705 | K13: 81.99034 | L13: 40.135319 | O13: 40.135319 | P13: 81.99034 | Q13: -41.855021 | R13: -0.5104872233 | S13: 791.254906 | T13: 834.959934 | V13: -43.705028 | W13: -0.05234386253 | X13: 1109.639 | Y13: 0.7130741674
B14: 资产减值损失 | C14: -32.839263 | D14: 10.590236 | E14: 77.035154 | F14: 13.596716 | G14: -11.082754 | H14: 51.073682 | I14: -68.11617 | J14: 73.581538 | K14: 41.449906 | L14: -17.887293 | O14: -17.887293 | P14: 41.449906 | Q14: -59.337199 | R14: -1.431540014 | S14: 137.401752 | T14: -46.88947 | V14: 184.291222 | W14: -3.930332802 | X14: 127.9383722 | Y14: 1.073968268
B15: 加：公允价值变动收益 | E15: 0 | F15: 0 | G15: 0 | H15: 0 | I15: 0 | J15: 0 | K15: 0 | L15: 0 | O15: 0 | P15: 0 | Q15: 0 | S15: 0 | T15: 0 | V15: 0
B16: 投资收益 | C16: -9.53 | D16: 10.28 | E16: 2.217045 | F16: 1.066399 | G16: 0.431079 | H16: -1.908657 | I16: 5.312325 | J16: 1.453545 | K16: 4.005098 | L16: -0.032735 | O16: -0.032735 | P16: 4.005098 | Q16: -4.037833 | R16: -1.008173333 | S16: 13.294099 | T16: 32.260141 | V16: -18.966042 | W16: -0.5879094577 | X16: 11.5 | Y16: 1.156008609
B17: 资产处置收益 | E17: -20.92889 | F17: -0.01821 | G17: -0.270598 | H17: 0.037712 | I17: -0.014623 | J17: -0.350394 | K17: 0.023089 | L17: -0.784774 | O17: -0.784774 | P17: 0.023089 | Q17: -0.807863 | R17: -34.98908571 | S17: -22.306688 | T17: 5.099542 | V17: -27.40623 | W17: -5.374253217
B18: 其他收益 | C18: 13.99 | D18: 13.99 | E18: 13.969999 | F18: 14.413489 | G18: 31.013042 | H18: 28.644887 | I18: 30.096958 | J18: 44.760469 | K18: 29.1593 | L18: 30.698777 | O18: 30.698777 | P18: 29.1593 | Q18: 1.539477 | R18: 0.05279540318 | S18: 250.736921 | T18: 302.626566 | V18: -51.889645 | W18: -0.1714642759 | X18: =277.799996 -> 277.799996 | Y18: 0.9025807221
B19: 三、营业利润 | C19: =C8-C9-C10-C11-C12-C13-C14+C15+C16+C17+C18 -> 231.624846 | D19: =D8-D9-D10-D11-D12-D13-D14+D15+D16+D17+D18 -> -239.789234 | E19: 110.662147 | F19: 521.676876 | G19: 499.819364 | H19: 351.75289 | I19: 166.848213 | J19: 189.694368 | K19: =K8-K9-K10-K11-K12-K13+K14+K15+K16+K17+K18 -> 729.115071 | L19: 548.415007 | M19: 0 | N19: 0 | O19: 548.412764 | P19: 729.115071 | Q19: -180.702307 | R19: =IF(ISERROR(Q19/P19),"",(Q19/ABS(P19))) -> -0.2478378437 | S19: 3109.819548 | T19: 3211.456861 | U19: -472.5 | V19: -101.637313 | W19: -0.0316483507 | X19: 5104.749025 | Y19: 0.609201262
B20: 加：营业外收入 | C20: 2.053126 | D20: -0.486326 | E20: 24.691795 | F20: 0.474 | G20: 0.243 | H20: 5.984684 | I20: 7.770637 | J20: 0.367034 | K20: 0.1866 | L20: 3.327876 | O20: =L20 -> 3.327876 | P20: =K20 -> 0.1866 | Q20: 3.141276 | R20: =IF(ISERROR(Q20/P20),"",(Q20/P20)) -> 16.83427653 | S20: 44.612426 | T20: 56.591856 | V20: -11.97943 | W20: -0.2116811649 | X20: 220.397932 | Y20: 0.2024176252
B21: 减：营业外支出 | C21: 1.204069 | D21: -1.204069 | E21: 1.204069 | F21: 12.871607 | G21: -17.168662 | H21: 0.261205 | I21: 4.39432 | J21: 6.139482 | K21: 14.519227 | L21: 9.50595 | O21: 9.50595 | P21: 14.519227 | Q21: -5.013277 | R21: =IF(ISERROR(Q21/P21),"",(Q21/ABS(P21))) -> -0.3452853929 | S21: 31.727198 | T21: 83.53717 | V21: -51.809972 | W21: -0.6202026236
B22: 四、利润总额 | C22: =C19+C20-C21 -> 232.473903 | D22: -239.071491 | E22: 134.149873 | F22: 509.279269 | G22: 517.231026 | H22: 357.476369 | I22: 170.228137 | J22: 183.926793 | K22: 714.78261 | L22: 542.236933 | O22: =O19+O20-O21 -> 542.23469 | P22: =P19+P20-P21 -> 714.782444 | Q22: -172.547754 | R22: =IF(ISERROR(Q22/P22),"",(Q22/ABS(P22))) -> -0.2413989815 | S22: 3122.713422 | T22: 3184.511547 | U22: -472.5 | V22: -61.798125 | W22: -0.01940584108 | X22: =X19+X20-X21 -> 5325.146957 | Y22: 0.5864088724
B23: 减：当期所得税费用 | C23: 112.651036 | D23: 84.543078 | E23: 73.009106 | F23: 37.699798 | G23: 91.985186 | H23: 26.985184 | I23: 64.98388 | J23: 57.393185 | K23: 101.102248 | L23: 75.027344 | O23: 75.027344 | P23: 101.102248 | Q23: -26.074904 | R23: =IF(ISERROR(Q23/P23),"",(Q23/P23)) -> -0.2579062733 | S23: 725.380045 | T23: 717.612554 | V23: 7.767491 | W23: 0.01082407346 | X23: 1397.354267 | Y23: 0.5191096218
B24: 减：递延所得税费用 | C24: 2.172949 | D24: 2.284845 | E24: -13.024374 | F24: -13.584868 | G24: 7.064506 | H24: 1.127801 | I24: 9.247444 | J24: -20.804987 | K24: -12.802699 | L24: 31.343391 | O24: 31.343391 | P24: -12.802699 | Q24: 44.14609 | S24: -6.975992 | T24: -2.95685 | W24: 0
B25: 五、净利润 | C25: =C22-C23-C24 -> 117.649918 | D25: -325.899414 | E25: 74.165141 | F25: 485.164339 | G25: 418.181334 | H25: 329.363384 | I25: 95.996813 | J25: 147.338595 | K25: 626.483061 | L25: 435.866198 | O25: =O22-O23-O24 -> 435.863955 | P25: =P22-P23-P24 -> 626.482895 | Q25: -190.61894 | R25: =IF(ISERROR(Q25/P25),"",(Q25/ABS(P25))) -> -0.3042683871 | S25: 2404.309369 | T25: 2469.855843 | U25: -472.5 | V25: -65.546474 | W25: -0.02653858288 | X25: =X22-X23-X24 -> 3927.79269 | Y25: 0.6121273598
B26: 归属于母公司所有者的净利润 | C26: 104.551994 | D26: 21.726679 | E26: 162.625089 | F26: 194.654002 | G26: 425.902861 | H26: 292.054669 | I26: 88.856563 | J26: 153.739771 | K26: 619.595065 | L26: 240.448266 | O26: =L26 -> 240.448266 | P26: =K26 -> 619.595065 | Q26: -379.146799 | R26: =IF(ISERROR(Q26/P26),"",(Q26/P26)) -> -0.6119267574 | S26: 2304.154959 | T26: 2434.625539 | V26: -130.47058 | W26: -0.05358958818
B27: 少数股东损益 | C27: -0.890972 | D27: -33.650131 | E27: -88.447014 | F27: -9.489663 | G27: -7.722607 | H27: 37.308715 | I27: 7.14025 | J27: -6.401176 | K27: 6.887996 | L27: 195.417932 | O27: =L27 -> 195.417932 | P27: =K27 -> 6.887996 | Q27: 188.529936 | R27: =IF(ISERROR(Q27/P27),"",(Q27/P27)) -> 27.37079638 | S27: 100.15333 | T27: 35.230304 | V27: 64.923026 | W27: 1.842817649
B28: 本年计提年度奖金 | I28: 0 | O28: =I28 -> 0 | P28: =F28 -> 0 | Q28: 0 | R28: =IF(ISERROR(Q28/P28),"",(Q28/P28)) ->  | S28: 0 | T28: 529466.94 | V28: =T28-U28 -> 529466.94 | W28: 1
B29: 调整小计 | C29: =C30+C31+C32+C33+C34-C35-C36-C37-C38-C39-C44+C40+C41+C42-C46 ->  | D29: =D30+D31+D32+D33+D34-D35-D36-D37-D38-D39-D44+D40+D41+D42-D46 ->  | E29: =E30+E31+E32+E33+E34-E35-E36-E37-E38-E39-E44+E40+E41+E42-E46-E43 ->  | F29: =F30+F31+F32+F33+F34-F35-F36-F37-F38-F39-F44+F40+F41+F42-F46-F43+38.85 ->  | G29: =G30+G31+G32+G33+G34-G35-G36-G37-G38-G39-G46+G40-G42-G43+G45-G44 ->  | H29: =H30+H31+H32+H33+H34-H35-H36-H37-H38-H39-H46+H40 ->  | I29: =I30+I31+I32+I33+I34-I35-I36-I37-I38-I39-I46+I40 ->  | J29: =J30+J31+J32+J33+J34-J35-J36-J37-J38-J39-J46+J40 ->  | K29: =K30+K31+K32+K33+K34-K35-K36-K37-K38-K39-K46+K40 ->  | L29: =L30+L31+L32+L33+L34-L35-L36-L37-L38-L39-L46+L40+L41+L42 ->  | M29: =M30+M31+M32+M33+M34-M35-M36-M37-M38-M39-M46+M40+M41+M42 ->  | N29: =N30+N31+N32+N33+N34-N35-N36-N37-N38-N39-N46+N40-N41+N42+N43 ->  | T29: -37.56567373 | W29: 0
B30: 加：明珠管理报表确认上年税务报表已确认净利 | O30: 0 | P30: 0 | Q30: 0 | S30: 0 | T30: 0 | V30: 0
B31: 加：广州元亨税务报表分摊租船费用 | C31: =13837.94/10000 -> 1.383794 | D31: =13885.24/10000 -> 1.388524 | E31: ='[13]附表3-各单位净利润情况表 '!#REF! ->  | F31: ='[13]附表3-各单位净利润情况表 '!#REF! ->  | G31: ='[13]附表3-各单位净利润情况表 '!#REF! ->  | H31: ='[13]附表3-各单位净利润情况表 '!#REF! ->  | I31: ='[13]附表3-各单位净利润情况表 '!#REF! ->  | J31: ='[13]附表3-各单位净利润情况表 '!#REF! ->  | K31: ='[13]附表3-各单位净利润情况表 '!#REF! ->  | L31: ='[13]附表3-各单位净利润情况表 '!#REF! ->  | M31: ='[13]附表3-各单位净利润情况表 '!#REF! ->  | N31: ='[13]附表3-各单位净利润情况表 '!#REF! ->  | T31: 4.427753 | V31: 4.427753 | W31: 1
B32: 加：广州元亨管理报表确认收入大于税务报表 | C32: ='[13]附表3-各单位净利润情况表 '!#REF! ->  | D32: ='[13]附表3-各单位净利润情况表 '!#REF! ->  | E32: ='[13]附表3-各单位净利润情况表 '!#REF! ->  | F32: ='[13]附表3-各单位净利润情况表 '!#REF! ->  | G32: ='[13]附表3-各单位净利润情况表 '!#REF! ->  | H32: ='[13]附表3-各单位净利润情况表 '!#REF! ->  | I32: ='[13]附表3-各单位净利润情况表 '!#REF! ->  | J32: ='[13]附表3-各单位净利润情况表 '!#REF! ->  | K32: ='[13]附表3-各单位净利润情况表 '!#REF! ->  | L32: ='[13]附表3-各单位净利润情况表 '!#REF! ->  | M32: ='[13]附表3-各单位净利润情况表 '!#REF! ->  | N32: ='[13]附表3-各单位净利润情况表 '!#REF! ->  | T32: -12.202957 | V32: -12.202957 | W32: 1
B33: 加：境外公司分摊广州元亨费用 | O33: 0 | P33: 0 | Q33: 0 | S33: 0 | T33: 0 | V33: 0
B34: 加：广西侨益管理报表确认税务报表未确认 | C34: ='[13]附表3-各单位净利润情况表 '!#REF! ->  | D34: ='[13]附表3-各单位净利润情况表 '!#REF! ->  | E34: ='[13]附表3-各单位净利润情况表 '!#REF! ->  | F34: ='[13]附表3-各单位净利润情况表 '!#REF! ->  | G34: ='[13]附表3-各单位净利润情况表 '!#REF! ->  | O34: 0 | T34: 68.52320227 | V34: 68.52320227 | W34: 1
B35: 减：物流本年税务报表确认以前年度净利润 | E35: ='[13]附表3-各单位净利润情况表 '!#REF! ->  | F35: ='[13]附表3-各单位净利润情况表 '!#REF! ->  | O35: 0 | T35: -25.780628 | V35: -25.780628 | W35: 1
B36: 减：物流管理报表所得税计提大于税务报表所得税 | C36: ='[13]附表3-各单位净利润情况表 '!#REF! ->  | D36: ='[13]附表3-各单位净利润情况表 '!#REF! ->  | E36: ='[13]附表3-各单位净利润情况表 '!#REF! ->  | F36: ='[13]附表3-各单位净利润情况表 '!#REF! ->  | G36: ='[13]附表3-各单位净利润情况表 '!#REF! ->  | H36: ='[13]附表3-各单位净利润情况表 '!#REF! ->  | I36: ='[13]附表3-各单位净利润情况表 '!#REF! ->  | J36: ='[13]附表3-各单位净利润情况表 '!#REF! ->  | K36: ='[13]附表3-各单位净利润情况表 '!#REF! ->  | L36: ='[13]附表3-各单位净利润情况表 '!#REF! ->  | M36: ='[13]附表3-各单位净利润情况表 '!#REF! ->  | N36: ='[13]附表3-各单位净利润情况表 '!#REF! ->  | T36: 210.586145 | V36: 210.586145 | W36: 1
B37: 减： 生生税务报表确认收入，管理报表不确认 | C37: ='[13]附表3-各单位净利润情况表 '!#REF! ->  | D37: ='[13]附表3-各单位净利润情况表 '!#REF! ->  | E37: ='[13]附表3-各单位净利润情况表 '!#REF! ->  | F37: ='[13]附表3-各单位净利润情况表 '!#REF! ->  | O37: 0 | T37: -1.385134 | V37: -1.385134 | W37: 1
B38: 减：生生税务报表确认租船的业务，管理报表不确认 | C38: ='[13]附表3-各单位净利润情况表 '!#REF! ->  | D38: ='[13]附表3-各单位净利润情况表 '!#REF! ->  | E38: ='[13]附表3-各单位净利润情况表 '!#REF! ->  | F38: ='[13]附表3-各单位净利润情况表 '!#REF! ->  | O38: 0 | T38: -0.388892 | V38: -0.388892 | W38: 1
B39: 减：广州悦达管理报表已确认净利 | F39: ='[13]附表3-各单位净利润情况表 '!#REF! ->  | O39: 0 | T39: 0 | V39: 0
B40: 加：广西元亨税务报表未确认，管理报表确认 | C40: ='[13]附表3-各单位净利润情况表 '!#REF! ->  | D40: ='[13]附表3-各单位净利润情况表 '!#REF! ->  | E40: ='[13]附表3-各单位净利润情况表 '!#REF! ->  | F40: ='[13]附表3-各单位净利润情况表 '!#REF! ->  | G40: ='[13]附表3-各单位净利润情况表 '!#REF! ->  | O40: 0 | T40: -14.922181 | W40: 0
B41: 加：东莞元亨子公司税务报表未确认，管理报表确认 | C41: ='[13]附表3-各单位净利润情况表 '!#REF! ->  | D41: ='[13]附表3-各单位净利润情况表 '!#REF! ->  | E41: ='[13]附表3-各单位净利润情况表 '!#REF! ->  | F41: ='[13]附表3-各单位净利润情况表 '!#REF! ->  | G41: ='[13]附表3-各单位净利润情况表 '!#REF! ->  | H41: ='[13]附表3-各单位净利润情况表 '!#REF! ->  | I41: ='[13]附表3-各单位净利润情况表 '!#REF! ->  | J41: ='[13]附表3-各单位净利润情况表 '!#REF! ->  | K41: ='[13]附表3-各单位净利润情况表 '!#REF! ->  | L41: ='[13]附表3-各单位净利润情况表 '!#REF! ->  | M41: ='[13]附表3-各单位净利润情况表 '!#REF! ->  | N41: ='[13]附表3-各单位净利润情况表 '!#REF! ->  | T41: -13.281878 | W41: 0
B42: 加：厦门鑫侨益税务报表未确认仓租，管理报表确认 | C42: ='[13]附表3-各单位净利润情况表 '!#REF! ->  | D42: ='[13]附表3-各单位净利润情况表 '!#REF! ->  | E42: ='[13]附表3-各单位净利润情况表 '!#REF! ->  | F42: ='[13]附表3-各单位净利润情况表 '!#REF! ->  | G42: ='[13]附表3-各单位净利润情况表 '!#REF! ->  | H42: ='[13]附表3-各单位净利润情况表 '!#REF! ->  | I42: ='[13]附表3-各单位净利润情况表 '!#REF! ->  | J42: ='[13]附表3-各单位净利润情况表 '!#REF! ->  | K42: ='[13]附表3-各单位净利润情况表 '!#REF! ->  | L42: ='[13]附表3-各单位净利润情况表 '!#REF! ->  | M42: ='[13]附表3-各单位净利润情况表 '!#REF! ->  | N42: ='[13]附表3-各单位净利润情况表 '!#REF! ->  | T42: 10.205231 | W42: 0
B43: 岳阳侨益税务报表计提所得税，管理报表未计提（-） | E43: ='[13]附表3-各单位净利润情况表 '!#REF! ->  | F43: ='[13]附表3-各单位净利润情况表 '!#REF! ->  | G43: ='[13]附表3-各单位净利润情况表 '!#REF! ->  | O43: 0 | T43: -7.102896 | W43: 0
B44: 股份总部2017年奖金（-） | F44: ='[13]附表3-各单位净利润情况表 '!#REF! ->  | G44: ='[13]附表3-各单位净利润情况表 '!#REF! ->  | O44: 0
B45: 南通侨益税务上确认收入，管理报表未确认（+） | G45: ='[13]附表3-各单位净利润情况表 '!#REF! ->  | O45: 0 | P45: 0
B46: 管理报表与税务报表差异（-） | C46: 18.59 | G46: ='[13]附表3-各单位净利润情况表 '!#REF! ->  | O46: 0 | P46: 0 | T46: 99.64 | W46: 0
B47: 六、非经常性损益 | C47: =C49+C48 -> -14.839057 | D47: =D49+D48 -> -14.707743 | E47: -16.528835 | F47: -1.997672 | G47: -48.154106 | H47: -34.406078 | I47: -33.458652 | J47: -38.637627 | K47: -14.849762 | L47: -23.735929 | M47: 0 | N47: 0 | O47: =L47 -> -23.735929 | P47: =K47 -> -14.849762 | Q47: -8.886167 | R47: =IF(ISERROR(Q47/P47),"",(Q47/P47)) -> 0.5984046748 | S47: -241.315461 | T47: =T49+T48 -> -463.420794 | V47: =S47-T47 -> 222.105333 | W47: -0.4792735584
B48: 减：Saturn及股份支付 | O48: 0 | P48: 0 | Q48: 0 | R48: =IF(ISERROR(Q48/P48),"",(Q48/P48)) ->  | S48: 0 | T48: -182.64 | V48: =S48-T48 -> 182.64 | W48: -1
B49: 减：非经常性损益 | C49: =C21-C20-C18-C17 -> -14.839057 | D49: =D21-D20-D18-D17 -> -14.707743 | E49: =E21-E20-E18-E17 -> -16.528835 | F49: -1.997672 | G49: -48.154106 | H49: -34.406078 | I49: -33.458652 | J49: -38.637627 | K49: -14.849762 | L49: -23.735929 | M49: 0 | N49: 0 | O49: -23.735929 | P49: -14.849762 | Q49: -8.886167 | R49: =IF(ISERROR(Q49/P49),"",(Q49/P49)) -> 0.5984046748 | S49: -241.315461 | T49: =T21-T20-T18-T17 -> -280.780794 | V49: =S49-T49 -> 39.465333 | W49: -0.1405556713
B50: 七、扣非净利润 | C50: =C25+C47 -> 102.810861 | D50: =D25+D47 -> -340.607157 | E50: 57.636306 | F50: 483.166667 | G50: 370.027228 | H50: 294.957306 | I50: 62.538161 | J50: 108.700968 | K50: 611.633299 | L50: 412.130269 | M50: 0 | N50: 0 | O50: 412.130269 | P50: 611.633299 | Q50: -199.50303 | R50: =IF(ISERROR(Q50/P50),"",(Q50/ABS(P50))) -> -0.3261807857 | S50: 2162.993908 | T50: =T25+T47 -> 2006.435049 | V50: =S50-T50 -> 156.558859 | W50: 0.0780283713
B51: 八、扣非归属母公司净利润 | C51: =C26+C47 -> 89.712937 | D51: =D26+D47 -> 7.018936 | E51: 146.096254 | F51: 192.65633 | G51: 377.748755 | H51: 257.648591 | I51: 55.397911 | J51: 115.102144 | K51: 604.745303 | L51: 216.712337 | M51: 0 | N51: 0 | O51: 216.712337 | P51: 604.745303 | Q51: -388.032966 | R51: =IF(ISERROR(Q51/P51),"",(Q51/ABS(P51))) -> -0.6416469282 | S51: 2062.839498 | T51: =T26+T47 -> 1971.204745 | V51: =S51-T51 -> 91.634753 | W51: 0.04648667432
B52: 九、净利润（当年实际经营） | C52: ='[13]附表3-各单位净利润情况表 '!C48 -> -87.29398688 | D52: ='[13]附表3-各单位净利润情况表 '!D48 -> 3.905953274 | E52: ='[13]附表3-各单位净利润情况表 '!E48 -> -35.52367273 | F52: ='[13]附表3-各单位净利润情况表 '!F48 -> 230.9650154 | G52: ='[13]附表3-各单位净利润情况表 '!G48 -> 265.9594141 | H52: ='[13]附表3-各单位净利润情况表 '!H48 -> 214.3960552 | I52: ='[13]附表3-各单位净利润情况表 '!I48 -> 244.0664424 | J52: ='[13]附表3-各单位净利润情况表 '!J48 -> 253.4708267 | K52: ='[13]附表3-各单位净利润情况表 '!K48 -> 598.8975143 | L52: ='[13]附表3-各单位净利润情况表 '!L48 -> 338.8228703 | M52: ='[13]附表3-各单位净利润情况表 '!M48 -> 0 | N52: ='[13]附表3-各单位净利润情况表 '!N48 -> 0 | O52: 338.8228703 | P52: 598.8975143 | Q52: -260.0746441 | R52: =IF(ISERROR(Q52/P52),"",(Q52/P52)) -> -0.4342556745 | S52: 2027.666432 | T52: ='[13]2018年附表3-各单位净利润情况表'!C67 -> 2205.580405 | W52: 0
B53: 十、销售费用+管理费用 | C53: =C10+C11+C12 -> 602.44072 | D53: =D10+D11+D12 -> 609.567408 | E53: 940.566269 | F53: 753.266444 | G53: 742.584307 | H53: 700.024387 | I53: 708.964532 | J53: 665.568758 | K53: 778.102514 | L53: 794.777148 | M53: 0 | N53: 0 | O53: 794.777148 | P53: 778.102514 | Q53: 16.674634 | R53: =IF(ISERROR(Q53/P53),"",(Q53/P53)) -> 0.02142986779 | S53: 7295.862487 | T53: =T10+T11 -> 6911.818773 | V53: 384.043714 | W53: 0.05556333674 | X53: =X10+X11+X12 -> 10151.42808 | Y53: 0.7187030659
T60: 累计数 | V60: 月数
R61: 勾稽 | T61: -130.1676413 | U61: =U25-'[13]附表3-各单位净利润情况表 '!#REF! ->  | V61: =O25-'[13]附表3-各单位净利润情况表 '!#REF! ->  | W61: =P25-'[13]附表3-各单位净利润情况表 '!#REF! -> 
T62: -243.253162 | U62: =U52-'[13]附表3-各单位净利润情况表 '!#REF! ->  | V62: =O50-'[13]附表3-各单位净利润情况表 '!#REF! ->  | W62: =P50-'[13]附表3-各单位净利润情况表 '!#REF! -> 
T63: 591.6126104 | U63: =U50-'[13]附表3-各单位净利润情况表 '!#REF! ->  | V63: =O52-'[13]附表3-各单位净利润情况表 '!#REF! ->  | W63: =P52-'[13]附表3-各单位净利润情况表 '!#REF! -> 
R65: 毛利 | T65: 9195.315327 | U65: =U6-U7 -> 0 | V65: =V6-V7 -> 415.82327 | W65: =IF(ISERROR(V65/U65),"",(V65/ABS(U65))) ->  | X65: =X6-X7 -> 16453.72561 | Y65: =T65/X65 -> 0.5588591631
T67: 0 | U67: =D29+'[13]附表3-各单位净利润情况表 '!#REF! ->  | V67: =E29+'[13]附表3-各单位净利润情况表 '!#REF! ->  | W67: =F29+'[13]附表3-各单位净利润情况表 '!#REF!-38.85 ->  | X67: =G29+'[13]附表3-各单位净利润情况表 '!#REF! ->  | Y67: =H29+'[13]附表3-各单位净利润情况表 '!#REF! ->  | Z67: =I29+'[13]附表3-各单位净利润情况表 '!#REF! ->  | AA67: =J29+'[13]附表3-各单位净利润情况表 '!#REF! ->  | AB67: =K29+'[13]附表3-各单位净利润情况表 '!#REF! ->  | AC67: =L29+'[13]附表3-各单位净利润情况表 '!#REF! ->  | AD67: =M29+'[13]附表3-各单位净利润情况表 '!#REF! ->  | AE67: =N29+'[13]附表3-各单位净利润情况表 '!#REF! -> 
B82: 净收入 | T82: 9195.315327 | U82: =U6-U7 -> 0 | V82: =T82-U82 -> 9195.315327 | W82: =IF(ISERROR(V82/U82),"",(V82/ABS(U82))) ->  | X82: =X6-X7 -> 16453.72561 | Y82: =T82/X82 -> 0.5588591631

Sheet 附表1-各单位主营业务收入情况表 (hidden)
A1: 附表1：2019年10月份各公司营业收入完成情况表
X2: 单位：万元
A3: 序号 | B3: 单位名称 | C3: 1月 | D3: 2月 | E3: 3月 | F3: 4月 | G3: 5月 | H3: 6月 | I3: 7月 | J3: 8月 | K3: 9月 | L3: 10月 | M3: 11月 | N3: 12月 | O3: 月度对比 | S3: 年度对比 | T3: 年度对比 | W3: 预算对比
O4: 本月数 | P4: 上月数 | Q4: 增减额 | R4: 增减幅 | S4: 本年累计 | T4: 上年同期 | U4: 增减额 | V4: 增减幅 | W4: 本年预算 | X4: 预算进度
A5: 一 | B5: 货代业务汇总 | C5: =SUM(C6:C12) -> 1514.323679 | D5: =SUM(D6:D12) -> 1379.627354 | E5: 2762.35263 | F5: 1867.485502 | G5: 3358.703548 | H5: 3409.62787 | I5: 2208.349184 | J5: 2833.103952 | K5: 4224.570954 | L5: 2823.230932 | M5: 0 | N5: 0 | O5: =L5 -> 2823.230932 | P5: =K5 -> 4224.570954 | Q5: =O5-P5 -> -1401.340022 | R5: =IF(ISERROR(Q5/P5),"",(Q5/ABS(P5))) -> -0.3317117967 | S5: =SUM(C5:N5) -> 26381.3756 | T5: =T6+T7+T8+T9+T10+T11 -> 25096.92471 | U5: =S5-T5 -> 1284.4509 | V5: =IF(ISERROR(U5/T5),"",(U5/ABS(T5))) -> 0.05117961323 | W5: =SUM(W6:W12) -> 35773.62765 | X5: =IF(ISERROR(S5/W5),"",(S5/W5)) -> 0.7374531838
A6: 1-1 | B6: 货代本部 | C6: =[13]底稿毛利!B4/10000 -> 530.21661 | D6: =[13]底稿毛利!C4/10000 -> 734.949445 | E6: =[13]底稿毛利!D4/10000 -> 1977.489067 | F6: =[13]底稿毛利!E4/10000 -> 1425.036654 | G6: =[13]底稿毛利!F4/10000 -> 2183.420044 | H6: =[13]底稿毛利!G4/10000 -> 1852.609109 | I6: =[13]底稿毛利!H4/10000 -> 1286.162558 | J6: =[13]底稿毛利!I4/10000 -> 1728.744417 | K6: =[13]底稿毛利!J4/10000 -> 3070.716129 | L6: =[13]底稿毛利!K4/10000 -> 1386.099683 | M6: =[13]底稿毛利!L4/10000 -> 0 | N6: =[13]底稿毛利!M4/10000 -> 0 | O6: 1386.099683 | P6: 3070.716129 | Q6: -1684.616446 | R6: -0.5486070269 | S6: 16175.44372 | T6: ='[13]2018附表1-各单位主营业务收入情况表'!C6 -> 17210.83967 | U6: -1035.39595 | V6: -0.06015952565 | W6: 22906.13429 | X6: =IF(ISERROR(S6/W6),"",(S6/W6)) -> 0.7061620921
A7: 1-2 | B7: 广西侨益 | C7: =[13]底稿毛利!B7/10000 -> 400.810409 | D7: =[13]底稿毛利!C7/10000 -> 165.345773 | E7: =[13]底稿毛利!D7/10000 -> 429.200223 | F7: =[13]底稿毛利!E7/10000 -> 346.517821 | G7: =[13]底稿毛利!F7/10000 -> 292.585218 | H7: =[13]底稿毛利!G7/10000 -> 342.162043 | I7: =[13]底稿毛利!H7/10000 -> 295.198961 | J7: =[13]底稿毛利!I7/10000 -> 589.935581 | K7: =[13]底稿毛利!J7/10000 -> 622.7825219 | L7: =[13]底稿毛利!K7/10000 -> 534.993446 | M7: =[13]底稿毛利!L7/10000 -> 0 | N7: =[13]底稿毛利!M7/10000 -> 0 | O7: 534.993446 | P7: 622.7825219 | Q7: -87.7890759 | R7: -0.140962652 | S7: 4019.531997 | T7: ='[13]2018附表1-各单位主营业务收入情况表'!C19 -> 2740.196413 | U7: 1279.335584 | V7: 0.4668773295 | W7: 4664.79996 | X7: 0.8616729616
A8: 1-3 | B8: 岳阳侨益 | C8: =[13]底稿毛利!B10/10000 -> 0.516495 | D8: =[13]底稿毛利!C10/10000 -> 0.55561 | E8: =[13]底稿毛利!D10/10000 -> 3.006439 | F8: =[13]底稿毛利!E10/10000 -> 33.611697 | G8: =[13]底稿毛利!F10/10000 -> 56.432799 | H8: =[13]底稿毛利!G10/10000 -> 63.043797 | I8: =[13]底稿毛利!H10/10000 -> 42.317019 | J8: =[13]底稿毛利!I10/10000 -> 68.677366 | K8: =[13]底稿毛利!J10/10000 -> 159.366273 | L8: =[13]底稿毛利!K10/10000 -> 39.783528 | M8: =[13]底稿毛利!L10/10000 -> 0 | N8: =[13]底稿毛利!M10/10000 -> 0 | O8: 39.783528 | P8: 159.366273 | Q8: -119.582745 | R8: -0.7503641941 | S8: 467.311023 | T8: ='[13]2018附表1-各单位主营业务收入情况表'!C10 -> 1265.082463 | U8: -797.77144 | V8: -0.6306082515 | W8: 1172.90566 | X8: 0.3984216624
A9: 1-4 | B9: 苏州侨益 | C9: =[13]底稿毛利!B13/10000 -> 0 | D9: =[13]底稿毛利!C13/10000 -> 0 | E9: =[13]底稿毛利!D13/10000 -> 0 | F9: =[13]底稿毛利!E13/10000 -> 0 | G9: =[13]底稿毛利!F13/10000 -> 0 | H9: =[13]底稿毛利!G13/10000 -> 0 | I9: =[13]底稿毛利!H13/10000 -> 0 | J9: =[13]底稿毛利!I13/10000 -> 0 | K9: =[13]底稿毛利!J13/10000 -> 0 | L9: =[13]底稿毛利!K13/10000 -> 0 | M9: =[13]底稿毛利!L13/10000 -> 0 | N9: =[13]底稿毛利!M13/10000 -> 0 | O9: 0 | P9: 0 | Q9: 0 | S9: 0 | U9: 0 | W9: 0
A10: 1-5 | B10: 厦门鑫侨益 | C10: =[13]底稿毛利!B16/10000 -> 582.780165 | D10: =[13]底稿毛利!C16/10000 -> 478.776526 | E10: =[13]底稿毛利!D16/10000 -> 352.656901 | F10: =[13]底稿毛利!E16/10000 -> 62.31933 | G10: =[13]底稿毛利!F16/10000 -> 826.265487 | H10: =[13]底稿毛利!G16/10000 -> 1151.812921 | I10: =[13]底稿毛利!H16/10000 -> 584.670646 | J10: =[13]底稿毛利!I16/10000 -> 445.746588 | K10: =[13]底稿毛利!J16/10000 -> 371.70603 | L10: =[13]底稿毛利!K16/10000 -> 862.3542753 | M10: =[13]底稿毛利!L16/10000 -> 0 | N10: =[13]底稿毛利!M16/10000 -> 0 | O10: 862.3542753 | P10: 371.70603 | Q10: 490.6482453 | R10: 1.319990007 | S10: 5719.088869 | T10: ='[13]2018附表1-各单位主营业务收入情况表'!C13 -> 3880.806163 | U10: 1838.282706 | V10: 0.4736857831 | W10: 5615 | X10: 1.018537644
A11: 1-6 | B11: 乌克兰 | C11: =[13]底稿毛利!B19/10000 -> 0 | D11: =[13]底稿毛利!C19/10000 -> 0 | E11: =[13]底稿毛利!D19/10000 -> 0 | F11: =[13]底稿毛利!E19/10000 -> 0 | G11: =[13]底稿毛利!F19/10000 -> 0 | H11: =[13]底稿毛利!G19/10000 -> 0 | I11: =[13]底稿毛利!H19/10000 -> 0 | J11: =[13]底稿毛利!I19/10000 -> 0 | K11: =[13]底稿毛利!J19/10000 -> 0 | L11: =[13]底稿毛利!K19/10000 -> 0 | M11: =[13]底稿毛利!L19/10000 -> 0 | N11: =[13]底稿毛利!M19/10000 -> 0 | O11: 0 | P11: 0 | Q11: 0 | S11: 0 | T11: ='[13]2018附表1-各单位主营业务收入情况表'!C15 -> 0 | U11: 0 | W11: 1128.75 | X11: 0
A12: 1-7 | B12: 新会项目 | O12: 0 | P12: 0 | Q12: 0 | S12: 0 | U12: 0 | W12: 286.0377358
A13: 二 | B13: 仓储板块汇总 | C13: =SUM(C14:C18) -> 758.39388 | D13: =SUM(D14:D18) -> 707.742698 | E13: 723.201178 | F13: 741.335647 | G13: 696.786877 | H13: 736.040982 | I13: 743.877697 | J13: 722.097785 | K13: 688.684969 | L13: 752.879164 | M13: 0 | N13: 0 | O13: 752.879164 | P13: 688.684969 | Q13: 64.194195 | R13: 0.09321271393 | S13: 7271.040877 | T13: =T14+T15+T16+T17 -> 6900.254667 | U13: 370.78621 | V13: 0.05373514861 | W13: =SUM(W14:W18) -> 9442.355605 | X13: =IF(ISERROR(S13/W13),"",(S13/W13)) -> 0.7700452283
A14: 2-1 | B14: 平仓 | C14: =[13]底稿毛利!B23/10000 -> 143.209836 | D14: =[13]底稿毛利!C23/10000 -> 113.620078 | E14: =[13]底稿毛利!D23/10000 -> 122.095142 | F14: =[13]底稿毛利!E23/10000 -> 132.176831 | G14: =[13]底稿毛利!F23/10000 -> 117.893947 | H14: =[13]底稿毛利!G23/10000 -> 115.365174 | I14: =[13]底稿毛利!H23/10000 -> 124.99764 | J14: =[13]底稿毛利!I23/10000 -> 149.191844 | K14: =[13]底稿毛利!J23/10000 -> 154.220989 | L14: =[13]底稿毛利!K23/10000 -> 117.320084 | M14: =[13]底稿毛利!L23/10000 -> 0 | N14: =[13]底稿毛利!M23/10000 -> 0 | O14: 117.320084 | P14: 154.220989 | Q14: -36.900905 | R14: -0.2392729112 | S14: 1290.091565 | T14: ='[13]2018附表1-各单位主营业务收入情况表'!C23 -> 1079.501027 | U14: 210.590538 | V14: 0.1950813688 | W14: 1684.658019 | X14: =IF(ISERROR(S14/W14),"",(S14/W14)) -> 0.7657883977
A15: 2-2 | B15: 明珠项目 | C15: =[13]底稿毛利!B26/10000 -> 615.15246 | D15: =[13]底稿毛利!C26/10000 -> 588.106079 | E15: =[13]底稿毛利!D26/10000 -> 587.529679 | F15: =[13]底稿毛利!E26/10000 -> 585.006999 | G15: =[13]底稿毛利!F26/10000 -> 550.98097 | H15: =[13]底稿毛利!G26/10000 -> 579.384487 | I15: =[13]底稿毛利!H26/10000 -> 591.361495 | J15: =[13]底稿毛利!I26/10000 -> 552.656208 | K15: =[13]底稿毛利!J26/10000 -> 493.63532 | L15: =[13]底稿毛利!K26/10000 -> 546.398966 | M15: =[13]底稿毛利!L26/10000 -> 0 | N15: =[13]底稿毛利!M26/10000 -> 0 | O15: 546.398966 | P15: 493.63532 | Q15: 52.763646 | R15: 0.1068879066 | S15: 5690.212663 | T15: ='[13]2018附表1-各单位主营业务收入情况表'!C25 -> 5820.75364 | U15: -130.540977 | V15: -0.02242681705 | W15: 6302.277586 | X15: =IF(ISERROR(S15/W15),"",(S15/W15)) -> 0.9028819479
A16: 2-3 | B16: 钢材储运 | C16: =[13]底稿毛利!B29/10000 -> 0.031584 | D16: =[13]底稿毛利!C29/10000 -> 6.016541 | E16: =[13]底稿毛利!D29/10000 -> 13.576357 | F16: =[13]底稿毛利!E29/10000 -> 24.151817 | G16: =[13]底稿毛利!F29/10000 -> 27.91196 | H16: =[13]底稿毛利!G29/10000 -> 38.453585 | I16: =[13]底稿毛利!H29/10000 -> 27.518562 | J16: =[13]底稿毛利!I29/10000 -> 20.249733 | K16: =[13]底稿毛利!J29/10000 -> 40.82866 | L16: =[13]底稿毛利!K29/10000 -> 57.397189 | M16: =[13]底稿毛利!L29/10000 -> 0 | N16: =[13]底稿毛利!M29/10000 -> 0 | O16: 57.397189 | P16: 40.82866 | S16: 256.135988 | T16: ='[13]2018附表1-各单位主营业务收入情况表'!C78 -> 0 | U16: 256.135988 | W16: 762.5
A17: 2-4 | B17: 广西钦州 | C17: =[13]底稿毛利!B32/10000 -> 0 | D17: =[13]底稿毛利!C32/10000 -> 0 | E17: =[13]底稿毛利!D32/10000 -> 0 | F17: =[13]底稿毛利!E32/10000 -> 0 | G17: =[13]底稿毛利!F32/10000 -> 0 | H17: =[13]底稿毛利!G32/10000 -> 2.837736 | I17: =[13]底稿毛利!H32/10000 -> 0 | J17: =[13]底稿毛利!I32/10000 -> 0 | K17: =[13]底稿毛利!J32/10000 -> 0 | L17: =[13]底稿毛利!K32/10000 -> 31.762925 | M17: =[13]底稿毛利!L32/10000 -> 0 | N17: =[13]底稿毛利!M32/10000 -> 0 | O17: 31.762925 | P17: 0 | Q17: 31.762925 | S17: 34.600661 | T17: ='[13]2018附表1-各单位主营业务收入情况表'!C68 -> 0 | U17: 34.600661 | W17: 415 | X17: =IF(ISERROR(S17/W17),"",(S17/W17)) -> 0.08337508675
A18: 2-5 | B18: 五矿仓 | O18: 0 | P18: 0 | S18: 0 | W18: 277.92
A19: 三 | B19: 运输业务汇总 | C19: =C20 -> 626.1402555 | D19: =D20 -> 336.545948 | E19: 323.87116 | F19: 280.133763 | G19: 609.449199 | H19: 269.293363 | I19: 289.339109 | J19: 547.055801 | K19: 606.951131 | L19: 536.807552 | M19: 0 | N19: 0 | O19: 536.807552 | P19: 606.951131 | Q19: -70.143579 | R19: -0.115567095 | S19: 4425.587282 | T19: =T20 -> 2532.746632 | U19: 1892.84065 | V19: 0.747347021 | W19: =W20 -> 4422.727273 | X19: =IF(ISERROR(S19/W19),"",(S19/W19)) -> 1.000646662
A20: 3-1 | B20: 生生物流 | C20: =[13]底稿毛利!B36/10000 -> 626.1402555 | D20: =[13]底稿毛利!C36/10000 -> 336.545948 | E20: =[13]底稿毛利!D36/10000 -> 323.87116 | F20: =[13]底稿毛利!E36/10000 -> 280.133763 | G20: =[13]底稿毛利!F36/10000 -> 609.449199 | H20: =[13]底稿毛利!G36/10000 -> 269.293363 | I20: =[13]底稿毛利!H36/10000 -> 289.339109 | J20: =[13]底稿毛利!I36/10000 -> 547.055801 | K20: =[13]底稿毛利!J36/10000 -> 606.951131 | L20: =[13]底稿毛利!K36/10000 -> 536.807552 | M20: =[13]底稿毛利!L36/10000 -> 0 | N20: =[13]底稿毛利!M36/10000 -> 0 | O20: 536.807552 | P20: 606.951131 | Q20: -70.143579 | R20: -0.115567095 | S20: 4425.587282 | T20: ='[13]2018附表1-各单位主营业务收入情况表'!C27 -> 2532.746632 | U20: 1892.84065 | V20: 0.747347021 | W20: 4422.727273 | X20: =IF(ISERROR(S20/W20),"",(S20/W20)) -> 1.000646662
A21: 四 | B21: 船代业务汇总 | C21: =SUM(C22:C29) -> 520.137626 | D21: =SUM(D22:D29) -> 322.2754545 | E21: 409.0397575 | F21: 895.876739 | G21: 655.208052 | H21: 839.5131709 | I21: 733.5053847 | J21: 952.369433 | K21: 1196.766473 | L21: 668.9928218 | M21: 0 | N21: 0 | O21: 668.9928218 | P21: 1196.766473 | Q21: -527.7736517 | R21: -0.4409996966 | S21: 7193.684913 | T21: =T22+T23+T24+T25+T26+T27+T28 -> 8985.07117 | U21: -1791.386257 | V21: -0.1993736303 | W21: =SUM(W22:W29) -> 13307.4 | X21: =IF(ISERROR(S21/W21),"",(S21/W21)) -> 0.5405777923
A22: 4-1 | B22: 广州元亨 | C22: =[13]底稿毛利!B40/10000 -> 292.950572 | D22: =[13]底稿毛利!C40/10000 -> 184.0091855 | E22: =[13]底稿毛利!D40/10000 -> 145.7769015 | F22: =[13]底稿毛利!E40/10000 -> 103.36526 | G22: =[13]底稿毛利!F40/10000 -> 264.126923 | H22: =[13]底稿毛利!G40/10000 -> 445.7685559 | I22: =[13]底稿毛利!H40/10000 -> 237.0807877 | J22: =[13]底稿毛利!I40/10000 -> 281.442993 | K22: =[13]底稿毛利!J40/10000 -> 413.4198095 | L22: =[13]底稿毛利!K40/10000 -> 389.8195268 | M22: =[13]底稿毛利!L40/10000 -> 0 | N22: =[13]底稿毛利!M40/10000 -> 0 | O22: 389.8195268 | P22: 413.4198095 | Q22: -23.60028268 | R22: -0.05708551486 | S22: 2757.760515 | T22: ='[13]2018附表1-各单位主营业务收入情况表'!C38 -> 4063.427978 | U22: -1305.667463 | V22: -0.3213216699 | W22: 6153 | X22: 0.4481977109
A23: 4-2 | B23: 东莞元亨 | C23: =[13]底稿毛利!B43/10000 -> 63.805825 | D23: =[13]底稿毛利!C43/10000 -> 15.285066 | E23: =[13]底稿毛利!D43/10000 -> 35.103149 | F23: =[13]底稿毛利!E43/10000 -> 50.192419 | G23: =[13]底稿毛利!F43/10000 -> 43.414878 | H23: =[13]底稿毛利!G43/10000 -> 16.014663 | I23: =[13]底稿毛利!H43/10000 -> 33.652774 | J23: =[13]底稿毛利!I43/10000 -> 26.518385 | K23: =[13]底稿毛利!J43/10000 -> 89.448857 | L23: =[13]底稿毛利!K43/10000 -> 35.39737 | M23: =[13]底稿毛利!L43/10000 -> 0 | N23: =[13]底稿毛利!M43/10000 -> 0 | O23: 35.39737 | P23: 89.448857 | Q23: -54.051487 | R23: -0.6042725286 | S23: 408.833386 | T23: ='[13]2018附表1-各单位主营业务收入情况表'!C40 -> 470.19825 | U23: -61.364864 | V23: -0.1305084908 | W23: 638 | X23: 0.6408046803
A24: 4-3 | B24: 深圳元亨 | C24: =[13]底稿毛利!B46/10000 -> 17.886633 | D24: =[13]底稿毛利!C46/10000 -> 20.027838 | E24: =[13]底稿毛利!D46/10000 -> 19.550733 | F24: =[13]底稿毛利!E46/10000 -> 20.305151 | G24: =[13]底稿毛利!F46/10000 -> 19.955528 | H24: =[13]底稿毛利!G46/10000 -> 16.804529 | I24: =[13]底稿毛利!H46/10000 -> 16.490663 | J24: =[13]底稿毛利!I46/10000 -> 16.40537 | K24: =[13]底稿毛利!J46/10000 -> 19.442704 | L24: =[13]底稿毛利!K46/10000 -> 19.370511 | M24: =[13]底稿毛利!L46/10000 -> 0 | N24: =[13]底稿毛利!M46/10000 -> 0 | O24: 19.370511 | P24: 19.442704 | Q24: -0.072193 | R24: -0.003713115213 | S24: 186.23966 | T24: ='[13]2018附表1-各单位主营业务收入情况表'!C43 -> 213.650339 | U24: -27.410679 | V24: -0.1282969132 | W24: 212.6 | X24: 0.8760096896
A25: 4-4 | B25: 湛江元亨 | C25: =[13]底稿毛利!B49/10000 -> 63.748576 | D25: =[13]底稿毛利!C49/10000 -> 6.03111 | E25: =[13]底稿毛利!D49/10000 -> 53.747759 | F25: =[13]底稿毛利!E49/10000 -> 406.360833 | G25: =[13]底稿毛利!F49/10000 -> 112.442539 | H25: =[13]底稿毛利!G49/10000 -> 60.105624 | I25: =[13]底稿毛利!H49/10000 -> 257.201063 | J25: =[13]底稿毛利!I49/10000 -> 335.343524 | K25: =[13]底稿毛利!J49/10000 -> 314.845196 | L25: =[13]底稿毛利!K49/10000 -> 117.087015 | M25: =[13]底稿毛利!L49/10000 -> 0 | N25: =[13]底稿毛利!M49/10000 -> 0 | O25: 117.087015 | P25: 314.845196 | Q25: -197.758181 | R25: -0.6281124296 | S25: 1726.913239 | T25: ='[13]2018附表1-各单位主营业务收入情况表'!C46 -> 687.448376 | U25: 1039.464863 | V25: 1.512062432 | W25: 2737.5 | X25: 0.6308358864
A26: 4-5 | B26: 广西公司 | C26: =[13]底稿毛利!B52/10000 -> 63.25707 | D26: =[13]底稿毛利!C52/10000 -> 65.680206 | E26: =[13]底稿毛利!D52/10000 -> 78.47233 | F26: =[13]底稿毛利!E52/10000 -> 236.443505 | G26: =[13]底稿毛利!F52/10000 -> 176.317647 | H26: =[13]底稿毛利!G52/10000 -> 126.253649 | I26: =[13]底稿毛利!H52/10000 -> 159.978093 | J26: =[13]底稿毛利!I52/10000 -> 231.502734 | K26: =[13]底稿毛利!J52/10000 -> 356.108401 | L26: =[13]底稿毛利!K52/10000 -> 78.928339 | M26: =[13]底稿毛利!L52/10000 -> 0 | N26: =[13]底稿毛利!M52/10000 -> 0 | O26: 78.928339 | P26: 356.108401 | Q26: -277.180062 | R26: -0.7783586717 | S26: 1572.941974 | T26: ='[13]2018附表1-各单位主营业务收入情况表'!C50 -> 1939.963592 | U26: -367.021618 | V26: -0.1891899516 | W26: 2368.2 | X26: 0.664193047
A27: 4-6 | B27: 珠海元亨 | C27: =[13]底稿毛利!B55/10000 -> 0.23895 | D27: =[13]底稿毛利!C55/10000 -> 1.231435 | E27: =[13]底稿毛利!D55/10000 -> 0.281019 | F27: =[13]底稿毛利!E55/10000 -> 0 | G27: =[13]底稿毛利!F55/10000 -> 0 | H27: =[13]底稿毛利!G55/10000 -> 0.306033 | I27: =[13]底稿毛利!H55/10000 -> 0.518574 | J27: =[13]底稿毛利!I55/10000 -> 0.498909 | K27: =[13]底稿毛利!J55/10000 -> 0.285434 | L27: =[13]底稿毛利!K55/10000 -> 0 | M27: =[13]底稿毛利!L55/10000 -> 0 | N27: =[13]底稿毛利!M55/10000 -> 0 | O27: 0 | P27: 0.285434 | Q27: -0.285434 | R27: -1 | S27: 3.360354 | T27: ='[13]2018附表1-各单位主营业务收入情况表'!C54 -> 5.651623 | U27: -2.291269 | V27: -0.4054178773 | W27: 0
A28: 4-7 | B28: 南通公司 | C28: =([13]底稿毛利!B61+[13]底稿毛利!B64)/10000 -> 18.25 | D28: =([13]底稿毛利!C61+[13]底稿毛利!C64)/10000 -> 30.010614 | E28: =([13]底稿毛利!D61+[13]底稿毛利!D64)/10000 -> 76.107866 | F28: =([13]底稿毛利!E61+[13]底稿毛利!E64)/10000 -> 79.209571 | G28: =([13]底稿毛利!F61+[13]底稿毛利!F64)/10000 -> 38.950537 | H28: =([13]底稿毛利!G61+[13]底稿毛利!G64)/10000 -> 174.260117 | I28: =([13]底稿毛利!H61+[13]底稿毛利!H64)/10000 -> 28.58343 | J28: =([13]底稿毛利!I61+[13]底稿毛利!I64)/10000 -> 60.657518 | K28: =([13]底稿毛利!J61+[13]底稿毛利!J64)/10000 -> 3.216072 | L28: =([13]底稿毛利!K61+[13]底稿毛利!K64)/10000 -> 28.39006 | M28: =([13]底稿毛利!L61+[13]底稿毛利!L64)/10000 -> 0 | N28: =([13]底稿毛利!M61+[13]底稿毛利!M64)/10000 -> 0 | O28: 28.39006 | P28: 3.216072 | Q28: 25.173988 | R28: 7.827557343 | S28: 537.635785 | T28: ='[13]2018附表1-各单位主营业务收入情况表'!C60 -> 1604.731012 | U28: -1067.095227 | V28: -0.6649682838 | W28: 1096.1 | X28: 0.4904988459
A29: 4-8 | B29: 茂名公司 | C29: =[13]底稿毛利!B67/10000 -> 0 | D29: =[13]底稿毛利!C67/10000 -> 0 | E29: =[13]底稿毛利!D67/10000 -> 0 | F29: =[13]底稿毛利!E67/10000 -> 0 | G29: =[13]底稿毛利!F67/10000 -> 0 | H29: =[13]底稿毛利!G67/10000 -> 0 | I29: =[13]底稿毛利!H67/10000 -> 0 | J29: =[13]底稿毛利!I67/10000 -> 0 | K29: =[13]底稿毛利!J67/10000 -> 0 | L29: =[13]底稿毛利!K67/10000 -> 0 | M29: =[13]底稿毛利!L67/10000 -> 0 | N29: =[13]底稿毛利!M67/10000 -> 0 | O29: 0 | P29: 0 | S29: 0 | T29: 0 | W29: 102
A30: 五 | B30: 职能部门 | C30: =SUM(C31:C32) -> 22.535614 | D30: =SUM(D31:D32) -> 23.999607 | E30: 22.676301 | F30: 23.325538 | G30: 22.206382 | H30: 31.81138 | I30: 23.561051 | J30: 19.311557 | K30: 18.725967 | L30: 0.922566 | M30: 0 | N30: 0 | O30: 0.922566 | P30: 18.725967 | Q30: -17.803401 | R30: -0.950733332 | S30: 209.075963 | T30: =T31+T32 -> 433.275476 | U30: -224.199513 | V30: -0.5174525802 | W30: =W31 -> 274.1496 | X30: =IF(ISERROR(S30/W30),"",(S30/W30)) -> 0.7626345725
A31: 5-1 | B31: 股份职能部门 | C31: =[13]底稿毛利!B71/10000 -> 20.782599 | D31: =[13]底稿毛利!C71/10000 -> 22.246592 | E31: =[13]底稿毛利!D71/10000 -> 20.923286 | F31: =[13]底稿毛利!E71/10000 -> 21.556441 | G31: =[13]底稿毛利!F71/10000 -> 22.206382 | H31: =[13]底稿毛利!G71/10000 -> 31.81138 | I31: =[13]底稿毛利!H71/10000 -> 23.561051 | J31: =[13]底稿毛利!I71/10000 -> 19.311557 | K31: =[13]底稿毛利!J71/10000 -> 18.725967 | L31: =[13]底稿毛利!K71/10000 -> 0.922566 | M31: =[13]底稿毛利!L71/10000 -> 0 | N31: =[13]底稿毛利!M71/10000 -> 0 | O31: 0.922566 | P31: 18.725967 | Q31: -17.803401 | R31: -0.950733332 | S31: 202.047821 | T31: ='[13]2018附表1-各单位主营业务收入情况表'!C34+'[13]2018附表1-各单位主营业务收入情况表'!C65 -> 415.808498 | U31: -213.760677 | V31: -0.5140844356 | W31: 274.1496 | X31: 0.7369984162
A32: 5-2 | B32: 集团总部+业务1部 | C32: =([13]底稿毛利!B75+[13]底稿毛利!B78)/10000 -> 1.753015 | D32: =([13]底稿毛利!C75+[13]底稿毛利!C78)/10000 -> 1.753015 | E32: =([13]底稿毛利!D75+[13]底稿毛利!D78)/10000 -> 1.753015 | F32: =([13]底稿毛利!E75+[13]底稿毛利!E78)/10000 -> 1.769097 | G32: =([13]底稿毛利!F75+[13]底稿毛利!F78)/10000 -> 0 | H32: =([13]底稿毛利!G75+[13]底稿毛利!G78)/10000 -> 0 | I32: =([13]底稿毛利!H75+[13]底稿毛利!H78)/10000 -> 0 | J32: =([13]底稿毛利!I75+[13]底稿毛利!I78)/10000 -> 0 | K32: =([13]底稿毛利!J75+[13]底稿毛利!J78)/10000 -> 0 | L32: =([13]底稿毛利!K75+[13]底稿毛利!K78)/10000 -> 0 | M32: =([13]底稿毛利!L75+[13]底稿毛利!L78)/10000 -> 0 | N32: =([13]底稿毛利!M75+[13]底稿毛利!M78)/10000 -> 0 | O32: 0 | P32: 0 | S32: 7.028142 | T32: ='[13]2018附表1-各单位主营业务收入情况表'!C92 -> 17.466978
A33: 六 | B33: 惠安储备粮轮换 | C33: =C34 -> 485.22735 | D33: =D34 -> 244.407935 | E33: 1031.200919 | F33: 863.117587 | G33: 734.638804 | H33: 804.872137 | I33: 9.02368 | J33: 281.597136 | K33: 326.24862 | L33: 3406.25923 | M33: 0 | N33: 0 | O33: 3406.25923 | P33: 326.24862 | Q33: 3080.01061 | R33: 9.440685481 | S33: 8186.593398 | T33: =T34 -> 6821.407246 | U33: 1365.186152 | V33: 0.200132627
A34: 6-1 | B34: 惠安储备粮轮换 | C34: =[13]底稿毛利!B86/10000 -> 485.22735 | D34: =[13]底稿毛利!C86/10000 -> 244.407935 | E34: =[13]底稿毛利!D86/10000 -> 1031.200919 | F34: =[13]底稿毛利!E86/10000 -> 863.117587 | G34: =[13]底稿毛利!F86/10000 -> 734.638804 | H34: =[13]底稿毛利!G86/10000 -> 804.872137 | I34: =[13]底稿毛利!H86/10000 -> 9.02368 | J34: =[13]底稿毛利!I86/10000 -> 281.597136 | K34: =[13]底稿毛利!J86/10000 -> 326.24862 | L34: =[13]底稿毛利!K86/10000 -> 3406.25923 | M34: =[13]底稿毛利!L86/10000 -> 0 | N34: =[13]底稿毛利!M86/10000 -> 0 | O34: 3406.25923 | P34: 326.24862 | Q34: 3080.01061 | R34: 9.440685481 | S34: 8186.593398 | T34: ='[13]2018附表1-各单位主营业务收入情况表'!C63 -> 6821.407246 | U34: 1365.186152 | V34: 0.200132627
A35: 八 | B35: 东北公司 | C35: =SUM(C36:C39) -> 324.832863 | D35: =SUM(D36:D39) -> 193.017345 | E35: 276.145164 | F35: 304.249774 | G35: 330.893227 | H35: 411.850484 | I35: 396.653109 | J35: 363.94885 | K35: 409.228674 | L35: 309.582689 | M35: 0 | N35: 0 | O35: 309.582689 | P35: 409.228674 | Q35: -99.645985 | R35: -0.2434970747 | S35: 3320.402179 | T35: =T36+T37+T38 -> 1118.229023 | U35: 2202.173156 | V35: 1.969340011 | W35: 4342 | X35: 0.7647172222
A36: 8-1 | B36: 营口侨益 | C36: =[13]底稿毛利!B94/10000 -> 200.046278 | D36: =[13]底稿毛利!C94/10000 -> 99.560424 | E36: =[13]底稿毛利!D94/10000 -> 180.64228 | F36: =[13]底稿毛利!E94/10000 -> 182.241045 | G36: =[13]底稿毛利!F94/10000 -> 112.570009 | H36: =[13]底稿毛利!G94/10000 -> 116.586518 | I36: =[13]底稿毛利!H94/10000 -> 209.827947 | J36: =[13]底稿毛利!I94/10000 -> 142.476403 | K36: =[13]底稿毛利!J94/10000 -> 112.662199 | L36: =[13]底稿毛利!K94/10000 -> 107.369974 | M36: =[13]底稿毛利!L94/10000 -> 0 | N36: =[13]底稿毛利!M94/10000 -> 0 | O36: 107.369974 | P36: 112.662199 | Q36: -5.292225 | R36: -0.04697427395 | S36: 1463.983077 | T36: ='[13]2018附表1-各单位主营业务收入情况表'!C72 -> 1118.229023 | U36: 345.754054 | V36: 0.3091978896 | W36: 2057 | X36: 0.7117078644
A37: 8-2 | B37: 营口弘港 | C37: =[13]底稿毛利!B97/10000 -> 0 | D37: =[13]底稿毛利!C97/10000 -> 0 | E37: =[13]底稿毛利!D97/10000 -> 13.918385 | F37: =[13]底稿毛利!E97/10000 -> 0 | G37: =[13]底稿毛利!F97/10000 -> 0 | H37: =[13]底稿毛利!G97/10000 -> 0 | I37: =[13]底稿毛利!H97/10000 -> 0 | J37: =[13]底稿毛利!I97/10000 -> 46.64 | K37: =[13]底稿毛利!J97/10000 -> 1.379349 | L37: =[13]底稿毛利!K97/10000 -> 8.137826 | M37: =[13]底稿毛利!L97/10000 -> 0 | N37: =[13]底稿毛利!M97/10000 -> 0 | O37: 8.137826 | P37: 1.379349 | Q37: 6.758477 | R37: 4.899758509 | S37: 70.07556 | T37: ='[13]2018附表1-各单位主营业务收入情况表'!C74 -> 0 | U37: 70.07556 | W37: 320 | X37: 0.218986125
A38: 8-3 | B38: 辽宁港铁 | C38: =[13]底稿毛利!B100/10000 -> 16.645076 | D38: =[13]底稿毛利!C100/10000 -> 63.915222 | E38: =[13]底稿毛利!D100/10000 -> 20.165652 | F38: =[13]底稿毛利!E100/10000 -> 76.723918 | G38: =[13]底稿毛利!F100/10000 -> 120.710494 | H38: =[13]底稿毛利!G100/10000 -> 159.608007 | I38: =[13]底稿毛利!H100/10000 -> 134.386802 | J38: =[13]底稿毛利!I100/10000 -> 147.865088 | K38: =[13]底稿毛利!J100/10000 -> 250.884059 | L38: =[13]底稿毛利!K100/10000 -> 189.80587 | M38: =[13]底稿毛利!L100/10000 -> 0 | N38: =[13]底稿毛利!M100/10000 -> 0 | O38: 189.80587 | P38: 250.884059 | Q38: -61.078189 | R38: -0.2434518528 | S38: 1180.710188 | T38: ='[13]2018附表1-各单位主营业务收入情况表'!C75 -> 0 | U38: 1180.710188 | W38: 1965 | X38: 0.6008703247
A39: 8-4 | B39: 辽宁中侨 | C39: =[13]底稿毛利!B103/10000 -> 108.141509 | D39: =[13]底稿毛利!C103/10000 -> 29.541699 | E39: =[13]底稿毛利!D103/10000 -> 61.418847 | F39: =[13]底稿毛利!E103/10000 -> 45.284811 | G39: =[13]底稿毛利!F103/10000 -> 97.612724 | H39: =[13]底稿毛利!G103/10000 -> 135.655959 | I39: =[13]底稿毛利!H103/10000 -> 52.43836 | J39: =[13]底稿毛利!I103/10000 -> 26.967359 | K39: =[13]底稿毛利!J103/10000 -> 44.303067 | L39: =[13]底稿毛利!K103/10000 -> 4.269019 | M39: =[13]底稿毛利!L103/10000 -> 0 | N39: =[13]底稿毛利!M103/10000 -> 0 | O39: 4.269019 | P39: 44.303067 | S39: 605.633354 | U39: 605.633354
A40: 九 | B40: 美国项目 | C40: =C41 -> 186.218623 | D40: =D41 -> 257.1993854 | E40: 365.2984616 | F40: 413.4890311 | G40: 428.4471147 | H40: 462.9353928 | I40: 405.72162 | J40: 445.4556701 | K40: 375.0019293 | L40: 436.2470211 | M40: 0 | N40: 0 | O40: 436.2470211 | P40: 375.0019293 | Q40: 61.24509178 | R40: 0.1633194045 | S40: 3776.014249 | T40: =T41 -> 1888.96 | U40: 1887.054249 | V40: 0.9989911111 | W40: =W41 -> 4441.1712 | X40: 0.850229383
A41: 9-1 | B41: 美国项目 | C41: =[13]底稿毛利!B90/10000 -> 186.218623 | D41: =[13]底稿毛利!C90/10000 -> 257.1993854 | E41: =[13]底稿毛利!D90/10000 -> 365.2984616 | F41: =[13]底稿毛利!E90/10000 -> 413.4890311 | G41: =[13]底稿毛利!F90/10000 -> 428.4471147 | H41: =[13]底稿毛利!G90/10000 -> 462.9353928 | I41: =[13]底稿毛利!H90/10000 -> 405.72162 | J41: =[13]底稿毛利!I90/10000 -> 445.4556701 | K41: =[13]底稿毛利!J90/10000 -> 375.0019293 | L41: =[13]底稿毛利!K90/10000 -> 436.2470211 | M41: =[13]底稿毛利!L90/10000 -> 0 | N41: =[13]底稿毛利!M90/10000 -> 0 | O41: 436.2470211 | P41: 375.0019293 | Q41: 61.24509178 | R41: 0.1633194045 | S41: 3776.014249 | T41: 1888.96 | U41: 1887.054249 | V41: 0.9989911111 | W41: 4441.1712 | X41: 0.850229383
A42: 十 | B42: 珠海侨益 | C42: =C43 -> 0 | D42: =D43 -> 0 | E42: 0 | F42: 0 | G42: 0 | H42: 0 | I42: 0 | J42: 0 | K42: 0 | L42: 0 | M42: 0 | N42: 0 | O42: 0 | P42: 0 | Q42: 0 | S42: 0 | T42: =T43 -> 1.835849 | U42: -1.835849 | V42: -1
A43: 10-1 | B43: 珠海侨益 | C43: =[13]底稿毛利!B58/10000 -> 0 | D43: =[13]底稿毛利!C58/10000 -> 0 | E43: =[13]底稿毛利!D58/10000 -> 0 | F43: =[13]底稿毛利!E58/10000 -> 0 | G43: =[13]底稿毛利!F58/10000 -> 0 | H43: =[13]底稿毛利!G58/10000 -> 0 | I43: =[13]底稿毛利!H58/10000 -> 0 | J43: =[13]底稿毛利!I58/10000 -> 0 | K43: =[13]底稿毛利!J58/10000 -> 0 | L43: =[13]底稿毛利!K58/10000 -> 0 | M43: =[13]底稿毛利!L58/10000 -> 0 | N43: =[13]底稿毛利!M58/10000 -> 0 | O43: 0 | P43: 0 | Q43: 0 | S43: 0 | T43: ='[13]2018附表1-各单位主营业务收入情况表'!C57 -> 1.835849 | U43: -1.835849 | V43: -1
A44: 十一 | B44: 侨益湖广 | C44: =C45 -> 0 | D44: 0 | E44: 0 | F44: 0 | G44: 0 | H44: 0 | I44: 0 | J44: 0 | K44: 0 | L44: 0 | M44: 0 | N44: 0 | O44: 0 | P44: 0 | Q44: 0 | S44: 0 | T44: =T45 -> 0 | U44: 0
A45: 11-1 | B45: 侨益湖广 | C45: =[13]底稿毛利!B82/10000 -> 0 | D45: =[13]底稿毛利!C82/10000 -> 0 | E45: =[13]底稿毛利!D82/10000 -> 0 | F45: =[13]底稿毛利!E82/10000 -> 0 | G45: =[13]底稿毛利!F82/10000 -> 0 | H45: =[13]底稿毛利!G82/10000 -> 0 | I45: =[13]底稿毛利!H82/10000 -> 0 | J45: =[13]底稿毛利!I82/10000 -> 0 | K45: =[13]底稿毛利!J82/10000 -> 0 | L45: =[13]底稿毛利!K82/10000 -> 0 | M45: =[13]底稿毛利!L82/10000 -> 0 | N45: =[13]底稿毛利!M82/10000 -> 0 | O45: 0 | P45: 0 | S45: 0 | T45: 0 | U45: 0
A46: 十二 | B46: 租船业务 | C46: 0 | D46: 0 | E46: 0 | F46: 0 | G46: 0 | H46: 0 | I46: 0 | J46: 0 | K46: 0 | L46: 0 | M46: 0 | N46: 0 | O46: 0 | P46: 0 | Q46: =O46-P46 -> 0 | R46: =IF(ISERROR(Q46/P46),"",(Q46/ABS(P46))) ->  | S46: 0 | T46: 3.804220269 | U46: -3.804220269 | V46: -1 | W46: 42 | X46: =IF(ISERROR(S46/W46),"",(S46/W46)) -> 0
A47: 12-1 | B47: 租船业务 | O47: 0 | P47: 0 | Q47: 0 | R47: =IF(ISERROR(Q47/P47),"",(Q47/P47)) ->  | S47: 0 | T47: ='[13]2018附表1-各单位主营业务收入情况表'!C87 -> 3.804220269 | U47: -3.804220269 | V47: -1 | W47: 42 | X47: 0
A48: 十三 | B48: 公尺 | C48: 7.618334 | D48: 3.323387 | E48: 10.088466 | F48: 14.8731 | G48: 10.475347 | H48: 15.174111 | I48: 18.63452 | J48: 10.459006 | K48: 9.159024 | L48: 16.318531 | M48: 0 | N48: 0 | O48: 16.318531 | P48: 9.159024 | Q48: 7.159507 | R48: =IF(ISERROR(Q48/P48),"",(Q48/ABS(P48))) -> 0.7816888568 | S48: 116.123826 | T48: 114.574386 | U48: 1.54944 | V48: 0.01352344144
A49: 13-1 | B49: 公尺 | C49: =[13]底稿毛利!B107/10000 -> 7.618334 | D49: =[13]底稿毛利!C107/10000 -> 3.323387 | E49: =[13]底稿毛利!D107/10000 -> 10.088466 | F49: =[13]底稿毛利!E107/10000 -> 14.8731 | G49: =[13]底稿毛利!F107/10000 -> 10.475347 | H49: =[13]底稿毛利!G107/10000 -> 15.174111 | I49: =[13]底稿毛利!H107/10000 -> 18.63452 | J49: =[13]底稿毛利!I107/10000 -> 10.459006 | K49: =[13]底稿毛利!J107/10000 -> 9.159024 | L49: =[13]底稿毛利!K107/10000 -> 16.318531 | M49: =[13]底稿毛利!L107/10000 -> 0 | N49: =[13]底稿毛利!M107/10000 -> 0 | O49: 16.318531 | P49: 9.159024 | Q49: 7.159507 | R49: 0.7816888568 | S49: 116.123826 | T49: ='[13]2018附表1-各单位主营业务收入情况表'!C94 -> 114.574386 | U49: 1.54944 | V49: 0.01352344144
A50: 十四 | B50: 侨益嘉华 | C50: =C51 -> 0 | D50: 0 | E50: 0 | F50: 0 | G50: 0 | H50: 0 | I50: 716.091226 | J50: 262.377678 | K50: 250.645682 | L50: 531.768308 | M50: 0 | N50: 0 | O50: 531.768308 | P50: 250.645682 | Q50: 281.122626 | R50: =IF(ISERROR(Q50/P50),"",(Q50/ABS(P50))) -> 1.121593732 | S50: 1760.882894 | T50: =T51 -> 0 | U50: 1760.882894
A51: 14-1 | B51: 侨益嘉华 | C51: =[13]底稿毛利!B111/10000 -> 0 | D51: =[13]底稿毛利!C111/10000 -> 0 | E51: =[13]底稿毛利!D111/10000 -> 0 | F51: =[13]底稿毛利!E111/10000 -> 0 | G51: =[13]底稿毛利!F111/10000 -> 0 | H51: =[13]底稿毛利!G111/10000 -> 0 | I51: =[13]底稿毛利!H111/10000 -> 716.091226 | J51: =[13]底稿毛利!I111/10000 -> 262.377678 | K51: =[13]底稿毛利!J111/10000 -> 250.645682 | L51: =[13]底稿毛利!K111/10000 -> 531.768308 | M51: =[13]底稿毛利!L111/10000 -> 0 | N51: =[13]底稿毛利!M111/10000 -> 0 | O51: 531.768308 | P51: 250.645682 | Q51: 281.122626 | R51: 1.121593732 | S51: 1760.882894 | T51: 0 | U51: 1760.882894
B52: 抵消 | S52: =[13]集团利润表!N5 -> 5103.867801 | T52: =[13]集团利润表!S5 -> 1502.74899
A53: N | B53: 集团合并 | C53: =SUM(C5,C13,C19,C21,C30,C33,C35,C40,C42,C44,C46,C48,C50) -> 4445.428225 | D53: =SUM(D5,D13,D19,D21,D30,D33,D35,D40,D42,D44,D46,D48,D50) -> 3468.139114 | E53: 5923.874037 | F53: 5403.886681 | G53: 6846.808551 | H53: 6981.118891 | I53: 5544.756581 | J53: 6437.776868 | K53: 8105.983424 | L53: 9483.008815 | M53: 0 | N53: 0 | O53: 9483.008815 | P53: 8105.983424 | Q53: 1377.025391 | R53: 0.1698776471 | S53: =SUM(C53:N53)-S52 -> 57536.91338 | T53: ='[13]2018附表1-各单位主营业务收入情况表'!C99-T52 -> 53563.64007 | U53: 3973.273316 | V53: 0.07417855304 | W53: 72045.43368 | X53: 0.7986198493
C92: 10000
C106: 10000

Sheet 附表2-各单位毛利情况表 (hidden)
A1: 附表2：2019年10月份各公司毛利完成情况表
A2: 编制单位：侨益集团有限公司 | X2: 单位：万元
A3: 序号 | B3: 单位名称 | C3: 1月 | D3: 2月 | E3: 3月 | F3: 4月 | G3: 5月 | H3: 6月 | I3: 7月 | J3: 8月 | K3: 9月 | L3: 10月 | M3: 11月 | N3: 12月 | O3: 月度对比 | S3: 年度对比 | T3: 年度对比 | W3: 预算对比
O4: 本月数 | P4: 上月数 | Q4: 增减额 | R4: 增减幅 | S4: 本年累计 | T4: 上年同期 | U4: 增减额 | V4: 增减幅 | W4: 本年预算 | X4: 预算进度
A5: 一 | B5: 货代业务汇总 | C5: =SUM(C6:C12) -> 96.094568 | D5: =SUM(D6:D12) -> 122.057322 | E5: 229.167969 | F5: 420.755298 | G5: 285.494436 | H5: 266.89104 | I5: 246.45943 | J5: 304.2683278 | K5: 756.8335409 | L5: 533.5096931 | M5: 0 | N5: 0 | O5: =L5 -> 533.5096931 | P5: =K5 -> 756.8335409 | Q5: =O5-P5 -> -223.3238478 | R5: =IF(ISERROR(Q5/P5),"",(Q5/ABS(P5))) -> -0.2950765733 | S5: =SUM(C5:N5) -> 3261.531625 | T5: =T6+T7+T8+T9+T10+T11+T12 -> 3073.051132 | U5: =S5-T5 -> 188.4804925 | V5: =IF(ISERROR(U5/T5),"",(U5/ABS(T5))) -> 0.06133334083 | W5: =SUM(W6:W12) -> 4740.013016 | X5: =IF(ISERROR(S5/W5),"",(S5/W5)) -> 0.6880849511
A6: 1-1 | B6: 货代本部 | C6: =([13]底稿毛利!B4-[13]底稿毛利!B5)/10000 -> 64.876733 | D6: =([13]底稿毛利!C4-[13]底稿毛利!C5)/10000 -> 43.788246 | E6: =([13]底稿毛利!D4-[13]底稿毛利!D5)/10000 -> 180.194941 | F6: =([13]底稿毛利!E4-[13]底稿毛利!E5)/10000 -> 384.337732 | G6: =([13]底稿毛利!F4-[13]底稿毛利!F5)/10000 -> 206.010032 | H6: =([13]底稿毛利!G4-[13]底稿毛利!G5)/10000 -> 155.066283 | I6: =([13]底稿毛利!H4-[13]底稿毛利!H5)/10000 -> 171.858403 | J6: =([13]底稿毛利!I4-[13]底稿毛利!I5)/10000 -> 244.1200178 | K6: =([13]底稿毛利!J4-[13]底稿毛利!J5)/10000 -> 592.76984 | L6: =([13]底稿毛利!K4-[13]底稿毛利!K5)/10000 -> 221.227703 | M6: =([13]底稿毛利!L4-[13]底稿毛利!L5)/10000 -> 0 | N6: =([13]底稿毛利!M4-[13]底稿毛利!M5)/10000 -> 0 | O6: 221.227703 | P6: 592.76984 | Q6: -371.542137 | R6: -0.6267898802 | S6: 2264.249931 | T6: ='[13]2018年附表2-各单位毛利情况表'!C7 -> 2256.281949 | U6: 7.967981755 | V6: 0.003531465453 | W6: 3234.96764 | X6: =IF(ISERROR(S6/W6),"",(S6/W6)) -> 0.6999297004
A7: 1-2 | B7: 广西侨益 | C7: =([13]底稿毛利!B7-[13]底稿毛利!B8)/10000 -> 22.801419 | D7: =([13]底稿毛利!C7-[13]底稿毛利!C8)/10000 -> 26.786168 | E7: =([13]底稿毛利!D7-[13]底稿毛利!D8)/10000 -> 35.39083 | F7: =([13]底稿毛利!E7-[13]底稿毛利!E8)/10000 -> 24.363489 | G7: =([13]底稿毛利!F7-[13]底稿毛利!F8)/10000 -> 15.704957 | H7: =([13]底稿毛利!G7-[13]底稿毛利!G8)/10000 -> 19.552895 | I7: =([13]底稿毛利!H7-[13]底稿毛利!H8)/10000 -> 25.891249 | J7: =([13]底稿毛利!I7-[13]底稿毛利!I8)/10000 -> 33.306799 | K7: =([13]底稿毛利!J7-[13]底稿毛利!J8)/10000 -> 31.0064069 | L7: =([13]底稿毛利!K7-[13]底稿毛利!K8)/10000 -> 24.734536 | M7: =([13]底稿毛利!L7-[13]底稿毛利!L8)/10000 -> 0 | N7: =([13]底稿毛利!M7-[13]底稿毛利!M8)/10000 -> 0 | O7: 24.734536 | P7: 31.0064069 | Q7: -6.2718709 | R7: -0.2022766108 | S7: 259.5387489 | T7: ='[13]2018年附表2-各单位毛利情况表'!C19 -> 230.8146563 | U7: 28.72409263 | V7: 0.1244465715 | W7: 371.37036 | X7: 0.6988676988
A8: 1-3 | B8: 岳阳侨益 | C8: =([13]底稿毛利!B10-[13]底稿毛利!B11)/10000 -> -11.400196 | D8: =([13]底稿毛利!C10-[13]底稿毛利!C11)/10000 -> -11.991367 | E8: =([13]底稿毛利!D10-[13]底稿毛利!D11)/10000 -> -10.581219 | F8: =([13]底稿毛利!E10-[13]底稿毛利!E11)/10000 -> 1.373518 | G8: =([13]底稿毛利!F10-[13]底稿毛利!F11)/10000 -> 20.852081 | H8: =([13]底稿毛利!G10-[13]底稿毛利!G11)/10000 -> -3.427122 | I8: =([13]底稿毛利!H10-[13]底稿毛利!H11)/10000 -> 7.215495 | J8: =([13]底稿毛利!I10-[13]底稿毛利!I11)/10000 -> 6.087333 | K8: =([13]底稿毛利!J10-[13]底稿毛利!J11)/10000 -> 76.909743 | L8: =([13]底稿毛利!K10-[13]底稿毛利!K11)/10000 -> -9.985256 | M8: =([13]底稿毛利!L10-[13]底稿毛利!L11)/10000 -> 0 | N8: =([13]底稿毛利!M10-[13]底稿毛利!M11)/10000 -> 0 | O8: -9.985256 | P8: 76.909743 | Q8: -86.894999 | R8: -1.129830833 | S8: 65.05301 | T8: ='[13]2018年附表2-各单位毛利情况表'!C10 -> 169.993402 | U8: -104.940392 | V8: -0.6173203828 | W8: 184.7562264 | X8: 0.3521018548
A9: 1-4 | B9: 苏州侨益 | C9: =([13]底稿毛利!B13-[13]底稿毛利!B14)/10000 -> 0 | D9: =([13]底稿毛利!C13-[13]底稿毛利!C14)/10000 -> 0 | E9: =([13]底稿毛利!D13-[13]底稿毛利!D14)/10000 -> 0 | F9: =([13]底稿毛利!E13-[13]底稿毛利!E14)/10000 -> 0 | G9: =([13]底稿毛利!F13-[13]底稿毛利!F14)/10000 -> 0 | H9: =([13]底稿毛利!G13-[13]底稿毛利!G14)/10000 -> 0 | I9: =([13]底稿毛利!H13-[13]底稿毛利!H14)/10000 -> 0 | J9: =([13]底稿毛利!I13-[13]底稿毛利!I14)/10000 -> 0 | K9: =([13]底稿毛利!J13-[13]底稿毛利!J14)/10000 -> 0 | L9: =([13]底稿毛利!K13-[13]底稿毛利!K14)/10000 -> 0 | M9: =([13]底稿毛利!L13-[13]底稿毛利!L14)/10000 -> 0 | N9: =([13]底稿毛利!M13-[13]底稿毛利!M14)/10000 -> 0 | O9: 0 | P9: 0 | Q9: 0 | S9: 0 | U9: 0
A10: 1-5 | B10: 厦门鑫侨益 | C10: =([13]底稿毛利!B16-[13]底稿毛利!B17)/10000 -> 19.816612 | D10: =([13]底稿毛利!C16-[13]底稿毛利!C17)/10000 -> 63.474275 | E10: =([13]底稿毛利!D16-[13]底稿毛利!D17)/10000 -> 24.163417 | F10: =([13]底稿毛利!E16-[13]底稿毛利!E17)/10000 -> 10.680559 | G10: =([13]底稿毛利!F16-[13]底稿毛利!F17)/10000 -> 42.927366 | H10: =([13]底稿毛利!G16-[13]底稿毛利!G17)/10000 -> 95.698984 | I10: =([13]底稿毛利!H16-[13]底稿毛利!H17)/10000 -> 41.494283 | J10: =([13]底稿毛利!I16-[13]底稿毛利!I17)/10000 -> 20.754178 | K10: =([13]底稿毛利!J16-[13]底稿毛利!J17)/10000 -> 56.147551 | L10: =([13]底稿毛利!K16-[13]底稿毛利!K17)/10000 -> 297.5327101 | M10: =([13]底稿毛利!L16-[13]底稿毛利!L17)/10000 -> 0 | N10: =([13]底稿毛利!M16-[13]底稿毛利!M17)/10000 -> 0 | O10: 297.5327101 | P10: 56.147551 | Q10: 241.3851591 | R10: 4.299121775 | S10: 672.6899351 | T10: ='[13]2018年附表2-各单位毛利情况表'!C13 -> 415.961125 | U10: 256.7288101 | V10: 0.6171942392 | W10: 774.907596 | X10: 0.8680905163
A11: 1-6 | B11: 乌克兰 | C11: =([13]底稿毛利!B19-[13]底稿毛利!B20)/10000 -> 0 | D11: =([13]底稿毛利!C19-[13]底稿毛利!C20)/10000 -> 0 | E11: =([13]底稿毛利!D19-[13]底稿毛利!D20)/10000 -> 0 | F11: =([13]底稿毛利!E19-[13]底稿毛利!E20)/10000 -> 0 | G11: =([13]底稿毛利!F19-[13]底稿毛利!F20)/10000 -> 0 | H11: =([13]底稿毛利!G19-[13]底稿毛利!G20)/10000 -> 0 | I11: =([13]底稿毛利!H19-[13]底稿毛利!H20)/10000 -> 0 | J11: =([13]底稿毛利!I19-[13]底稿毛利!I20)/10000 -> 0 | K11: =([13]底稿毛利!J19-[13]底稿毛利!J20)/10000 -> 0 | L11: =([13]底稿毛利!K19-[13]底稿毛利!K20)/10000 -> 0 | M11: =([13]底稿毛利!L19-[13]底稿毛利!L20)/10000 -> 0 | N11: =([13]底稿毛利!M19-[13]底稿毛利!M20)/10000 -> 0 | O11: 0 | P11: 0 | Q11: 0 | S11: 0 | T11: ='[13]2018年附表2-各单位毛利情况表'!C15 -> 0 | U11: 0 | W11: 125.350576 | X11: 0
A12: 1-7 | B12: 新会项目 | O12: 0 | P12: 0 | Q12: 0 | S12: 0 | T12: ='[13]2018年附表2-各单位毛利情况表'!C16 -> 0 | U12: 0 | W12: 48.66061845
A13: 二 | B13: 仓储板块汇总 | C13: =SUM(C14:C18) -> 479.999007 | D13: =SUM(D14:D18) -> 386.226041 | E13: 426.761155 | F13: 397.720169 | G13: 376.384931 | H13: 360.899655 | I13: 376.672039 | J13: 366.988948 | K13: 339.981558 | L13: 412.233443 | M13: 0 | N13: 0 | O13: 412.233443 | P13: 339.981558 | Q13: 72.251885 | R13: 0.2125170713 | S13: =SUM(C13:N13) -> 3923.866946 | T13: =T14+T15+T16+T17+T18 -> 3726.009092 | U13: 197.857854 | V13: 0.05310181728 | W13: =SUM(W14:W18) -> 5071.182368 | X13: =IF(ISERROR(S13/W13),"",(S13/W13)) -> 0.7737578066
A14: 2-1 | B14: 平仓 | C14: =([13]底稿毛利!B23-[13]底稿毛利!B24)/10000 -> 11.782213 | D14: =([13]底稿毛利!C23-[13]底稿毛利!C24)/10000 -> -30.592863 | E14: =([13]底稿毛利!D23-[13]底稿毛利!D24)/10000 -> -19.558441 | F14: =([13]底稿毛利!E23-[13]底稿毛利!E24)/10000 -> -12.907066 | G14: =([13]底稿毛利!F23-[13]底稿毛利!F24)/10000 -> -17.127693 | H14: =([13]底稿毛利!G23-[13]底稿毛利!G24)/10000 -> -48.117681 | I14: =([13]底稿毛利!H23-[13]底稿毛利!H24)/10000 -> -14.458391 | J14: =([13]底稿毛利!I23-[13]底稿毛利!I24)/10000 -> 2.998614 | K14: =([13]底稿毛利!J23-[13]底稿毛利!J24)/10000 -> -8.513945 | L14: =([13]底稿毛利!K23-[13]底稿毛利!K24)/10000 -> -25.942627 | M14: =([13]底稿毛利!L23-[13]底稿毛利!L24)/10000 -> 0 | N14: =([13]底稿毛利!M23-[13]底稿毛利!M24)/10000 -> 0 | O14: -25.942627 | P14: -8.513945 | Q14: -17.428682 | R14: -2.04707477 | S14: -162.43788 | T14: ='[13]2018年附表2-各单位毛利情况表'!C23 -> -4.905417 | U14: -157.532463 | V14: -32.11397991 | W14: 99.82217041 | X14: =IF(ISERROR(S14/W14),"",(S14/W14)) -> -1.627272572
A15: 2-2 | B15: 明珠项目 | C15: =([13]底稿毛利!B26-[13]底稿毛利!B27)/10000 -> 492.488074 | D15: =([13]底稿毛利!C26-[13]底稿毛利!C27)/10000 -> 438.331112 | E15: =([13]底稿毛利!D26-[13]底稿毛利!D27)/10000 -> 468.488659 | F15: =([13]底稿毛利!E26-[13]底稿毛利!E27)/10000 -> 417.816157 | G15: =([13]底稿毛利!F26-[13]底稿毛利!F27)/10000 -> 402.593236 | H15: =([13]底稿毛利!G26-[13]底稿毛利!G27)/10000 -> 410.35019 | I15: =([13]底稿毛利!H26-[13]底稿毛利!H27)/10000 -> 406.716455 | J15: =([13]底稿毛利!I26-[13]底稿毛利!I27)/10000 -> 377.76706 | K15: =([13]底稿毛利!J26-[13]底稿毛利!J27)/10000 -> 355.37707 | L15: =([13]底稿毛利!K26-[13]底稿毛利!K27)/10000 -> 406.729749 | M15: =([13]底稿毛利!L26-[13]底稿毛利!L27)/10000 -> 0 | N15: =([13]底稿毛利!M26-[13]底稿毛利!M27)/10000 -> 0 | O15: 406.729749 | P15: 355.37707 | Q15: 51.352679 | R15: 0.1445019483 | S15: 4176.657762 | T15: ='[13]2018年附表2-各单位毛利情况表'!C25 -> 3828.417744 | U15: 348.240018 | V15: 0.090961865 | W15: 4608.678198 | X15: =IF(ISERROR(S15/W15),"",(S15/W15)) -> 0.9062593617
A16: 2-3 | B16: 钢材储运 | C16: =([13]底稿毛利!B29-[13]底稿毛利!B30)/10000 -> -24.27128 | D16: =([13]底稿毛利!C29-[13]底稿毛利!C30)/10000 -> -21.512208 | E16: =([13]底稿毛利!D29-[13]底稿毛利!D30)/10000 -> -22.169063 | F16: =([13]底稿毛利!E29-[13]底稿毛利!E30)/10000 -> -7.188922 | G16: =([13]底稿毛利!F29-[13]底稿毛利!F30)/10000 -> -9.080612 | H16: =([13]底稿毛利!G29-[13]底稿毛利!G30)/10000 -> -1.332854 | I16: =([13]底稿毛利!H29-[13]底稿毛利!H30)/10000 -> -15.586025 | J16: =([13]底稿毛利!I29-[13]底稿毛利!I30)/10000 -> -13.776726 | K16: =([13]底稿毛利!J29-[13]底稿毛利!J30)/10000 -> -6.881567 | L16: =([13]底稿毛利!K29-[13]底稿毛利!K30)/10000 -> 2.973962 | M16: =([13]底稿毛利!L29-[13]底稿毛利!L30)/10000 -> 0 | N16: =([13]底稿毛利!M29-[13]底稿毛利!M30)/10000 -> 0 | O16: 2.973962 | P16: -6.881567 | S16: -118.825295 | T16: ='[13]2018年附表2-各单位毛利情况表'!C69 -> -97.503235 | U16: -21.32206 | V16: -0.2186805392 | W16: 40.822
A17: 2-4 | B17: 广西钦州 | C17: =([13]底稿毛利!B32-[13]底稿毛利!B33)/10000 -> 0 | D17: =([13]底稿毛利!C32-[13]底稿毛利!C33)/10000 -> 0 | E17: =([13]底稿毛利!D32-[13]底稿毛利!D33)/10000 -> 0 | F17: =([13]底稿毛利!E32-[13]底稿毛利!E33)/10000 -> 0 | G17: =([13]底稿毛利!F32-[13]底稿毛利!F33)/10000 -> 0 | H17: =([13]底稿毛利!G32-[13]底稿毛利!G33)/10000 -> 0 | I17: =([13]底稿毛利!H32-[13]底稿毛利!H33)/10000 -> 0 | J17: =([13]底稿毛利!I32-[13]底稿毛利!I33)/10000 -> 0 | K17: =([13]底稿毛利!J32-[13]底稿毛利!J33)/10000 -> 0 | L17: =([13]底稿毛利!K32-[13]底稿毛利!K33)/10000 -> 28.472359 | M17: =([13]底稿毛利!L32-[13]底稿毛利!L33)/10000 -> 0 | N17: =([13]底稿毛利!M32-[13]底稿毛利!M33)/10000 -> 0 | O17: 28.472359 | P17: 0 | Q17: 28.472359 | R17: =IF(ISERROR(Q17/P17),"",(Q17/ABS(P17))) ->  | S17: 28.472359 | T17: ='[13]2018年附表2-各单位毛利情况表'!C68 -> 0 | U17: 28.472359 | W17: 280.54 | X17: =IF(ISERROR(S17/W17),"",(S17/W17)) -> 0.1014912633
A18: 2-5 | B18: 五矿仓 | O18: 0 | P18: 0 | Q18: 0 | R18: =IF(ISERROR(Q18/P18),"",(Q18/ABS(P18))) ->  | S18: =SUM(C18:N18) -> 0 | T18: 0 | W18: 41.32
A19: 三 | B19: 运输业务汇总 | C19: =C20 -> 34.3638 | D19: =D20 -> 43.23418 | E19: 16.240215 | F19: -17.589501 | G19: 4.63391 | H19: -2.715387 | I19: -8.589197 | J19: 61.41175 | K19: 40.196279 | L19: 22.039862 | M19: 0 | N19: 0 | O19: 22.039862 | P19: 40.196279 | Q19: -18.156417 | R19: -0.451693974 | S19: 193.225911 | T19: =T20 -> 79.6824945 | U19: 113.5434165 | V19: 1.424948067 | W19: =W20 -> 392.6129656 | X19: =IF(ISERROR(S19/W19),"",(S19/W19)) -> 0.4921536676
A20: 3-1 | B20: 生生物流 | C20: =([13]底稿毛利!B36-[13]底稿毛利!B37)/10000 -> 34.3638 | D20: =([13]底稿毛利!C36-[13]底稿毛利!C37)/10000 -> 43.23418 | E20: =([13]底稿毛利!D36-[13]底稿毛利!D37)/10000 -> 16.240215 | F20: =([13]底稿毛利!E36-[13]底稿毛利!E37)/10000 -> -17.589501 | G20: =([13]底稿毛利!F36-[13]底稿毛利!F37)/10000 -> 4.63391 | H20: =([13]底稿毛利!G36-[13]底稿毛利!G37)/10000 -> -2.715387 | I20: =([13]底稿毛利!H36-[13]底稿毛利!H37)/10000 -> -8.589197 | J20: =([13]底稿毛利!I36-[13]底稿毛利!I37)/10000 -> 61.41175 | K20: =([13]底稿毛利!J36-[13]底稿毛利!J37)/10000 -> 40.196279 | L20: =([13]底稿毛利!K36-[13]底稿毛利!K37)/10000 -> 22.039862 | M20: =([13]底稿毛利!L36-[13]底稿毛利!L37)/10000 -> 0 | N20: =([13]底稿毛利!M36-[13]底稿毛利!M37)/10000 -> 0 | O20: 22.039862 | P20: 40.196279 | Q20: -18.156417 | R20: -0.451693974 | S20: 193.225911 | T20: ='[13]2018年附表2-各单位毛利情况表'!C29 -> 79.6824945 | U20: 113.5434165 | V20: 1.424948067 | W20: 392.6129656 | X20: =IF(ISERROR(S20/W20),"",(S20/W20)) -> 0.4921536676
A21: 四 | B21: 船代业务汇总 | C21: =SUM(C22:C29) -> 143.981856 | D21: =SUM(D22:D29) -> 88.01721254 | E21: 89.35379803 | F21: 147.262627 | G21: 154.8942204 | H21: 286.9537407 | I21: 117.8321027 | J21: 147.754936 | K21: 179.1615247 | L21: 152.3755468 | M21: 0 | N21: 0 | O21: 152.3755468 | P21: 179.1615247 | R21: 0 | S21: 1507.587565 | T21: =T22+T23+T24+T25+T26+T27+T28+T29 -> 1803.579639 | U21: -295.9920738 | V21: -0.1641136701 | W21: =SUM(W22:W29) -> 2416.7 | X21: =IF(ISERROR(S21/W21),"",(S21/W21)) -> 0.6238207328
A22: 4-1 | B22: 广州元亨 | C22: =([13]底稿毛利!B40-[13]底稿毛利!B41)/10000 -> 59.268978 | D22: =([13]底稿毛利!C40-[13]底稿毛利!C41)/10000 -> 49.43684154 | E22: =([13]底稿毛利!D40-[13]底稿毛利!D41)/10000 -> 38.37600803 | F22: =([13]底稿毛利!E40-[13]底稿毛利!E41)/10000 -> 46.857908 | G22: =([13]底稿毛利!F40-[13]底稿毛利!F41)/10000 -> 65.30816237 | H22: =([13]底稿毛利!G40-[13]底稿毛利!G41)/10000 -> 229.6584177 | I22: =([13]底稿毛利!H40-[13]底稿毛利!H41)/10000 -> 59.47085074 | J22: =([13]底稿毛利!I40-[13]底稿毛利!I41)/10000 -> 74.09657604 | K22: =([13]底稿毛利!J40-[13]底稿毛利!J41)/10000 -> 102.0583407 | L22: =([13]底稿毛利!K40-[13]底稿毛利!K41)/10000 -> 107.4075558 | M22: =([13]底稿毛利!L40-[13]底稿毛利!L41)/10000 -> 0 | N22: =([13]底稿毛利!M40-[13]底稿毛利!M41)/10000 -> 0 | O22: 107.4075558 | P22: 102.0583407 | Q22: 5.349215121 | R22: 0.05241330679 | S22: 831.9396389 | T22: ='[13]2018年附表2-各单位毛利情况表'!C38 -> 1059.155535 | U22: -227.2158958 | V22: -0.2145255237 | W22: 1394.8 | X22: 0.5964580147
A23: 4-2 | B23: 东莞元亨 | C23: =([13]底稿毛利!B43-[13]底稿毛利!B44)/10000 -> 18.200724 | D23: =([13]底稿毛利!C43-[13]底稿毛利!C44)/10000 -> 4.355402 | E23: =([13]底稿毛利!D43-[13]底稿毛利!D44)/10000 -> 10.295816 | F23: =([13]底稿毛利!E43-[13]底稿毛利!E44)/10000 -> 17.412428 | G23: =([13]底稿毛利!F43-[13]底稿毛利!F44)/10000 -> 13.987938 | H23: =([13]底稿毛利!G43-[13]底稿毛利!G44)/10000 -> 4.867508 | I23: =([13]底稿毛利!H43-[13]底稿毛利!H44)/10000 -> 13.212978 | J23: =([13]底稿毛利!I43-[13]底稿毛利!I44)/10000 -> 7.026826 | K23: =([13]底稿毛利!J43-[13]底稿毛利!J44)/10000 -> 21.876115 | L23: =([13]底稿毛利!K43-[13]底稿毛利!K44)/10000 -> 10.878889 | M23: =([13]底稿毛利!L43-[13]底稿毛利!L44)/10000 -> 0 | N23: =([13]底稿毛利!M43-[13]底稿毛利!M44)/10000 -> 0 | O23: 10.878889 | P23: 21.876115 | Q23: -10.997226 | R23: -0.5027047079 | S23: 122.114624 | T23: ='[13]2018年附表2-各单位毛利情况表'!C40 -> 151.511292 | U23: -29.396668 | V23: -0.1940229511 | W23: 190 | X23: 0.6427085474
A24: 4-3 | B24: 深圳元亨 | C24: =([13]底稿毛利!B46-[13]底稿毛利!B47)/10000 -> 11.023067 | D24: =([13]底稿毛利!C46-[13]底稿毛利!C47)/10000 -> 15.019202 | E24: =([13]底稿毛利!D46-[13]底稿毛利!D47)/10000 -> 13.275816 | F24: =([13]底稿毛利!E46-[13]底稿毛利!E47)/10000 -> 16.404226 | G24: =([13]底稿毛利!F46-[13]底稿毛利!F47)/10000 -> 11.601128 | H24: =([13]底稿毛利!G46-[13]底稿毛利!G47)/10000 -> 10.593429 | I24: =([13]底稿毛利!H46-[13]底稿毛利!H47)/10000 -> 12.377863 | J24: =([13]底稿毛利!I46-[13]底稿毛利!I47)/10000 -> 12.56437 | K24: =([13]底稿毛利!J46-[13]底稿毛利!J47)/10000 -> 13.689404 | L24: =([13]底稿毛利!K46-[13]底稿毛利!K47)/10000 -> 14.152386 | M24: =([13]底稿毛利!L46-[13]底稿毛利!L47)/10000 -> 0 | N24: =([13]底稿毛利!M46-[13]底稿毛利!M47)/10000 -> 0 | O24: 14.152386 | P24: 13.689404 | Q24: 0.462982 | R24: 0.03382046435 | S24: 130.700891 | T24: ='[13]2018年附表2-各单位毛利情况表'!C43 -> 120.692622 | U24: 10.008269 | V24: 0.08292361898 | W24: 152.6 | X24: 0.8564933879
A25: 4-4 | B25: 湛江元亨 | C25: =([13]底稿毛利!B49-[13]底稿毛利!B50)/10000 -> 17.246439 | D25: =([13]底稿毛利!C49-[13]底稿毛利!C50)/10000 -> 5.99251 | E25: =([13]底稿毛利!D49-[13]底稿毛利!D50)/10000 -> 0 | F25: =([13]底稿毛利!E49-[13]底稿毛利!E50)/10000 -> 27.008095 | G25: =([13]底稿毛利!F49-[13]底稿毛利!F50)/10000 -> 3.118234 | H25: =([13]底稿毛利!G49-[13]底稿毛利!G50)/10000 -> 16.603163 | I25: =([13]底稿毛利!H49-[13]底稿毛利!H50)/10000 -> 21.325396 | J25: =([13]底稿毛利!I49-[13]底稿毛利!I50)/10000 -> 28.85517 | K25: =([13]底稿毛利!J49-[13]底稿毛利!J50)/10000 -> 10.466353 | L25: =([13]底稿毛利!K49-[13]底稿毛利!K50)/10000 -> 10.98448 | M25: =([13]底稿毛利!L49-[13]底稿毛利!L50)/10000 -> 0 | N25: =([13]底稿毛利!M49-[13]底稿毛利!M50)/10000 -> 0 | O25: 10.98448 | P25: 10.466353 | Q25: 0.518127 | R25: 0.04950406316 | S25: 141.59984 | T25: ='[13]2018年附表2-各单位毛利情况表'!C46 -> 91.896318 | U25: 49.703522 | V25: 0.5408652173 | W25: 193 | X25: 0.7336779275
A26: 4-5 | B26: 广西公司 | C26: =([13]底稿毛利!B52-[13]底稿毛利!B53)/10000 -> 19.753698 | D26: =([13]底稿毛利!C52-[13]底稿毛利!C53)/10000 -> 10.391532 | E26: =([13]底稿毛利!D52-[13]底稿毛利!D53)/10000 -> 16.201417 | F26: =([13]底稿毛利!E52-[13]底稿毛利!E53)/10000 -> 23.609556 | G26: =([13]底稿毛利!F52-[13]底稿毛利!F53)/10000 -> 57.805726 | H26: =([13]底稿毛利!G52-[13]底稿毛利!G53)/10000 -> 7.122408 | I26: =([13]底稿毛利!H52-[13]底稿毛利!H53)/10000 -> 9.243053 | J26: =([13]底稿毛利!I52-[13]底稿毛利!I53)/10000 -> 17.234147 | K26: =([13]底稿毛利!J52-[13]底稿毛利!J53)/10000 -> 29.898862 | L26: =([13]底稿毛利!K52-[13]底稿毛利!K53)/10000 -> 6.574946 | M26: =([13]底稿毛利!L52-[13]底稿毛利!L53)/10000 -> 0 | N26: =([13]底稿毛利!M52-[13]底稿毛利!M53)/10000 -> 0 | O26: 6.574946 | P26: 29.898862 | Q26: -23.323916 | R26: -0.7800937708 | S26: 197.835345 | T26: ='[13]2018年附表2-各单位毛利情况表'!C50-1.39 -> 143.636891 | U26: 54.198454 | V26: 0.3773296235 | W26: 283.8 | X26: 0.6970942389
A27: 4-6 | B27: 珠海元亨 | C27: =([13]底稿毛利!B55-[13]底稿毛利!B56)/10000 -> 0.23895 | D27: =([13]底稿毛利!C55-[13]底稿毛利!C56)/10000 -> 0.510711 | E27: =([13]底稿毛利!D55-[13]底稿毛利!D56)/10000 -> 0.032683 | F27: =([13]底稿毛利!E55-[13]底稿毛利!E56)/10000 -> 0 | G27: =([13]底稿毛利!F55-[13]底稿毛利!F56)/10000 -> 0 | H27: =([13]底稿毛利!G55-[13]底稿毛利!G56)/10000 -> 0.306033 | I27: =([13]底稿毛利!H55-[13]底稿毛利!H56)/10000 -> 0.518574 | J27: =([13]底稿毛利!I55-[13]底稿毛利!I56)/10000 -> 0.498909 | K27: =([13]底稿毛利!J55-[13]底稿毛利!J56)/10000 -> 0.285434 | L27: =([13]底稿毛利!K55-[13]底稿毛利!K56)/10000 -> 0 | M27: =([13]底稿毛利!L55-[13]底稿毛利!L56)/10000 -> 0 | N27: =([13]底稿毛利!M55-[13]底稿毛利!M56)/10000 -> 0 | O27: 0 | P27: 0.285434 | Q27: -0.285434 | R27: -1 | S27: 2.391294 | T27: ='[13]2018年附表2-各单位毛利情况表'!C54 -> 4.629073 | U27: -2.237779 | V27: -0.4834183864 | W27: 0
A28: 4-7 | B28: 南通公司 | C28: =([13]底稿毛利!B61+[13]底稿毛利!B64-[13]底稿毛利!B62-[13]底稿毛利!B65)/10000 -> 18.25 | D28: =([13]底稿毛利!C61+[13]底稿毛利!C64-[13]底稿毛利!C62-[13]底稿毛利!C65)/10000 -> 2.311014 | E28: =([13]底稿毛利!D61+[13]底稿毛利!D64-[13]底稿毛利!D62-[13]底稿毛利!D65)/10000 -> 11.172058 | F28: =([13]底稿毛利!E61+[13]底稿毛利!E64-[13]底稿毛利!E62-[13]底稿毛利!E65)/10000 -> 15.970414 | G28: =([13]底稿毛利!F61+[13]底稿毛利!F64-[13]底稿毛利!F62-[13]底稿毛利!F65)/10000 -> 3.073032 | H28: =([13]底稿毛利!G61+[13]底稿毛利!G64-[13]底稿毛利!G62-[13]底稿毛利!G65)/10000 -> 17.802782 | I28: =([13]底稿毛利!H61+[13]底稿毛利!H64-[13]底稿毛利!H62-[13]底稿毛利!H65)/10000 -> 1.683388 | J28: =([13]底稿毛利!I61+[13]底稿毛利!I64-[13]底稿毛利!I62-[13]底稿毛利!I65)/10000 -> 7.478938 | K28: =([13]底稿毛利!J61+[13]底稿毛利!J64-[13]底稿毛利!J62-[13]底稿毛利!J65)/10000 -> 0.887016 | L28: =([13]底稿毛利!K61+[13]底稿毛利!K64-[13]底稿毛利!K62-[13]底稿毛利!K65)/10000 -> 2.37729 | M28: =([13]底稿毛利!L61+[13]底稿毛利!L64-[13]底稿毛利!L62-[13]底稿毛利!L65)/10000 -> 0 | N28: =([13]底稿毛利!M61+[13]底稿毛利!M64-[13]底稿毛利!M62-[13]底稿毛利!M65)/10000 -> 0 | O28: 2.37729 | P28: 0.887016 | Q28: 1.490274 | R28: 1.680098217 | S28: 81.005932 | T28: ='[13]2018年附表2-各单位毛利情况表'!C60 -> 232.057908 | U28: -151.051976 | V28: -0.6509236307 | W28: 166.5 | X28: 0.4865221141
A29: 4-8 | B29: 茂名公司 | C29: =([13]底稿毛利!B67-[13]底稿毛利!B68)/10000 -> 0 | D29: =([13]底稿毛利!C67-[13]底稿毛利!C68)/10000 -> 0 | E29: =([13]底稿毛利!D67-[13]底稿毛利!D68)/10000 -> 0 | F29: =([13]底稿毛利!E67-[13]底稿毛利!E68)/10000 -> 0 | G29: =([13]底稿毛利!F67-[13]底稿毛利!F68)/10000 -> 0 | H29: =([13]底稿毛利!G67-[13]底稿毛利!G68)/10000 -> 0 | I29: =([13]底稿毛利!H67-[13]底稿毛利!H68)/10000 -> 0 | J29: =([13]底稿毛利!I67-[13]底稿毛利!I68)/10000 -> 0 | K29: =([13]底稿毛利!J67-[13]底稿毛利!J68)/10000 -> 0 | L29: =([13]底稿毛利!K67-[13]底稿毛利!K68)/10000 -> 0 | M29: =([13]底稿毛利!L67-[13]底稿毛利!L68)/10000 -> 0 | N29: =([13]底稿毛利!M67-[13]底稿毛利!M68)/10000 -> 0 | O29: 0 | P29: 0 | W29: 36 | X29: 0
A30: 五 | B30: 股份公司职能部门 | C30: =SUM(C31:C32) -> 21.46666 | D30: =SUM(D31:D32) -> 22.930653 | E30: 21.607347 | F30: 22.256584 | G30: 21.137428 | H30: 30.742426 | I30: 22.492097 | J30: 18.242603 | K30: 18.725967 | L30: 0.922566 | M30: 0 | N30: 0 | O30: 0.922566 | P30: 18.725967 | Q30: -17.803401 | R30: -0.950733332 | S30: 200.524331 | T30: =T31+T32 -> 151.491243 | U30: 49.033088 | V30: 0.3236694546 | W30: =W31 -> 185.1936 | X30: 1.082782186
A31: 5-1 | B31: 股份职能部门 | C31: =([13]底稿毛利!B71-[13]底稿毛利!B72)/10000 -> 19.713645 | D31: =([13]底稿毛利!C71-[13]底稿毛利!C72)/10000 -> 21.177638 | E31: =([13]底稿毛利!D71-[13]底稿毛利!D72)/10000 -> 19.854332 | F31: =([13]底稿毛利!E71-[13]底稿毛利!E72)/10000 -> 20.487487 | G31: =([13]底稿毛利!F71-[13]底稿毛利!F72)/10000 -> 21.137428 | H31: =([13]底稿毛利!G71-[13]底稿毛利!G72)/10000 -> 30.742426 | I31: =([13]底稿毛利!H71-[13]底稿毛利!H72)/10000 -> 22.492097 | J31: =([13]底稿毛利!I71-[13]底稿毛利!I72)/10000 -> 18.242603 | K31: =([13]底稿毛利!J71-[13]底稿毛利!J72)/10000 -> 18.725967 | L31: =([13]底稿毛利!K71-[13]底稿毛利!K72)/10000 -> 0.922566 | M31: =([13]底稿毛利!L71-[13]底稿毛利!L72)/10000 -> 0 | N31: =([13]底稿毛利!M71-[13]底稿毛利!M72)/10000 -> 0 | O31: 0.922566 | P31: 18.725967 | Q31: -17.803401 | R31: -0.950733332 | S31: 193.496189 | T31: ='[13]2018年附表2-各单位毛利情况表'!C33+'[13]2018年附表2-各单位毛利情况表'!C65 -> 134.024265 | U31: 59.471924 | V31: 0.443739975 | W31: 185.1936 | X31: 1.044831943
A32: 5-2 | B32: 集团总部+业务1部 | C32: =([13]底稿毛利!B75+[13]底稿毛利!B78-[13]底稿毛利!B76-[13]底稿毛利!B79)/10000 -> 1.753015 | D32: =([13]底稿毛利!C75+[13]底稿毛利!C78-[13]底稿毛利!C76-[13]底稿毛利!C79)/10000 -> 1.753015 | E32: =([13]底稿毛利!D75+[13]底稿毛利!D78-[13]底稿毛利!D76-[13]底稿毛利!D79)/10000 -> 1.753015 | F32: =([13]底稿毛利!E75+[13]底稿毛利!E78-[13]底稿毛利!E76-[13]底稿毛利!E79)/10000 -> 1.769097 | G32: =([13]底稿毛利!F75+[13]底稿毛利!F78-[13]底稿毛利!F76-[13]底稿毛利!F79)/10000 -> 0 | H32: =([13]底稿毛利!G75+[13]底稿毛利!G78-[13]底稿毛利!G76-[13]底稿毛利!G79)/10000 -> 0 | I32: =([13]底稿毛利!H75+[13]底稿毛利!H78-[13]底稿毛利!H76-[13]底稿毛利!H79)/10000 -> 0 | J32: =([13]底稿毛利!I75+[13]底稿毛利!I78-[13]底稿毛利!I76-[13]底稿毛利!I79)/10000 -> 0 | K32: =([13]底稿毛利!J75+[13]底稿毛利!J78-[13]底稿毛利!J76-[13]底稿毛利!J79)/10000 -> 0 | L32: =([13]底稿毛利!K75+[13]底稿毛利!K78-[13]底稿毛利!K76-[13]底稿毛利!K79)/10000 -> 0 | M32: =([13]底稿毛利!L75+[13]底稿毛利!L78-[13]底稿毛利!L76-[13]底稿毛利!L79)/10000 -> 0 | N32: =([13]底稿毛利!M75+[13]底稿毛利!M78-[13]底稿毛利!M76-[13]底稿毛利!M79)/10000 -> 0 | O32: 0 | P32: 0 | T32: ='[13]2018年附表2-各单位毛利情况表'!C95 -> 17.466978
A33: 六 | B33: 惠安储备粮轮换 | C33: =C34 -> -0.1426 | D33: =D34 -> 0 | E33: -0.620049 | F33: -1.000000164e-06 | G33: 36.78345 | H33: -92.625458 | I33: -0.08 | J33: -6.871018 | K33: 0 | L33: 0 | M33: 0 | N33: 0 | O33: 0 | P33: 0 | Q33: 0 | S33: -63.555676 | T33: =T34 -> -416.206618 | U33: 352.650942 | V33: 0.8472977765
A34: 6-1 | B34: 惠安储备粮轮换 | C34: =([13]底稿毛利!B86-[13]底稿毛利!B87)/10000 -> -0.1426 | D34: =([13]底稿毛利!C86-[13]底稿毛利!C87)/10000 -> 0 | E34: =([13]底稿毛利!D86-[13]底稿毛利!D87)/10000 -> -0.620049 | F34: =([13]底稿毛利!E86-[13]底稿毛利!E87)/10000 -> -1.000000164e-06 | G34: =([13]底稿毛利!F86-[13]底稿毛利!F87)/10000 -> 36.78345 | H34: =([13]底稿毛利!G86-[13]底稿毛利!G87)/10000 -> -92.625458 | I34: =([13]底稿毛利!H86-[13]底稿毛利!H87)/10000 -> -0.08 | J34: =([13]底稿毛利!I86-[13]底稿毛利!I87)/10000 -> -6.871018 | K34: =([13]底稿毛利!J86-[13]底稿毛利!J87)/10000 -> 0 | L34: =([13]底稿毛利!K86-[13]底稿毛利!K87)/10000 -> 0 | M34: =([13]底稿毛利!L86-[13]底稿毛利!L87)/10000 -> 0 | N34: =([13]底稿毛利!M86-[13]底稿毛利!M87)/10000 -> 0 | O34: 0 | P34: 0 | Q34: 0 | S34: -63.555676 | T34: ='[13]2018年附表2-各单位毛利情况表'!C62 -> -416.206618 | U34: 352.650942 | V34: 0.8472977765
A35: 八 | B35: 东北公司 | C35: =SUM(C36:C39) -> 4.306595 | D35: =SUM(D36:D39) -> 32.520668 | E35: 50.994101 | F35: 41.024381 | G35: 37.157116 | H35: 52.887299 | I35: 45.379392 | J35: 63.34646 | K35: 30.76483 | L35: 21.365777 | M35: 0 | N35: 0 | O35: 21.365777 | P35: 30.76483 | Q35: -9.399053 | R35: -0.3055129185 | S35: 379.746619 | T35: =T36+T37+T38+T39 -> 215.037957 | U35: 164.708662 | V35: 0.7659515757 | W35: 913.43928 | X35: 0.4157327447
A36: 8-1 | B36: 营口侨益 | C36: =([13]底稿毛利!B94-[13]底稿毛利!B95)/10000 -> 25.932218 | D36: =([13]底稿毛利!C94-[13]底稿毛利!C95)/10000 -> 28.152428 | E36: =([13]底稿毛利!D94-[13]底稿毛利!D95)/10000 -> 58.973862 | F36: =([13]底稿毛利!E94-[13]底稿毛利!E95)/10000 -> 40.272799 | G36: =([13]底稿毛利!F94-[13]底稿毛利!F95)/10000 -> 23.577708 | H36: =([13]底稿毛利!G94-[13]底稿毛利!G95)/10000 -> 28.365701 | I36: =([13]底稿毛利!H94-[13]底稿毛利!H95)/10000 -> 32.4725 | J36: =([13]底稿毛利!I94-[13]底稿毛利!I95)/10000 -> 10.456294 | K36: =([13]底稿毛利!J94-[13]底稿毛利!J95)/10000 -> 15.117398 | L36: =([13]底稿毛利!K94-[13]底稿毛利!K95)/10000 -> 8.75512 | M36: =([13]底稿毛利!L94-[13]底稿毛利!L95)/10000 -> 0 | N36: =([13]底稿毛利!M94-[13]底稿毛利!M95)/10000 -> 0 | O36: 8.75512 | P36: 15.117398 | Q36: -6.362278 | R36: -0.4208580074 | S36: 272.076028 | T36: ='[13]2018年附表2-各单位毛利情况表'!C78 -> 215.037957 | U36: 57.038071 | V36: 0.2652465258 | W36: 513 | X36: 0.5303626277
A37: 8-2 | B37: 营口弘港 | C37: =([13]底稿毛利!B97-[13]底稿毛利!B98)/10000 -> 0 | D37: =([13]底稿毛利!C97-[13]底稿毛利!C98)/10000 -> 0 | E37: =([13]底稿毛利!D97-[13]底稿毛利!D98)/10000 -> 9.480623 | F37: =([13]底稿毛利!E97-[13]底稿毛利!E98)/10000 -> 0 | G37: =([13]底稿毛利!F97-[13]底稿毛利!F98)/10000 -> 0 | H37: =([13]底稿毛利!G97-[13]底稿毛利!G98)/10000 -> 0 | I37: =([13]底稿毛利!H97-[13]底稿毛利!H98)/10000 -> 0 | J37: =([13]底稿毛利!I97-[13]底稿毛利!I98)/10000 -> 46.64 | K37: =([13]底稿毛利!J97-[13]底稿毛利!J98)/10000 -> 0.670801 | L37: =([13]底稿毛利!K97-[13]底稿毛利!K98)/10000 -> 5.670578 | M37: =([13]底稿毛利!L97-[13]底稿毛利!L98)/10000 -> 0 | N37: =([13]底稿毛利!M97-[13]底稿毛利!M98)/10000 -> 0 | O37: 5.670578 | P37: 0.670801 | Q37: 4.999777 | R37: 7.453442973 | S37: 62.462002 | T37: ='[13]2018年附表2-各单位毛利情况表'!C79 -> 0 | U37: 62.462002 | W37: 225 | X37: 0.2776088978
A38: 8-3 | B38: 辽宁港铁 | C38: =([13]底稿毛利!B100-[13]底稿毛利!B101)/10000 -> -23.733585 | D38: =([13]底稿毛利!C100-[13]底稿毛利!C101)/10000 -> 4.015032 | E38: =([13]底稿毛利!D100-[13]底稿毛利!D101)/10000 -> -19.648011 | F38: =([13]底稿毛利!E100-[13]底稿毛利!E101)/10000 -> -1.570791 | G38: =([13]底稿毛利!F100-[13]底稿毛利!F101)/10000 -> 9.481557 | H38: =([13]底稿毛利!G100-[13]底稿毛利!G101)/10000 -> 12.037608 | I38: =([13]底稿毛利!H100-[13]底稿毛利!H101)/10000 -> 12.985942 | J38: =([13]底稿毛利!I100-[13]底稿毛利!I101)/10000 -> 5.794844 | K38: =([13]底稿毛利!J100-[13]底稿毛利!J101)/10000 -> 14.027356 | L38: =([13]底稿毛利!K100-[13]底稿毛利!K101)/10000 -> 7.634258 | M38: =([13]底稿毛利!L100-[13]底稿毛利!L101)/10000 -> 0 | N38: =([13]底稿毛利!M100-[13]底稿毛利!M101)/10000 -> 0 | O38: 7.634258 | P38: 14.027356 | Q38: -6.393098 | R38: -0.4557593035 | S38: 21.02421 | T38: ='[13]2018年附表2-各单位毛利情况表'!C80 -> 0 | U38: 21.02421 | W38: 175.43928 | X38: 0.1198375301
A39: 8-4 | B39: 辽宁中侨 | C39: =([13]底稿毛利!B103-[13]底稿毛利!B104)/10000 -> 2.107962 | D39: =([13]底稿毛利!C103-[13]底稿毛利!C104)/10000 -> 0.353208 | E39: =([13]底稿毛利!D103-[13]底稿毛利!D104)/10000 -> 2.187627 | F39: =([13]底稿毛利!E103-[13]底稿毛利!E104)/10000 -> 2.322373 | G39: =([13]底稿毛利!F103-[13]底稿毛利!F104)/10000 -> 4.097851 | H39: =([13]底稿毛利!G103-[13]底稿毛利!G104)/10000 -> 12.48399 | I39: =([13]底稿毛利!H103-[13]底稿毛利!H104)/10000 -> -0.07905 | J39: =([13]底稿毛利!I103-[13]底稿毛利!I104)/10000 -> 0.455322 | K39: =([13]底稿毛利!J103-[13]底稿毛利!J104)/10000 -> 0.949275 | L39: =([13]底稿毛利!K103-[13]底稿毛利!K104)/10000 -> -0.694179 | M39: =([13]底稿毛利!L103-[13]底稿毛利!L104)/10000 -> 0 | N39: =([13]底稿毛利!M103-[13]底稿毛利!M104)/10000 -> 0 | O39: -0.694179 | P39: 0.949275 | S39: 24.184379 | U39: 24.184379
A40: 九 | B40: 美国项目 | C40: =C41 -> -12.05393963 | D40: =D41 -> 145.5997694 | E40: 169.0225345 | F40: 202.6991548 | G40: 213.1975316 | H40: 225.6270664 | I40: 242.5624761 | J40: 250.6414382 | K40: 217.5472833 | L40: 226.6529146 | M40: 0 | N40: 0 | O40: 226.6529146 | P40: 217.5472833 | Q40: 9.10563138 | R40: 0.04185587263 | S40: 1881.496229 | T40: =T41 -> 1962.11688 | U40: -80.62065083 | V40: -0.04108860774 | W40: =W41 -> 2734.5774 | X40: 0.6880391205
A41: 9-1 | B41: 美国项目 | C41: =([13]底稿毛利!B90-[13]底稿毛利!B91)/10000 -> -12.05393963 | D41: =([13]底稿毛利!C90-[13]底稿毛利!C91)/10000 -> 145.5997694 | E41: =([13]底稿毛利!D90-[13]底稿毛利!D91)/10000 -> 169.0225345 | F41: =([13]底稿毛利!E90-[13]底稿毛利!E91)/10000 -> 202.6991548 | G41: =([13]底稿毛利!F90-[13]底稿毛利!F91)/10000 -> 213.1975316 | H41: =([13]底稿毛利!G90-[13]底稿毛利!G91)/10000 -> 225.6270664 | I41: =([13]底稿毛利!H90-[13]底稿毛利!H91)/10000 -> 242.5624761 | J41: =([13]底稿毛利!I90-[13]底稿毛利!I91)/10000 -> 250.6414382 | K41: =([13]底稿毛利!J90-[13]底稿毛利!J91)/10000 -> 217.5472833 | L41: =([13]底稿毛利!K90-[13]底稿毛利!K91)/10000 -> 226.6529146 | M41: =([13]底稿毛利!L90-[13]底稿毛利!L91)/10000 -> 0 | N41: =([13]底稿毛利!M90-[13]底稿毛利!M91)/10000 -> 0 | O41: 226.6529146 | P41: 217.5472833 | Q41: 9.10563138 | R41: 0.04185587263 | S41: 1881.496229 | T41: ='[13]2018年附表2-各单位毛利情况表'!C81 -> 1962.11688 | U41: -80.62065083 | V41: -0.04108860774 | W41: 2734.5774 | X41: 0.6880391205
A42: 十 | B42: 珠海侨益 | C42: =C43 -> 0 | D42: =D43 -> 0 | E42: 0 | F42: 0 | G42: 0 | H42: 0 | I42: 0 | J42: 0 | K42: 0 | L42: 0 | M42: 0 | N42: 0 | O42: 0 | P42: 0 | Q42: 0 | S42: 0 | T42: =T43 -> 1.835849 | U42: -1.835849 | V42: -1
A43: 10-1 | B43: 珠海侨益 | C43: =([13]底稿毛利!B58-[13]底稿毛利!B59)/10000 -> 0 | D43: =([13]底稿毛利!C58-[13]底稿毛利!C59)/10000 -> 0 | E43: =([13]底稿毛利!D58-[13]底稿毛利!D59)/10000 -> 0 | F43: =([13]底稿毛利!E58-[13]底稿毛利!E59)/10000 -> 0 | G43: =([13]底稿毛利!F58-[13]底稿毛利!F59)/10000 -> 0 | H43: =([13]底稿毛利!G58-[13]底稿毛利!G59)/10000 -> 0 | I43: =([13]底稿毛利!H58-[13]底稿毛利!H59)/10000 -> 0 | J43: =([13]底稿毛利!I58-[13]底稿毛利!I59)/10000 -> 0 | K43: =([13]底稿毛利!J58-[13]底稿毛利!J59)/10000 -> 0 | L43: =([13]底稿毛利!K58-[13]底稿毛利!K59)/10000 -> 0 | M43: =([13]底稿毛利!L58-[13]底稿毛利!L59)/10000 -> 0 | N43: =([13]底稿毛利!M58-[13]底稿毛利!M59)/10000 -> 0 | O43: 0 | P43: 0 | Q43: 0 | S43: 0 | T43: ='[13]2018年附表2-各单位毛利情况表'!C91 -> 1.835849 | U43: -1.835849 | V43: -1
A44: 十一 | B44: 侨益湖广 | C44: =C45 -> 0 | D44: 0 | E44: 0 | F44: 0 | G44: 0 | H44: 0 | I44: 0 | J44: 0 | K44: 0 | L44: 0 | M44: 0 | N44: 0 | O44: 0 | P44: 0 | S44: 0 | T44: =T45 -> 0 | U44: 0
A45: 11-1 | B45: 侨益湖广 | C45: =([13]底稿毛利!B82-[13]底稿毛利!B83)/10000 -> 0 | D45: =([13]底稿毛利!C82-[13]底稿毛利!C83)/10000 -> 0 | E45: =([13]底稿毛利!D82-[13]底稿毛利!D83)/10000 -> 0 | F45: =([13]底稿毛利!E82-[13]底稿毛利!E83)/10000 -> 0 | G45: =([13]底稿毛利!F82-[13]底稿毛利!F83)/10000 -> 0 | H45: =([13]底稿毛利!G82-[13]底稿毛利!G83)/10000 -> 0 | I45: =([13]底稿毛利!H82-[13]底稿毛利!H83)/10000 -> 0 | J45: =([13]底稿毛利!I82-[13]底稿毛利!I83)/10000 -> 0 | K45: =([13]底稿毛利!J82-[13]底稿毛利!J83)/10000 -> 0 | L45: =([13]底稿毛利!K82-[13]底稿毛利!K83)/10000 -> 0 | M45: =([13]底稿毛利!L82-[13]底稿毛利!L83)/10000 -> 0 | N45: =([13]底稿毛利!M82-[13]底稿毛利!M83)/10000 -> 0 | O45: 0 | P45: 0 | S45: 0 | T45: ='[13]2018年附表2-各单位毛利情况表'!C89 -> 0 | U45: 0
A46: 十二 | B46: 租船业务 | C46: =C47 -> 0 | D46: =D47 -> 0 | E46: 0 | F46: 0 | G46: 0 | H46: 0 | I46: 0 | J46: 0 | K46: 0 | L46: 0 | M46: 0 | N46: 0 | O46: 0 | P46: 0 | Q46: =O46-P46 -> 0 | R46: =IF(ISERROR(Q46/P46),"",(Q46/ABS(P46))) ->  | S46: 0 | T46: 3.365780269 | U46: -3.365780269 | V46: -1 | X46: =IF(ISERROR(S46/W46),"",(S46/W46)) -> 
A47: 12-1 | B47: 租船业务 | O47: 0 | P47: 0 | Q47: 0 | R47: =IF(ISERROR(Q47/P47),"",(Q47/P47)) ->  | S47: 0 | T47: ='[13]2018年附表2-各单位毛利情况表'!C90 -> 3.365780269 | U47: -3.365780269 | V47: -1 | W47: 30 | X47: 0
A48: 十三 | B48: 公尺 | C48: =C49 -> 5.397534 | D48: 2.409487 | E48: 7.176866 | F48: 9.872 | G48: 6.565847 | H48: 9.542011 | I48: 13.36422 | J48: 7.492406 | K48: 5.670174 | L48: 9.970931 | M48: 0 | N48: 0 | O48: 9.970931 | P48: 5.670174 | Q48: 4.300757 | R48: =IF(ISERROR(Q48/P48),"",(Q48/ABS(P48))) -> 0.7584876584 | S48: 77.461476 | T48: 71.840286 | U48: 5.62119 | V48: 0.07824565175
A49: 13-1 | B49: 公尺 | C49: =([13]底稿毛利!B107-[13]底稿毛利!B108)/10000 -> 5.397534 | D49: =([13]底稿毛利!C107-[13]底稿毛利!C108)/10000 -> 2.409487 | E49: =([13]底稿毛利!D107-[13]底稿毛利!D108)/10000 -> 7.176866 | F49: =([13]底稿毛利!E107-[13]底稿毛利!E108)/10000 -> 9.872 | G49: =([13]底稿毛利!F107-[13]底稿毛利!F108)/10000 -> 6.565847 | H49: =([13]底稿毛利!G107-[13]底稿毛利!G108)/10000 -> 9.542011 | I49: =([13]底稿毛利!H107-[13]底稿毛利!H108)/10000 -> 13.36422 | J49: =([13]底稿毛利!I107-[13]底稿毛利!I108)/10000 -> 7.492406 | K49: =([13]底稿毛利!J107-[13]底稿毛利!J108)/10000 -> 5.670174 | L49: =([13]底稿毛利!K107-[13]底稿毛利!K108)/10000 -> 9.970931 | M49: =([13]底稿毛利!L107-[13]底稿毛利!L108)/10000 -> 0 | N49: =([13]底稿毛利!M107-[13]底稿毛利!M108)/10000 -> 0 | O49: 9.970931 | P49: 5.670174 | Q49: 4.300757 | R49: 0.7584876584 | S49: 77.461476 | T49: ='[13]2018年附表2-各单位毛利情况表'!C97 -> 71.840286 | U49: 5.62119 | V49: 0.07824565175
A50: 十四 | B50: 侨益嘉华 | C50: =C51 -> 0 | D50: 0 | E50: 0 | F50: 0 | G50: 0 | H50: 0 | I50: 34.64235 | J50: 11.159388 | K50: 31.414052 | L50: 8.362197 | M50: 0 | N50: 0 | O50: 8.362197 | P50: 31.414052 | Q50: -23.051855 | R50: =IF(ISERROR(Q50/P50),"",(Q50/ABS(P50))) -> -0.7338071192 | S50: 85.577987 | T50: =T51 -> 0 | U50: 85.577987
A51: 14-1 | B51: 侨益嘉华 | C51: =([13]底稿毛利!B111-[13]底稿毛利!B112)/10000 -> 0 | D51: =([13]底稿毛利!C111-[13]底稿毛利!C112)/10000 -> 0 | E51: =([13]底稿毛利!D111-[13]底稿毛利!D112)/10000 -> 0 | F51: =([13]底稿毛利!E111-[13]底稿毛利!E112)/10000 -> 0 | G51: =([13]底稿毛利!F111-[13]底稿毛利!F112)/10000 -> 0 | H51: =([13]底稿毛利!G111-[13]底稿毛利!G112)/10000 -> 0 | I51: =([13]底稿毛利!H111-[13]底稿毛利!H112)/10000 -> 34.64235 | J51: =([13]底稿毛利!I111-[13]底稿毛利!I112)/10000 -> 11.159388 | K51: =([13]底稿毛利!J111-[13]底稿毛利!J112)/10000 -> 31.414052 | L51: =([13]底稿毛利!K111-[13]底稿毛利!K112)/10000 -> 8.362197 | M51: =([13]底稿毛利!L111-[13]底稿毛利!L112)/10000 -> 0 | N51: =([13]底稿毛利!M111-[13]底稿毛利!M112)/10000 -> 0 | O51: 8.362197 | P51: 31.414052 | Q51: -23.051855 | R51: -0.7338071192 | S51: 85.577987 | T51: 0 | U51: 85.577987
B52: 抵消数 | S52: =[13]集团利润表!N7 -> 191.352589 | T52: =[13]集团利润表!S7 -> 25.57455
A53: N | B53: 集团合并 | C53: =SUM(C5,C13,C19,C21,C30,,C33,C35,C40,C42,C44,C46,C48,C51) -> 773.4134804 | D53: =SUM(D5,D13,D19,D21,D30,,D33,D35,D40,D42,D44,D46,D48,D51) -> 842.995333 | E53: 1009.703937 | F53: 1224.000712 | G53: 1136.24887 | H53: 1138.202393 | I53: 1090.73491 | J53: 1224.435239 | K53: 1620.295209 | L53: 1387.432931 | M53: 0 | N53: 0 | O53: 1387.432931 | P53: 1620.295209 | Q53: -232.8622783 | R53: -0.1437159581 | S53: =SUM(C53:N53)-S52 -> 11256.11042 | T53: =SUM(T5,T13,T19,T21,T30,,T33,T35,T40,T42,T44,T46)-T52 -> 10574.3889 | U53: 681.7215251 | V53: 0.06446911795 | W53: 16483.72561 | X53: 0.6828620354

Sheet 附表3-各单位净利润情况表 (hidden)
A1: 附表3：2019年10月份各公司净利润完成情况表
A2: 编制单位：侨益集团有限公司 单位：万元
A3: 序号 | B3: 单位名称 | C3: 1月 | D3: 2月 | E3: 3月 | F3: 4月 | G3: 5月 | H3: 6月 | I3: 7月 | J3: 8月 | K3: 9月 | L3: 10月 | M3: 11月 | N3: 12月 | O3: 月度对比 | S3: 年度对比 | T3: 年度对比 | W3: 预算对比
O4: 本月数 | P4: 上月数 | Q4: 增减额 | R4: 增减幅 | S4: 本年累计 | T4: 上年同期 | U4: 增减额 | V4: 增减幅 | W4: 本年预算 | X4: 预算进度
A5: 一 | B5: 货代业务汇总 | C5: =SUM(C6:C12) -> -24.65271227 | D5: =SUM(D6:D12) -> -50.696368 | E5: 62.14151175 | F5: 196.632813 | G5: 109.059425 | H5: 106.6526892 | I5: 107.5345877 | J5: 101.4721478 | K5: 527.7614084 | L5: 222.1872177 | M5: 0 | N5: 0 | O5: =L5 -> 222.1872177 | P5: =K5 -> 527.7614084 | Q5: =O5-P5 -> -305.5741907 | R5: =IF(ISERROR(Q5/P5),"",(Q5/ABS(P5))) -> -0.5790006351 | S5: =SUM(C5:N5) -> 1358.09272 | T5: =T6+T7+T8+T9+T10+T11+'[13]2018年附表3-各单位净利润情况表'!C10 -> 1176.464635 | U5: =S5-T5 -> 181.6280851 | V5: =IF(ISERROR(U5/T5),"",(U5/ABS(T5))) -> 0.1543846535 | W5: =SUM(W6:W12) -> 1826.20099 | X5: =IF(ISERROR(S5/W5),"",(S5/W5)) -> 0.7436710023
A6: 1-1 | B6: 货代本部 | C6: =[13]底稿净利润!B3/10000 -> 8.378219 | D6: =[13]底稿净利润!C3/10000 -> -73.858236 | E6: =[13]底稿净利润!D3/10000 -> 75.93321 | F6: =[13]底稿净利润!E3/10000 -> 216.239812 | G6: =[13]底稿净利润!F3/10000 -> 93.64389 | H6: =[13]底稿净利润!G3/10000 -> 76.018673 | I6: =[13]底稿净利润!H3/10000 -> 77.69467165 | J6: =[13]底稿净利润!I3/10000 -> 104.2698248 | K6: =[13]底稿净利润!J3/10000 -> 430.870264 | L6: =[13]底稿净利润!K3/10000 -> 58.91970567 | M6: =[13]底稿净利润!L3/10000 -> 0 | N6: =[13]底稿净利润!M3/10000 -> 0 | O6: 58.91970567 | P6: 430.870264 | Q6: -371.9505583 | R6: -0.8632541844 | S6: =SUM(C6:N6) -> 1068.110034 | T6: ='[13]2018年附表3-各单位净利润情况表'!C6 -> 979.0719939 | U6: 89.03804012 | V6: 0.09094125935 | W6: 1410.881859 | X6: =IF(ISERROR(S6/W6),"",(S6/W6)) -> 0.7570513627
A7: 1-2 | B7: 广西侨益 | C7: =[13]底稿净利润!B6/10000 -> 7.279902 | D7: =[13]底稿净利润!C6/10000 -> 18.15465 | E7: =[13]底稿净利润!D6/10000 -> 17.477613 | F7: =[13]底稿净利润!E6/10000 -> 13.588642 | G7: =[13]底稿净利润!F6/10000 -> 4.157765 | H7: =[13]底稿净利润!G6/10000 -> 8.928425 | I7: =[13]底稿净利润!H6/10000 -> 12.514248 | J7: =[13]底稿净利润!I6/10000 -> 13.392215 | K7: =[13]底稿净利润!J6/10000 -> 17.5995079 | L7: =[13]底稿净利润!K6/10000 -> 11.449068 | M7: =[13]底稿净利润!L6/10000 -> 0 | N7: =[13]底稿净利润!M6/10000 -> 0 | O7: 11.449068 | P7: 17.5995079 | Q7: -6.1504399 | R7: -0.3494665837 | S7: =SUM(C7:N7) -> 124.5420359 | T7: ='[13]2018年附表3-各单位净利润情况表'!C11 -> 108.7373503 | U7: 15.80468563 | V7: 0.1453473493 | W7: 173.001472 | X7: 0.719890036
A8: 1-3 | B8: 岳阳侨益 | C8: =[13]底稿净利润!B4/10000 -> -18.192437 | D8: =[13]底稿净利润!C4/10000 -> -20.048286 | E8: =[13]底稿净利润!D4/10000 -> -20.884436 | F8: =[13]底稿净利润!E4/10000 -> -9.137707 | G8: =[13]底稿净利润!F4/10000 -> 11.65463 | H8: =[13]底稿净利润!G4/10000 -> -19.714253 | I8: =[13]底稿净利润!H4/10000 -> 1.31904 | J8: =[13]底稿净利润!I4/10000 -> -4.442231 | K8: =[13]底稿净利润!J4/10000 -> 69.2898 | L8: =[13]底稿净利润!K4/10000 -> -9.34423 | M8: =[13]底稿净利润!L4/10000 -> 0 | N8: =[13]底稿净利润!M4/10000 -> 0 | O8: -9.34423 | P8: 69.2898 | Q8: -78.63403 | R8: -1.134857223 | S8: -19.50011 | T8: ='[13]2018年附表3-各单位净利润情况表'!C7 -> 16.095046 | U8: -35.595156 | V8: -2.211559756 | W8: 15.89 | X8: -1.227193833
A9: 1-4 | B9: 苏州侨益 | C9: =[13]底稿净利润!B7/10000 -> -0.534573 | D9: =[13]底稿净利润!C7/10000 -> -0.534573 | E9: =[13]底稿净利润!D7/10000 -> -0.534573 | F9: =[13]底稿净利润!E7/10000 -> -0.534575 | G9: =[13]底稿净利润!F7/10000 -> -1.331536 | H9: =[13]底稿净利润!G7/10000 -> -0.040177 | I9: =[13]底稿净利润!H7/10000 -> -0.776369 | J9: =[13]底稿净利润!I7/10000 -> -0.281973 | K9: =[13]底稿净利润!J7/10000 -> -0.281973 | L9: =[13]底稿净利润!K7/10000 -> -0.281972 | M9: =[13]底稿净利润!L7/10000 -> 0 | N9: =[13]底稿净利润!M7/10000 -> 0 | O9: -0.281972 | P9: -0.281973 | Q9: 1e-06 | R9: 3.546438844e-06 | S9: -5.132294 | T9: ='[13]2018年附表3-各单位净利润情况表'!C12 -> 0 | U9: -5.132294
A10: 1-5 | B10: 厦门鑫侨益 | C10: =[13]底稿净利润!B5/10000 -> -19.89077127 | D10: =[13]底稿净利润!C5/10000 -> 27.061259 | E10: =[13]底稿净利润!D5/10000 -> -5.77062825 | F10: =[13]底稿净利润!E5/10000 -> -21.368535 | G10: =[13]底稿净利润!F5/10000 -> 3.096858 | H10: =[13]底稿净利润!G5/10000 -> 43.59098425 | I10: =[13]底稿净利润!H5/10000 -> 18.208714 | J10: =[13]底稿净利润!I5/10000 -> -9.977452 | K10: =[13]底稿净利润!J5/10000 -> 11.7140455 | L10: =[13]底稿净利润!K5/10000 -> 162.8931621 | M10: =[13]底稿净利润!L5/10000 -> 0 | N10: =[13]底稿净利润!M5/10000 -> 0 | O10: 162.8931621 | P10: 11.7140455 | Q10: 151.1791166 | R10: 12.90579899 | S10: 209.5576363 | T10: ='[13]2018年附表3-各单位净利润情况表'!C8 -> 73.070245 | U10: 136.4873913 | V10: 1.867892893 | W10: 167.4723164 | X10: 1.251297174
A11: 1-6 | B11: 乌克兰 | C11: =[13]底稿净利润!B8/10000 -> -1.693052 | D11: =[13]底稿净利润!C8/10000 -> -1.471182 | E11: =[13]底稿净利润!D8/10000 -> -4.079674 | F11: =[13]底稿净利润!E8/10000 -> -2.154824 | G11: =[13]底稿净利润!F8/10000 -> -2.162182 | H11: =[13]底稿净利润!G8/10000 -> -2.130963 | I11: =[13]底稿净利润!H8/10000 -> -1.425717 | J11: =[13]底稿净利润!I8/10000 -> -1.488236 | K11: =[13]底稿净利润!J8/10000 -> -1.430236 | L11: =[13]底稿净利润!K8/10000 -> -1.448516 | M11: =[13]底稿净利润!L8/10000 -> 0 | N11: =[13]底稿净利润!M8/10000 -> 0 | O11: -1.448516 | P11: -1.430236 | Q11: -0.01828 | R11: -0.01278110745 | S11: -19.484582 | U11: -19.484582 | W11: 40.36335261 | X11: -0.4827295242
A12: 1-7 | B12: 新会项目 | O12: 0 | P12: 0 | Q12: 0 | S12: 0 | T12: ='[13]2018年附表3-各单位净利润情况表'!C12 -> 0 | U12: 0 | W12: 18.59198934
A13: 二 | B13: 仓储板块汇总 | C13: =SUM(C14:C18) -> 193.600936 | D13: =SUM(D14:D18) -> 169.340089 | E13: 206.653433 | F13: 166.4376408 | G13: 166.829529 | H13: 140.8615475 | I13: 156.9058265 | J13: 139.859157 | K13: 115.409032 | L13: 192.3289203 | M13: 0 | N13: 0 | O13: 192.3289203 | P13: 115.409032 | Q13: 76.91988825 | R13: 0.6664979934 | S13: 1648.226111 | T13: =T14+T15+T16+T17 -> 1662.659543 | U13: -14.433432 | V13: -0.008680930537 | W13: =SUM(W14:W18) -> 2352.138171 | X13: =IF(ISERROR(S13/W13),"",(S13/W13)) -> 0.7007352423
A14: 2-1 | B14: 平仓 | C14: =[13]底稿净利润!B10/10000 -> -11.303782 | D14: =[13]底稿净利润!C10/10000 -> -48.035731 | E14: =[13]底稿净利润!D10/10000 -> -36.756923 | F14: =[13]底稿净利润!E10/10000 -> -31.761518 | G14: =[13]底稿净利润!F10/10000 -> -17.651948 | H14: =[13]底稿净利润!G10/10000 -> -65.503333 | I14: =[13]底稿净利润!H10/10000 -> -31.888893 | J14: =[13]底稿净利润!I10/10000 -> -19.010734 | K14: =[13]底稿净利润!J10/10000 -> -26.900195 | L14: =[13]底稿净利润!K10/10000 -> -46.455323 | M14: =[13]底稿净利润!L10/10000 -> 0 | N14: =[13]底稿净利润!M10/10000 -> 0 | O14: -46.455323 | P14: -26.900195 | Q14: -19.555128 | R14: -0.7269511615 | S14: -335.26838 | T14: ='[13]2018年附表3-各单位净利润情况表'!C14 -> -291.940539 | U14: -43.327841 | V14: -0.148413239 | W14: 0 | X14: =IF(ISERROR(S14/W14),"",(S14/W14)) -> 
A15: 2-2 | B15: 明珠项目 | C15: =[13]底稿净利润!B11/10000 -> 244.480934 | D15: =[13]底稿净利润!C11/10000 -> 253.221111 | E15: =[13]底稿净利润!D11/10000 -> 274.543096 | F15: =[13]底稿净利润!E11/10000 -> 222.0124307 | G15: =[13]底稿净利润!F11/10000 -> 208.386351 | H15: =[13]底稿净利润!G11/10000 -> 223.9378485 | I15: =[13]底稿净利润!H11/10000 -> 214.9618165 | J15: =[13]底稿净利润!I11/10000 -> 183.934934 | K15: =[13]底稿净利润!J11/10000 -> 176.735696 | L15: =[13]底稿净利润!K11/10000 -> 224.4324633 | M15: =[13]底稿净利润!L11/10000 -> 0 | N15: =[13]底稿净利润!M11/10000 -> 0 | O15: 224.4324633 | P15: 176.735696 | Q15: 47.69676725 | R15: 0.2698762521 | S15: 2226.646681 | T15: ='[13]2018年附表3-各单位净利润情况表'!C15 -> 2157.715055 | U15: 68.931626 | V15: 0.03194658435 | W15: 2378.213596 | X15: =IF(ISERROR(S15/W15),"",(S15/W15)) -> 0.9362685862
A16: 2-3 | B16: 钢材储运 | C16: =[13]底稿净利润!B13/10000 -> -28.592221 | D16: =[13]底稿净利润!C13/10000 -> -30.662087 | E16: =[13]底稿净利润!D13/10000 -> -27.677648 | F16: =[13]底稿净利润!E13/10000 -> -18.600575 | G16: =[13]底稿净利润!F13/10000 -> -17.82211 | H16: =[13]底稿净利润!G13/10000 -> -11.024679 | I16: =[13]底稿净利润!H13/10000 -> -20.312757 | J16: =[13]底稿净利润!I13/10000 -> -19.689272 | K16: =[13]底稿净利润!J13/10000 -> -14.700431 | L16: =[13]底稿净利润!K13/10000 -> -6.288201 | M16: =[13]底稿净利润!L13/10000 -> 0 | N16: =[13]底稿净利润!M13/10000 -> 0 | O16: -6.288201 | P16: -14.700431 | S16: -195.369981 | T16: ='[13]2018年附表3-各单位净利润情况表'!C42 -> -120.802649 | U16: -74.567332 | V16: -0.6172657025 | W16: -48.661
A17: 2-4 | B17: 广西钦州 | C17: =[13]底稿净利润!B12/10000 -> -10.983995 | D17: =[13]底稿净利润!C12/10000 -> -5.183204 | E17: =[13]底稿净利润!D12/10000 -> -3.455092 | F17: =[13]底稿净利润!E12/10000 -> -5.212697 | G17: =[13]底稿净利润!F12/10000 -> -6.082764 | H17: =[13]底稿净利润!G12/10000 -> -6.548289 | I17: =[13]底稿净利润!H12/10000 -> -5.85434 | J17: =[13]底稿净利润!I12/10000 -> -5.375771 | K17: =[13]底稿净利润!J12/10000 -> -19.726038 | L17: =[13]底稿净利润!K12/10000 -> 20.639981 | M17: =[13]底稿净利润!L12/10000 -> 0 | N17: =[13]底稿净利润!M12/10000 -> 0 | O17: 20.639981 | P17: -19.726038 | Q17: 40.366019 | R17: 2.046331808 | S17: -47.782209 | T17: ='[13]2018年附表3-各单位净利润情况表'!C32 -> -82.312324 | U17: 34.530115 | V17: 0.4195011551 | W17: 0.710475 | X17: =IF(ISERROR(S17/W17),"",(S17/W17)) -> -67.25389211
A18: 2-5 | B18: 五矿仓 | O18: 0 | P18: 0 | W18: 21.8751
A19: 三 | B19: 运输业务汇总 | C19: =C20 -> 12.397521 | D19: =D20 -> 18.267996 | E19: -6.543069 | F19: -14.332245 | G19: -7.288828 | H19: -23.603365 | I19: -19.480581 | J19: 36.807186 | K19: 15.067402 | L19: 1.818157 | M19: 0 | N19: 0 | O19: 1.818157 | P19: 15.067402 | Q19: -13.249245 | R19: -0.8793317521 | S19: 13.110174 | T19: =T20 -> -76.17665863 | U19: 89.28683263 | V19: 1.172102245 | W19: =W20 -> 99.46809064 | X19: =IF(ISERROR(S19/W19),"",(S19/W19)) -> 0.1318028115
A20: 3-1 | B20: 生生物流 | C20: =[13]底稿净利润!B14/10000 -> 12.397521 | D20: =[13]底稿净利润!C14/10000 -> 18.267996 | E20: =[13]底稿净利润!D14/10000 -> -6.543069 | F20: =[13]底稿净利润!E14/10000 -> -14.332245 | G20: =[13]底稿净利润!F14/10000 -> -7.288828 | H20: =[13]底稿净利润!G14/10000 -> -23.603365 | I20: =[13]底稿净利润!H14/10000 -> -19.480581 | J20: =[13]底稿净利润!I14/10000 -> 36.807186 | K20: =[13]底稿净利润!J14/10000 -> 15.067402 | L20: =[13]底稿净利润!K14/10000 -> 1.818157 | M20: =[13]底稿净利润!L14/10000 -> 0 | N20: =[13]底稿净利润!M14/10000 -> 0 | O20: 1.818157 | P20: 15.067402 | Q20: -13.249245 | R20: -0.8793317521 | S20: 13.110174 | T20: ='[13]2018年附表3-各单位净利润情况表'!C18 -> -76.17665863 | U20: 89.28683263 | V20: 1.172102245 | W20: 99.46809064 | X20: =IF(ISERROR(S20/W20),"",(S20/W20)) -> 0.1318028115
A21: 四 | B21: 船代业务汇总 | C21: =C22+C23+C24+C25+C26+C27+C28+C29 -> 35.3899121 | D21: =D22+D23+D24+D25+D26+D27+D28+D29 -> 7.185092032 | E21: -4.298464649 | F21: 47.46388766 | G21: 39.63344094 | H21: 131.9674828 | I21: 32.60038982 | J21: 14.95391806 | K21: 64.2365431 | L21: 9.015729131 | M21: 0 | N21: 0 | O21: 9.015729131 | P21: 64.2365431 | R21: 0 | S21: 378.147931 | T21: =T22+T23+T24+T25+T26+T27+T28 -> 531.0590105 | U21: -152.9110795 | V21: -0.2879361361 | W21: =SUM(W22:W29) -> 559.0178839 | X21: =IF(ISERROR(S21/W21),"",(S21/W21)) -> 0.676450507
A22: 4-1 | B22: 广州元亨 | C22: =[13]底稿净利润!B17/10000 -> 5.035511101 | D22: =[13]底稿净利润!C17/10000 -> 21.55613803 | E22: =[13]底稿净利润!D17/10000 -> -2.563170649 | F22: =[13]底稿净利润!E17/10000 -> 3.664420657 | G22: =[13]底稿净利润!F17/10000 -> 5.345786938 | H22: =[13]底稿净利润!G17/10000 -> 138.7911758 | I22: =[13]底稿净利润!H17/10000 -> 22.46530782 | J22: =[13]底稿净利润!I17/10000 -> -5.686768942 | K22: =[13]底稿净利润!J17/10000 -> 52.0294751 | L22: =[13]底稿净利润!K17/10000 -> 66.81178513 | M22: =[13]底稿净利润!L17/10000 -> 0 | N22: =[13]底稿净利润!M17/10000 -> 0 | O22: 66.81178513 | P22: 52.0294751 | Q22: 14.78231003 | R22: 0.2841141489 | S22: 307.449661 | T22: ='[13]2018年附表3-各单位净利润情况表'!C20 -> 371.5067135 | U22: -64.05705253 | V22: -0.17242502 | W22: 478.3850185 | X22: 0.642682461
A23: 4-2 | B23: 东莞元亨 | C23: =[13]底稿净利润!B18/10000 -> 8.796403 | D23: =[13]底稿净利润!C18/10000 -> -2.983444 | E23: =[13]底稿净利润!D18/10000 -> 1.87625 | F23: =[13]底稿净利润!E18/10000 -> 6.004736 | G23: =[13]底稿净利润!F18/10000 -> 8.206461 | H23: =[13]底稿净利润!G18/10000 -> -0.664736 | I23: =[13]底稿净利润!H18/10000 -> 4.288948 | J23: =[13]底稿净利润!I18/10000 -> 0.654852 | K23: =[13]底稿净利润!J18/10000 -> 10.811481 | L23: =[13]底稿净利润!K18/10000 -> -11.201799 | M23: =[13]底稿净利润!L18/10000 -> 0 | N23: =[13]底稿净利润!M18/10000 -> 0 | O23: -11.201799 | P23: 10.811481 | Q23: -22.01328 | R23: -2.036102177 | S23: 25.789152 | T23: ='[13]2018年附表3-各单位净利润情况表'!C21 -> 79.630204 | U23: -53.841052 | V23: -0.6761385667 | W23: 33.93756 | X23: 0.7599000046
A24: 4-3 | B24: 深圳元亨 | C24: =[13]底稿净利润!B19/10000 -> 0.517394 | D24: =[13]底稿净利润!C19/10000 -> 1.992138 | E24: =[13]底稿净利润!D19/10000 -> 0.359768 | F24: =[13]底稿净利润!E19/10000 -> 0.689196 | G24: =[13]底稿净利润!F19/10000 -> 0.341358 | H24: =[13]底稿净利润!G19/10000 -> 0.144129 | I24: =[13]底稿净利润!H19/10000 -> 0.613413 | J24: =[13]底稿净利润!I19/10000 -> 0.144442 | K24: =[13]底稿净利润!J19/10000 -> 0.127002 | L24: =[13]底稿净利润!K19/10000 -> 1.294598 | M24: =[13]底稿净利润!L19/10000 -> 0 | N24: =[13]底稿净利润!M19/10000 -> 0 | O24: 1.294598 | P24: 0.127002 | Q24: 1.167596 | R24: 9.193524511 | S24: 6.223438 | T24: ='[13]2018年附表3-各单位净利润情况表'!C22 -> 6.31664 | U24: -0.093202 | V24: -0.01475499633 | W24: 7.5776 | X24: 0.8212940773
A25: 4-4 | B25: 湛江元亨 | C25: =[13]底稿净利润!B20/10000 -> 6.759148 | D25: =[13]底稿净利润!C20/10000 -> -1.577286 | E25: =[13]底稿净利润!D20/10000 -> -5.952226 | F25: =[13]底稿净利润!E20/10000 -> 25.047063 | G25: =[13]底稿净利润!F20/10000 -> -7.08411 | H25: =[13]底稿净利润!G20/10000 -> 1.736906 | I25: =[13]底稿净利润!H20/10000 -> 8.756174 | J25: =[13]底稿净利润!I20/10000 -> 19.632875 | K25: =[13]底稿净利润!J20/10000 -> -1.101096 | L25: =[13]底稿净利润!K20/10000 -> -5.905686 | M25: =[13]底稿净利润!L20/10000 -> 0 | N25: =[13]底稿净利润!M20/10000 -> 0 | O25: -5.905686 | P25: -1.101096 | Q25: -4.80459 | R25: -4.363461497 | S25: 40.311762 | T25: ='[13]2018年附表3-各单位净利润情况表'!C23 -> -3.468639 | U25: 43.780401 | V25: 12.62178076 | W25: 26.23806 | X25: 1.536385007
A26: 4-5 | B26: 广西公司 | C26: =[13]底稿净利润!B21/10000 -> 6.269504 | D26: =[13]底稿净利润!C21/10000 -> -3.915476 | E26: =[13]底稿净利润!D21/10000 -> 2.817999 | F26: =[13]底稿净利润!E21/10000 -> 9.538379 | G26: =[13]底稿净利润!F21/10000 -> 39.446666 | H26: =[13]底稿净利润!G21/10000 -> -9.465475 | I26: =[13]底稿净利润!H21/10000 -> -3.24266 | J26: =[13]底稿净利润!I21/10000 -> 1.923401 | K26: =[13]底稿净利润!J21/10000 -> 9.337388 | L26: =[13]底稿净利润!K21/10000 -> -23.446683 | M26: =[13]底稿净利润!L21/10000 -> 0 | N26: =[13]底稿净利润!M21/10000 -> 0 | O26: -23.446683 | P26: 9.337388 | Q26: -32.784071 | R26: -3.511053734 | S26: 29.263043 | T26: ='[13]2018年附表3-各单位净利润情况表'!C24 -> 5.721767 | U26: 23.541276 | V26: 4.114336708 | W26: 22.67214809 | X26: 1.290704475
A27: 4-6 | B27: 珠海元亨 | C27: =[13]底稿净利润!B22/10000 -> -1.097831 | D27: =[13]底稿净利润!C22/10000 -> -0.456674 | E27: =[13]底稿净利润!D22/10000 -> -0.97896 | F27: =[13]底稿净利润!E22/10000 -> -1.000454 | G27: =[13]底稿净利润!F22/10000 -> -0.898632 | H27: =[13]底稿净利润!G22/10000 -> -0.755579 | I27: =[13]底稿净利润!H22/10000 -> -0.301869 | J27: =[13]底稿净利润!I22/10000 -> 0.070573 | K27: =[13]底稿净利润!J22/10000 -> -0.44341 | L27: =[13]底稿净利润!K22/10000 -> -0.694709 | M27: =[13]底稿净利润!L22/10000 -> 0 | N27: =[13]底稿净利润!M22/10000 -> 0 | O27: -0.694709 | P27: -0.44341 | Q27: -0.251299 | R27: -0.5667418416 | S27: -6.557545 | T27: ='[13]2018年附表3-各单位净利润情况表'!C25 -> -11.538498 | U27: 4.980953 | V27: 0.4316812292 | W27: 0
A28: 4-7 | B28: 南通公司 | C28: =[13]底稿净利润!B24/10000 -> 9.773435 | D28: =[13]底稿净利润!C24/10000 -> -6.747652 | E28: =[13]底稿净利润!D24/10000 -> 0.805527 | F28: =[13]底稿净利润!E24/10000 -> 4.410799 | G28: =[13]底稿净利润!F24/10000 -> -4.468067 | H28: =[13]底稿净利润!G24/10000 -> 3.015809 | I28: =[13]底稿净利润!H24/10000 -> 1.356768 | J28: =[13]底稿净利润!I24/10000 -> -0.949409 | K28: =[13]底稿净利润!J24/10000 -> -4.277265 | L28: =[13]底稿净利润!K24/10000 -> -15.015233 | M28: =[13]底稿净利润!L24/10000 -> 0 | N28: =[13]底稿净利润!M24/10000 -> 0 | O28: -15.015233 | P28: -4.277265 | Q28: -10.737968 | R28: -2.510475269 | S28: -12.095288 | T28: ='[13]2018年附表3-各单位净利润情况表'!C26 -> 82.890823 | U28: -94.986111 | V28: -1.1459183 | W28: 16.02216 | X28: -0.7549099497
A29: 4-8 | B29: 茂名公司 | C29: =[13]底稿净利润!B25/10000 -> -0.663652 | D29: =[13]底稿净利润!C25/10000 -> -0.682652 | E29: =[13]底稿净利润!D25/10000 -> -0.663652 | F29: =[13]底稿净利润!E25/10000 -> -0.890252 | G29: =[13]底稿净利润!F25/10000 -> -1.256022 | H29: =[13]底稿净利润!G25/10000 -> -0.834747 | I29: =[13]底稿净利润!H25/10000 -> -1.335692 | J29: =[13]底稿净利润!I25/10000 -> -0.836047 | K29: =[13]底稿净利润!J25/10000 -> -2.247032 | L29: =[13]底稿净利润!K25/10000 -> -2.826544 | M29: =[13]底稿净利润!L25/10000 -> 0 | N29: =[13]底稿净利润!M25/10000 -> 0 | O29: -2.826544 | P29: -2.247032 | Q29: -0.579512 | R29: -0.2579010891 | S29: -12.236292 | T29: 0 | W29: -25.81466267
A30: 五 | B30: 职能部门 | C30: =C31+C32 -> -114.6041027 | D30: =D31+D32 -> -124.9133046 | E30: -262.9465573 | F30: -245.2557656 | G30: -293.759972 | H30: -164.6953682 | I30: -152.6548626 | J30: -135.945577 | K30: -159.7311138 | L30: -153.4987498 | M30: 0 | N30: 0 | O30: -153.4987498 | P30: -159.7311138 | Q30: 6.23236398 | R30: 0.03901784589 | S30: -1808.005374 | T30: =T31+T32 -> -2299.054481 | U30: 491.0491071 | V30: 0.2135874166 | W30: =SUM(W31:W32) -> -2268.545364 | X30: =IF(ISERROR(S30/W30),"",(S30/W30)) -> 0.7969888557
A31: 5-1 | B31: 股份职能部门 | C31: =[13]底稿净利润!B27/10000-C44-C47-C58 -> -87.554719 | D31: =[13]底稿净利润!C27/10000-D44-D47-D58 -> -103.8128304 | E31: =[13]底稿净利润!D27/10000-E44-E47-E58 -> -242.731114 | F31: =[13]底稿净利润!E27/10000-F44-F47-F58 -> -176.5661813 | G31: =[13]底稿净利润!F27/10000-G44-G47-G58 -> -180.849702 | H31: =[13]底稿净利润!G27/10000-H44-H47-H58 -> -137.151981 | I31: =[13]底稿净利润!H27/10000-I44-I47-I58 -> -119.8809739 | J31: =[13]底稿净利润!I27/10000-J44-J47-J58 -> -115.9784523 | K31: =[13]底稿净利润!J27/10000-K44-K47-K58 -> -141.8613172 | L31: =[13]底稿净利润!K27/10000-L44-L47-L58 -> -114.7346647 | M31: =[13]底稿净利润!L27/10000-M44-M47-M58 -> 0 | N31: =[13]底稿净利润!M27/10000-N44-N47-N58 -> 0 | O31: -114.7346647 | P31: -141.8613172 | Q31: 27.12665244 | R31: 0.1912195162 | S31: -1421.121936 | T31: ='[13]2018年附表3-各单位净利润情况表'!C28+'[13]2018年附表3-各单位净利润情况表'!C31 -> -1305.189673 | U31: -115.9322628 | V31: -0.08882407303 | W31: =-2113.545364+500 -> -1613.545364 | X31: 0.880744953
A32: 5-2 | B32: 集团总部+业务1部 | C32: =[13]底稿净利润!B29/10000-C46 -> -27.04938372 | D32: =[13]底稿净利润!C29/10000-D46 -> -21.10047423 | E32: =[13]底稿净利润!D29/10000-E46 -> -20.21544334 | F32: =[13]底稿净利润!E29/10000-F46 -> -68.68958428 | G32: =[13]底稿净利润!F29/10000-G46 -> -112.91027 | H32: =[13]底稿净利润!G29/10000-H46 -> -27.54338722 | I32: =[13]底稿净利润!H29/10000-I46 -> -32.77388877 | J32: =[13]底稿净利润!I29/10000-J46 -> -19.96712472 | K32: =[13]底稿净利润!J29/10000-K46 -> -17.8697966 | L32: =[13]底稿净利润!K29/10000-L46 -> -38.76408506 | M32: =[13]底稿净利润!L29/10000-M46 -> 0 | N32: =[13]底稿净利润!M29/10000-N46 -> 0 | O32: -38.76408506 | P32: -17.8697966 | Q32: -20.89428846 | R32: =IF(ISERROR(Q32/P32),"",(Q32/P32)) -> 1.169251611 | S32: -386.8834379 | T32: ='[13]2018年附表3-各单位净利润情况表'!C29-T46 -> -993.8648078 | U32: 606.9813699 | V32: 0.6107283054 | W32: =-500-155 -> -655 | X32: 0.5906617373
A33: 六 | B33: 惠安储备粮轮换 | C33: =C34 -> 7.164227 | D33: =D34 -> 9.861646 | E33: -18.946467 | F33: -15.160576 | G33: 31.915431 | H33: -47.573676 | I33: 12.053552 | J33: -6.802935 | K33: 0 | L33: 4.33937775 | M33: 0 | N33: 0 | O33: 4.33937775 | P33: 0 | Q33: 4.33937775 | R33: =IF(ISERROR(Q33/P33),"",(Q33/ABS(P33))) ->  | S33: -23.14942025 | T33: =T34 -> -275.0607314 | U33: 251.9113112 | V33: 0.9158388763 | W33: =W34 -> 0
A34: 6-1 | B34: 惠安储备粮轮换 | C34: =[13]底稿净利润!B33/10000 -> 7.164227 | D34: =[13]底稿净利润!C33/10000 -> 9.861646 | E34: =[13]底稿净利润!D33/10000 -> -18.946467 | F34: =[13]底稿净利润!E33/10000 -> -15.160576 | G34: =[13]底稿净利润!F33/10000 -> 31.915431 | H34: =[13]底稿净利润!G33/10000 -> -47.573676 | I34: =[13]底稿净利润!H33/10000 -> 12.053552 | J34: =[13]底稿净利润!I33/10000 -> -6.802935 | K34: =[13]底稿净利润!J33/10000 -> 0 | L34: =[13]底稿净利润!K33/10000 -> 4.33937775 | M34: =[13]底稿净利润!L33/10000 -> 0 | N34: =[13]底稿净利润!M33/10000 -> 0 | O34: 4.33937775 | P34: 0 | Q34: 4.33937775 | R34: =IF(ISERROR(Q34/P34),"",(Q34/ABS(P34))) ->  | S34: -23.14942025 | T34: ='[13]2018年附表3-各单位净利润情况表'!C30 -> -275.0607314 | U34: 251.9113112 | V34: 0.9158388763
A35: 八 | B35: 东北公司 | C35: =C36+C37+C38+C39 -> -37.456959 | D35: =D36+D37+D38+D39 -> -9.84911 | E35: 0.48211 | F35: -6.542876 | G35: -6.740037 | H35: 8.304007 | I35: 1.950052 | J35: 1.857948 | K35: -19.563323 | L35: -19.38906 | M35: 0 | N35: 0 | O35: -19.38906 | P35: -19.563323 | Q35: 0.174263 | R35: =IF(ISERROR(Q35/P35),"",(Q35/ABS(P35))) -> 0.008907638033 | S35: -86.947248 | T35: =T36+T37+T38+T39 -> 34.992602 | U35: -121.93985 | V35: -3.484732287 | W35: 227.777108 | X35: -0.3817207478
A36: 8-1 | B36: 营口侨益 | C36: =[13]底稿净利润!B38/10000 -> -1.018497 | D36: =[13]底稿净利润!C38/10000 -> 9.123145 | E36: =[13]底稿净利润!D38/10000 -> 29.409978 | F36: =[13]底稿净利润!E38/10000 -> 10.985452 | G36: =[13]底稿净利润!F38/10000 -> -0.995256 | H36: =[13]底稿净利润!G38/10000 -> 7.012712 | I36: =[13]底稿净利润!H38/10000 -> 13.32668 | J36: =[13]底稿净利润!I38/10000 -> -14.540085 | K36: =[13]底稿净利润!J38/10000 -> -9.770937 | L36: =[13]底稿净利润!K38/10000 -> -8.187096 | M36: =[13]底稿净利润!L38/10000 -> 0 | N36: =[13]底稿净利润!M38/10000 -> 0 | O36: -8.187096 | P36: -9.770937 | Q36: 1.583841 | R36: =IF(ISERROR(Q36/P36),"",(Q36/ABS(P36))) -> 0.1620971459 | S36: 35.346096 | T36: ='[13]2018年附表3-各单位净利润情况表'!C34 -> 34.992602 | U36: 0.353494 | V36: 0.01010196384 | W36: 193.183008 | X36: 0.1829668994
A37: 8-2 | B37: 营口弘港 | C37: =[13]底稿净利润!B39/10000 -> -6.812719 | D37: =[13]底稿净利润!C39/10000 -> -17.016828 | E37: =[13]底稿净利润!D39/10000 -> -5.469278 | F37: =[13]底稿净利润!E39/10000 -> -12.337076 | G37: =[13]底稿净利润!F39/10000 -> -11.204029 | H37: =[13]底稿净利润!G39/10000 -> -10.911067 | I37: =[13]底稿净利润!H39/10000 -> -12.38105 | J37: =[13]底稿净利润!I39/10000 -> 33.411585 | K37: =[13]底稿净利润!J39/10000 -> -13.094463 | L37: =[13]底稿净利润!K39/10000 -> -8.510506 | M37: =[13]底稿净利润!L39/10000 -> 0 | N37: =[13]底稿净利润!M39/10000 -> 0 | O37: -8.510506 | P37: -13.094463 | Q37: 4.583957 | R37: =IF(ISERROR(Q37/P37),"",(Q37/ABS(P37))) -> 0.3500683457 | S37: -64.325431 | T37: ='[13]2018年附表3-各单位净利润情况表'!C35 -> 0 | U37: -64.325431 | W37: 20.71254 | X37: -3.105627364
A38: 8-3 | B38: 辽宁港铁 | C38: =[13]底稿净利润!B40/10000 -> -29.744038 | D38: =[13]底稿净利润!C40/10000 -> -0.612318 | E38: =[13]底稿净利润!D40/10000 -> -23.76337 | F38: =[13]底稿净利润!E40/10000 -> -5.1433 | G38: =[13]底稿净利润!F40/10000 -> 3.277239 | H38: =[13]底稿净利润!G40/10000 -> 4.745861 | I38: =[13]底稿净利润!H40/10000 -> 2.318954 | J38: =[13]底稿净利润!I40/10000 -> -15.586026 | K38: =[13]底稿净利润!J40/10000 -> 4.143288 | L38: =[13]底稿净利润!K40/10000 -> 1.029848 | M38: =[13]底稿净利润!L40/10000 -> 0 | N38: =[13]底稿净利润!M40/10000 -> 0 | O38: 1.029848 | P38: 4.143288 | Q38: -3.11344 | R38: -0.75144185 | S38: -59.333862 | T38: ='[13]2018年附表3-各单位净利润情况表'!C36 -> 0 | U38: -59.333862 | W38: 13.88156 | X38: -4.274293523
A39: 8-4 | B39: 辽宁中侨 | C39: =[13]底稿净利润!B37/10000 -> 0.118295 | D39: =[13]底稿净利润!C37/10000 -> -1.343109 | E39: =[13]底稿净利润!D37/10000 -> 0.30478 | F39: =[13]底稿净利润!E37/10000 -> -0.047952 | G39: =[13]底稿净利润!F37/10000 -> 2.182009 | H39: =[13]底稿净利润!G37/10000 -> 7.456501 | I39: =[13]底稿净利润!H37/10000 -> -1.314532 | J39: =[13]底稿净利润!I37/10000 -> -1.427526 | K39: =[13]底稿净利润!J37/10000 -> -0.841211 | L39: =[13]底稿净利润!K37/10000 -> -3.721306 | M39: =[13]底稿净利润!L37/10000 -> 0 | N39: =[13]底稿净利润!M37/10000 -> 0 | O39: -3.721306 | P39: -0.841211 | S39: 1.365949 | U39: 1.365949
A40: 九 | B40: 美国项目 | C40: =C41 -> -170.9707517 | D40: =D41 -> -15.84578336 | E40: -25.08545083 | F40: 51.44904231 | G40: 42.88645918 | H40: 83.68736068 | I40: 97.72836325 | J40: 87.63634414 | K40: 57.75739698 | L40: 70.66316611 | M40: 0 | N40: 0 | O40: 70.66316611 | P40: 57.75739698 | Q40: 12.90576912 | R40: 0.223447901 | S40: 279.9061468 | T40: =T41 -> 349.03 | U40: -69.12385325 | V40: -0.1980455928 | W40: =W41 -> 651.2868 | X40: =IF(ISERROR(S40/W40),"",(S40/W40)) -> 0.4297740208
A41: 9-1 | B41: 美国项目 | C41: =[13]底稿净利润!B35/10000 -> -170.9707517 | D41: =[13]底稿净利润!C35/10000 -> -15.84578336 | E41: =[13]底稿净利润!D35/10000 -> -25.08545083 | F41: =[13]底稿净利润!E35/10000 -> 51.44904231 | G41: =[13]底稿净利润!F35/10000 -> 42.88645918 | H41: =[13]底稿净利润!G35/10000 -> 83.68736068 | I41: =[13]底稿净利润!H35/10000 -> 97.72836325 | J41: =[13]底稿净利润!I35/10000 -> 87.63634414 | K41: =[13]底稿净利润!J35/10000 -> 57.75739698 | L41: =[13]底稿净利润!K35/10000 -> 70.66316611 | M41: =[13]底稿净利润!L35/10000 -> 0 | N41: =[13]底稿净利润!M35/10000 -> 0 | O41: 70.66316611 | P41: 57.75739698 | Q41: 12.90576912 | R41: 0.223447901 | S41: 279.9061468 | T41: 349.03 | U41: -69.12385325 | V41: -0.1980455928 | W41: 651.2868 | X41: 0.4297740208
A42: 十 | B42: 珠海侨益 | C42: =C43 -> -0.231452 | D42: =D43 -> -0.171452 | E42: -0.290679 | F42: -0.219904 | G42: -0.384784 | H42: -0.16952 | I42: -1.834094 | J42: -0.176169 | K42: -0.17902 | L42: -0.158169 | M42: 0 | N42: 0 | O42: -0.158169 | P42: -0.17902 | Q42: 0.020851 | R42: 0.1164730198 | S42: -3.815243 | T42: =T43 -> -0.510932 | U42: -3.304311 | V42: -6.467222644
A43: 10-1 | B43: 珠海侨益 | C43: =[13]底稿净利润!B23/10000 -> -0.231452 | D43: =[13]底稿净利润!C23/10000 -> -0.171452 | E43: =[13]底稿净利润!D23/10000 -> -0.290679 | F43: =[13]底稿净利润!E23/10000 -> -0.219904 | G43: =[13]底稿净利润!F23/10000 -> -0.384784 | H43: =[13]底稿净利润!G23/10000 -> -0.16952 | I43: =[13]底稿净利润!H23/10000 -> -1.834094 | J43: =[13]底稿净利润!I23/10000 -> -0.176169 | K43: =[13]底稿净利润!J23/10000 -> -0.17902 | L43: =[13]底稿净利润!K23/10000 -> -0.158169 | M43: =[13]底稿净利润!L23/10000 -> 0 | N43: =[13]底稿净利润!M23/10000 -> 0 | O43: -0.158169 | P43: -0.17902 | Q43: 0.020851 | R43: 0.1164730198 | S43: -3.815243 | T43: ='[13]2018年附表3-各单位净利润情况表'!C43 -> -0.510932 | U43: -3.304311 | V43: -6.467222644
A44: 十一 | B44: 补贴损益 | C44: ='[14]损益表（高新补贴）'!E21/10000+'[15]损益表（高新补贴）'!E21/10000 -> -2.272294 | D44: ='[14]损益表（高新补贴）'!F21/10000+'[15]损益表（高新补贴）'!F21/10000 -> -4.960368 | E44: ='[14]损益表（高新补贴）'!G21/10000+'[15]损益表（高新补贴）'!G21/10000 -> 9.55612 | F44: ='[14]损益表（高新补贴）'!H21/10000+'[15]损益表（高新补贴）'!H21/10000 -> -0.770055 | G44: ='[14]损益表（高新补贴）'!I21/10000+'[15]损益表（高新补贴）'!I21/10000 -> 93.543889 | H44: ='[14]损益表（高新补贴）'!J21/10000+'[15]损益表（高新补贴）'!J21/10000 -> -16.628211 | I44: ='[14]损益表（高新补贴）'!K21/10000+'[15]损益表（高新补贴）'!K21/10000 -> -0.553848 | J44: ='[14]损益表（高新补贴）'!L21/10000+'[15]损益表（高新补贴）'!L21/10000 -> -1.123411 | K44: ='[14]损益表（高新补贴）'!M21/10000+'[15]损益表（高新补贴）'!M21/10000 -> -0.698411 | L44: ='[14]损益表（高新补贴）'!N21/10000+'[15]损益表（高新补贴）'!N21/10000 -> -4.941032 | M44: ='[14]损益表（高新补贴）'!O21/10000+'[15]损益表（高新补贴）'!O21/10000 -> 0 | N44: ='[14]损益表（高新补贴）'!P21/10000+'[15]损益表（高新补贴）'!P21/10000 -> 0 | O44: -4.941032 | P44: -0.698411 | Q44: -4.242621 | R44: -6.074676659 | S44: 71.152379 | T44: ='[13]2018年附表3-各单位净利润情况表'!C37 -> 154.826596 | U44: -83.674217 | V44: -0.5404382655 | W44: 105 | X44: 0.6776417048
A45: 十二 | B45: 总部财务费用 | C45: -12.586 | D45: -16.752667 | E45: -16.135583 | F45: -17.471083 | G45: -20.46 | H45: -24.490333 | I45: -24.267264 | J45: -6.458333 | K45: -19.869501 | L45: -26.024178 | O45: -26.024178 | P45: -19.869501 | Q45: -6.154677 | R45: -0.3097549858 | S45: -184.514942 | T45: ='[13]2018年附表3-各单位净利润情况表'!C38 -> -208.65946 | U45: 24.144518 | V45: 0.1157125491 | W45: -434.57 | X45: 0.4245919921
A46: 十三 | B46: 集团财务费用 | C46: ='[15]损益表 (财务费用'!E21/10000 -> -12 | D46: ='[15]损益表 (财务费用'!F21/10000 -> -11.5 | E46: ='[15]损益表 (财务费用'!G21/10000 -> -11.5 | F46: ='[15]损益表 (财务费用'!H21/10000 -> -12.614521 | G46: ='[15]损益表 (财务费用'!I21/10000 -> -11.5 | H46: ='[15]损益表 (财务费用'!J21/10000 -> -105.83962 | I46: ='[15]损益表 (财务费用'!K21/10000 -> -109.57962 | J46: ='[15]损益表 (财务费用'!L21/10000 -> -13 | K46: ='[15]损益表 (财务费用'!M21/10000 -> -33.044444 | L46: ='[15]损益表 (财务费用'!N21/10000 -> -33.5 | M46: ='[15]损益表 (财务费用'!O21/10000 -> 0 | N46: ='[15]损益表 (财务费用'!P21/10000 -> 0 | O46: -33.5 | P46: -33.044444 | Q46: -0.455556 | R46: -0.01378616024 | S46: -354.078205 | T46: 358.13 | U46: -712.208205 | V46: -1.988686245 | W46: -155 | X46: 2.284375516
A47: 十四 | B47: IPO | C47: ='[14]损益表 (IPO)'!E21/10000 -> -0.0034 | D47: ='[14]损益表 (IPO)'!F21/10000 -> -0.0034 | E47: ='[14]损益表 (IPO)'!G21/10000 -> -0.02124 | F47: ='[14]损益表 (IPO)'!H21/10000 -> -0.0034 | G47: ='[14]损益表 (IPO)'!I21/10000 -> -0.0034 | H47: ='[14]损益表 (IPO)'!J21/10000 -> -0.003445 | I47: ='[14]损益表 (IPO)'!K21/10000 -> -0.0041 | J47: ='[14]损益表 (IPO)'!L21/10000 -> -0.0041 | K47: ='[14]损益表 (IPO)'!M21/10000 -> -0.003907 | L47: ='[14]损益表 (IPO)'!N21/10000 -> -0.0039 | M47: ='[14]损益表 (IPO)'!O21/10000 -> 0 | N47: ='[14]损益表 (IPO)'!P21/10000 -> 0 | O47: =L47 -> -0.0039 | P47: -0.003907 | Q47: 7e-06 | R47: 0.001791656002 | S47: -0.054292 | T47: ='[13]2018年附表3-各单位净利润情况表'!C39 -> 3.595671 | U47: -3.649963 | V47: -1.015099268
A48: N | B48: 股份汇总 | C48: =C5+C13+C19+C21+C31+C33+C35+C40+C42+C44+C45+C47-C39 -> -87.29398688 | D48: =D5+D13+D19+D21+D31+D33+D35+D40+D42+D44+D45+D47-D39 -> 3.905953274 | E48: -35.52367273 | F48: 230.9650154 | G48: 265.9594141 | H48: 214.3960552 | I48: 244.0664424 | J48: 253.4708267 | K48: 598.8975143 | L48: 338.8228703 | M48: 0 | N48: 0 | O48: 338.8228703 | P48: 598.8975143 | Q48: -260.0746441 | R48: -0.4342556745 | S48: 2027.666432 | T48: ='[13]2018年附表3-各单位净利润情况表'!C67 -> 2205.580405 | U48: -177.9139726 | V48: -0.08066537599 | W48: 3927.79269 | X48: 0.5162356041
A49: 十五 | B49: 侨益湖广 | C49: =[13]底稿净利润!B31/10000 -> 0 | D49: =[13]底稿净利润!C31/10000 -> -0.03 | E49: =[13]底稿净利润!D31/10000 -> -0.026791 | F49: =[13]底稿净利润!E31/10000 -> 0 | G49: =[13]底稿净利润!F31/10000 -> 0 | H49: =[13]底稿净利润!G31/10000 -> 0.013466 | I49: =[13]底稿净利润!H31/10000 -> 0 | J49: =[13]底稿净利润!I31/10000 -> 0 | K49: =[13]底稿净利润!J31/10000 -> 0.013477 | L49: =[13]底稿净利润!K31/10000 -> 0 | M49: =[13]底稿净利润!L31/10000 -> 0 | N49: =[13]底稿净利润!M31/10000 -> 0 | O49: 0 | P49: 0.013477 | Q49: -0.013477 | R49: -1 | S49: -0.029848 | T49: ='[13]2018年附表3-各单位净利润情况表'!C71 -> -0.007346 | U49: -0.022502 | V49: -3.063163626
A50: 十六 | B50: 租船业务 | O50: 0 | P50: 0 | Q50: 0 | S50: 0 | T50: ='[13]2018年附表3-各单位净利润情况表'!C72 -> -1.269047103 | U50: 1.269047103 | V50: 1 | W50: 15.584 | X50: 0
A51: 十七 | B51: 公尺 | C51: =[13]底稿净利润!B42/10000 -> -0.075156 | D51: =[13]底稿净利润!C42/10000 -> -3.03002 | E51: =[13]底稿净利润!D42/10000 -> 1.116197 | F51: =[13]底稿净利润!E42/10000 -> 4.46184 | G51: =[13]底稿净利润!F42/10000 -> 1.655064 | H51: =[13]底稿净利润!G42/10000 -> 4.751498 | I51: =[13]底稿净利润!H42/10000 -> 8.601918 | J51: =[13]底稿净利润!I42/10000 -> 2.518088 | K51: =[13]底稿净利润!J42/10000 -> 0.665669 | L51: =[13]底稿净利润!K42/10000 -> 4.819608 | M51: =[13]底稿净利润!L42/10000 -> 0 | N51: =[13]底稿净利润!M42/10000 -> 0 | O51: 4.819608 | P51: 0.665669 | Q51: 4.153939 | R51: 6.24024703 | S51: 25.484706 | T51: ='[13]2018年附表3-各单位净利润情况表'!C73 -> 16.139278 | U51: 9.345428 | V51: 0.5790487034
A52: 十八 | B52: 侨益嘉华 | C52: =[13]底稿净利润!B44/10000 -> 0 | D52: =[13]底稿净利润!C44/10000 -> 0 | E52: =[13]底稿净利润!D44/10000 -> 0 | F52: =[13]底稿净利润!E44/10000 -> 0 | G52: =[13]底稿净利润!F44/10000 -> -1.497828 | H52: =[13]底稿净利润!G44/10000 -> -7.714966 | I52: =[13]底稿净利润!H44/10000 -> 20.128539 | J52: =[13]底稿净利润!I44/10000 -> 4.626937 | K52: =[13]底稿净利润!J44/10000 -> 14.788187 | L52: =[13]底稿净利润!K44/10000 -> -1.064434 | M52: =[13]底稿净利润!L44/10000 -> 0 | N52: =[13]底稿净利润!M44/10000 -> 0 | O52: -1.064434 | P52: 14.788187 | Q52: -15.852621 | R52: -1.071978668 | S52: 29.266435 | T52: 0 | U52: 29.266435
A53: N | B53: 集团汇总 | C53: =C48+C49+C32+C39+C51+C52+C46 -> -126.3002316 | D53: =D48+D49+D32+D39+D51+D52+D46 -> -33.09764996 | E53: -65.84493007 | F53: 154.0747981 | G53: 143.8883891 | H53: 85.51954702 | I53: 129.1288586 | J53: 226.221201 | K53: 562.6093957 | L53: 266.5926532 | M53: 0 | N53: 0 | O53: 266.5926532 | P53: 562.6093957 | Q53: -296.0167425 | R53: =IF(ISERROR(Q53/P53),"",(Q53/P53)) -> -0.5261496604 | S53: 1342.792031 | T53: ='[13]2018年附表3-各单位净利润情况表'!C74-T51 -> 1457.434452 | U53: -114.6424209 | V53: -0.07866043014 | W53: 3288.37669 | X53: =IF(ISERROR(S53/W53),"",(S53/W53)) -> 0.4083449549
C56: 10000
B57: 储备粮财务费用 | H57: -18.032 | I57: -17.949245 | J57: 0 | K57: 0 | L57: -17.357511
B58: 总部财务费用 | C58: -12.586 | D58: -16.752667 | E58: -16.135583 | F58: -17.471083 | G58: -20.46 | H58: -6.458333 | I58: -6.318019 | J58: -6.458333 | K58: -19.869501 | L58: -8.666667
B59: 合计 | C59: =C58+C57 -> -12.586 | D59: =D58+D57 -> -16.752667 | E59: -16.135583 | F59: -17.471083 | G59: -20.46 | H59: -24.490333 | I59: -24.267264 | J59: -6.458333 | K59: -19.869501 | L59: -26.024178

Sheet 附表4-各单位总支出情况表 (hidden)
A1: 附表4：2019年10月份各公司费用表
Q2: =IF(ISERROR(H2/P2),"",(H2/P2)) ->  | U2: =IF(ISERROR(L2/T2),"",(L2/T2)) -> 
A3: 编制单位:侨益集团有限公司 | B3: 编制单位：侨益集团有限公司 | Q3: =IF(ISERROR(H3/P3),"",(H3/P3)) ->  | U3: =IF(ISERROR(L3/T3),"",(L3/T3)) ->  | Y3: 单位：万元
B5: 各事业部单位名称 | P5: 月度对比 | T5: 年度对比 | X5: 预算对比
C6: 1月 | D6: 2月 | E6: 3月 | F6: 4月 | G6: 5月 | H6: 6月 | I6: 7月 | J6: 8月 | K6: 9月 | L6: 10月 | M6: 11月 | N6: 12月 | O6: 总计 | P6: 本月数 | Q6: 上月数 | R6: 增减变动 | S6: 增减幅 | T6: 本年累计 | U6: 上年同期 | V6: 增减变动 | W6: 增减幅 | X6: 本年预算 | Y6: 预算进度 | Z6: 单位名称
B7: 01货代事业部管理损益表 | C7: =C8+C24+C40+C88+C56+C72+C104+C120+C136+C152 -> 167.4347211 | D7: =D8+D24+D40+D88+D56+D72+D104+D120+D136+D152 -> 143.295523 | E7: 145.985745 | F7: 180.788459 | G7: 156.530033 | H7: 144.973049 | I7: 168.920827 | J7: 170.062336 | K7: 204.1349442 | L7: 201.112316 | M7: 0 | N7: 0 | O7: =SUM(C7:N7) -> 1683.237953 | P7: =L7 -> 201.112316 | Q7: =K7 -> 204.1349442 | R7: =P7-Q7 -> -3.022628197 | S7: =IF(ISERROR(R7/Q7),"",(R7/ABS(Q7))) -> -0.01480701018 | T7: =SUM(C7:N7) -> 1683.237953 | U7: =U8+U24+U40+U88+U56+U72+U104 -> 1595.400462 | V7: =T7-U7 -> 87.83749133 | W7: =IF(ISERROR(V7/U7),"",(V7/ABS(U7))) -> 0.05505670421 | X7: =X8+X24+X40+X88+X56+X72+X104 -> 2425.19583 | Y7: =IF(ISERROR(T7/X7),"",(T7/X7)) -> 0.694062695 | Z7: 01货代事业部管理损益表
B8: 01侨益物流管理损益表（总表） | C8: =SUM(C9,C12:C23) -> 101.503836 | D8: =SUM(D9,D12:D23) -> 91.32222 | E8: 90.659465 | F8: 131.141351 | G8: 100.240409 | H8: 98.614185 | I8: 104.435836 | J8: 111.757361 | K8: 146.859346 | L8: 112.901707 | M8: 0 | N8: 0 | O8: =SUM(C8:N8) -> 1089.435716 | P8: 112.901707 | Q8: 146.859346 | R8: -33.957639 | S8: -0.2312255905 | T8: =SUM(C8:N8) -> 1089.435716 | U8: =SUM(U9,U12:U23) -> 1058.982426 | V8: 30.45329 | W8: 0.028757125 | X8: =SUM(X9,X12:X23) -> 1495.101157 | Y8: =IF(ISERROR(T8/X8),"",(T8/X8)) -> 0.728670238 | Z8: 01侨益物流管理损益表（总表）
B9: 02B职工薪酬 | C9: 65.006924 | D9: 62.747523 | E9: 59.294439 | F9: 85.756913 | G9: 70.828175 | H9: 71.063632 | I9: 79.463664 | J9: 81.024273 | K9: 111.557286 | L9: 75.221412 | M9: 0 | N9: 0 | O9: 761.964241 | P9: 75.221412 | Q9: 111.557286 | R9: -36.335874 | S9: -0.3257149336 | T9: 761.964241 | U9: 718.488103 | V9: 43.476138 | W9: 0.06051058858 | X9: 1033.631084 | Y9: 0.7371723364 | Z9: 02侨益物流管理损益表（总表）
B10: 03B其中：工资 | C10: 52.049792 | D10: 50.965872 | E10: 47.225552 | F10: 48.275574 | G10: 52.751076 | H10: 50.977479 | I10: 57.48013 | J10: 55.092917 | K10: 54.2867 | L10: 59.412224 | M10: 0 | N10: 0 | O10: 528.517316 | P10: 59.412224 | Q10: 54.2867 | R10: 5.125524 | S10: 0.09441583298 | T10: 528.517316 | U10: 509.813025 | V10: 18.704291 | W10: 0.03668853106 | X10: 656.9453078 | Y10: 0.8045073307 | Z10: 03侨益物流管理损益表（总表）
B11: 04B 奖金 | C11: 0 | D11: 0.070976 | E11: 0.545736 | F11: 24.370351 | G11: 7.187492 | H11: 8.719864 | I11: 8.087969 | J11: 11.937658 | K11: 44.603183 | L11: 2.322063 | M11: 0 | N11: 0 | O11: 107.845292 | P11: 2.322063 | Q11: 44.603183 | R11: -42.28112 | S11: -0.9479395226 | T11: 107.845292 | U11: 87.335453 | V11: 20.509839 | W11: 0.2348397849 | X11: 142.0879 | Y11: 0.7590040531 | Z11: 04侨益物流管理损益表（总表）
B12: 05B车辆费/汽车费用 | C12: 0.440095 | D12: 1.94654 | E12: 2.609797 | F12: 4.1295 | G12: 2.173147 | H12: 4.159119 | I12: 3.149805 | J12: 1.891863 | K12: 1.958326 | L12: 7.770534 | M12: 0 | N12: 0 | O12: 30.228726 | P12: 7.770534 | Q12: 1.958326 | R12: 5.812208 | S12: 2.967947114 | T12: 30.228726 | U12: 44.316492 | V12: -14.087766 | W12: -0.3178899178 | X12: 64.07 | Y12: 0.471807804 | Z12: 05侨益物流管理损益表（总表）
B13: 06B招待费 | C13: 22.46548 | D13: 14.24183 | E13: 13.078009 | F13: 19.681114 | G13: 12.31839 | H13: 7.2567 | I13: 5.59084 | J13: 14.591781 | K13: 17.91712 | L13: 18.0676 | M13: 0 | N13: 0 | O13: 145.208864 | P13: 18.0676 | Q13: 17.91712 | R13: 0.15048 | S13: 0.008398671215 | T13: 145.208864 | U13: 130.821882 | V13: 14.386982 | W13: 0.1099738192 | X13: 157.101142 | Y13: 0.9243017724 | Z13: 06侨益物流管理损益表（总表）
B14: 07B差旅费 | C14: 0.6032 | D14: 1.097836 | E14: 4.287188 | F14: 3.426788 | G14: 2.796695 | H14: 1.862336 | I14: 3.48447 | J14: 3.218395 | K14: 3.553056 | L14: 1.94257 | M14: 0 | N14: 0 | O14: 26.272534 | P14: 1.94257 | Q14: 3.553056 | R14: -1.610486 | S14: -0.4532678348 | T14: 26.272534 | U14: 33.094712 | V14: -6.822178 | W14: -0.2061410294 | X14: 66.246755 | Y14: 0.3965859762 | Z14: 07侨益物流管理损益表（总表）
B15: 08B办公费（含市内交通） | C15: 9.001007 | D15: 7.329399 | E15: 7.801595 | F15: 6.621312 | G15: 9.385264 | H15: 8.664361 | I15: 9.716616 | J15: 8.377568 | K15: 8.964165 | L15: 7.413482 | M15: 0 | N15: 0 | O15: 83.274769 | P15: 7.413482 | Q15: 8.964165 | R15: -1.550683 | S15: -0.1729868872 | T15: 83.274769 | U15: 76.143403 | V15: 7.131366 | W15: 0.09365704341 | X15: 105.7510327 | Y15: 0.7874605749 | Z15: 08侨益物流管理损益表（总表）
B16: 09B通讯费 | C16: 0.390977 | D16: 0.362933 | E16: 0.164241 | F16: 0.791552 | G16: 0.392413 | H16: 0.374734 | I16: 0.375374 | J16: 0.384967 | K16: 0.377822 | L16: 0.374048 | M16: 0 | N16: 0 | O16: 3.989061 | P16: 0.374048 | Q16: 0.377822 | R16: -0.003774 | S16: -0.009988830719 | T16: 3.989061 | U16: 4.664125 | V16: -0.675064 | W16: -0.1447354005 | X16: 5.728442667 | Y16: 0.6963604652 | Z16: 09侨益物流管理损益表（总表）
B17: 10B折销费 | C17: 3.596153 | D17: 3.596159 | E17: 3.424196 | F17: 2.979912 | G17: 2.346325 | H17: 2.315427 | I17: 2.315467 | J17: 2.268514 | K17: 2.240309 | L17: 2.112061 | M17: 0 | N17: 0 | O17: 27.194523 | P17: 2.112061 | Q17: 2.240309 | R17: -0.128248 | S17: -0.05724567459 | T17: 27.194523 | U17: 36.686628 | V17: -9.492105 | W17: -0.2587347357 | X17: 31.372701 | Y17: 0.8668212214 | Z17: 10侨益物流管理损益表（总表）
B18: 11B外包装卸费 | C18: 0 | D18: 0 | E18: 0 | F18: 0 | G18: 0 | H18: 0 | I18: 0 | J18: 0 | K18: 0 | L18: 0 | M18: 0 | N18: 0 | O18: 0 | P18: 0 | Q18: 0 | R18: 0 | T18: 0 | U18: 0 | V18: 0 | Z18: 11侨益物流管理损益表（总表）
B19: 12B保险费 | C19: 0 | D19: 0 | E19: 0 | F19: 0 | G19: 0 | H19: 0 | I19: 0 | J19: 0 | K19: 0 | L19: 0 | M19: 0 | N19: 0 | O19: 0 | P19: 0 | Q19: 0 | R19: 0 | T19: 0 | U19: 0 | V19: 0 | Z19: 12侨益物流管理损益表（总表）
B20: 13B企业宣传费 | C20: 0 | D20: 0 | E20: 0 | F20: 0 | G20: 0 | H20: 0 | I20: 0 | J20: 0 | K20: 0 | L20: 0 | M20: 0 | N20: 0 | O20: 0 | P20: 0 | Q20: 0 | R20: 0 | T20: 0 | U20: 0 | V20: 0 | X20: 0 | Z20: 13侨益物流管理损益表（总表）
B21: 14B专项费用 | C21: 0 | D21: 0 | E21: 0 | F21: 7.75426 | G21: 0 | H21: 2.917876 | I21: 0 | J21: 0 | K21: 0 | L21: 0 | M21: 0 | N21: 0 | O21: 10.672136 | P21: 0 | Q21: 0 | R21: 0 | T21: 10.672136 | U21: 14.670583 | V21: -3.998447 | W21: -0.2725486097 | X21: 15 | Y21: 0.7114757333 | Z21: 14侨益物流管理损益表（总表）
B22: 15B残疾人就业保障金 | C22: 0 | D22: 0 | E22: 0 | F22: 0 | G22: 0 | H22: 0 | I22: 0 | J22: 0 | K22: 0 | L22: 0 | M22: 0 | N22: 0 | O22: 0 | P22: 0 | Q22: 0 | R22: 0 | T22: 0 | U22: 0.096498 | V22: -0.096498 | W22: -1 | X22: 16.2 | Y22: 0 | Z22: 15侨益物流管理损益表（总表）
B23: 16B其 他 | C23: 0 | D23: 0 | E23: 0 | F23: 0 | G23: 0 | H23: 0 | I23: 0.3396 | J23: 0 | K23: 0.291262 | L23: 0 | M23: 0 | N23: 0 | O23: 0.630862 | P23: 0 | Q23: 0.291262 | R23: -0.291262 | S23: -1 | T23: 0.630862 | U23: 0 | V23: 0.630862 | X23: 0 | Z23: 16侨益物流管理损益表（总表）
B24: 02岳阳物流管理损益表（总表） | C24: =SUM(C25,C28:C39) -> 8.730742 | D24: =SUM(D25,D28:D39) -> 8.072584 | E24: 10.025396 | F24: 9.140013 | G24: 8.778045 | H24: 11.456239 | I24: 12.101325 | J24: 8.501512 | K24: 7.574864 | L24: 1.702857 | M24: 0 | N24: 0 | O24: 86.083577 | P24: 1.702857 | Q24: 7.574864 | R24: -5.872007 | S24: -0.77519636 | T24: 86.083577 | U24: =SUM(U25:U39)-U26-U27 -> 124.43155 | V24: -38.347973 | W24: -0.3081852874 | X24: =SUM(X25,X28:X39) -> 158.3355 | Y24: 0.5436783097 | Z24: 02岳阳物流管理损益表（总表）
B25: 02B职工薪酬 | C25: 6.32489 | D25: 6.422928 | E25: 6.3955 | F25: 7.127097 | G25: 6.204959 | H25: 5.665781 | I25: 6.697019 | J25: 6.432591 | K25: 5.546058 | L25: 6.131331 | M25: 0 | N25: 0 | O25: 62.948154 | P25: 6.131331 | Q25: 5.546058 | R25: 0.585273 | S25: 0.1055295491 | T25: 62.948154 | U25: 88.349312 | V25: -25.401158 | W25: -0.2875082717 | X25: 118.627 | Y25: 0.5306393485 | Z25: 03岳阳物流管理损益表（总表）
B26: 03B其中：工资 | C26: 4.8156 | D26: 4.9228 | E26: 4.962838 | F26: 5.156617 | G26: 4.976864 | H26: 4.415115 | I26: 5.402003 | J26: 5.103562 | K26: 4.107538 | L26: 4.975259 | M26: 0 | N26: 0 | O26: 48.838196 | P26: 4.975259 | Q26: 4.107538 | R26: 0.867721 | S26: 0.2112508758 | T26: 48.838196 | U26: 53.848603 | V26: -5.010407 | W26: -0.09304618358 | X26: 73.727828 | Y26: 0.6624119729 | Z26: 04岳阳物流管理损益表（总表）
B27: 04B 奖金 | C27: 0 | D27: 0 | E27: 0 | F27: 0 | G27: 0 | H27: 0 | I27: 0 | J27: 0 | K27: 0 | L27: 0 | M27: 0 | N27: 0 | O27: 0 | P27: 0 | Q27: 0 | R27: 0 | T27: 0 | U27: 13.938109 | V27: -13.938109 | W27: -1 | X27: 15.336 | Y27: 0 | Z27: 05岳阳物流管理损益表（总表）
B28: 05B车辆费/汽车费用 | C28: 0.3845 | D28: 0.401387 | E28: 0.3 | F28: 0 | G28: 0.3 | H28: 0.618433 | I28: 3.92464 | J28: 0.61328 | K28: 0.072 | L28: -3.600073 | M28: 0 | N28: 0 | O28: 3.014167 | P28: -3.600073 | Q28: 0.072 | R28: -3.672073 | S28: -51.00101389 | T28: 3.014167 | U28: 5.938755 | V28: -2.924588 | W28: -0.4924580994 | X28: 6.7 | Y28: 0.4498756716 | Z28: 06岳阳物流管理损益表（总表）
B29: 06B招待费 | C29: 0.06 | D29: 0.2849 | E29: 0.5424 | F29: 0.059 | G29: 0.6259 | H29: 0.8781 | I29: 0 | J29: 0.15 | K29: 0.2188 | L29: -0.064736 | M29: 0 | N29: 0 | O29: 2.754364 | P29: -0.064736 | Q29: 0.2188 | R29: -0.283536 | S29: -1.295868373 | T29: 2.754364 | U29: 4.740648 | V29: -1.986284 | W29: -0.4189899777 | X29: 7.973 | Y29: 0.3454614323 | Z29: 07岳阳物流管理损益表（总表）
B30: 07B差旅费 | C30: 0.1701 | D30: 0 | E30: 0.423362 | F30: 0.1494 | G30: 0.090726 | H30: 1.372169 | I30: 0.1512 | J30: -0.010631 | K30: 0 | L30: 0.125432 | M30: 0 | N30: 0 | O30: 2.471758 | P30: 0.125432 | Q30: 0 | R30: 0.125432 | T30: 2.471758 | U30: 2.813689 | V30: -0.341931 | W30: -0.1215240917 | X30: 3.6755 | Y30: 0.6724957149 | Z30: 08岳阳物流管理损益表（总表）
B31: 08B办公费（含市内交通） | C31: 0.67367 | D31: 0.178576 | E31: 1.297445 | F31: 0.723 | G31: 0.461199 | H31: 1.666499 | I31: 0.372054 | J31: 0.35986 | K31: 0.781594 | L31: -1.845509 | M31: 0 | N31: 0 | O31: 4.668388 | P31: -1.845509 | Q31: 0.781594 | R31: -2.627103 | S31: -3.361211831 | T31: 4.668388 | U31: 8.831409 | V31: -4.163021 | W31: -0.4713880877 | X31: 6.84 | Y31: 0.6825128655 | Z31: 09岳阳物流管理损益表（总表）
B32: 09B通讯费 | C32: 0.16511 | D32: -0.173 | E32: 0 | F32: 0 | G32: 0 | H32: 0.13032 | I32: 0 | J32: 0 | K32: 0 | L32: 0 | M32: 0 | N32: 0 | O32: 0.12243 | P32: 0 | Q32: 0 | R32: 0 | T32: 0.12243 | U32: 0.042 | V32: 0.08043 | W32: 1.915 | X32: 0 | Z32: 10岳阳物流管理损益表（总表）
B33: 10B折销费 | C33: 0.850629 | D33: 0.850629 | E33: 0.956412 | F33: 0.956412 | G33: 0.956412 | H33: 0.956412 | I33: 0.956412 | J33: 0.956412 | K33: 0.956412 | L33: 0.956412 | M33: 0 | N33: 0 | O33: 9.352554 | P33: 0.956412 | Q33: 0.956412 | R33: 0 | S33: 0 | T33: 9.352554 | U33: 11.265477 | V33: -1.912923 | W33: -0.169803995 | X33: 12.228 | Y33: 0.7648473994 | Z33: 11岳阳物流管理损益表（总表）
B34: 11B外包装卸费 | C34: 0 | D34: 0 | E34: 0 | F34: 0 | G34: 0 | H34: 0 | I34: 0 | J34: 0 | K34: 0 | L34: 0 | M34: 0 | N34: 0 | O34: 0 | P34: 0 | Q34: 0 | R34: 0 | T34: 0 | U34: 0 | V34: 0 | Z34: 12岳阳物流管理损益表（总表）
B35: 12B保险费 | C35: 0 | D35: 0 | E35: 0 | F35: 0 | G35: 0 | H35: 0 | I35: 0 | J35: 0 | K35: 0 | L35: 0 | M35: 0 | N35: 0 | O35: 0 | P35: 0 | Q35: 0 | R35: 0 | T35: 0 | U35: 0 | V35: 0 | Z35: 13岳阳物流管理损益表（总表）
B36: 13B企业宣传费 | C36: 0 | D36: 0 | E36: 0 | F36: 0 | G36: 0 | H36: 0 | I36: 0 | J36: 0 | K36: 0 | L36: 0 | M36: 0 | N36: 0 | O36: 0 | P36: 0 | Q36: 0 | R36: 0 | T36: 0 | U36: 0 | V36: 0 | X36: 0 | Z36: 14岳阳物流管理损益表（总表）
B37: 14B专项费用 | C37: 0 | D37: 0 | E37: 0 | F37: 0 | G37: 0 | H37: 0 | I37: 0 | J37: 0 | K37: 0 | L37: 0 | M37: 0 | N37: 0 | O37: 0 | P37: 0 | Q37: 0 | R37: 0 | T37: 0 | U37: 1.207767 | V37: -1.207767 | W37: -1 | X37: 0.804 | Y37: 0 | Z37: 15岳阳物流管理损益表（总表）
B38: 15B残疾人就业保障金 | C38: 0.101843 | D38: 0.107164 | E38: 0.110277 | F38: 0.125104 | G38: 0.138849 | H38: 0.168525 | I38: 0 | J38: 0 | K38: 0 | L38: 0 | M38: 0 | N38: 0 | O38: 0.751762 | P38: 0 | Q38: 0 | R38: 0 | T38: 0.751762 | U38: 1.242493 | V38: -0.490731 | W38: -0.3949567523 | X38: 1.488 | Y38: 0.5052163978 | Z38: 16岳阳物流管理损益表（总表）
B39: 16B其 他 | C39: 0 | D39: 0 | E39: 0 | F39: 0 | G39: 0 | H39: 0 | I39: 0 | J39: 0 | K39: 0 | L39: 0 | M39: 0 | N39: 0 | O39: 0 | P39: 0 | Q39: 0 | R39: 0 | T39: =SUM(C39:N39) -> 0 | U39: 0 | V39: 0 | X39: 0 | Z39: 17岳阳物流管理损益表（总表）
B40: 03厦门鑫侨益管理损益表（总表） | C40: =SUM(C41,C44:C55) -> 45.61108813 | D40: =SUM(D41,D44:D55) -> 30.450631 | E40: 26.16084 | F40: 27.586609 | G40: 34.473013 | H40: 22.663268 | I40: 38.662676 | J40: 30.761112 | K40: 36.4940432 | L40: 73.841472 | M40: 0 | N40: 0 | O40: 366.7047523 | P40: 73.841472 | Q40: 36.4940432 | R40: 37.3474288 | S40: 1.023384244 | T40: 366.7047523 | U40: =SUM(U41:U55)-U42-U43 -> 306.402029 | V40: 60.30272333 | W40: 0.1968091515 | X40: =SUM(X41,X44:X55) -> 520.0355048 | Y40: 0.7051533 | Z40: 03厦门鑫侨益管理损益表（总表）
B41: 02B职工薪酬 | C41: 34.84710213 | D41: 23.64251 | E41: 20.035858 | F41: 22.01436 | G41: 23.982789 | H41: 16.914272 | I41: 29.025924 | J41: 25.531264 | K41: 28.7505702 | L41: 62.829109 | M41: 0 | N41: 0 | O41: 287.5737583 | P41: 62.829109 | Q41: 28.7505702 | R41: 34.0785388 | S41: 1.185316972 | T41: 287.5737583 | U41: 231.421482 | V41: 56.15227633 | W41: 0.2426407257 | X41: 401.8655048 | Y41: 0.7155970216 | Z41: 04厦门鑫侨益管理损益表（总表）
B42: 03B其中：工资 | C42: 16.615434 | D42: 18.476728 | E42: 17.863565 | F42: 18.799716 | G42: 19.762642 | H42: 21.981201 | I42: 23.522678 | J42: 21.822464 | K42: 22.665859 | L42: 19.429555 | M42: 0 | N42: 0 | O42: 200.939842 | P42: 19.429555 | Q42: 22.665859 | R42: -3.236304 | S42: -0.1427832053 | T42: 200.939842 | U42: 180.853623 | V42: 20.086219 | W42: 0.111063404 | X42: 241.5552 | Y42: 0.831858896 | Z42: 05厦门鑫侨益管理损益表（总表）
B43: 04B 奖金 | C43: 15.22692513 | D43: 0 | E43: 0 | F43: 0 | G43: 0 | H43: -8.436337 | I43: 3.33333 | J43: 0 | K43: 1.630082202 | L43: 39.263948 | M43: 0 | N43: 0 | O43: 51.01794833 | P43: 39.263948 | Q43: 1.630082202 | R43: 37.6338658 | S43: 23.08709693 | T43: 51.01794833 | U43: 14.262414 | V43: 36.75553433 | W43: 2.57709069 | X43: 51.0693 | Y43: 0.9989944709 | Z43: 06厦门鑫侨益管理损益表（总表）
B44: 05B车辆费/汽车费用 | C44: 0 | D44: 0.1151 | E44: 0.1121 | F44: 0.438379 | G44: 0.457499 | H44: 0.6245 | I44: 0.1874 | J44: 0.319857 | K44: 0.1305 | L44: 0.6099 | M44: 0 | N44: 0 | O44: 2.995235 | P44: 0.6099 | Q44: 0.1305 | R44: 0.4794 | S44: 3.673563218 | T44: 2.995235 | U44: 4.2019 | V44: -1.206665 | W44: -0.2871712797 | X44: 8.29 | Y44: 0.3613069964 | Z44: 07厦门鑫侨益管理损益表（总表）
B45: 06B招待费 | C45: 3.755486 | D45: 1.4378 | E45: 0.3638 | F45: 1.079923 | G45: 2.7758 | H45: 1.0536 | I45: 1.4111 | J45: 1.8749 | K45: 2.7485 | L45: 3.3725 | M45: 0 | N45: 0 | O45: 19.873409 | P45: 3.3725 | Q45: 2.7485 | R45: 0.624 | S45: 0.2270329271 | T45: 19.873409 | U45: 13.299862 | V45: 6.573547 | W45: 0.4942567825 | X45: 25 | Y45: 0.79493636 | Z45: 08厦门鑫侨益管理损益表（总表）
B46: 07B差旅费 | C46: 2.470488 | D46: 1.55542 | E46: 1.59231 | F46: 0.547143 | G46: 1.97831 | H46: -0.036208 | I46: 2.179869 | J46: 0.375974 | K46: 0.18651 | L46: 0.296867 | M46: 0 | N46: 0 | O46: 11.146683 | P46: 0.296867 | Q46: 0.18651 | R46: 0.110357 | S46: 0.5916948153 | T46: 11.146683 | U46: 11.282967 | V46: -0.136284 | W46: -0.0120787378 | X46: 20.48 | Y46: 0.5442716309 | Z46: 09厦门鑫侨益管理损益表（总表）
B47: 08B办公费（含市内交通） | C47: 3.364995 | D47: 2.545281 | E47: 2.909591 | F47: 2.353367 | G47: 4.116875 | H47: 2.917122 | I47: 3.174643 | J47: 0.815101 | K47: 3.450534 | L47: 5.505667 | M47: 0 | N47: 0 | O47: 31.153176 | P47: 5.505667 | Q47: 3.450534 | R47: 2.055133 | S47: 0.5955985363 | T47: 31.153176 | U47: 31.331226 | V47: -0.17805 | W47: -0.005682829009 | X47: 43 | Y47: 0.7244924651 | Z47: 10厦门鑫侨益管理损益表（总表）
B48: 09B通讯费 | C48: 0 | D48: 0 | E48: 0 | F48: 0 | G48: 0 | H48: 0 | I48: 0 | J48: 0 | K48: 0 | L48: 0 | M48: 0 | N48: 0 | O48: 0 | P48: 0 | Q48: 0 | R48: 0 | T48: 0 | U48: 0.89164 | V48: -0.89164 | W48: -1 | X48: 2.4 | Y48: 0 | Z48: 11厦门鑫侨益管理损益表（总表）
B49: 10B折销费 | C49: 1.173017 | D49: 1.15452 | E49: 1.147181 | F49: 1.153437 | G49: 1.16174 | H49: 1.189982 | I49: 1.227429 | J49: 1.227429 | K49: 1.227429 | L49: 1.227429 | M49: 0 | N49: 0 | O49: 11.889593 | P49: 1.227429 | Q49: 1.227429 | R49: 0 | S49: 0 | T49: 11.889593 | U49: 12.541881 | V49: -0.652288 | W49: -0.0520087856 | X49: 18 | Y49: 0.6605329444 | Z49: 12厦门鑫侨益管理损益表（总表）
B50: 11B外包装卸费 | C50: 0 | D50: 0 | E50: 0 | F50: 0 | G50: 0 | H50: 0 | I50: 0 | J50: 0 | K50: 0 | L50: 0 | M50: 0 | N50: 0 | O50: 0 | P50: 0 | Q50: 0 | R50: 0 | T50: 0 | U50: 0 | V50: 0 | Z50: 13厦门鑫侨益管理损益表（总表）
B51: 12B保险费 | C51: 0 | D51: 0 | E51: 0 | F51: 0 | G51: 0 | H51: 0 | I51: 0 | J51: 0 | K51: 0 | L51: 0 | M51: 0 | N51: 0 | O51: 0 | P51: 0 | Q51: 0 | R51: 0 | T51: 0 | U51: 0 | V51: 0 | Z51: 14厦门鑫侨益管理损益表（总表）
B52: 13B企业宣传费 | C52: 0 | D52: 0 | E52: 0 | F52: 0 | G52: 0 | H52: 0 | I52: 0 | J52: 0 | K52: 0 | L52: 0 | M52: 0 | N52: 0 | O52: 0 | P52: 0 | Q52: 0 | R52: 0 | T52: 0 | U52: 0 | V52: 0 | X52: 0 | Z52: 15厦门鑫侨益管理损益表（总表）
B53: 14B专项费用 | C53: 0 | D53: 0 | E53: 0 | F53: 0 | G53: 0 | H53: 0 | I53: 1.456311 | J53: 0 | K53: 0 | L53: 0 | M53: 0 | N53: 0 | O53: 1.456311 | P53: 0 | Q53: 0 | R53: 0 | T53: 1.456311 | U53: 1.431071 | V53: 0.02524 | W53: 0.0176371403 | X53: 1 | Y53: 1.456311 | Z53: 16厦门鑫侨益管理损益表（总表）
B54: 15B残疾人就业保障金 | C54: 0 | D54: 0 | E54: 0 | F54: 0 | G54: 0 | H54: 0 | I54: 0 | J54: 0.616587 | K54: 0 | L54: 0 | M54: 0 | N54: 0 | O54: 0.616587 | P54: 0 | Q54: 0 | R54: 0 | T54: 0.616587 | U54: 0 | V54: 0.616587 | X54: 0 | Z54: 17厦门鑫侨益管理损益表（总表）
B55: 16B其 他 | C55: 0 | D55: 0 | E55: 0 | F55: 0 | G55: 0 | H55: 0 | I55: 0 | J55: 0 | K55: 0 | L55: 0 | M55: 0 | N55: 0 | O55: 0 | P55: 0 | Q55: 0 | R55: 0 | T55: 0 | U55: 0 | V55: 0 | X55: 0 | Z55: 18厦门鑫侨益管理损益表（总表）
B56: 05广西侨益物流有限公司 | C56: =SUM(C57,C60:C71) -> 9.36143 | D56: =SUM(D57,D60:D71) -> 11.444333 | E56: 14.525797 | F56: 10.231087 | G56: 9.544848 | H56: 10.068217 | I56: 11.518904 | J56: 17.272142 | K56: 11.494482 | L56: 10.935792 | M56: 0 | N56: 0 | O56: 116.397032 | P56: 10.935792 | Q56: 11.494482 | R56: -0.55869 | S56: -0.04860506111 | T56: =SUM(C56:N56) -> 116.397032 | U56: =SUM(U57:U71)-U58-U59 -> 105.584457 | V56: 10.812575 | W56: 0.1024068817 | X56: =SUM(X57,X60:X71) -> 158.148888 | Y56: 0.735996525 | Z56: 05广西侨益物流有限公司
B57: 02B职工薪酬 | C57: 8.689013 | D57: 10.318189 | E57: 9.836064 | F57: 9.066223 | G57: 7.688773 | H57: 8.7274 | I57: 9.961678 | J57: 11.048805 | K57: 10.641514 | L57: 8.601377 | M57: 0 | N57: 0 | O57: 94.579036 | P57: 8.601377 | Q57: 10.641514 | R57: -2.040137 | S57: -0.1917149195 | T57: 94.579036 | U57: 88.325972 | V57: 6.253064 | W57: 0.07079530356 | X57: 129.640488 | Y57: 0.729548596 | Z57: 06广西侨益物流有限公司
B58: 03B其中：工资 | C58: 6.10028 | D58: 5.742274 | E58: 5.551272 | F58: 6.584676 | G58: 6.732071 | H58: 6.057698 | I58: 6.650436 | J58: 6.961653 | K58: 6.485826 | L58: 6.324044 | M58: 0 | N58: 0 | O58: 63.19023 | P58: 6.324044 | Q58: 6.485826 | R58: -0.161782 | S58: -0.02494393158 | T58: 63.19023 | U58: 55.143187 | V58: 8.047043 | W58: 0.1459299587 | X58: 75.1824 | Y58: 0.8404923227 | Z58: 07广西侨益物流有限公司
B59: 04B 奖金 | C59: 1.388461 | D59: 3.240643 | E59: 3.232783 | F59: 1.362275 | G59: 0 | H59: 1.6 | I59: 2 | J59: 2.4887 | K59: 2.881736 | L59: 1 | M59: 0 | N59: 0 | O59: 19.194598 | P59: 1 | Q59: 2.881736 | R59: -1.881736 | S59: -0.6529869495 | T59: 19.194598 | U59: 20.394911 | V59: -1.200313 | W59: -0.0588535542 | X59: 26.1976 | Y59: 0.7326853605 | Z59: 08广西侨益物流有限公司
B60: 05B车辆费/汽车费用 | C60: 0.3 | D60: 0.3 | E60: 0.4765 | F60: 0.3124 | G60: 0.0395 | H60: 0.6 | I60: 0.3 | J60: 0.3075 | K60: 0.3 | L60: 0.318 | M60: 0 | N60: 0 | O60: 3.2539 | P60: 0.318 | Q60: 0.3 | R60: 0.018 | S60: 0.06 | T60: 3.2539 | U60: 3.3355 | V60: -0.0816 | W60: -0.02446409834 | X60: 4.56 | Y60: 0.7135745614 | Z60: 09广西侨益物流有限公司
B61: 06B招待费 | C61: 0 | D61: 0.31181 | E61: 2.066709 | F61: 0.2231 | G61: 0.5395 | H61: 0 | I61: 0.2987 | J61: 0.1491 | K61: 0 | L61: 0.8567 | M61: 0 | N61: 0 | O61: 4.445619 | P61: 0.8567 | Q61: 0 | R61: 0.8567 | T61: 4.445619 | U61: 2.910716 | V61: 1.534903 | W61: 0.5273283275 | X61: 3.12 | Y61: 1.424877885 | Z61: 10广西侨益物流有限公司
B62: 07B差旅费 | C62: 0 | D62: 0 | E62: 0.99861 | F62: 0.110903 | G62: 0.585972 | H62: 0.3109 | I62: 0.300143 | J62: 0.242758 | K62: 0.051 | L62: 0.285068 | M62: 0 | N62: 0 | O62: 2.885354 | P62: 0.285068 | Q62: 0.051 | R62: 0.234068 | S62: 4.589568627 | T62: 2.885354 | U62: 1.366474 | V62: 1.51888 | W62: 1.111532309 | X62: 2.16 | Y62: 1.335812037 | Z62: 11广西侨益物流有限公司
B63: 08B办公费（含市内交通） | C63: 0.3 | D63: 0.374654 | E63: 0.9049 | F63: 0.436044 | G63: 0.542108 | H63: 0.3475 | I63: 0.433176 | J63: 0.566504 | K63: 0.419551 | L63: 0.79223 | M63: 0 | N63: 0 | O63: 5.116667 | P63: 0.79223 | Q63: 0.419551 | R63: 0.372679 | S63: 0.8882805666 | T63: 5.116667 | U63: 4.175772 | V63: 0.940895 | W63: 0.2253224074 | X63: 10.35 | Y63: 0.4943639614 | Z63: 12广西侨益物流有限公司
B64: 09B通讯费 | C64: 0 | D64: 0.067263 | E64: 0.160597 | F64: 0 | G64: 0.066578 | H64: 0 | I64: 0.14279 | J64: 0.04918 | K64: 0 | L64: 0 | M64: 0 | N64: 0 | O64: 0.486408 | P64: 0 | Q64: 0 | R64: 0 | T64: 0.486408 | U64: 0.096623 | V64: 0.389785 | W64: 4.034080912 | X64: 1.8 | Y64: 0.2702266667 | Z64: 13广西侨益物流有限公司
B65: 10B折销费 | C65: 0.072417 | D65: 0.072417 | E65: 0.082417 | F65: 0.082417 | G65: 0.082417 | H65: 0.082417 | I65: 0.082417 | J65: 0.082417 | K65: 0.082417 | L65: 0.082417 | M65: 0 | N65: 0 | O65: 0.80417 | P65: 0.082417 | Q65: 0.082417 | R65: 0 | S65: 0 | T65: 0.80417 | U65: 0.72417 | V65: 0.08 | W65: 0.1104712982 | X65: 2.1984 | Y65: 0.365797853 | Z65: 14广西侨益物流有限公司
B66: 11B外包装卸费 | C66: 0 | D66: 0 | E66: 0 | F66: 0 | G66: 0 | H66: 0 | I66: 0 | J66: 0 | K66: 0 | L66: 0 | M66: 0 | N66: 0 | O66: 0 | P66: 0 | Q66: 0 | R66: 0 | T66: 0 | U66: 0 | V66: 0 | Z66: 15广西侨益物流有限公司
B67: 12B保险费 | C67: 0 | D67: 0 | E67: 0 | F67: 0 | G67: 0 | H67: 0 | I67: 0 | J67: 0 | K67: 0 | L67: 0 | M67: 0 | N67: 0 | O67: 0 | P67: 0 | Q67: 0 | R67: 0 | T67: 0 | U67: 0 | V67: 0 | Z67: 16广西侨益物流有限公司
B68: 13B企业宣传费 | C68: 0 | D68: 0 | E68: 0 | F68: 0 | G68: 0 | H68: 0 | I68: 0 | J68: 0 | K68: 0 | L68: 0 | M68: 0 | N68: 0 | O68: 0 | P68: 0 | Q68: 0 | R68: 0 | T68: 0 | U68: 0 | V68: 0 | X68: 0 | Z68: 17广西侨益物流有限公司
B69: 14B专项费用 | C69: 0 | D69: 0 | E69: 0 | F69: 0 | G69: 0 | H69: 0 | I69: 0 | J69: 0 | K69: 0 | L69: 0 | M69: 0 | N69: 0 | O69: 0 | P69: 0 | Q69: 0 | R69: 0 | T69: 0 | U69: 0.09434 | V69: -0.09434 | W69: -1 | X69: 0 | Z69: 18广西侨益物流有限公司
B70: 15B残疾人就业保障金 | C70: 0 | D70: 0 | E70: 0 | F70: 0 | G70: 0 | H70: 0 | I70: 0 | J70: 4.825878 | K70: 0 | L70: 0 | M70: 0 | N70: 0 | O70: 4.825878 | P70: 0 | Q70: 0 | R70: 0 | T70: 4.825878 | U70: 1.57989 | V70: 3.245988 | W70: 2.054565824 | X70: 1.92 | Y70: 2.513478125 | Z70: 19广西侨益物流有限公司
B71: 16B其 他 | C71: 0 | D71: 0 | E71: 0 | F71: 0 | G71: 0 | H71: 0 | I71: 0 | J71: 0 | K71: 0 | L71: 0 | M71: 0 | N71: 0 | O71: 0 | P71: =L71 -> 0 | Q71: =K71 -> 0 | R71: =P71-Q71 -> 0 | S71: =IF(ISERROR(R71/Q71),"",(R71/ABS(Q71))) ->  | T71: 0 | U71: 2.975 | V71: =T71-U71 -> -2.975 | W71: =IF(ISERROR(V71/U71),"",(V71/ABS(U71))) -> -1 | X71: 2.4 | Y71: 0 | Z71: 20广西侨益物流有限公司
B72: 06苏州侨益物流有限公司 | C72: =SUM(C73,C76:C87) -> 0.534573 | D72: =SUM(D73,D76:D87) -> 0.534573 | E72: 0.534573 | F72: 0.534575 | G72: 1.331536 | H72: 0.040177 | I72: 0.776369 | J72: 0.281973 | K72: 0.281973 | L72: 0.281972 | M72: 0 | N72: 0 | O72: =SUM(C72:N72) -> 5.132294 | P72: 0.281972 | Q72: 0.281973 | R72: -1e-06 | S72: -3.546438844e-06 | T72: 5.132294 | U72: 0 | V72: 5.132294 | X72: =SUM(X73,X76:X87) -> 0 | Y72: =IF(ISERROR(T72/X72),"",(T72/X72)) ->  | Z72: 06苏州侨益物流有限公司
B73: 02B职工薪酬 | C73: 0 | D73: 0 | E73: 0 | F73: 0 | G73: 0 | H73: 0 | I73: 0 | J73: 0 | K73: 0 | L73: 0 | M73: 0 | N73: 0 | O73: 0 | P73: 0 | Q73: 0 | R73: 0 | T73: 0 | U73: 0 | V73: 0 | Z73: 07苏州侨益物流有限公司
B74: 03B其中：工资 | C74: 0 | D74: 0 | E74: 0 | F74: 0 | G74: 0 | H74: 0 | I74: 0 | J74: 0 | K74: 0 | L74: 0 | M74: 0 | N74: 0 | O74: 0 | P74: 0 | Q74: 0 | R74: 0 | T74: 0 | U74: 0 | V74: 0 | Z74: 08苏州侨益物流有限公司
B75: 04B 奖金 | C75: 0 | D75: 0 | E75: 0 | F75: 0 | G75: 0 | H75: 0 | I75: 0 | J75: 0 | K75: 0 | L75: 0 | M75: 0 | N75: 0 | O75: 0 | P75: 0 | Q75: 0 | R75: 0 | T75: 0 | U75: 0 | V75: 0 | Z75: 09苏州侨益物流有限公司
B76: 05B车辆费/汽车费用 | C76: 0 | D76: 0 | E76: 0 | F76: 0 | G76: 0.039 | H76: 0 | I76: 0 | J76: 0 | K76: 0 | L76: 0 | M76: 0 | N76: 0 | O76: 0.039 | P76: 0 | Q76: 0 | R76: 0 | T76: 0.039 | U76: 0 | V76: 0.039 | Z76: 10苏州侨益物流有限公司
B77: 06B招待费 | C77: 0 | D77: 0 | E77: 0 | F77: 0 | G77: 0 | H77: 0 | I77: 0 | J77: 0 | K77: 0 | L77: 0 | M77: 0 | N77: 0 | O77: 0 | P77: 0 | Q77: 0 | R77: 0 | T77: 0 | U77: 0 | V77: 0 | Z77: 11苏州侨益物流有限公司
B78: 07B差旅费 | C78: 0 | D78: 0 | E78: 0 | F78: 0 | G78: 0.1148 | H78: 0 | I78: 0 | J78: 0 | K78: 0 | L78: 0 | M78: 0 | N78: 0 | O78: 0.1148 | P78: 0 | Q78: 0 | R78: 0 | T78: 0.1148 | U78: 0 | V78: 0.1148 | Z78: 12苏州侨益物流有限公司
B79: 08B办公费（含市内交通） | C79: 0.510079 | D79: 0.510079 | E79: 0.510079 | F79: 0.510081 | G79: 1.153242 | H79: 0.015683 | I79: 0.751875 | J79: 0.257479 | K79: 0.257479 | L79: 0.257478 | M79: 0 | N79: 0 | O79: 4.733554 | P79: 0.257478 | Q79: 0.257479 | R79: -1e-06 | S79: -3.883811884e-06 | T79: 4.733554 | U79: 0 | V79: 4.733554 | Z79: 13苏州侨益物流有限公司
B80: 09B通讯费 | C80: 0 | D80: 0 | E80: 0 | F80: 0 | G80: 0 | H80: 0 | I80: 0 | J80: 0 | K80: 0 | L80: 0 | M80: 0 | N80: 0 | O80: 0 | P80: 0 | Q80: 0 | R80: 0 | T80: 0 | U80: 0 | V80: 0 | Z80: 14苏州侨益物流有限公司
B81: 10B折销费 | C81: 0 | D81: 0 | E81: 0 | F81: 0 | G81: 0.024494 | H81: 0.024494 | I81: 0.024494 | J81: 0.024494 | K81: 0.024494 | L81: 0.024494 | M81: 0 | N81: 0 | O81: 0.146964 | P81: 0.024494 | Q81: 0.024494 | R81: 0 | S81: 0 | T81: 0.146964 | U81: 0 | V81: 0.146964 | Z81: 15苏州侨益物流有限公司
B82: 11B外包装卸费 | C82: 0 | D82: 0 | E82: 0 | F82: 0 | G82: 0 | H82: 0 | I82: 0 | J82: 0 | K82: 0 | L82: 0 | M82: 0 | N82: 0 | O82: 0 | P82: 0 | Q82: 0 | R82: 0 | T82: =SUM(C82:N82) -> 0 | U82: 0 | V82: 0 | Z82: 16苏州侨益物流有限公司
B83: 12B保险费 | C83: 0 | D83: 0 | E83: 0 | F83: 0 | G83: 0 | H83: 0 | I83: 0 | J83: 0 | K83: 0 | L83: 0 | M83: 0 | N83: 0 | O83: 0 | P83: 0 | Q83: 0 | R83: 0 | T83: 0 | U83: 0 | V83: 0 | Z83: 17苏州侨益物流有限公司
B84: 13B企业宣传费 | C84: 0 | D84: 0 | E84: 0 | F84: 0 | G84: 0 | H84: 0 | I84: 0 | J84: 0 | K84: 0 | L84: 0 | M84: 0 | N84: 0 | O84: 0 | P84: 0 | Q84: 0 | R84: 0 | T84: 0 | U84: 0 | V84: 0 | Z84: 18苏州侨益物流有限公司
B85: 14B专项费用 | C85: 0 | D85: 0 | E85: 0 | F85: 0 | G85: 0 | H85: 0 | I85: 0 | J85: 0 | K85: 0 | L85: 0 | M85: 0 | N85: 0 | O85: 0 | P85: 0 | Q85: 0 | R85: 0 | T85: 0 | U85: 0 | V85: 0 | Z85: 19苏州侨益物流有限公司
B86: 15B残疾人就业保障金 | C86: 0 | D86: 0 | E86: 0 | F86: 0 | G86: 0 | H86: 0 | I86: 0 | J86: 0 | K86: 0 | L86: 0 | M86: 0 | N86: 0 | O86: 0 | P86: 0 | Q86: 0 | R86: 0 | T86: 0 | U86: 0 | V86: 0 | Z86: 20苏州侨益物流有限公司
B87: 16B其 他 | C87: 0.024494 | D87: 0.024494 | E87: 0.024494 | F87: 0.024494 | G87: 0 | H87: 0 | I87: 0 | J87: 0 | K87: 0 | L87: 0 | M87: 0 | N87: 0 | O87: 0.097976 | P87: 0 | Q87: 0 | R87: 0 | T87: 0.097976 | V87: 0.097976 | Z87: 21苏州侨益物流有限公司
B88: 04乌克兰管理损益表（总表） | C88: =SUM(C89,C92:C103) -> 1.693052 | D88: =SUM(D89,D92:D103) -> 1.471182 | E88: 4.079674 | F88: 2.154824 | G88: 2.162182 | H88: 2.130963 | I88: 1.425717 | J88: 1.488236 | K88: 1.430236 | L88: 1.448516 | M88: 0 | N88: 0 | O88: 19.484582 | P88: 1.448516 | Q88: 1.430236 | R88: 0.01828 | S88: 0.01278110745 | T88: 19.484582 | U88: 0 | V88: 19.484582 | X88: =SUM(X89,X92:X103) -> 73.41123156 | Y88: 0.2654169067 | Z88: 04乌克兰管理损益表（总表）
B89: 02B职工薪酬 | C89: 1.693052 | D89: 1.471182 | E89: 1.765515 | F89: 2.154824 | G89: 2.162182 | H89: 2.130963 | I89: 1.061903 | J89: 1.488236 | K89: 1.430236 | L89: 1.448516 | M89: 0 | N89: 0 | O89: 16.806609 | P89: 1.448516 | Q89: 1.430236 | R89: 0.01828 | S89: 0.01278110745 | T89: 16.806609 | U89: 0 | V89: 16.806609 | X89: 35.655076 | Y89: 0.4713665174 | Z89: 05乌克兰管理损益表（总表）
B90: 03B其中：工资 | C90: 1.46137 | D90: 1.2395 | E90: 1.533833 | F90: 1.9005 | G90: 1.9305 | H90: 1.9005 | I90: 0.838167 | J90: 1.2365 | K90: 1.2065 | L90: 1.226 | M90: 0 | N90: 0 | O90: 14.47337 | P90: 1.226 | Q90: 1.2065 | R90: 0.0195 | S90: 0.01616245338 | T90: 14.47337 | U90: 0 | V90: 14.47337 | X90: 22.746576 | Y90: 0.6362878527 | Z90: 06乌克兰管理损益表（总表）
B91: 04B 奖金 | C91: 0 | D91: 0 | E91: 0 | F91: 0 | G91: 0 | H91: 0 | I91: 0 | J91: 0 | K91: 0 | L91: 0 | M91: 0 | N91: 0 | O91: 0 | P91: 0 | Q91: 0 | R91: 0 | T91: 0 | U91: 0 | V91: 0 | X91: 4.5733 | Y91: 0 | Z91: 07乌克兰管理损益表（总表）
B92: 05B车辆费/汽车费用 | C92: 0 | D92: 0 | E92: 0 | F92: 0 | G92: 0 | H92: 0 | I92: 0 | J92: 0 | K92: 0 | L92: 0 | M92: 0 | N92: 0 | O92: 0 | P92: 0 | Q92: 0 | R92: 0 | T92: =SUM(C92:N92) -> 0 | U92: 0 | V92: 0 | X92: 3.7 | Y92: 0 | Z92: 08乌克兰管理损益表（总表）
B93: 06B招待费 | C93: 0 | D93: 0 | E93: 0 | F93: 0 | G93: 0 | H93: 0 | I93: 0.0155 | J93: 0 | K93: 0 | L93: 0 | M93: 0 | N93: 0 | O93: 0.0155 | P93: 0 | Q93: 0 | R93: 0 | T93: 0.0155 | U93: 0 | V93: 0.0155 | X93: 8.596 | Y93: 0.001803164262 | Z93: 09乌克兰管理损益表（总表）
B94: 07B差旅费 | C94: 0 | D94: 0 | E94: 2.314159 | F94: 0 | G94: 0 | H94: 0 | I94: 0.346814 | J94: 0 | K94: 0 | L94: 0 | M94: 0 | N94: 0 | O94: 2.660973 | P94: 0 | Q94: 0 | R94: 0 | T94: 2.660973 | U94: 0 | V94: 2.660973 | X94: 10.6596 | Y94: 0.2496315997 | Z94: 10乌克兰管理损益表（总表）
B95: 08B办公费（含市内交通） | C95: 0 | D95: 0 | E95: 0 | F95: 0 | G95: 0 | H95: 0 | I95: 0.0015 | J95: 0 | K95: 0 | L95: 0 | M95: 0 | N95: 0 | O95: 0.0015 | P95: 0 | Q95: 0 | R95: 0 | T95: 0.0015 | U95: 0 | V95: 0.0015 | X95: 12.54 | Y95: 0.0001196172249 | Z95: 11乌克兰管理损益表（总表）
B96: 09B通讯费 | C96: 0 | D96: 0 | E96: 0 | F96: 0 | G96: 0 | H96: 0 | I96: 0 | J96: 0 | K96: 0 | L96: 0 | M96: 0 | N96: 0 | O96: 0 | P96: 0 | Q96: 0 | R96: 0 | T96: 0 | U96: 0 | V96: 0 | X96: 0.48 | Y96: 0 | Z96: 12乌克兰管理损益表（总表）
B97: 10B折销费 | C97: 0 | D97: 0 | E97: 0 | F97: 0 | G97: 0 | H97: 0 | I97: 0 | J97: 0 | K97: 0 | L97: 0 | M97: 0 | N97: 0 | O97: 0 | P97: 0 | Q97: 0 | R97: 0 | T97: 0 | U97: 0 | V97: 0 | X97: 1.780555556 | Y97: 0 | Z97: 13乌克兰管理损益表（总表）
B98: 11B外包装卸费 | C98: 0 | D98: 0 | E98: 0 | F98: 0 | G98: 0 | H98: 0 | I98: 0 | J98: 0 | K98: 0 | L98: 0 | M98: 0 | N98: 0 | O98: 0 | P98: 0 | Q98: 0 | R98: 0 | T98: =SUM(C98:N98) -> 0 | U98: 0 | V98: 0 | Z98: 14乌克兰管理损益表（总表）
B99: 12B保险费 | C99: 0 | D99: 0 | E99: 0 | F99: 0 | G99: 0 | H99: 0 | I99: 0 | J99: 0 | K99: 0 | L99: 0 | M99: 0 | N99: 0 | O99: 0 | P99: 0 | Q99: 0 | R99: 0 | T99: 0 | U99: 0 | V99: 0 | Z99: 15乌克兰管理损益表（总表）
B100: 13B企业宣传费 | C100: 0 | D100: 0 | E100: 0 | F100: 0 | G100: 0 | H100: 0 | I100: 0 | J100: 0 | K100: 0 | L100: 0 | M100: 0 | N100: 0 | O100: 0 | P100: 0 | Q100: 0 | R100: 0 | T100: 0 | U100: 0 | V100: 0 | X100: 0 | Z100: 16乌克兰管理损益表（总表）
B101: 14B专项费用 | C101: 0 | D101: 0 | E101: 0 | F101: 0 | G101: 0 | H101: 0 | I101: 0 | J101: 0 | K101: 0 | L101: 0 | M101: 0 | N101: 0 | O101: 0 | P101: 0 | Q101: 0 | R101: 0 | T101: 0 | U101: 0 | V101: 0 | X101: 0 | Z101: 17乌克兰管理损益表（总表）
B102: 15B残疾人就业保障金 | C102: 0 | D102: 0 | E102: 0 | F102: 0 | G102: 0 | H102: 0 | I102: 0 | J102: 0 | K102: 0 | L102: 0 | M102: 0 | N102: 0 | O102: 0 | P102: 0 | Q102: 0 | R102: 0 | T102: 0 | U102: 0 | V102: 0 | X102: 0 | Z102: 18乌克兰管理损益表（总表）
B103: 16B其 他 | C103: 0 | D103: 0 | E103: 0 | F103: 0 | G103: 0 | H103: 0 | I103: 0 | J103: 0 | K103: 0 | L103: 0 | M103: 0 | N103: 0 | O103: 0 | P103: 0 | Q103: 0 | R103: 0 | T103: 0 | U103: 0 | V103: 0 | X103: 0 | Z103: 19乌克兰管理损益表（总表）
B104: 04新会项目管理损益表（总表） | C104: =SUM(C105,C108:C119) -> 0 | D104: =SUM(D105,D108:D119) -> 0 | E104: 0 | F104: 0 | G104: 0 | H104: 0 | I104: 0 | J104: 0 | K104: 0 | L104: 0 | M104: 0 | N104: 0 | O104: 0 | P104: 0 | Q104: 0 | R104: 0 | T104: 0 | U104: 0 | V104: 0 | X104: =SUM(X105,X108:X119) -> 20.163548 | Y104: 0 | Z104: 04新会项目管理损益表（总表）
B105: 02B职工薪酬 | F105: 0 | G105: 0 | H105: 0 | I105: 0 | J105: 0 | K105: 0 | L105: 0 | M105: 0 | N105: 0 | O105: 0 | P105: 0 | Q105: 0 | R105: 0 | T105: 0 | U105: 0 | V105: 0 | X105: 17.693548 | Y105: 0 | Z105: 05新会项目管理损益表（总表）
B106: 03B其中：工资 | F106: 0 | G106: 0 | H106: 0 | I106: 0 | J106: 0 | K106: 0 | L106: 0 | M106: 0 | N106: 0 | O106: 0 | P106: 0 | Q106: 0 | R106: 0 | T106: 0 | U106: 0 | V106: 0 | X106: 17.693548 | Y106: 0 | Z106: 06新会项目管理损益表（总表）
B107: 04B 奖金 | F107: 0 | G107: 0 | H107: 0 | I107: 0 | J107: 0 | K107: 0 | L107: 0 | M107: 0 | N107: 0 | O107: 0 | P107: 0 | Q107: 0 | R107: 0 | T107: 0 | U107: 0 | V107: 0 | X107: 0 | Z107: 07新会项目管理损益表（总表）
B108: 05B车辆费/汽车费用 | F108: 0 | G108: 0 | H108: 0 | I108: 0 | J108: 0 | K108: 0 | L108: 0 | M108: 0 | N108: 0 | O108: 0 | P108: 0 | Q108: 0 | R108: 0 | T108: =SUM(C108:N108) -> 0 | U108: 0 | V108: 0 | X108: 0 | Z108: 08新会项目管理损益表（总表）
B109: 06B招待费 | F109: 0 | G109: 0 | H109: 0 | I109: 0 | J109: 0 | K109: 0 | L109: 0 | M109: 0 | N109: 0 | O109: 0 | P109: 0 | Q109: 0 | R109: 0 | T109: 0 | U109: 0 | V109: 0 | X109: 0 | Z109: 09新会项目管理损益表（总表）
B110: 07B差旅费 | F110: 0 | G110: 0 | H110: 0 | I110: 0 | J110: 0 | K110: 0 | L110: 0 | M110: 0 | N110: 0 | O110: 0 | P110: 0 | Q110: 0 | R110: 0 | T110: 0 | U110: 0 | V110: 0 | X110: 0 | Z110: 10新会项目管理损益表（总表）
B111: 08B办公费（含市内交通） | F111: 0 | G111: 0 | H111: 0 | I111: 0 | J111: 0 | K111: 0 | L111: 0 | M111: 0 | N111: 0 | O111: 0 | P111: 0 | Q111: 0 | R111: 0 | T111: 0 | U111: 0 | V111: 0 | X111: 2.4 | Y111: 0 | Z111: 11新会项目管理损益表（总表）
B112: 09B通讯费 | F112: 0 | G112: 0 | H112: 0 | I112: 0 | J112: 0 | K112: 0 | L112: 0 | M112: 0 | N112: 0 | O112: 0 | P112: 0 | Q112: 0 | R112: 0 | T112: 0 | U112: 0 | V112: 0 | X112: 0 | Z112: 12新会项目管理损益表（总表）
B113: 10B折销费 | F113: 0 | G113: 0 | H113: 0 | I113: 0 | J113: 0 | K113: 0 | L113: 0 | M113: 0 | N113: 0 | O113: 0 | P113: 0 | Q113: 0 | R113: 0 | T113: 0 | U113: 0 | V113: 0 | X113: 0.07 | Y113: 0 | Z113: 13新会项目管理损益表（总表）
B114: 11B外包装卸费 | F114: 0 | G114: 0 | H114: 0 | I114: 0 | J114: 0 | K114: 0 | L114: 0 | M114: 0 | N114: 0 | O114: 0 | P114: 0 | Q114: 0 | R114: 0 | T114: =SUM(C114:N114) -> 0 | U114: 0 | V114: 0 | Z114: 14新会项目管理损益表（总表）
B115: 12B保险费 | F115: 0 | G115: 0 | H115: 0 | I115: 0 | J115: 0 | K115: 0 | L115: 0 | M115: 0 | N115: 0 | O115: =SUM(C115:N115) -> 0 | P115: 0 | Q115: 0 | R115: 0 | T115: 0 | U115: 0 | V115: 0 | Z115: 15新会项目管理损益表（总表）
B116: 13B企业宣传费 | F116: 0 | G116: 0 | H116: 0 | I116: 0 | J116: 0 | K116: 0 | L116: 0 | M116: 0 | N116: 0 | O116: 0 | P116: 0 | Q116: 0 | R116: 0 | T116: 0 | U116: 0 | V116: 0 | X116: 0 | Z116: 16新会项目管理损益表（总表）
B117: 14B专项费用 | F117: 0 | G117: 0 | H117: 0 | I117: 0 | J117: 0 | K117: 0 | L117: 0 | M117: 0 | N117: 0 | O117: 0 | P117: 0 | Q117: 0 | R117: 0 | T117: 0 | U117: 0 | V117: 0 | X117: 0 | Z117: 17新会项目管理损益表（总表）
B118: 15B残疾人就业保障金 | F118: 0 | G118: 0 | H118: 0 | I118: 0 | J118: 0 | K118: 0 | L118: 0 | M118: 0 | N118: 0 | O118: 0 | P118: 0 | Q118: 0 | R118: 0 | T118: 0 | U118: 0 | V118: 0 | X118: 0 | Z118: 18新会项目管理损益表（总表）
B119: 16B其 他 | F119: 0 | G119: 0 | H119: 0 | I119: 0 | J119: 0 | K119: 0 | L119: 0 | M119: 0 | N119: 0 | O119: 0 | P119: 0 | Q119: 0 | R119: 0 | T119: 0 | U119: 0 | V119: 0 | X119: 0 | Z119: 19新会项目管理损益表（总表）
B120: 41南州仓管理损益表（总表） | C120: =SUM(C121,C124:C135) -> 0 | D120: 0 | E120: 0 | F120: 0 | G120: 0 | H120: 0 | I120: 0 | J120: 0 | K120: 0 | L120: 0 | M120: 0 | N120: 0 | O120: 0 | P120: =K120 -> 0 | Q120: =J120 -> 0 | R120: 0 | T120: 0 | U120: 0 | V120: 0 | Z120: 04新会项目管理损益表（总表）
B121: 02B职工薪酬 | C121: 0 | D121: 0 | E121: 0 | F121: 0 | G121: 0 | H121: 0 | I121: 0 | J121: 0 | K121: 0 | L121: 0 | M121: 0 | N121: 0 | O121: 0 | P121: 0 | Q121: 0 | R121: 0 | T121: 0 | U121: 0 | V121: 0 | Z121: 05新会项目管理损益表（总表）
B122: 03B其中：工资 | C122: 0 | D122: 0 | E122: 0 | F122: 0 | G122: 0 | H122: 0 | I122: 0 | J122: 0 | K122: 0 | L122: 0 | M122: 0 | N122: 0 | O122: 0 | P122: 0 | Q122: 0 | R122: 0 | T122: 0 | U122: 0 | V122: 0 | Z122: 06新会项目管理损益表（总表）
B123: 04B 奖金 | C123: 0 | D123: 0 | E123: 0 | F123: 0 | G123: 0 | H123: 0 | I123: 0 | J123: 0 | K123: 0 | L123: 0 | M123: 0 | N123: 0 | O123: 0 | P123: 0 | Q123: 0 | R123: 0 | T123: 0 | U123: 0 | V123: 0 | Z123: 07新会项目管理损益表（总表）
B124: 05B车辆费/汽车费用 | C124: 0 | D124: 0 | E124: 0 | F124: 0 | G124: 0 | H124: 0 | I124: 0 | J124: 0 | K124: 0 | L124: 0 | M124: 0 | N124: 0 | O124: 0 | P124: 0 | Q124: 0 | R124: 0 | T124: 0 | U124: 0 | V124: 0 | Z124: 08新会项目管理损益表（总表）
B125: 06B招待费 | C125: 0 | D125: 0 | E125: 0 | F125: 0 | G125: 0 | H125: 0 | I125: 0 | J125: 0 | K125: 0 | L125: 0 | M125: 0 | N125: 0 | O125: 0 | P125: 0 | Q125: 0 | R125: 0 | T125: 0 | U125: 0 | V125: 0 | Z125: 09新会项目管理损益表（总表）
B126: 07B差旅费 | C126: 0 | D126: 0 | E126: 0 | F126: 0 | G126: 0 | H126: 0 | I126: 0 | J126: 0 | K126: 0 | L126: 0 | M126: 0 | N126: 0 | O126: 0 | P126: 0 | Q126: 0 | R126: 0 | T126: 0 | U126: 0 | V126: 0 | Z126: 10新会项目管理损益表（总表）
B127: 08B办公费（含市内交通） | C127: 0 | D127: 0 | E127: 0 | F127: 0 | G127: 0 | H127: 0 | I127: 0 | J127: 0 | K127: 0 | L127: 0 | M127: 0 | N127: 0 | O127: 0 | P127: 0 | Q127: 0 | R127: 0 | T127: 0 | U127: 0 | V127: 0 | Z127: 11新会项目管理损益表（总表）
B128: 09B通讯费 | C128: 0 | D128: 0 | E128: 0 | F128: 0 | G128: 0 | H128: 0 | I128: 0 | J128: 0 | K128: 0 | L128: 0 | M128: 0 | N128: 0 | O128: 0 | P128: 0 | Q128: 0 | R128: 0 | T128: 0 | U128: 0 | V128: 0 | Z128: 12新会项目管理损益表（总表）
B129: 10B折销费 | C129: 0 | D129: 0 | E129: 0 | F129: 0 | G129: 0 | H129: 0 | I129: 0 | J129: 0 | K129: 0 | L129: 0 | M129: 0 | N129: 0 | O129: 0 | P129: 0 | Q129: 0 | R129: 0 | T129: 0 | U129: 0 | V129: 0 | Z129: 13新会项目管理损益表（总表）
B130: 11B外包装卸费 | C130: 0 | D130: 0 | E130: 0 | F130: 0 | G130: 0 | H130: 0 | I130: 0 | J130: 0 | K130: 0 | L130: 0 | M130: 0 | N130: 0 | O130: 0 | P130: 0 | Q130: 0 | R130: 0 | T130: 0 | U130: 0 | V130: 0 | Z130: 14新会项目管理损益表（总表）
B131: 12B保险费 | C131: 0 | D131: 0 | E131: 0 | F131: 0 | G131: 0 | H131: 0 | I131: 0 | J131: 0 | K131: 0 | L131: 0 | M131: 0 | N131: 0 | O131: 0 | P131: 0 | Q131: 0 | R131: 0 | T131: 0 | U131: 0 | V131: 0 | Z131: 15新会项目管理损益表（总表）
B132: 13B企业宣传费 | C132: 0 | D132: 0 | E132: 0 | F132: 0 | G132: 0 | H132: 0 | I132: 0 | J132: 0 | K132: 0 | L132: 0 | M132: 0 | N132: 0 | O132: 0 | P132: 0 | Q132: 0 | R132: 0 | T132: 0 | U132: 0 | V132: 0 | Z132: 16新会项目管理损益表（总表）
B133: 14B专项费用 | C133: 0 | D133: 0 | E133: 0 | F133: 0 | G133: 0 | H133: 0 | I133: 0 | J133: 0 | K133: 0 | L133: 0 | M133: 0 | N133: 0 | O133: 0 | P133: 0 | Q133: 0 | R133: 0 | T133: 0 | U133: 0 | V133: 0 | Z133: 17新会项目管理损益表（总表）
B134: 15B残疾人就业保障金 | C134: 0 | D134: 0 | E134: 0 | F134: 0 | G134: 0 | H134: 0 | I134: 0 | J134: 0 | K134: 0 | L134: 0 | M134: 0 | N134: 0 | O134: 0 | P134: 0 | Q134: 0 | R134: 0 | T134: 0 | U134: 0 | V134: 0 | Z134: 18新会项目管理损益表（总表）
B135: 16B其 他 | C135: 0 | D135: 0 | E135: 0 | F135: 0 | G135: 0 | H135: 0 | I135: 0 | J135: 0 | K135: 0 | L135: 0 | M135: 0 | N135: 0 | O135: 0 | P135: 0 | Q135: 0 | R135: =P135-Q135 -> 0 | S135: =IF(ISERROR(R135/Q135),"",(R135/ABS(Q135))) ->  | T135: 0 | U135: 0 | V135: =T135-U135 -> 0 | W135: =IF(ISERROR(V135/U135),"",(V135/ABS(U135))) ->  | Z135: 19新会项目管理损益表（总表）
B136: 42老港7仓管理损益表（总表） | C136: =SUM(C137,C140:C151) -> 0 | D136: 0 | E136: 0 | F136: 0 | G136: 0 | H136: 0 | I136: 0 | J136: 0 | K136: 0 | L136: 0 | M136: 0 | N136: 0 | O136: 0 | P136: =J136 -> 0 | Q136: =I136 -> 0 | R136: 0 | T136: 0 | U136: 0 | V136: 0 | Z136: 04新会项目管理损益表（总表）
B137: 02B职工薪酬 | C137: 0 | D137: 0 | E137: 0 | F137: 0 | G137: 0 | H137: 0 | I137: 0 | J137: 0 | K137: 0 | L137: 0 | M137: 0 | N137: 0 | O137: 0 | P137: =J137 -> 0 | Q137: =I137 -> 0 | R137: 0 | T137: 0 | U137: 0 | V137: 0 | Z137: 05新会项目管理损益表（总表）
B138: 03B其中：工资 | C138: 0 | D138: 0 | E138: 0 | F138: 0 | G138: 0 | H138: 0 | I138: 0 | J138: 0 | K138: 0 | L138: 0 | M138: 0 | N138: 0 | O138: 0 | P138: =J138 -> 0 | Q138: =I138 -> 0 | R138: 0 | T138: 0 | U138: 0 | V138: 0 | Z138: 06新会项目管理损益表（总表）
B139: 04B 奖金 | C139: 0 | D139: 0 | E139: 0 | F139: 0 | G139: 0 | H139: 0 | I139: 0 | J139: 0 | K139: 0 | L139: 0 | M139: 0 | N139: 0 | O139: 0 | P139: 0 | Q139: 0 | R139: 0 | T139: 0 | U139: 0 | V139: 0 | Z139: 07新会项目管理损益表（总表）
B140: 05B车辆费/汽车费用 | C140: 0 | D140: 0 | E140: 0 | F140: 0 | G140: 0 | H140: 0 | I140: 0 | J140: 0 | K140: 0 | L140: 0 | M140: 0 | N140: 0 | O140: 0 | P140: 0 | Q140: 0 | R140: 0 | T140: 0 | U140: 0 | V140: 0 | Z140: 08新会项目管理损益表（总表）
B141: 06B招待费 | C141: 0 | D141: 0 | E141: 0 | F141: 0 | G141: 0 | H141: 0 | I141: 0 | J141: 0 | K141: 0 | L141: 0 | M141: 0 | N141: 0 | O141: 0 | P141: 0 | Q141: 0 | R141: 0 | T141: 0 | U141: 0 | V141: 0 | Z141: 09新会项目管理损益表（总表）
B142: 07B差旅费 | C142: 0 | D142: 0 | E142: 0 | F142: 0 | G142: 0 | H142: 0 | I142: 0 | J142: 0 | K142: 0 | L142: 0 | M142: 0 | N142: 0 | O142: 0 | P142: 0 | Q142: 0 | R142: 0 | T142: 0 | U142: 0 | V142: 0 | Z142: 10新会项目管理损益表（总表）
B143: 08B办公费（含市内交通） | C143: 0 | D143: 0 | E143: 0 | F143: 0 | G143: 0 | H143: 0 | I143: 0 | J143: 0 | K143: 0 | L143: 0 | M143: 0 | N143: 0 | O143: 0 | P143: 0 | Q143: 0 | R143: 0 | T143: 0 | U143: 0 | V143: 0 | Z143: 11新会项目管理损益表（总表）
B144: 09B通讯费 | C144: 0 | D144: 0 | E144: 0 | F144: 0 | G144: 0 | H144: 0 | I144: 0 | J144: 0 | K144: 0 | L144: 0 | M144: 0 | N144: 0 | O144: 0 | P144: 0 | Q144: 0 | R144: 0 | T144: 0 | U144: 0 | V144: 0 | Z144: 12新会项目管理损益表（总表）
B145: 10B折销费 | C145: 0 | D145: 0 | E145: 0 | F145: 0 | G145: 0 | H145: 0 | I145: 0 | J145: 0 | K145: 0 | L145: 0 | M145: 0 | N145: 0 | O145: 0 | P145: 0 | Q145: 0 | R145: 0 | T145: 0 | U145: 0 | V145: 0 | Z145: 13新会项目管理损益表（总表）
B146: 11B外包装卸费 | C146: 0 | D146: 0 | E146: 0 | F146: 0 | G146: 0 | H146: 0 | I146: 0 | J146: 0 | K146: 0 | L146: 0 | M146: 0 | N146: 0 | O146: 0 | P146: 0 | Q146: 0 | R146: 0 | T146: 0 | U146: 0 | V146: 0 | Z146: 14新会项目管理损益表（总表）
B147: 12B保险费 | C147: 0 | D147: 0 | E147: 0 | F147: 0 | G147: 0 | H147: 0 | I147: 0 | J147: 0 | K147: 0 | L147: 0 | M147: 0 | N147: 0 | O147: 0 | P147: 0 | Q147: 0 | R147: 0 | T147: 0 | U147: 0 | V147: 0 | Z147: 15新会项目管理损益表（总表）
B148: 13B企业宣传费 | C148: 0 | D148: 0 | E148: 0 | F148: 0 | G148: 0 | H148: 0 | I148: 0 | J148: 0 | K148: 0 | L148: 0 | M148: 0 | N148: 0 | O148: 0 | P148: 0 | Q148: 0 | R148: 0 | T148: 0 | U148: 0 | V148: 0 | Z148: 16新会项目管理损益表（总表）
B149: 14B专项费用 | C149: 0 | D149: 0 | E149: 0 | F149: 0 | G149: 0 | H149: 0 | I149: 0 | J149: 0 | K149: 0 | L149: 0 | M149: 0 | N149: 0 | O149: 0 | P149: 0 | Q149: 0 | R149: 0 | T149: 0 | U149: 0 | V149: 0 | Z149: 17新会项目管理损益表（总表）
B150: 15B残疾人就业保障金 | C150: 0 | D150: 0 | E150: 0 | F150: 0 | G150: 0 | H150: 0 | I150: 0 | J150: 0 | K150: 0 | L150: 0 | M150: 0 | N150: 0 | O150: 0 | P150: 0 | Q150: 0 | R150: 0 | T150: 0 | U150: 0 | V150: 0 | Z150: 18新会项目管理损益表（总表）
B151: 16B其 他 | C151: 0 | D151: 0 | E151: 0 | F151: 0 | G151: 0 | H151: 0 | I151: 0 | J151: 0 | K151: 0 | L151: 0 | M151: 0 | N151: 0 | O151: 0 | P151: 0 | Q151: 0 | R151: 0 | T151: 0 | U151: 0 | V151: 0 | Z151: 19新会项目管理损益表（总表）
B152: 43洪梅仓管理损益表（总表） | C152: =SUM(C153,C156:C167) -> 0 | D152: 0 | E152: 0 | F152: 0 | G152: 0 | H152: 0 | I152: 0 | J152: 0 | K152: 0 | L152: 0 | M152: 0 | N152: 0 | O152: 0 | P152: 0 | Q152: 0 | R152: 0 | T152: 0 | U152: 0 | V152: 0 | Z152: 04新会项目管理损益表（总表）
B153: 02B职工薪酬 | C153: 0 | D153: 0 | E153: 0 | F153: 0 | G153: 0 | H153: 0 | I153: 0 | J153: 0 | K153: 0 | L153: 0 | M153: 0 | N153: 0 | O153: 0 | P153: 0 | Q153: 0 | R153: 0 | T153: 0 | U153: 0 | V153: 0 | Z153: 05新会项目管理损益表（总表）
B154: 03B其中：工资 | C154: 0 | D154: 0 | E154: 0 | F154: 0 | G154: 0 | H154: 0 | I154: 0 | J154: 0 | K154: 0 | L154: 0 | M154: 0 | N154: 0 | O154: 0 | P154: 0 | Q154: 0 | R154: 0 | T154: 0 | U154: 0 | V154: 0 | Z154: 06新会项目管理损益表（总表）
B155: 04B 奖金 | C155: 0 | D155: 0 | E155: 0 | F155: 0 | G155: 0 | H155: 0 | I155: 0 | J155: 0 | K155: 0 | L155: 0 | M155: 0 | N155: 0 | O155: 0 | P155: 0 | Q155: 0 | R155: 0 | T155: 0 | U155: 0 | V155: 0 | Z155: 07新会项目管理损益表（总表）
B156: 05B车辆费/汽车费用 | C156: 0 | D156: 0 | E156: 0 | F156: 0 | G156: 0 | H156: 0 | I156: 0 | J156: 0 | K156: 0 | L156: 0 | M156: 0 | N156: 0 | O156: 0 | P156: 0 | Q156: 0 | R156: 0 | T156: 0 | U156: 0 | V156: 0 | Z156: 08新会项目管理损益表（总表）
B157: 06B招待费 | C157: 0 | D157: 0 | E157: 0 | F157: 0 | G157: 0 | H157: 0 | I157: 0 | J157: 0 | K157: 0 | L157: 0 | M157: 0 | N157: 0 | O157: 0 | P157: 0 | Q157: 0 | R157: 0 | T157: 0 | U157: 0 | V157: 0 | Z157: 09新会项目管理损益表（总表）
B158: 07B差旅费 | C158: 0 | D158: 0 | E158: 0 | F158: 0 | G158: 0 | H158: 0 | I158: 0 | J158: 0 | K158: 0 | L158: 0 | M158: 0 | N158: 0 | O158: 0 | P158: 0 | Q158: 0 | R158: 0 | T158: 0 | U158: 0 | V158: 0 | Z158: 10新会项目管理损益表（总表）
B159: 08B办公费（含市内交通） | C159: 0 | D159: 0 | E159: 0 | F159: 0 | G159: 0 | H159: 0 | I159: 0 | J159: 0 | K159: 0 | L159: 0 | M159: 0 | N159: 0 | O159: 0 | P159: 0 | Q159: 0 | R159: 0 | T159: 0 | U159: 0 | V159: 0 | Z159: 11新会项目管理损益表（总表）
B160: 09B通讯费 | C160: 0 | D160: 0 | E160: 0 | F160: 0 | G160: 0 | H160: 0 | I160: 0 | J160: 0 | K160: 0 | L160: 0 | M160: 0 | N160: 0 | O160: 0 | P160: 0 | Q160: 0 | R160: 0 | T160: 0 | U160: 0 | V160: 0 | Z160: 12新会项目管理损益表（总表）
B161: 10B折销费 | C161: 0 | D161: 0 | E161: 0 | F161: 0 | G161: 0 | H161: 0 | I161: 0 | J161: 0 | K161: 0 | L161: 0 | M161: 0 | N161: 0 | O161: 0 | P161: 0 | Q161: 0 | R161: 0 | T161: 0 | U161: 0 | V161: 0 | Z161: 13新会项目管理损益表（总表）
B162: 11B外包装卸费 | C162: 0 | D162: 0 | E162: 0 | F162: 0 | G162: 0 | H162: 0 | I162: 0 | J162: 0 | K162: 0 | L162: 0 | M162: 0 | N162: 0 | O162: 0 | P162: 0 | Q162: 0 | R162: 0 | T162: 0 | U162: 0 | V162: 0 | Z162: 14新会项目管理损益表（总表）
B163: 12B保险费 | C163: 0 | D163: 0 | E163: 0 | F163: 0 | G163: 0 | H163: 0 | I163: 0 | J163: 0 | K163: 0 | L163: 0 | M163: 0 | N163: 0 | O163: 0 | P163: 0 | Q163: 0 | R163: 0 | T163: 0 | U163: 0 | V163: 0 | Z163: 15新会项目管理损益表（总表）
B164: 13B企业宣传费 | C164: 0 | D164: 0 | E164: 0 | F164: 0 | G164: 0 | H164: 0 | I164: 0 | J164: 0 | K164: 0 | L164: 0 | M164: 0 | N164: 0 | O164: 0 | P164: 0 | Q164: 0 | R164: 0 | T164: 0 | U164: 0 | V164: 0 | Z164: 16新会项目管理损益表（总表）
B165: 14B专项费用 | C165: 0 | D165: 0 | E165: 0 | F165: 0 | G165: 0 | H165: 0 | I165: 0 | J165: 0 | K165: 0 | L165: 0 | M165: 0 | N165: 0 | O165: 0 | P165: 0 | Q165: 0 | R165: 0 | T165: 0 | U165: 0 | V165: 0 | Z165: 17新会项目管理损益表（总表）
B166: 15B残疾人就业保障金 | C166: 0 | D166: 0 | E166: 0 | F166: 0 | G166: 0 | H166: 0 | I166: 0 | J166: 0 | K166: 0 | L166: 0 | M166: 0 | N166: 0 | O166: 0 | P166: 0 | Q166: 0 | R166: 0 | T166: 0 | U166: 0 | V166: 0 | Z166: 18新会项目管理损益表（总表）
B167: 16B其 他 | C167: 0 | D167: 0 | E167: 0 | F167: 0 | G167: 0 | H167: 0 | I167: 0 | J167: 0 | K167: 0 | L167: 0 | M167: 0 | N167: 0 | O167: 0 | P167: 0 | Q167: 0 | R167: 0 | T167: 0 | U167: 0 | V167: 0 | Z167: 19新会项目管理损益表（总表）
B168: 02仓储事业部管理损益表 | C168: =C169+C185+C201+C217+C233 -> 102.033429 | D168: =D169+D185+D201+D217+D233 -> 76.119251 | E168: 76.408469 | F168: 90.959381 | G168: 84.310701 | H168: 78.390943 | I168: 85.426856 | J168: 89.154608 | K168: 90.443017 | L168: 79.14301 | M168: 0 | N168: 0 | O168: =SUM(C168:N168) -> 852.389665 | P168: =L168 -> 79.14301 | Q168: =K168 -> 90.443017 | R168: -11.300007 | S168: -0.1249406242 | T168: 852.389665 | U168: =U169+U185+U201+U217+U233 -> 793.617241 | V168: 58.772424 | W168: 0.07405638507 | X168: =X169+X185+X201+X217+X233 -> 1386.714102 | Y168: =IF(ISERROR(T168/X168),"",(T168/X168)) -> 0.6146830582
B169: 07明珠项目管理损益表 | C169: =SUM(C170,C173:C184) -> 66.613187 | D169: =SUM(D170,D173:D184) -> 44.156709 | E169: 49.473981 | F169: 56.565902 | G169: 50.863377 | H169: 47.555697 | I169: 55.317016 | J169: 55.110178 | K169: 46.58503 | L169: 44.621965 | M169: 0 | N169: 0 | O169: 516.863042 | P169: 44.621965 | Q169: 46.58503 | R169: -1.963065 | S169: -0.04213939542 | T169: 516.863042 | U169: =SUM(U170,U173:U184) -> 494.952473 | V169: 21.910569 | W169: 0.04426802611 | X169: =SUM(X170,X173:X184) -> 682.6434 | Y169: 0.7571494019 | Z169: 07明珠项目管理损益表
B170: 02B职工薪酬 | C170: 59.014257 | D170: 37.794232 | E170: 41.232088 | F170: 46.701595 | G170: 44.555625 | H170: 35.768662 | I170: 34.353988 | J170: 49.350022 | K170: 36.98089 | L170: 39.179273 | M170: 0 | N170: 0 | O170: 424.930632 | P170: 39.179273 | Q170: 36.98089 | R170: 2.198383 | S170: 0.05944646005 | T170: 424.930632 | U170: 355.593681 | V170: 69.336951 | W170: 0.1949892664 | X170: 524.5346 | Y170: 0.8101098231 | Z170: 08明珠项目管理损益表
B171: 03B其中：工资 | C171: 25.29832 | D171: 20.87965 | E171: 25.624244 | F171: 23.996891 | G171: 26.226651 | H171: 25.725353 | I171: 25.846941 | J171: 28.54694 | K171: 27.281259 | L171: 31.791475 | M171: 0 | N171: 0 | O171: 261.217724 | P171: 31.791475 | Q171: 27.281259 | R171: 4.510216 | S171: 0.1653228687 | T171: 261.217724 | U171: 208.026276 | V171: 53.191448 | W171: 0.2556958141 | X171: 328.443036 | Y171: 0.7953212441 | Z171: 09明珠项目管理损益表
B172: 04B 奖金 | C172: 28.51 | D172: 12.51 | E172: 12.51 | F172: 12.51 | G172: 12.51 | H172: 0 | I172: 0 | J172: 12.51 | K172: 0 | L172: 0 | M172: 0 | N172: 0 | O172: 91.06 | P172: 0 | Q172: 0 | R172: 0 | T172: 91.06 | U172: 89.81502 | V172: 1.24498 | W172: 0.01386160132 | X172: 68.5264 | Y172: 1.328830932 | Z172: 10明珠项目管理损益表
B173: 05B车辆费/汽车费用 | C173: 0.166879 | D173: 0.339724 | E173: 0.36031 | F173: 0.545043 | G173: 0.695283 | H173: 0.569065 | I173: 0.670011 | J173: 1.047926 | K173: 0.443805 | L173: 0.646777 | M173: 0 | N173: 0 | O173: 5.484823 | P173: 0.646777 | Q173: 0.443805 | R173: 0.202972 | S173: 0.4573450051 | T173: 5.484823 | U173: 7.848337 | V173: -2.363514 | W173: -0.3011483834 | X173: 15.88 | Y173: 0.3453918766 | Z173: 11明珠项目管理损益表
B174: 06B招待费 | C174: 1.27019 | D174: 3.03701 | E174: 2.07773 | F174: 4.55398 | G174: 1.11881 | H174: 6.0141 | I174: 1.80947 | J174: 1.4042 | K174: 4.7157 | L174: 1.288788 | M174: 0 | N174: 0 | O174: 27.289978 | P174: 1.288788 | Q174: 4.7157 | R174: -3.426912 | S174: -0.7267027165 | T174: 27.289978 | U174: 35.689915 | V174: -8.399937 | W174: -0.2353588402 | X174: 57 | Y174: 0.4787715439 | Z174: 12明珠项目管理损益表
B175: 07B差旅费 | C175: 0.503029 | D175: 0.435042 | E175: 0.26225 | F175: 0.551337 | G175: 0.528557 | H175: 1.795325 | I175: 0.999119 | J175: 0.213238 | K175: 0.900743 | L175: 0.908601 | M175: 0 | N175: 0 | O175: 7.097241 | P175: 0.908601 | Q175: 0.900743 | R175: 0.007858 | S175: 0.00872390904 | T175: 7.097241 | U175: 2.774133 | V175: 4.323108 | W175: 1.55836364 | X175: 15.64 | Y175: 0.4537877877 | Z175: 13明珠项目管理损益表
B176: 08B办公费（含市内交通） | C176: 4.928327 | D176: 1.452306 | E176: 4.747018 | F176: 3.446514 | G176: 3.159816 | H176: 2.724343 | I176: 3.834367 | J176: 2.408405 | K176: 2.426123 | L176: 1.907532 | M176: 0 | N176: 0 | O176: 31.034751 | P176: 1.907532 | Q176: 2.426123 | R176: -0.518591 | S176: -0.2137529713 | T176: 31.034751 | U176: 24.884275 | V176: 6.150476 | W176: 0.2471631583 | X176: 43.37 | Y176: 0.7155810699 | Z176: 14明珠项目管理损益表
B177: 09B通讯费 | C177: 0.568517 | D177: 0.546407 | E177: 0.632597 | F177: 0.605445 | G177: 0.625788 | H177: 0.504704 | I177: 0.502317 | J177: 0.506889 | K177: 0.513743 | L177: 0.511496 | M177: 0 | N177: 0 | O177: 5.517903 | P177: 0.511496 | Q177: 0.513743 | R177: -0.002247 | S177: -0.004373782222 | T177: 5.517903 | U177: 4.976181 | V177: 0.541722 | W177: 0.1088630016 | X177: 6.2188 | Y177: 0.8872938509 | Z177: 15明珠项目管理损益表
B178: 10B折销费 | C178: 0.161988 | D178: 0.161988 | E178: 0.161988 | F178: 0.161988 | G178: 0.179498 | H178: 0.179498 | I178: 0.179498 | J178: 0.179498 | K178: 0.179498 | L178: 0.179498 | M178: 0 | N178: 0 | O178: 1.72494 | P178: 0.179498 | Q178: 0.179498 | R178: 0 | S178: 0 | T178: =SUM(C178:N178) -> 1.72494 | U178: 3.672268 | V178: -1.947328 | W178: -0.5302793805 | X178: 0 | Z178: 16明珠项目管理损益表
B179: 11B外包装卸费 | C179: 0 | D179: 0 | E179: 0 | F179: 0 | G179: 0 | H179: 0 | I179: 0 | J179: 0 | K179: 0 | L179: 0 | M179: 0 | N179: 0 | O179: 0 | P179: 0 | Q179: 0 | R179: 0 | T179: 0 | U179: 0 | V179: 0 | Z179: 17明珠项目管理损益表
B180: 12B保险费 | C180: 0 | D180: 0 | E180: 0 | F180: 0 | G180: 0 | H180: 0 | I180: 0 | J180: 0 | K180: 0 | L180: 0 | M180: 0 | N180: 0 | O180: 0 | P180: 0 | Q180: 0 | R180: 0 | T180: 0 | U180: 0 | V180: 0 | Z180: 18明珠项目管理损益表
B181: 13B企业宣传费 | C181: 0 | D181: 0 | E181: 0 | F181: 0 | G181: 0 | H181: 0 | I181: 0 | J181: 0 | K181: 0 | L181: 0 | M181: 0 | N181: 0 | O181: 0 | P181: 0 | Q181: 0 | R181: 0 | T181: 0 | U181: 0 | V181: 0 | X181: 19.5 | Y181: 0 | Z181: 19明珠项目管理损益表
B182: 14B专项费用 | C182: 0 | D182: 0 | E182: 0 | F182: 0 | G182: 0 | H182: 0 | I182: 12.968246 | J182: 0 | K182: 0.424528 | L182: 0 | M182: 0 | N182: 0 | O182: 13.392774 | P182: 0 | Q182: 0.424528 | R182: -0.424528 | S182: -1 | T182: 13.392774 | U182: 59.629142 | V182: -46.236368 | W182: -0.7753988478 | X182: 0 | Z182: 20明珠项目管理损益表
B183: 15B残疾人就业保障金 | C183: 0 | D183: 0 | E183: 0 | F183: 0 | G183: 0 | H183: 0 | I183: 0 | J183: 0 | K183: 0 | L183: 0 | M183: 0 | N183: 0 | O183: 0 | P183: 0 | Q183: 0 | R183: 0 | T183: 0 | U183: 0 | V183: 0 | X183: 0 | Z183: 21明珠项目管理损益表
B184: 16B其 他 | C184: 0 | D184: 0.39 | E184: 0 | F184: 0 | G184: 0 | H184: 0 | I184: 0 | J184: 0 | K184: 0 | L184: 0 | M184: 0 | N184: 0 | O184: 0.39 | P184: 0 | Q184: 0 | R184: 0 | T184: 0.39 | U184: -0.115459 | V184: 0.505459 | W184: 4.37782243 | X184: 0.5 | Y184: 0.78 | Z184: 22明珠项目管理损益表
B185: 08平仓损益表 | C185: =SUM(C186,C189:C200) -> 23.085995 | D185: =SUM(D186,D189:D200) -> 17.442868 | E185: 17.198482 | F185: 18.854452 | G185: 19.909685 | H185: 17.385652 | I185: 17.430502 | J185: 22.009348 | K185: 18.38625 | L185: 20.512696 | M185: 0 | N185: 0 | O185: 192.21593 | P185: 20.512696 | Q185: 18.38625 | R185: 2.126446 | S185: 0.1156541437 | T185: 192.21593 | U185: =SUM(U186:U200)-U187-U188 -> 215.715368 | V185: -23.499438 | W185: -0.1089372455 | X185: =SUM(X186,X189:X200) -> 319.980102 | Y185: 0.6007121343 | Z185: 08平仓损益表
B186: 02B职工薪酬 | C186: 19.287769 | D186: 17.108073 | E186: 16.708494 | F186: 17.486096 | G186: 18.332947 | H186: 16.13624 | I186: 15.616058 | J186: 20.230588 | K186: 17.602681 | L186: 19.808257 | M186: 0 | N186: 0 | O186: 178.317203 | P186: 19.808257 | Q186: 17.602681 | R186: 2.205576 | S186: 0.1252977316 | T186: 178.317203 | U186: 204.369142 | V186: -26.051939 | W186: -0.127474915 | X186: 308.1244 | Y186: 0.5787182158 | Z186: 09平仓损益表
B187: 03B其中：工资 | C187: 13.831338 | D187: 11.779042 | E187: 11.379463 | F187: 11.791265 | G187: 12.73616 | H187: 12.626711 | I187: 13.294811 | J187: 14.068041 | K187: 14.320286 | L187: 16.871434 | M187: 0 | N187: 0 | O187: 132.698551 | P187: 16.871434 | Q187: 14.320286 | R187: 2.551148 | S187: 0.1781492353 | T187: 132.698551 | U187: 154.671538 | V187: -21.972987 | W187: -0.1420622519 | X187: 224.076316 | Y187: 0.5922024843 | Z187: 10平仓损益表
B188: 04B 奖金 | C188: 3.29 | D188: 3.29 | E188: 3.29 | F188: 3.29 | G188: 3.29 | H188: 0 | I188: 0 | J188: 3.29 | K188: 0 | L188: 0 | M188: 0 | N188: 0 | O188: 19.74 | P188: 0 | Q188: 0 | R188: 0 | T188: 19.74 | U188: 22.44276 | V188: -2.70276 | W188: -0.1204290381 | X188: 29.3406 | Y188: 0.6727878775 | Z188: 11平仓损益表
B189: 05B车辆费/汽车费用 | C189: 0.12618 | D189: 0.216866 | E189: 0.094155 | F189: 0.092414 | G189: 1.272433 | H189: 0.289073 | I189: 0.766127 | J189: 0.472783 | K189: 0.0922 | L189: 0.076842 | M189: 0 | N189: 0 | O189: 3.499073 | P189: 0.076842 | Q189: 0.0922 | R189: -0.015358 | S189: -0.1665726681 | T189: 3.499073 | U189: 3.454002 | V189: 0.045071 | W189: 0.01304892122 | X189: 2.933978 | Y189: 1.192603694 | Z189: 12平仓损益表
B190: 06B招待费 | C190: 0 | D190: 0.029007 | E190: 0 | F190: 0.4714 | G190: 0 | H190: 0 | I190: 0 | J190: 0 | K190: 0 | L190: 0 | M190: 0 | N190: 0 | O190: 0.500407 | P190: 0 | Q190: 0 | R190: 0 | T190: 0.500407 | U190: 0 | V190: 0.500407 | X190: 0.511724 | Y190: 0.9778845628 | Z190: 13平仓损益表
B191: 07B差旅费 | C191: 0 | D191: 0 | E191: 0 | F191: 0 | G191: 0 | H191: 0 | I191: 0 | J191: 0 | K191: 0 | L191: 0 | M191: 0 | N191: 0 | O191: 0 | P191: 0 | Q191: 0 | R191: 0 | T191: 0 | U191: 0 | V191: 0 | X191: 0 | Z191: 14平仓损益表
B192: 08B办公费（含市内交通） | C192: 3.593909 | D192: 0.0044 | E192: 0.309762 | F192: 0.713763 | G192: 0.211976 | H192: 0.846331 | I192: 0.940178 | J192: 1.196642 | K192: 0.581853 | L192: 0.515874 | M192: 0 | N192: 0 | O192: =SUM(C192:N192) -> 8.914688 | P192: 0.515874 | Q192: 0.581853 | R192: -0.065979 | S192: -0.1133946203 | T192: 8.914688 | U192: 4.621616 | V192: 4.293072 | W192: 0.9289114457 | X192: 5.01 | Y192: 1.779378842 | Z192: 15平仓损益表
B193: 09B通讯费 | C193: 0.078137 | D193: 0.084522 | E193: 0.086071 | F193: 0.090779 | G193: 0.092329 | H193: 0.114008 | I193: 0.108139 | J193: 0.109335 | K193: 0.109516 | L193: 0.111723 | M193: 0 | N193: 0 | O193: 0.984559 | P193: 0.111723 | Q193: 0.109516 | R193: 0.002207 | S193: 0.02015230651 | T193: 0.984559 | U193: 3.270608 | V193: -2.286049 | W193: -0.6989675926 | X193: 3.4 | Y193: 0.2895761765 | Z193: 16平仓损益表
B194: 10B折销费 | C194: 0 | D194: 0 | E194: 0 | F194: 0 | G194: 0 | H194: 0 | I194: 0 | J194: 0 | K194: 0 | L194: 0 | M194: 0 | N194: 0 | O194: 0 | P194: 0 | Q194: 0 | R194: 0 | T194: 0 | U194: 0 | V194: 0 | X194: 0 | Z194: 17平仓损益表
B195: 11B外包装卸费 | C195: 0 | D195: 0 | E195: 0 | F195: 0 | G195: 0 | H195: 0 | I195: 0 | J195: 0 | K195: 0 | L195: 0 | M195: 0 | N195: 0 | O195: 0 | P195: 0 | Q195: 0 | R195: 0 | T195: 0 | U195: 0 | V195: 0 | Z195: 18平仓损益表
B196: 12B保险费 | C196: 0 | D196: 0 | E196: 0 | F196: 0 | G196: 0 | H196: 0 | I196: 0 | J196: 0 | K196: 0 | L196: 0 | M196: 0 | N196: 0 | O196: 0 | P196: 0 | Q196: 0 | R196: 0 | T196: 0 | U196: 0 | V196: 0 | Z196: 19平仓损益表
B197: 13B企业宣传费 | C197: 0 | D197: 0 | E197: 0 | F197: 0 | G197: 0 | H197: 0 | I197: 0 | J197: 0 | K197: 0 | L197: 0 | M197: 0 | N197: 0 | O197: 0 | P197: 0 | Q197: 0 | R197: 0 | T197: 0 | U197: 0 | V197: 0 | X197: 0 | Z197: 20平仓损益表
B198: 14B专项费用 | C198: 0 | D198: 0 | E198: 0 | F198: 0 | G198: 0 | H198: 0 | I198: 0 | J198: 0 | K198: 0 | L198: 0 | M198: 0 | N198: 0 | O198: 0 | P198: 0 | Q198: 0 | R198: 0 | T198: 0 | U198: 0 | V198: 0 | X198: 0 | Z198: 21平仓损益表
B199: 15B残疾人就业保障金 | C199: 0 | D199: 0 | E199: 0 | F199: 0 | G199: 0 | H199: 0 | I199: 0 | J199: 0 | K199: 0 | L199: 0 | M199: 0 | N199: 0 | O199: 0 | P199: 0 | Q199: 0 | R199: =P199-Q199 -> 0 | S199: =IF(ISERROR(R199/Q199),"",(R199/ABS(Q199))) ->  | T199: 0 | U199: 0 | V199: =T199-U199 -> 0 | W199: =IF(ISERROR(V199/U199),"",(V199/ABS(U199))) ->  | X199: 0 | Z199: 22平仓损益表
B200: 16B其 他 | C200: 0 | D200: 0 | E200: 0 | F200: 0 | G200: 0 | H200: 0 | I200: 0 | J200: 0 | K200: 0 | L200: 0 | M200: 0 | N200: 0 | O200: 0 | P200: 0 | Q200: 0 | R200: 0 | T200: 0 | U200: 0 | V200: 0 | X200: 0 | Z200: 23平仓损益表
B201: 09广西钦州保税港区损益表 | C201: =SUM(C202,C205:C216) -> 7.71525 | D201: =SUM(D202,D205:D216) -> 5.597218 | E201: 4.72847 | F201: 5.562734 | G201: 6.058685 | H201: 6.297933 | I201: 5.83787 | J201: 5.323871 | K201: 18.204629 | L201: 6.381487 | M201: 0 | N201: 0 | O201: 71.708147 | P201: 6.381487 | Q201: 18.204629 | R201: -11.823142 | S201: -0.6494580032 | T201: 71.708147 | U201: =SUM(U202:U216)-U203-U204 -> 82.9494 | V201: -11.241253 | W201: -0.135519401 | X201: =SUM(X202,X205:X216) -> 277.5927 | Y201: 0.2583214436 | Z201: 09广西钦州保税港区损益表
... 427 more rows

Sheet 附表6-销售关联交易 (经营单位) (hidden)
A1: 附表5：2019年10月份销售关联交易表
A2: ·
A3: 关联方名称 | B3: 本年累计 | C3: 1月 | D3: 2月 | E3: 3月 | F3: 4月 | G3: 5月 | H3: 6月 | I3: 7月 | J3: 8月 | K3: 9月 | L3: 10月 | M3: 11月 | N3: 12月
A4: 关联交易占比股份合并销售收入 | B4: =B6/B5 -> 0.2384970538 | C4: 0.2240421682 | D4: 0.5347287251 | E4: 0.1717478125 | F4: 0.3700399931 | G4: 0.2686905191 | H4: 0.189761351 | I4: 0.3528558443 | J4: 0.2507810902 | K4: 0.1826363668 | L4: 0.1442509827
A5: 股份合并销售收入 | B5: =SUM(C5:N5) -> 55207.1627 | C5: ='[13]股份公司税务利润表 '!C6 -> 5171.143162 | D5: ='[13]股份公司税务利润表 '!D6 -> 2415.996838 | E5: ='[13]股份公司税务利润表 '!E6 -> 6967.242456 | F5: ='[13]股份公司税务利润表 '!F6 -> 4466.275983 | G5: ='[13]股份公司税务利润表 '!G6 -> 5959.221861 | H5: ='[13]股份公司税务利润表 '!H6 -> 6168.211641 | I5: ='[13]股份公司税务利润表 '!I6 -> 4326.926312 | J5: ='[13]股份公司税务利润表 '!J6 -> 4347.989664 | K5: ='[13]股份公司税务利润表 '!K6 -> 6746.066929 | L5: ='[13]股份公司税务利润表 '!L6 -> 8638.08785 | M5: ='[13]股份公司税务利润表 '!M6 -> 0
A6: 销售关联交易合计 | B6: =SUM(B7:B28) -> 13166.74565 | C6: =SUM(C7:C28) -> 1158.554126 | D6: =SUM(D7:D28) -> 1291.902909 | E6: 1196.608651 | F6: 1652.700734 | G6: 1601.186415 | H6: 1170.488174 | I6: 1526.781237 | J6: 1090.393588 | K6: 1232.077154 | L6: 1246.052661 | M6: 0 | N6: 0
A7: 厦门建发物产有限公司 | B7: 7446.773242 | C7: 543.006663 | D7: 507.252459 | E7: 532.812903 | F7: 658.347841 | G7: 790.96789 | H7: 668.672278 | I7: 1136.771816 | J7: 783.936868 | K7: 808.034305 | L7: 1016.970219 | O7: =SUMIF('[16]销售关联交易统计 (经营单位)'!$C:$C,A7,'[16]销售关联交易统计 (经营单位)'!$N:$N) ->  | P7: 1016.970219 | Q7: 10000
A8: 厦门建发原材料贸易有限公司 | B8: 1358.192766 | C8: 325.055053 | D8: 467.696106 | E8: 343.960514 | F8: 13.99072 | G8: 41.686149 | H8: 42.268742 | I8: 2.978074 | J8: -5.931641 | K8: 5.187287 | L8: 121.301762 | O8: =SUMIF('[16]销售关联交易统计 (经营单位)'!$C:$C,A8,'[16]销售关联交易统计 (经营单位)'!$N:$N) ->  | P8: 121.301762
A9: 厦门建发农产品有限公司 | B9: 1507.999095 | C9: 181.47749 | D9: 54.061841 | E9: 153.028886 | F9: 167.545302 | G9: 245.274521 | H9: 201.788609 | I9: 163.338643 | J9: 208.723385 | K9: 63.190806 | L9: 69.569612 | O9: =SUMIF('[16]销售关联交易统计 (经营单位)'!$C:$C,A9,'[16]销售关联交易统计 (经营单位)'!$N:$N) ->  | P9: 69.569612
A10: C AND D(USA)TNC. | B10: 0 | C10: 0 | D10: 0 | E10: 0 | F10: 0 | G10: 0 | H10: 0 | I10: 0 | J10: 0 | K10: 0 | L10: 0 | O10: =SUMIF('[16]销售关联交易统计 (经营单位)'!$C:$C,A10,'[16]销售关联交易统计 (经营单位)'!$N:$N) ->  | P10: 0
A11: 建发物流集团有限公司 | B11: 1363.864997 | C11: 6.419529 | D11: 78.216307 | E11: 53.360966 | F11: 708.814918 | G11: 220.583562 | H11: 98.55124 | I11: 115.423293 | J11: 25.288448 | K11: 43.627966 | L11: 13.578768 | O11: =SUMIF('[16]销售关联交易统计 (经营单位)'!$C:$C,A11,'[16]销售关联交易统计 (经营单位)'!$N:$N) ->  | P11: 13.578768
A12: 大连建发原材料贸易有限公司 | B12: 0 | C12: 0 | D12: 0 | E12: 0 | F12: 0 | G12: 0 | H12: 0 | I12: 0 | J12: 0 | K12: 0 | L12: 0 | O12: =SUMIF('[16]销售关联交易统计 (经营单位)'!$C:$C,A12,'[16]销售关联交易统计 (经营单位)'!$N:$N) ->  | P12: 0
A13: 福州建发实业有限公司 | B13: 160.719136 | C13: 26.873365 | D13: 0.809599 | E13: 20.967776 | F13: 18.400693 | G13: 9.631968 | H13: 22.874729 | I13: 23.33086 | J13: 6.503832 | K13: 30.77857 | L13: 0.547744 | O13: =SUMIF('[16]销售关联交易统计 (经营单位)'!$C:$C,A13,'[16]销售关联交易统计 (经营单位)'!$N:$N) ->  | P13: 0.547744
A14: 建发物流（上海）有限公司 | B14: 382.928666 | C14: -0.025372 | D14: 25.950989 | E14: 22.382338 | F14: 0 | G14: 25.484692 | H14: -2.90566 | I14: 50.129925 | J14: 16.409387 | K14: 244.641047 | L14: 0.86132 | O14: =SUMIF('[16]销售关联交易统计 (经营单位)'!$C:$C,A14,'[16]销售关联交易统计 (经营单位)'!$N:$N) ->  | P14: 0.86132
A15: 浙江利远海运有限公司 | B15: 19.469869 | C15: 0 | D15: 19.614739 | E15: -17.130335 | F15: 0 | G15: 15.25956 | H15: 34.535904 | I15: -33.875549 | J15: 0.968683 | K15: 0 | L15: 0.096867 | O15: =SUMIF('[16]销售关联交易统计 (经营单位)'!$C:$C,A15,'[16]销售关联交易统计 (经营单位)'!$N:$N) ->  | P15: 0.096867
A16: 厦门启润实业有限公司 | B16: 17.562621 | C16: 6.716047 | D16: 0.042264 | E16: 11.909158 | F16: 0 | G16: -1.08441 | H16: -0.020438 | I16: 0 | J16: 0 | K16: 0 | L16: 0 | O16: =SUMIF('[16]销售关联交易统计 (经营单位)'!$C:$C,A16,'[16]销售关联交易统计 (经营单位)'!$N:$N) ->  | P16: 0
A17: 厦门国贸集团股份有限公司 | B17: 68.243568 | C17: 7.015459 | D17: 1.034694 | E17: 12.080415 | F17: 15.129678 | G17: 3.006184 | H17: 4.078499 | I17: 14.617046 | J17: 4.09944 | K17: 4.067451 | L17: 3.114702 | O17: =SUMIF('[16]销售关联交易统计 (经营单位)'!$C:$C,A17,'[16]销售关联交易统计 (经营单位)'!$N:$N) ->  | P17: 3.114702
A18: 厦门建发矿业资源有限公司 | B18: 0 | C18: 0 | D18: 0 | E18: 0 | F18: 0 | G18: 0 | H18: 0 | I18: 0 | J18: 0 | K18: 0 | L18: 0 | O18: =SUMIF('[16]销售关联交易统计 (经营单位)'!$C:$C,A18,'[16]销售关联交易统计 (经营单位)'!$N:$N) ->  | P18: 0
A19: 建发（北京）有限公司 | B19: 127.591221 | C19: 0 | D19: 6.016621 | E19: 7.09437 | F19: 19.980167 | G19: 8.705837 | H19: 29.131999 | I19: 23.955305 | J19: 22.700075 | K19: 5.69708 | L19: 4.309767 | O19: =SUMIF('[16]销售关联交易统计 (经营单位)'!$C:$C,A19,'[16]销售关联交易统计 (经营单位)'!$N:$N) ->  | P19: 4.309767
A20: 厦门建发化工有限公司 | B20: 21.775026 | C20: 1.339647 | D20: 2.356836 | E20: 0.140455 | F20: 2.900465 | G20: 0.29272 | H20: 2.76375 | I20: 0 | J20: 2.021941 | K20: 2.725226 | L20: 7.233986 | O20: =SUMIF('[16]销售关联交易统计 (经营单位)'!$C:$C,A20,'[16]销售关联交易统计 (经营单位)'!$N:$N) ->  | P20: 7.233986
A21: 厦门建发通商有限公司 | B21: 25.669624 | C21: 0 | D21: 0 | E21: 0.558283 | F21: 0 | G21: 0 | H21: 1.160755 | I21: 0 | J21: 5.332878 | K21: 10.766586 | L21: 7.851122 | O21: =SUMIF('[16]销售关联交易统计 (经营单位)'!$C:$C,A21,'[16]销售关联交易统计 (经营单位)'!$N:$N) ->  | P21: 7.851122
A22: 广州康泊思贸易有限公司 | B22: 5.21835 | C22: 0 | D22: 0 | E22: 0.342735 | F22: 3.885849 | G22: 0 | H22: 0 | I22: 0 | J22: 0.99373 | K22: -1e-06 | L22: -0.003963 | O22: =SUMIF('[16]销售关联交易统计 (经营单位)'!$C:$C,A22,'[16]销售关联交易统计 (经营单位)'!$N:$N) ->  | P22: -0.003963
A23: 厦门建发股份有限公司 | B23: 14.876857 | C23: 1.67542 | D23: 0 | E23: 0 | F23: 0 | G23: 0.312264 | H23: 2.364068 | I23: 1.936806 | J23: 7.967544 | K23: 0 | L23: 0.620755 | O23: =SUMIF('[16]销售关联交易统计 (经营单位)'!$C:$C,A23,'[16]销售关联交易统计 (经营单位)'!$N:$N) ->  | P23: 0.620755
A24: 上海建发国际货运代理有限公司 | B24: 0 | C24: 0 | D24: 0 | E24: 0 | F24: 0 | G24: 0 | H24: 0 | I24: 0 | J24: 0 | K24: 0 | L24: 0 | O24: =SUMIF('[16]销售关联交易统计 (经营单位)'!$C:$C,A24,'[16]销售关联交易统计 (经营单位)'!$N:$N) ->  | P24: 0
A25: 建发物流（福州）有限公司 | B25: 0.592831 | C25: 0 | D25: 0 | E25: 0 | F25: 0 | G25: 0 | H25: 0 | I25: 0.584907 | J25: 0.007924 | K25: 0 | L25: 0 | O25: =SUMIF('[16]销售关联交易统计 (经营单位)'!$C:$C,A25,'[16]销售关联交易统计 (经营单位)'!$N:$N) ->  | P25: 0
A26: 厦门建发能源有限公司 | B26: 208.884731 | C26: 0 | D26: 9.881623 | E26: 0 | F26: 0 | G26: 199.00311 | H26: -2.000000002e-06 | I26: 0 | J26: 0 | K26: 0 | L26: 0 | O26: =SUMIF('[16]销售关联交易统计 (经营单位)'!$C:$C,A26,'[16]销售关联交易统计 (经营单位)'!$N:$N) ->  | P26: 0
A27: 齐齐哈尔温氏粮食有限公司 | B27: 386.79305 | C27: 59.000825 | D27: 118.968831 | E27: 55.100187 | F27: 43.705101 | G27: 42.062368 | H27: 44.530154 | I27: 14.293885 | J27: 11.371094 | K27: 9.273284 | L27: -11.512679 | O27: =SUMIF('[16]销售关联交易统计 (经营单位)'!$C:$C,A27,'[16]销售关联交易统计 (经营单位)'!$N:$N) ->  | P27: -11.512679
A28: 龙江温氏穗丰粮食有限公司 | B28: 49.589999 | C28: 0 | D28: 0 | E28: 0 | F28: 0 | G28: 0 | H28: 20.693547 | I28: 13.296226 | J28: 0 | K28: 4.087547 | L28: 11.512679 | O28: =SUMIF('[16]销售关联交易统计 (经营单位)'!$C:$C,A28,'[16]销售关联交易统计 (经营单位)'!$N:$N) ->  | P28: 11.512679

Sheet 主要指标月度趋势图 (hidden)
A1: 附表3：主要指标月度趋势图
A2: 年份： | C2: 月度： | D2: 1 | E2: 单位：万元 | AC2: 收入趋势图
A3: 收入 | B3: 1月 | C3: 2月 | D3: 3月 | E3: 4月 | F3: 5月 | G3: 6月 | H3: 7月 | I3: 8月 | J3: 9月 | K3: 10月 | L3: 11月 | M3: 12月 | N3: 本月数 | O3: 上月数 | P3: 月度增减额 | Q3: 增幅（%） | S3: 本年累计 | T3: 上年同期 | U3: 增减额 | V3: 同比增幅（%) | W3: 本年预算 | X3: 0.9166666667 | Y3: 与正常预算的差异 | Z3: 余下月度预算目标
A4: 2019 | B4: 46373.35
A5: 2018 | B5: 55460.33 | C5: 38575.35 | D5: 45621.16 | E5: 52192.91 | F5: 51838.49 | G5: 48454.66 | H5: 70053.7 | I5: 42366.02 | J5: 44014.71 | K5: 47360.92 | L5: 48765.09 | M5: 52830.28 | N5: 36979.13488 | O5: 32588.41 | P5: 4390.724885 | Q5: 13.47327128 | S5: 365734.4682 | T5: 346570.5966 | U5: 19163.87166 | V5: 5.529572287 | W5: 439998 | X5: 83.12184788 | Y5: -37597.03176 | Z5: 74263.53176
A6: 2017 | B6: 26338.95 | C6: 25105.56 | D6: 32607.58806 | E6: 36252.97963 | F6: 36786.83312 | G6: 37829.44517 | H6: 35136.34788 | I6: 37958.15249 | J6: 37374.16301 | K6: 39617.52606 | L6: 48071.29644 | M6: 52696.95 | N6: 34337.5 | O6: 34502.53662 | P6: -165.036617 | Q6: -0.4783318364 | R6: 380908.0966 | S6: 276831.8 | T6: 104076.2966 | U6: 37.59549899 | V6: 330000 | X6: 330000 | Y6: 115.4266959
A9: 毛利 | B9: 1月 | C9: 2月 | D9: 3月 | E9: 4月 | F9: 5月 | G9: 6月 | H9: 7月 | I9: 8月 | J9: 9月 | K9: 10月 | L9: 11月 | M9: 12月 | N9: 本月数 | O9: 上月数 | P9: 月度增减额 | Q9: 增幅（%） | S9: 本年累计 | T9: 上年同期 | U9: 增减额 | V9: 同比增幅（%) | W9: 本年预算 | X9: 0.9166666667 | Y9: 与正常预算的差异 | Z9: 余下月度预算目标
A10: 2019 | B10: 9454.74 | C10: 172.08 | D10: 9282.66 | E10: 0 | F10: 0 | G10: 0
A11: 2018 | B11: 9700.174931 | C11: 6607.859379 | D11: 10409.56382 | E11: 10575.31685 | F11: 10758.98987 | G11: 10883.09753 | H11: 10531.91 | I11: 10650.88821 | J11: 10499.20716 | K11: 9681.53 | L11: 10917.06776 | M11: 12462.10076 | N11: 10917.06776 | O11: 9681.53 | P11: 1235.537758 | Q11: 12.76180271 | R11: 0 | S11: 111215.6055 | T11: 103037.0614 | U11: 8178.544061 | V11: 7.937477977 | W11: 129688.2 | X11: 85.7561486 | Y11: -7665.244492 | Z11: 18472.59449
A12: 2017 | B12: 8863.821655 | C12: 6645.763733 | D12: 8888.229098 | E12: 9699.869119 | F12: 9722.162396 | G12: 9827.088426 | H12: 10033.15143 | I12: 10267.33435 | J12: 9327.9 | K12: 9026.4 | L12: 10735.34124 | M12: 10809.9 | N12: 10809.9 | O12: 10735.34124 | P12: 74.558764 | Q12: 0.6945169451 | R12: 113846.9614 | S12: 97402.3 | T12: 16444.66145 | U12: 16.8832373 | V12: 109526.1735 | W12: 0 | X12: 109526.1735 | Y12: 103.9449821 | Z12: 0
A14: 三项费用 | B14: 1月 | C14: 2月 | D14: 3月 | E14: 4月 | F14: 5月 | G14: 6月 | H14: 7月 | I14: 8月 | J14: 9月 | K14: 10月 | L14: 11月 | M14: 12月 | N14: 本月数 | O14: 上月数 | P14: 月度增减额 | Q14: 增幅（%） | S14: 本年累计 | T14: 上年同期 | U14: 增减额 | V14: 同比增幅（%) | W14: 本年预算 | X14: 0.9166666667 | Y14: 与正常预算的差异 | Z14: 余下月度预算目标
A15: 2019 | B15: 6469.88 | C15: 160.78 | D15: 6309.1 | E15: 0 | F15: 0 | G15: 0
A16: 2018 | N16: 7688.232003 | O16: 7342.22 | P16: 346.012003 | Q16: 4.712634639 | R16: 0 | S16: 75252.3853 | T16: 65770.144 | U16: 9482.241299 | V16: 14.41724272 | W16: 86354 | X16: 87.14406432 | Y16: -3905.448031 | Z16: 11101.6147
A17: 2017 | B17: 5634.2245 | C17: 5259.892177 | D17: 5493.670721 | E17: 5728.61948 | F17: 5927.651508 | G17: 6070.807452 | H17: 6105.211845 | I17: 6394.561611 | J17: 6523.266667 | K17: 6105.766667 | L17: 6526.471376 | M17: 6463.066667 | N17: 8163.066667 | O17: 6526.471376 | P17: 1636.595291 | Q17: 104.7143027 | R17: 73933.21067 | S17: 64260.2 | T17: 9673.01067 | U17: 47.20630012 | V17: 70952.91436 | W17: 0 | X17: 70952.91436 | Y17: 312.9276931 | Z17: 0
A21: 经营管理费用 | B21: 1月 | C21: 2月 | D21: 3月 | E21: 4月 | F21: 5月 | G21: 6月 | H21: 7月 | I21: 8月 | J21: 9月 | K21: 10月 | L21: 11月 | M21: 12月
A22: 2019 | B22: 1428.77
A23: 2018 | B23: 1676.71 | C23: 1257.10194 | D23: 1523.87 | E23: 1375.262363 | F23: 1442.97 | G23: 1474.64 | H23: 1585.1 | I23: 1532.01 | J23: 1813.16 | K23: 1513.12 | L23: 1594.52 | M23: 2506.23
A24: 2017 | B24: 1503.179759 | C24: 1469.805225 | D24: 1463.383984 | E24: 1438.862216 | F24: 1427.089992 | G24: 1620.330543 | H24: 1621.352128 | I24: 1561.557475 | J24: 1796.008061 | K24: 1516.40932 | L24: 1438.88637 | M24: 1907.091012
A26: 人工成本 | B26: 1月 | C26: 2月 | D26: 3月 | E26: 4月 | F26: 5月 | G26: 6月 | H26: 7月 | I26: 8月 | J26: 9月 | K26: 10月 | L26: 11月 | M26: 12月 | N26: 本月数 | O26: 上月数 | P26: 月度增减额 | Q26: 增幅（%） | S26: 本年累计 | T26: 上年同期 | U26: 增减额 | V26: 同比增幅（%) | W26: 本年预算 | X26: 0.9166666667 | Y26: 与正常预算的差异 | Z26: 余下月度预算目标
A27: 2019 | B27: 3452.51
A28: 2018 | B28: 3641.33 | C28: 3189.37 | D28: 3054.38 | E28: 3142.04 | F28: 2990.59 | G28: 3697.85 | H28: 3545.52 | I28: 3795.18 | J28: 3992.19 | K28: 3660.71 | L28: 4033.22 | M28: 4953.72
A29: 2017 | B29: 3454.895193 | C29: 3269.044963 | D29: 3189.098229 | E29: 3318.543678 | F29: 3392.347107 | G29: 3397.460135 | H29: 3131.73883 | I29: 3498.301716 | J29: 3602.797811 | K29: 3463.145414 | L29: 3456.531522 | M29: 3926.200512
A31: 利润总额 | B31: 1月 | C31: 2月 | D31: 3月 | E31: 4月 | F31: 5月 | G31: 6月 | H31: 7月 | I31: 8月 | J31: 9月 | K31: 10月 | L31: 11月 | M31: 12月 | N31: 本月数 | O31: 上月数 | P31: 月度增减额 | Q31: 增幅（%） | S31: 本年累计 | T31: 上年同期 | U31: 增减额 | V31: 同比增幅（%) | W31: 本年预算 | X31: 0.9166666667 | Y31: 与正常预算的差异 | Z31: 余下月度预算目标
A32: 2019 | B32: 3365.75
A33: 2018 | B33: 2906.75 | C33: 1215.59 | D33: 3145.89 | E33: 3834.133534 | F33: 3621.133304 | G33: 3802.57 | H33: 3269.41 | I33: 3472.59 | J33: 2899.97 | K33: 3002.54 | L33: 3069.42 | M33: 2947.58
A34: 2017 | B34: 866.401049 | C34: 1605.340693 | D34: 3313.136618 | E34: 3547.008937 | F34: 3084.411827 | G34: 3202.87202 | H34: 3012.193901 | I34: 3256.754984 | J34: 3208.951792 | K34: 3160.528043 | L34: 3396.515203 | M34: 3368.090823
A37: 以上按帐套取

Sheet 现金运营指数 (hidden)
A1: 现金运营指数
B2: 日期
A3: 序号 | B3: 企业名称 | C3: 本年累计数 | G3: 本月数
C4: 经营实得－经营应得=①-② | D4: 现金营运指数=①/② | E4: 经营实得现金①取现金流量表主表经营活动产生的现金流量净额 | F4: 经营应得现金②见下表公式，取现金流量表附表来计算 | G4: 经营实得－经营应得=③-④ | H4: 现金营运指数=③/④ | I4: 经营实得现金① | J4: 经营应得现金②
A5: 一 | B5: 股份总部汇总
A6: 1-1 | B6: 惠安物业
A7: 1-2
A9: 二 | B9: 货代事业部
A10: 2-1
A11: 2-2
A12: 2-3
A13: 2-4
A14: 2-5
A16: 三 | B16: 船代事业部
A17: 2-7
A18: 3-1
A19: 3-2
A20: 3-3
A21: 3-4
A22: 3-5
A23: 3-4
A26: 4 | B26: 仓储事业部
A28: 4-1
A29: 4-2
A30: 4-3
A31: 4-4
A32: 4-5
A33: 4-6
A34: 4-7
A35: 4-8
A36: 4-2
A37: 4-3
A39: 五 | B39: 运输
A40: 5
A41: 5
A42: 5-1
A43: 5-2
A44: 5-3
A45: 5-4
A46: 5-5
A47: 5-6
A48: 5-7
A49: 5-8
A50: 5-9
A51: 5-10
A52: 5-11
A53: 5-12
A54: 5-13
A55: 5-14
A56: 5-15
A57: 5-16
A58: 5-17
A59: 5-18
A60: 5-19
A61: 5-20
A62: 5-21
A63: 5-22
A64: 5-23
A65: 5-24
A66: 5-25
A67: 5-26
A68: 5-27
A69: 5-28
A70: 5-29
A71: 5-30
A72: 5-31
A73: 5-32
A75: 六 | B75: 东北汇总
A76: 6-1
A77: 6-2
A78: 6-3
A79: 6-4
A80: 6-5
A81: 6-6
A82: 6-7
A83: 6-8
A84: 6-9
A85: 6-10
A86: 6-11
A87: 6-12
A88: 6-13
A89: 6-14
A90: 6-15
A91: 6-16
A92: 6-17
A93: 6-18
A94: 6-19
A95: 6-20
A96: 6-21
A97: 6-22
A98: 6-23
A99: 6-24
A101: 七 | B101: 其他
A102: 7-1
A103: 7-2
A106: 十四 | B106: 股份公司汇总
B107: 抵消其它板块和板块间的内部交易收入
A108: 十五 | B108: 股份净利润（KPI考核）

Sheet 单家公司损益表 (hidden)
A1: =[18]管理报表封面!A2 -> 湛江元亨
A2: 2019年损益表
A3: 货币单位：元
H4: =G8-G7 -> 0
A5: 项目 | B5: 本年预算①
B6: 本年预算金额 | C6: 预算完成% | D6: 本年实际累计 | E6: 1月 | F6: 2月 | G6: 3月 | H6: 4月 | I6: 5月 | J6: 6月 | K6: 7月 | L6: 8月 | M6: 9月 | N6: 10月 | O6: 11月 | P6: 12月 | Q6: 备 注
A7: 一、营业收入 | B7: 27375000 | C7: =IF(ISERROR(D7/B7),"",D7/B7) -> 0.2565977867 | D7: =SUM(E7:P7) -> 7024364.41 | E7: 637485.76 | F7: 60311.1 | G7: 537477.59 | H7: 4063608.33 | I7: 1124425.39 | J7: 601056.24
A8: 减：营业成本 | B8: ='[18]附表一主营业务成本明细表（湛江元亨）'!D8 -> 25445000 | C8: =IF(ISERROR(D8/B8),"",D8/B8) -> 0.2485627825 | D8: =SUM(E8:P8) -> 6324680 | E8: ='[18]附表一主营业务成本明细表（湛江元亨）'!G29 -> 465021.37 | F8: ='[18]附表一主营业务成本明细表（湛江元亨）'!H29 -> 386 | G8: ='[18]附表一主营业务成本明细表（湛江元亨）'!I29 -> 537477.59 | H8: ='[18]附表一主营业务成本明细表（湛江元亨）'!J29 -> 3793527.38 | I8: ='[18]附表一主营业务成本明细表（湛江元亨）'!K29 -> 1093243.05 | J8: ='[18]附表一主营业务成本明细表（湛江元亨）'!L29 -> 435024.61 | K8: ='[18]附表一主营业务成本明细表（湛江元亨）'!M8 -> 0 | L8: ='[18]附表一主营业务成本明细表（湛江元亨）'!N29 -> 0 | M8: ='[18]附表一主营业务成本明细表（湛江元亨）'!O29 -> 0 | N8: ='[18]附表一主营业务成本明细表（湛江元亨）'!P29 -> 0 | O8: ='[18]附表一主营业务成本明细表（湛江元亨）'!Q29 -> 0 | P8: ='[18]附表一主营业务成本明细表（湛江元亨）'!R29 -> 0
A9: 税金及附加 | B9: ='[18]附表二期间费用明细表（湛江元亨）'!D40 -> 11500 | C9: 0.1486991304 | D9: 1710.04 | E9: ='[18]附表二期间费用明细表（湛江元亨）'!G40 -> 34.2 | F9: ='[18]附表二期间费用明细表（湛江元亨）'!H40 -> 0 | G9: ='[18]附表二期间费用明细表（湛江元亨）'!I40 -> 0 | H9: ='[18]附表二期间费用明细表（湛江元亨）'!J40 -> 0 | I9: ='[18]附表二期间费用明细表（湛江元亨）'!K40 -> 1675.84 | J9: ='[18]附表二期间费用明细表（湛江元亨）'!L40 -> 0 | K9: ='[18]附表二期间费用明细表（湛江元亨）'!M40 -> 0 | L9: ='[18]附表二期间费用明细表（湛江元亨）'!N40 -> 0 | M9: ='[18]附表二期间费用明细表（湛江元亨）'!O40 -> 0 | N9: ='[18]附表二期间费用明细表（湛江元亨）'!P40 -> 0 | O9: ='[18]附表二期间费用明细表（湛江元亨）'!Q40 -> 0 | P9: ='[18]附表二期间费用明细表（湛江元亨）'!R40 -> 0
A10: 销售费用 | B10: ='[18]附表二期间费用明细表（湛江元亨）'!D19 -> 1427292 | C10: 0.4157095184 | D10: 593338.87 | E10: ='[18]附表二期间费用明细表（湛江元亨）'!G19 -> 87345.22 | F10: ='[18]附表二期间费用明细表（湛江元亨）'!H19 -> 75644.6 | G10: ='[18]附表二期间费用明细表（湛江元亨）'!I19 -> 70624.66 | H10: ='[18]附表二期间费用明细表（湛江元亨）'!J19 -> 101914.94 | I10: ='[18]附表二期间费用明细表（湛江元亨）'!K19 -> 123324.76 | J10: ='[18]附表二期间费用明细表（湛江元亨）'!L19 -> 134484.69 | K10: ='[18]附表二期间费用明细表（湛江元亨）'!M19 -> 0 | L10: ='[18]附表二期间费用明细表（湛江元亨）'!N19 -> 0 | M10: ='[18]附表二期间费用明细表（湛江元亨）'!O19 -> 0 | N10: ='[18]附表二期间费用明细表（湛江元亨）'!P19 -> 0 | O10: ='[18]附表二期间费用明细表（湛江元亨）'!Q19 -> 0 | P10: ='[18]附表二期间费用明细表（湛江元亨）'!R19 -> 0
A11: 管理费用 | B11: ='[18]附表二期间费用明细表（湛江元亨）'!D34 -> 133404 | C11: 0.09838872897 | D11: 13125.45 | E11: ='[18]附表二期间费用明细表（湛江元亨）'!G34 -> 0 | F11: ='[18]附表二期间费用明细表（湛江元亨）'!H34 -> 0 | G11: ='[18]附表二期间费用明细表（湛江元亨）'!I34 -> -2882.84 | H11: ='[18]附表二期间费用明细表（湛江元亨）'!J34 -> 0 | I11: ='[18]附表二期间费用明细表（湛江元亨）'!K34 -> 0 | J11: ='[18]附表二期间费用明细表（湛江元亨）'!L34 -> 16008.29 | K11: ='[18]附表二期间费用明细表（湛江元亨）'!M34 -> 0 | L11: ='[18]附表二期间费用明细表（湛江元亨）'!N34 -> 0 | M11: ='[18]附表二期间费用明细表（湛江元亨）'!O34 -> 0 | N11: ='[18]附表二期间费用明细表（湛江元亨）'!P34 -> 0 | O11: ='[18]附表二期间费用明细表（湛江元亨）'!Q34 -> 0 | P11: ='[18]附表二期间费用明细表（湛江元亨）'!R34 -> 0
A12: 财务费用 | B12: ='[18]附表二期间费用明细表（湛江元亨）'!D39 -> 46500 | C12: 0.2463068817 | D12: 11453.27 | E12: ='[18]附表二期间费用明细表（湛江元亨）'!G39 -> 5376.43 | F12: ='[18]附表二期间费用明细表（湛江元亨）'!H39 -> 434.18 | G12: ='[18]附表二期间费用明细表（湛江元亨）'!I39 -> 886.73 | H12: ='[18]附表二期间费用明细表（湛江元亨）'!J39 -> 1260.05 | I12: ='[18]附表二期间费用明细表（湛江元亨）'!K39 -> 5420.76 | J12: ='[18]附表二期间费用明细表（湛江元亨）'!L39 -> -1924.88 | K12: ='[18]附表二期间费用明细表（湛江元亨）'!M39 -> 0 | L12: ='[18]附表二期间费用明细表（湛江元亨）'!N39 -> 0 | M12: ='[18]附表二期间费用明细表（湛江元亨）'!O39 -> 0 | N12: ='[18]附表二期间费用明细表（湛江元亨）'!P39 -> 0 | O12: ='[18]附表二期间费用明细表（湛江元亨）'!Q39 -> 0 | P12: ='[18]附表二期间费用明细表（湛江元亨）'!R39 -> 0
A13: 资产减值损失 | B13: 20400 | C13: -5.591042647 | D13: -114057.27 | E13: -3492.87 | F13: -557.7 | G13: -7229.88 | H13: -96721.79 | I13: -6055.03
A14: 加：公允价值变动收益 | D14: 0
A15: 投资收益 | D15: 0 | E15: 0
A16: 二、营业利润 | B16: =B7-B8-B9-B10-B11-B12-B13+B14+B15 -> 290904 | C16: 0.6672787243 | D16: 194114.05 | E16: =E7-E8-E9-E10-E11-E12-E13+E14+E15 -> 83201.41 | F16: =F7-F8-F9-F10-F11-F12-F13+F14+F15 -> -15595.98 | G16: -61398.67 | H16: 263627.75 | I16: -93183.99 | J16: 17463.53 | K16: 0 | L16: 0 | M16: 0 | N16: 0 | O16: 0 | P16: 0
A17: 加：营业外收入 | B17: 600 | C17: 32.73688333 | D17: 19642.13 | I17: 18669.87 | J17: 972.26
A18: 减：营业外支出 | B18: ='[18]附表二期间费用明细表（湛江元亨）'!D41 -> 0 | D18: 12032 | E18: ='[18]附表二期间费用明细表（湛江元亨）'!G41 -> 12032 | F18: ='[18]附表二期间费用明细表（湛江元亨）'!H41 -> 0 | G18: ='[18]附表二期间费用明细表（湛江元亨）'!I41 -> 0 | I18: ='[18]附表二期间费用明细表（湛江元亨）'!K41 -> 0 | J18: ='[18]附表二期间费用明细表（湛江元亨）'!L41 -> 0 | K18: ='[18]附表二期间费用明细表（湛江元亨）'!M41 -> 0 | L18: ='[18]附表二期间费用明细表（湛江元亨）'!N41 -> 0 | M18: ='[18]附表二期间费用明细表（湛江元亨）'!O41 -> 0 | N18: ='[18]附表二期间费用明细表（湛江元亨）'!P41 -> 0 | O18: ='[18]附表二期间费用明细表（湛江元亨）'!Q41 -> 0 | P18: ='[18]附表二期间费用明细表（湛江元亨）'!R41 -> 0
A19: 三、利润总额 | B19: =B16+B17-B18 -> 291504 | C19: 0.6920117048 | D19: 201724.18 | E19: =E16+E17-E18 -> 71169.41 | F19: =F16+F17-F18 -> -15595.98 | G19: -61398.67 | H19: 263627.75 | I19: -74514.12 | J19: 18435.79 | K19: 0 | L19: 0 | M19: 0 | N19: 0 | O19: 0 | P19: 0
A20: 减：所得税费用 | B20: ='[18]附表二期间费用明细表（湛江元亨）'!D42 -> 29200 | C20: 0.4256585616 | D20: 12429.23 | E20: ='[18]附表二期间费用明细表（湛江元亨）'!G42 -> 3577.93 | F20: ='[18]附表二期间费用明细表（湛江元亨）'!H42 -> 176.88 | G20: ='[18]附表二期间费用明细表（湛江元亨）'!I42 -> -1876.41 | H20: ='[18]附表二期间费用明细表（湛江元亨）'!J42 -> 13157.12 | I20: ='[18]附表二期间费用明细表（湛江元亨）'!K42 -> -3673.02 | J20: ='[18]附表二期间费用明细表（湛江元亨）'!L42 -> 1066.73 | K20: ='[18]附表二期间费用明细表（湛江元亨）'!M42 -> 0 | L20: ='[18]附表二期间费用明细表（湛江元亨）'!N42 -> 0 | M20: ='[18]附表二期间费用明细表（湛江元亨）'!O42 -> 0 | N20: ='[18]附表二期间费用明细表（湛江元亨）'!P42 -> 0 | O20: ='[18]附表二期间费用明细表（湛江元亨）'!Q42 -> 0 | P20: ='[18]附表二期间费用明细表（湛江元亨）'!R42 -> 0
A21: 四、净利润 | B21: =B19-B20 -> 262304 | C21: 0.7216624604 | D21: 189294.95 | E21: =E19-E20 -> 67591.48 | F21: =F19-F20 -> -15772.86 | G21: -59522.26 | H21: 250470.63 | I21: -70841.1 | J21: 17369.06 | K21: 0 | L21: 0 | M21: 0 | N21: 0 | O21: 0 | P21: 0

Sheet 总支出表（单体） (hidden)
A1: 该表主营业务成本这一栏取自后面表格单体主营业务成本明细表中的第一行，不含操作成本。后面的职工薪酬等费目是将销售与管理费用中的同一费目相加，如招待费=销售费用的招待费+管理费用的招待费
A2: 2019年总支出表
A3: 货币单位：元
A5: 类别 | B5: 科目名称 | C5: 本年预算①
C6: 本年预算金额 | D6: 预算完成百分比 | E6: 本年实际累计 | F6: 1月 | G6: 2月 | H6: 3月 | I6: 4月 | J6: 5月 | K6: 6月 | L6: 7月 | M6: 8月 | N6: 9月 | O6: 10月 | P6: 11月 | Q6: 12月 | R6: 备 注
A7: 主要成本费用明细 | B7: 主营业务成本（不含操作成本） | C7: ='[18]附表一主营业务成本明细表（湛江元亨）'!D8 -> 25445000 | D7: =IF(ISERROR(E7/C7),"",E7/C7) -> 0.2485627825 | E7: =SUM(F7:Q7) -> 6324680 | F7: ='[18]附表一主营业务成本明细表（湛江元亨）'!G$8 -> 465021.37 | G7: ='[18]附表一主营业务成本明细表（湛江元亨）'!H$8 -> 386 | H7: ='[18]附表一主营业务成本明细表（湛江元亨）'!I$8 -> 537477.59 | I7: ='[18]附表一主营业务成本明细表（湛江元亨）'!J$8 -> 3793527.38 | J7: ='[18]附表一主营业务成本明细表（湛江元亨）'!K$8 -> 1093243.05 | K7: ='[18]附表一主营业务成本明细表（湛江元亨）'!L$8 -> 435024.61 | L7: ='[18]附表一主营业务成本明细表（湛江元亨）'!M$8 -> 0 | M7: ='[18]附表一主营业务成本明细表（湛江元亨）'!N$8 -> 0 | N7: ='[18]附表一主营业务成本明细表（湛江元亨）'!O$8 -> 0 | O7: ='[18]附表一主营业务成本明细表（湛江元亨）'!P$8 -> 0 | P7: ='[18]附表一主营业务成本明细表（湛江元亨）'!Q$8 -> 0 | Q7: ='[18]附表一主营业务成本明细表（湛江元亨）'!R$8 -> 0
B8: 职工薪酬 | C8: ='[18]附表一主营业务成本明细表（湛江元亨）'!D18+'[18]附表二期间费用明细表（湛江元亨）'!D7+'[18]附表二期间费用明细表（湛江元亨）'!D20 -> 1008400 | D8: 0.4130236315 | E8: 416493.03 | F8: ='[18]附表一主营业务成本明细表（湛江元亨）'!G$18+'[18]附表二期间费用明细表（湛江元亨）'!G$7+'[18]附表二期间费用明细表（湛江元亨）'!G$20 -> 67404.55 | G8: ='[18]附表一主营业务成本明细表（湛江元亨）'!H$18+'[18]附表二期间费用明细表（湛江元亨）'!H$7+'[18]附表二期间费用明细表（湛江元亨）'!H$20 -> 60806.54 | H8: ='[18]附表一主营业务成本明细表（湛江元亨）'!I$18+'[18]附表二期间费用明细表（湛江元亨）'!I$7+'[18]附表二期间费用明细表（湛江元亨）'!I$20 -> 62130.12 | I8: ='[18]附表一主营业务成本明细表（湛江元亨）'!J$18+'[18]附表二期间费用明细表（湛江元亨）'!J$7+'[18]附表二期间费用明细表（湛江元亨）'!J$20 -> 71551.64 | J8: ='[18]附表一主营业务成本明细表（湛江元亨）'!K$18+'[18]附表二期间费用明细表（湛江元亨）'!K$7+'[18]附表二期间费用明细表（湛江元亨）'!K$20 -> 78626.17 | K8: ='[18]附表一主营业务成本明细表（湛江元亨）'!L$18+'[18]附表二期间费用明细表（湛江元亨）'!L$7+'[18]附表二期间费用明细表（湛江元亨）'!L$20 -> 75974.01 | L8: ='[18]附表一主营业务成本明细表（湛江元亨）'!M$18+'[18]附表二期间费用明细表（湛江元亨）'!M$7+'[18]附表二期间费用明细表（湛江元亨）'!M$20 -> 0 | M8: ='[18]附表一主营业务成本明细表（湛江元亨）'!N$18+'[18]附表二期间费用明细表（湛江元亨）'!N$7+'[18]附表二期间费用明细表（湛江元亨）'!N$20 -> 0 | N8: ='[18]附表一主营业务成本明细表（湛江元亨）'!O$18+'[18]附表二期间费用明细表（湛江元亨）'!O$7+'[18]附表二期间费用明细表（湛江元亨）'!O$20 -> 0 | O8: ='[18]附表一主营业务成本明细表（湛江元亨）'!P$18+'[18]附表二期间费用明细表（湛江元亨）'!P$7+'[18]附表二期间费用明细表（湛江元亨）'!P$20 -> 0 | P8: ='[18]附表一主营业务成本明细表（湛江元亨）'!Q$18+'[18]附表二期间费用明细表（湛江元亨）'!Q$7+'[18]附表二期间费用明细表（湛江元亨）'!Q$20 -> 0 | Q8: ='[18]附表一主营业务成本明细表（湛江元亨）'!R$18+'[18]附表二期间费用明细表（湛江元亨）'!R$7+'[18]附表二期间费用明细表（湛江元亨）'!R$20 -> 0
B9: 其中：工资 | C9: ='[18]附表一主营业务成本明细表（湛江元亨）'!D19+'[18]附表二期间费用明细表（湛江元亨）'!D8+'[18]附表二期间费用明细表（湛江元亨）'!D21 -> 601600 | D9: 0.6254692487 | E9: 376282.3 | F9: ='[18]附表一主营业务成本明细表（湛江元亨）'!G$19+'[18]附表二期间费用明细表（湛江元亨）'!G$8+'[18]附表二期间费用明细表（湛江元亨）'!G$21 -> 55717.34 | G9: ='[18]附表一主营业务成本明细表（湛江元亨）'!H$19+'[18]附表二期间费用明细表（湛江元亨）'!H$8+'[18]附表二期间费用明细表（湛江元亨）'!H$21 -> 52147.33 | H9: ='[18]附表一主营业务成本明细表（湛江元亨）'!I$19+'[18]附表二期间费用明细表（湛江元亨）'!I$8+'[18]附表二期间费用明细表（湛江元亨）'!I$21 -> 62130.12 | I9: ='[18]附表一主营业务成本明细表（湛江元亨）'!J$19+'[18]附表二期间费用明细表（湛江元亨）'!J$8+'[18]附表二期间费用明细表（湛江元亨）'!J$21 -> 70832.64 | J9: ='[18]附表一主营业务成本明细表（湛江元亨）'!K$19+'[18]附表二期间费用明细表（湛江元亨）'!K$8+'[18]附表二期间费用明细表（湛江元亨）'!K$21 -> 74153.67 | K9: ='[18]附表一主营业务成本明细表（湛江元亨）'!L$19+'[18]附表二期间费用明细表（湛江元亨）'!L$8+'[18]附表二期间费用明细表（湛江元亨）'!L$21 -> 61301.2 | L9: ='[18]附表一主营业务成本明细表（湛江元亨）'!M$19+'[18]附表二期间费用明细表（湛江元亨）'!M$8+'[18]附表二期间费用明细表（湛江元亨）'!M$21 -> 0 | M9: ='[18]附表一主营业务成本明细表（湛江元亨）'!N$19+'[18]附表二期间费用明细表（湛江元亨）'!N$8+'[18]附表二期间费用明细表（湛江元亨）'!N$21 -> 0 | N9: ='[18]附表一主营业务成本明细表（湛江元亨）'!O$19+'[18]附表二期间费用明细表（湛江元亨）'!O$8+'[18]附表二期间费用明细表（湛江元亨）'!O$21 -> 0 | O9: ='[18]附表一主营业务成本明细表（湛江元亨）'!P$19+'[18]附表二期间费用明细表（湛江元亨）'!P$8+'[18]附表二期间费用明细表（湛江元亨）'!P$21 -> 0 | P9: ='[18]附表一主营业务成本明细表（湛江元亨）'!Q$19+'[18]附表二期间费用明细表（湛江元亨）'!Q$8+'[18]附表二期间费用明细表（湛江元亨）'!Q$21 -> 0 | Q9: ='[18]附表一主营业务成本明细表（湛江元亨）'!R$19+'[18]附表二期间费用明细表（湛江元亨）'!R$8+'[18]附表二期间费用明细表（湛江元亨）'!R$21 -> 0
B10: 奖金 | C10: ='[18]附表一主营业务成本明细表（湛江元亨）'!D20+'[18]附表二期间费用明细表（湛江元亨）'!D9+'[18]附表二期间费用明细表（湛江元亨）'!D22 -> 126600 | D10: 0 | E10: 0 | F10: ='[18]附表一主营业务成本明细表（湛江元亨）'!G$20+'[18]附表二期间费用明细表（湛江元亨）'!G$9+'[18]附表二期间费用明细表（湛江元亨）'!G$22 -> 0 | G10: ='[18]附表一主营业务成本明细表（湛江元亨）'!H$20+'[18]附表二期间费用明细表（湛江元亨）'!H$9+'[18]附表二期间费用明细表（湛江元亨）'!H$22 -> 0 | H10: ='[18]附表一主营业务成本明细表（湛江元亨）'!I$20+'[18]附表二期间费用明细表（湛江元亨）'!I$9+'[18]附表二期间费用明细表（湛江元亨）'!I$22 -> 0 | I10: ='[18]附表一主营业务成本明细表（湛江元亨）'!J$20+'[18]附表二期间费用明细表（湛江元亨）'!J$9+'[18]附表二期间费用明细表（湛江元亨）'!J$22 -> 0 | J10: ='[18]附表一主营业务成本明细表（湛江元亨）'!K$20+'[18]附表二期间费用明细表（湛江元亨）'!K$9+'[18]附表二期间费用明细表（湛江元亨）'!K$22 -> 0 | K10: ='[18]附表一主营业务成本明细表（湛江元亨）'!L$20+'[18]附表二期间费用明细表（湛江元亨）'!L$9+'[18]附表二期间费用明细表（湛江元亨）'!L$22 -> 0 | L10: ='[18]附表一主营业务成本明细表（湛江元亨）'!M$20+'[18]附表二期间费用明细表（湛江元亨）'!M$9+'[18]附表二期间费用明细表（湛江元亨）'!M$22 -> 0 | M10: ='[18]附表一主营业务成本明细表（湛江元亨）'!N$20+'[18]附表二期间费用明细表（湛江元亨）'!N$9+'[18]附表二期间费用明细表（湛江元亨）'!N$22 -> 0 | N10: ='[18]附表一主营业务成本明细表（湛江元亨）'!O$20+'[18]附表二期间费用明细表（湛江元亨）'!O$9+'[18]附表二期间费用明细表（湛江元亨）'!O$22 -> 0 | O10: ='[18]附表一主营业务成本明细表（湛江元亨）'!P$20+'[18]附表二期间费用明细表（湛江元亨）'!P$9+'[18]附表二期间费用明细表（湛江元亨）'!P$22 -> 0 | P10: ='[18]附表一主营业务成本明细表（湛江元亨）'!Q$20+'[18]附表二期间费用明细表（湛江元亨）'!Q$9+'[18]附表二期间费用明细表（湛江元亨）'!Q$22 -> 0 | Q10: ='[18]附表一主营业务成本明细表（湛江元亨）'!R$20+'[18]附表二期间费用明细表（湛江元亨）'!R$9+'[18]附表二期间费用明细表（湛江元亨）'!R$22 -> 0
B11: 车辆费/汽车费用 | C11: ='[18]附表一主营业务成本明细表（湛江元亨）'!D9+'[18]附表一主营业务成本明细表（湛江元亨）'!D21+'[18]附表二期间费用明细表（湛江元亨）'!D11+'[18]附表二期间费用明细表（湛江元亨）'!D24 -> 88596 | D11: 0.2515546977 | E11: 22286.74 | F11: ='[18]附表一主营业务成本明细表（湛江元亨）'!G$9+'[18]附表一主营业务成本明细表（湛江元亨）'!G$21+'[18]附表二期间费用明细表（湛江元亨）'!G$11+'[18]附表二期间费用明细表（湛江元亨）'!G$24 -> 6928.16 | G11: ='[18]附表一主营业务成本明细表（湛江元亨）'!H$9+'[18]附表一主营业务成本明细表（湛江元亨）'!H$21+'[18]附表二期间费用明细表（湛江元亨）'!H$11+'[18]附表二期间费用明细表（湛江元亨）'!H$24 -> 1890.01 | H11: ='[18]附表一主营业务成本明细表（湛江元亨）'!I$9+'[18]附表一主营业务成本明细表（湛江元亨）'!I$21+'[18]附表二期间费用明细表（湛江元亨）'!I$11+'[18]附表二期间费用明细表（湛江元亨）'!I$24 -> 0 | I11: ='[18]附表一主营业务成本明细表（湛江元亨）'!J$9+'[18]附表一主营业务成本明细表（湛江元亨）'!J$21+'[18]附表二期间费用明细表（湛江元亨）'!J$11+'[18]附表二期间费用明细表（湛江元亨）'!J$24 -> 7833.17 | J11: ='[18]附表一主营业务成本明细表（湛江元亨）'!K$9+'[18]附表一主营业务成本明细表（湛江元亨）'!K$21+'[18]附表二期间费用明细表（湛江元亨）'!K$11+'[18]附表二期间费用明细表（湛江元亨）'!K$24 -> 3134.44 | K11: ='[18]附表一主营业务成本明细表（湛江元亨）'!L$9+'[18]附表一主营业务成本明细表（湛江元亨）'!L$21+'[18]附表二期间费用明细表（湛江元亨）'!L$11+'[18]附表二期间费用明细表（湛江元亨）'!L$24 -> 2500.96 | L11: ='[18]附表一主营业务成本明细表（湛江元亨）'!M$9+'[18]附表一主营业务成本明细表（湛江元亨）'!M$21+'[18]附表二期间费用明细表（湛江元亨）'!M$11+'[18]附表二期间费用明细表（湛江元亨）'!M$24 -> 0 | M11: ='[18]附表一主营业务成本明细表（湛江元亨）'!N$9+'[18]附表一主营业务成本明细表（湛江元亨）'!N$21+'[18]附表二期间费用明细表（湛江元亨）'!N$11+'[18]附表二期间费用明细表（湛江元亨）'!N$24 -> 0 | N11: ='[18]附表一主营业务成本明细表（湛江元亨）'!O$9+'[18]附表一主营业务成本明细表（湛江元亨）'!O$21+'[18]附表二期间费用明细表（湛江元亨）'!O$11+'[18]附表二期间费用明细表（湛江元亨）'!O$24 -> 0 | O11: ='[18]附表一主营业务成本明细表（湛江元亨）'!P$9+'[18]附表一主营业务成本明细表（湛江元亨）'!P$21+'[18]附表二期间费用明细表（湛江元亨）'!P$11+'[18]附表二期间费用明细表（湛江元亨）'!P$24 -> 0 | P11: ='[18]附表一主营业务成本明细表（湛江元亨）'!Q$9+'[18]附表一主营业务成本明细表（湛江元亨）'!Q$21+'[18]附表二期间费用明细表（湛江元亨）'!Q$11+'[18]附表二期间费用明细表（湛江元亨）'!Q$24 -> 0 | Q11: ='[18]附表一主营业务成本明细表（湛江元亨）'!R$9+'[18]附表一主营业务成本明细表（湛江元亨）'!R$21+'[18]附表二期间费用明细表（湛江元亨）'!R$11+'[18]附表二期间费用明细表（湛江元亨）'!R$24 -> 0
B12: 招待费 | C12: ='[18]附表一主营业务成本明细表（湛江元亨）'!D11+'[18]附表一主营业务成本明细表（湛江元亨）'!D22+'[18]附表二期间费用明细表（湛江元亨）'!D12+'[18]附表二期间费用明细表（湛江元亨）'!D25 -> 188300 | D12: 0.2532552841 | E12: 47687.97 | F12: ='[18]附表一主营业务成本明细表（湛江元亨）'!G$11+'[18]附表一主营业务成本明细表（湛江元亨）'!G$22+'[18]附表二期间费用明细表（湛江元亨）'!G$12+'[18]附表二期间费用明细表（湛江元亨）'!G$25 -> 7291.44 | G12: ='[18]附表一主营业务成本明细表（湛江元亨）'!H$11+'[18]附表一主营业务成本明细表（湛江元亨）'!H$22+'[18]附表二期间费用明细表（湛江元亨）'!H$12+'[18]附表二期间费用明细表（湛江元亨）'!H$25 -> 1358.6 | H12: ='[18]附表一主营业务成本明细表（湛江元亨）'!I$11+'[18]附表一主营业务成本明细表（湛江元亨）'!I$22+'[18]附表二期间费用明细表（湛江元亨）'!I$12+'[18]附表二期间费用明细表（湛江元亨）'!I$25 -> 3221.28 | I12: ='[18]附表一主营业务成本明细表（湛江元亨）'!J$11+'[18]附表一主营业务成本明细表（湛江元亨）'!J$22+'[18]附表二期间费用明细表（湛江元亨）'!J$12+'[18]附表二期间费用明细表（湛江元亨）'!J$25 -> 18174.25 | J12: ='[18]附表一主营业务成本明细表（湛江元亨）'!K$11+'[18]附表一主营业务成本明细表（湛江元亨）'!K$22+'[18]附表二期间费用明细表（湛江元亨）'!K$12+'[18]附表二期间费用明细表（湛江元亨）'!K$25 -> 14150.4 | K12: ='[18]附表一主营业务成本明细表（湛江元亨）'!L$11+'[18]附表一主营业务成本明细表（湛江元亨）'!L$22+'[18]附表二期间费用明细表（湛江元亨）'!L$12+'[18]附表二期间费用明细表（湛江元亨）'!L$25 -> 3492 | L12: ='[18]附表一主营业务成本明细表（湛江元亨）'!M$11+'[18]附表一主营业务成本明细表（湛江元亨）'!M$22+'[18]附表二期间费用明细表（湛江元亨）'!M$12+'[18]附表二期间费用明细表（湛江元亨）'!M$25 -> 0 | M12: ='[18]附表一主营业务成本明细表（湛江元亨）'!N$11+'[18]附表一主营业务成本明细表（湛江元亨）'!N$22+'[18]附表二期间费用明细表（湛江元亨）'!N$12+'[18]附表二期间费用明细表（湛江元亨）'!N$25 -> 0 | N12: ='[18]附表一主营业务成本明细表（湛江元亨）'!O$11+'[18]附表一主营业务成本明细表（湛江元亨）'!O$22+'[18]附表二期间费用明细表（湛江元亨）'!O$12+'[18]附表二期间费用明细表（湛江元亨）'!O$25 -> 0 | O12: ='[18]附表一主营业务成本明细表（湛江元亨）'!P$11+'[18]附表一主营业务成本明细表（湛江元亨）'!P$22+'[18]附表二期间费用明细表（湛江元亨）'!P$12+'[18]附表二期间费用明细表（湛江元亨）'!P$25 -> 0 | P12: ='[18]附表一主营业务成本明细表（湛江元亨）'!Q$11+'[18]附表一主营业务成本明细表（湛江元亨）'!Q$22+'[18]附表二期间费用明细表（湛江元亨）'!Q$12+'[18]附表二期间费用明细表（湛江元亨）'!Q$25 -> 0 | Q12: ='[18]附表一主营业务成本明细表（湛江元亨）'!R$11+'[18]附表一主营业务成本明细表（湛江元亨）'!R$22+'[18]附表二期间费用明细表（湛江元亨）'!R$12+'[18]附表二期间费用明细表（湛江元亨）'!R$25 -> 0
B13: 差旅费 | C13: ='[18]附表一主营业务成本明细表（湛江元亨）'!D13+'[18]附表一主营业务成本明细表（湛江元亨）'!D23+'[18]附表二期间费用明细表（湛江元亨）'!D13+'[18]附表二期间费用明细表（湛江元亨）'!D26 -> 82400 | D13: 0.2545262136 | E13: 20972.96 | F13: ='[18]附表一主营业务成本明细表（湛江元亨）'!G$13+'[18]附表一主营业务成本明细表（湛江元亨）'!G$23+'[18]附表二期间费用明细表（湛江元亨）'!G$13+'[18]附表二期间费用明细表（湛江元亨）'!G$26 -> 684 | G13: ='[18]附表一主营业务成本明细表（湛江元亨）'!H$13+'[18]附表一主营业务成本明细表（湛江元亨）'!H$23+'[18]附表二期间费用明细表（湛江元亨）'!H$13+'[18]附表二期间费用明细表（湛江元亨）'!H$26 -> 4188.12 | H13: ='[18]附表一主营业务成本明细表（湛江元亨）'!I$13+'[18]附表一主营业务成本明细表（湛江元亨）'!I$23+'[18]附表二期间费用明细表（湛江元亨）'!I$13+'[18]附表二期间费用明细表（湛江元亨）'!I$26 -> 2429.24 | I13: ='[18]附表一主营业务成本明细表（湛江元亨）'!J$13+'[18]附表一主营业务成本明细表（湛江元亨）'!J$23+'[18]附表二期间费用明细表（湛江元亨）'!J$13+'[18]附表二期间费用明细表（湛江元亨）'!J$26 -> 993.06 | J13: ='[18]附表一主营业务成本明细表（湛江元亨）'!K$13+'[18]附表一主营业务成本明细表（湛江元亨）'!K$23+'[18]附表二期间费用明细表（湛江元亨）'!K$13+'[18]附表二期间费用明细表（湛江元亨）'!K$26 -> 8609.01 | K13: ='[18]附表一主营业务成本明细表（湛江元亨）'!L$13+'[18]附表一主营业务成本明细表（湛江元亨）'!L$23+'[18]附表二期间费用明细表（湛江元亨）'!L$13+'[18]附表二期间费用明细表（湛江元亨）'!L$26 -> 4069.53 | L13: ='[18]附表一主营业务成本明细表（湛江元亨）'!M$13+'[18]附表一主营业务成本明细表（湛江元亨）'!M$23+'[18]附表二期间费用明细表（湛江元亨）'!M$13+'[18]附表二期间费用明细表（湛江元亨）'!M$26 -> 0 | M13: ='[18]附表一主营业务成本明细表（湛江元亨）'!N$13+'[18]附表一主营业务成本明细表（湛江元亨）'!N$23+'[18]附表二期间费用明细表（湛江元亨）'!N$13+'[18]附表二期间费用明细表（湛江元亨）'!N$26 -> 0 | N13: ='[18]附表一主营业务成本明细表（湛江元亨）'!O$13+'[18]附表一主营业务成本明细表（湛江元亨）'!O$23+'[18]附表二期间费用明细表（湛江元亨）'!O$13+'[18]附表二期间费用明细表（湛江元亨）'!O$26 -> 0 | O13: ='[18]附表一主营业务成本明细表（湛江元亨）'!P$13+'[18]附表一主营业务成本明细表（湛江元亨）'!P$23+'[18]附表二期间费用明细表（湛江元亨）'!P$13+'[18]附表二期间费用明细表（湛江元亨）'!P$26 -> 0 | P13: ='[18]附表一主营业务成本明细表（湛江元亨）'!Q$13+'[18]附表一主营业务成本明细表（湛江元亨）'!Q$23+'[18]附表二期间费用明细表（湛江元亨）'!Q$13+'[18]附表二期间费用明细表（湛江元亨）'!Q$26 -> 0 | Q13: ='[18]附表一主营业务成本明细表（湛江元亨）'!R$13+'[18]附表一主营业务成本明细表（湛江元亨）'!R$23+'[18]附表二期间费用明细表（湛江元亨）'!R$13+'[18]附表二期间费用明细表（湛江元亨）'!R$26 -> 0
B14: 办公费（含市内交通） | C14: ='[18]附表一主营业务成本明细表（湛江元亨）'!D10+'[18]附表一主营业务成本明细表（湛江元亨）'!D12+'[18]附表一主营业务成本明细表（湛江元亨）'!D24+'[18]附表二期间费用明细表（湛江元亨）'!D14+'[18]附表二期间费用明细表（湛江元亨）'!D27 -> 124500 | D14: 0.5890673896 | E14: 73338.89 | F14: ='[18]附表一主营业务成本明细表（湛江元亨）'!G$10+'[18]附表一主营业务成本明细表（湛江元亨）'!G$12+'[18]附表一主营业务成本明细表（湛江元亨）'!G$24+'[18]附表二期间费用明细表（湛江元亨）'!G$14+'[18]附表二期间费用明细表（湛江元亨）'!G$27 -> 1905.78 | G14: ='[18]附表一主营业务成本明细表（湛江元亨）'!H$10+'[18]附表一主营业务成本明细表（湛江元亨）'!H$12+'[18]附表一主营业务成本明细表（湛江元亨）'!H$24+'[18]附表二期间费用明细表（湛江元亨）'!H$14+'[18]附表二期间费用明细表（湛江元亨）'!H$27 -> 4880.33 | H14: ='[18]附表一主营业务成本明细表（湛江元亨）'!I$10+'[18]附表一主营业务成本明细表（湛江元亨）'!I$12+'[18]附表一主营业务成本明细表（湛江元亨）'!I$24+'[18]附表二期间费用明细表（湛江元亨）'!I$14+'[18]附表二期间费用明细表（湛江元亨）'!I$27 -> 883.66 | I14: ='[18]附表一主营业务成本明细表（湛江元亨）'!J$10+'[18]附表一主营业务成本明细表（湛江元亨）'!J$12+'[18]附表一主营业务成本明细表（湛江元亨）'!J$24+'[18]附表二期间费用明细表（湛江元亨）'!J$14+'[18]附表二期间费用明细表（湛江元亨）'!J$27 -> 700.67 | J14: ='[18]附表一主营业务成本明细表（湛江元亨）'!K$10+'[18]附表一主营业务成本明细表（湛江元亨）'!K$12+'[18]附表一主营业务成本明细表（湛江元亨）'!K$24+'[18]附表二期间费用明细表（湛江元亨）'!K$14+'[18]附表二期间费用明细表（湛江元亨）'!K$27 -> 14579.61 | K14: ='[18]附表一主营业务成本明细表（湛江元亨）'!L$10+'[18]附表一主营业务成本明细表（湛江元亨）'!L$12+'[18]附表一主营业务成本明细表（湛江元亨）'!L$24+'[18]附表二期间费用明细表（湛江元亨）'!L$14+'[18]附表二期间费用明细表（湛江元亨）'!L$27 -> 50388.84 | L14: ='[18]附表一主营业务成本明细表（湛江元亨）'!M$10+'[18]附表一主营业务成本明细表（湛江元亨）'!M$12+'[18]附表一主营业务成本明细表（湛江元亨）'!M$24+'[18]附表二期间费用明细表（湛江元亨）'!M$14+'[18]附表二期间费用明细表（湛江元亨）'!M$27 -> 0 | M14: ='[18]附表一主营业务成本明细表（湛江元亨）'!N$10+'[18]附表一主营业务成本明细表（湛江元亨）'!N$12+'[18]附表一主营业务成本明细表（湛江元亨）'!N$24+'[18]附表二期间费用明细表（湛江元亨）'!N$14+'[18]附表二期间费用明细表（湛江元亨）'!N$27 -> 0 | N14: ='[18]附表一主营业务成本明细表（湛江元亨）'!O$10+'[18]附表一主营业务成本明细表（湛江元亨）'!O$12+'[18]附表一主营业务成本明细表（湛江元亨）'!O$24+'[18]附表二期间费用明细表（湛江元亨）'!O$14+'[18]附表二期间费用明细表（湛江元亨）'!O$27 -> 0 | O14: ='[18]附表一主营业务成本明细表（湛江元亨）'!P$10+'[18]附表一主营业务成本明细表（湛江元亨）'!P$12+'[18]附表一主营业务成本明细表（湛江元亨）'!P$24+'[18]附表二期间费用明细表（湛江元亨）'!P$14+'[18]附表二期间费用明细表（湛江元亨）'!P$27 -> 0 | P14: ='[18]附表一主营业务成本明细表（湛江元亨）'!Q$10+'[18]附表一主营业务成本明细表（湛江元亨）'!Q$12+'[18]附表一主营业务成本明细表（湛江元亨）'!Q$24+'[18]附表二期间费用明细表（湛江元亨）'!Q$14+'[18]附表二期间费用明细表（湛江元亨）'!Q$27 -> 0 | Q14: ='[18]附表一主营业务成本明细表（湛江元亨）'!R$10+'[18]附表一主营业务成本明细表（湛江元亨）'!R$12+'[18]附表一主营业务成本明细表（湛江元亨）'!R$24+'[18]附表二期间费用明细表（湛江元亨）'!R$14+'[18]附表二期间费用明细表（湛江元亨）'!R$27 -> 0
B15: 通讯费 | C15: ='[18]附表一主营业务成本明细表（湛江元亨）'!D25+'[18]附表二期间费用明细表（湛江元亨）'!D15+'[18]附表二期间费用明细表（湛江元亨）'!D28 -> 16800 | D15: 0.4452220238 | E15: 7479.73 | F15: ='[18]附表一主营业务成本明细表（湛江元亨）'!G$25+'[18]附表二期间费用明细表（湛江元亨）'!G$15+'[18]附表二期间费用明细表（湛江元亨）'!G$28 -> 1431.33 | G15: ='[18]附表一主营业务成本明细表（湛江元亨）'!H$25+'[18]附表二期间费用明细表（湛江元亨）'!H$15+'[18]附表二期间费用明细表（湛江元亨）'!H$28 -> 988.59 | H15: ='[18]附表一主营业务成本明细表（湛江元亨）'!I$25+'[18]附表二期间费用明细表（湛江元亨）'!I$15+'[18]附表二期间费用明细表（湛江元亨）'!I$28 -> 388.4 | I15: ='[18]附表一主营业务成本明细表（湛江元亨）'!J$25+'[18]附表二期间费用明细表（湛江元亨）'!J$15+'[18]附表二期间费用明细表（湛江元亨）'!J$28 -> 1129.74 | J15: ='[18]附表一主营业务成本明细表（湛江元亨）'!K$25+'[18]附表二期间费用明细表（湛江元亨）'!K$15+'[18]附表二期间费用明细表（湛江元亨）'!K$28 -> 1868.56 | K15: ='[18]附表一主营业务成本明细表（湛江元亨）'!L$25+'[18]附表二期间费用明细表（湛江元亨）'!L$15+'[18]附表二期间费用明细表（湛江元亨）'!L$28 -> 1673.11 | L15: ='[18]附表一主营业务成本明细表（湛江元亨）'!M$25+'[18]附表二期间费用明细表（湛江元亨）'!M$15+'[18]附表二期间费用明细表（湛江元亨）'!M$28 -> 0 | M15: ='[18]附表一主营业务成本明细表（湛江元亨）'!N$25+'[18]附表二期间费用明细表（湛江元亨）'!N$15+'[18]附表二期间费用明细表（湛江元亨）'!N$28 -> 0 | N15: ='[18]附表一主营业务成本明细表（湛江元亨）'!O$25+'[18]附表二期间费用明细表（湛江元亨）'!O$15+'[18]附表二期间费用明细表（湛江元亨）'!O$28 -> 0 | O15: ='[18]附表一主营业务成本明细表（湛江元亨）'!P$25+'[18]附表二期间费用明细表（湛江元亨）'!P$15+'[18]附表二期间费用明细表（湛江元亨）'!P$28 -> 0 | P15: ='[18]附表一主营业务成本明细表（湛江元亨）'!Q$25+'[18]附表二期间费用明细表（湛江元亨）'!Q$15+'[18]附表二期间费用明细表（湛江元亨）'!Q$28 -> 0 | Q15: ='[18]附表一主营业务成本明细表（湛江元亨）'!R$25+'[18]附表二期间费用明细表（湛江元亨）'!R$15+'[18]附表二期间费用明细表（湛江元亨）'!R$28 -> 0
B16: 折销费 | C16: ='[18]附表一主营业务成本明细表（湛江元亨）'!D26+'[18]附表二期间费用明细表（湛江元亨）'!D16+'[18]附表二期间费用明细表（湛江元亨）'!D29 -> 29700 | D16: 0.2601252525 | E16: 7725.72 | F16: ='[18]附表一主营业务成本明细表（湛江元亨）'!G$26+'[18]附表二期间费用明细表（湛江元亨）'!G$16+'[18]附表二期间费用明细表（湛江元亨）'!G$29 -> 63.67 | G16: ='[18]附表一主营业务成本明细表（湛江元亨）'!H$26+'[18]附表二期间费用明细表（湛江元亨）'!H$16+'[18]附表二期间费用明细表（湛江元亨）'!H$29 -> 1532.41 | H16: ='[18]附表一主营业务成本明细表（湛江元亨）'!I$26+'[18]附表二期间费用明细表（湛江元亨）'!I$16+'[18]附表二期间费用明细表（湛江元亨）'!I$29 -> 1532.41 | I16: ='[18]附表一主营业务成本明细表（湛江元亨）'!J$26+'[18]附表二期间费用明细表（湛江元亨）'!J$16+'[18]附表二期间费用明细表（湛江元亨）'!J$29 -> 1532.41 | J16: ='[18]附表一主营业务成本明细表（湛江元亨）'!K$26+'[18]附表二期间费用明细表（湛江元亨）'!K$16+'[18]附表二期间费用明细表（湛江元亨）'!K$29 -> 1532.41 | K16: ='[18]附表一主营业务成本明细表（湛江元亨）'!L$26+'[18]附表二期间费用明细表（湛江元亨）'!L$16+'[18]附表二期间费用明细表（湛江元亨）'!L$29 -> 1532.41 | L16: ='[18]附表一主营业务成本明细表（湛江元亨）'!M$26+'[18]附表二期间费用明细表（湛江元亨）'!M$16+'[18]附表二期间费用明细表（湛江元亨）'!M$29 -> 0 | M16: ='[18]附表一主营业务成本明细表（湛江元亨）'!N$26+'[18]附表二期间费用明细表（湛江元亨）'!N$16+'[18]附表二期间费用明细表（湛江元亨）'!N$29 -> 0 | N16: ='[18]附表一主营业务成本明细表（湛江元亨）'!O$26+'[18]附表二期间费用明细表（湛江元亨）'!O$16+'[18]附表二期间费用明细表（湛江元亨）'!O$29 -> 0 | O16: ='[18]附表一主营业务成本明细表（湛江元亨）'!P$26+'[18]附表二期间费用明细表（湛江元亨）'!P$16+'[18]附表二期间费用明细表（湛江元亨）'!P$29 -> 0 | P16: ='[18]附表一主营业务成本明细表（湛江元亨）'!Q$26+'[18]附表二期间费用明细表（湛江元亨）'!Q$16+'[18]附表二期间费用明细表（湛江元亨）'!Q$29 -> 0 | Q16: ='[18]附表一主营业务成本明细表（湛江元亨）'!R$26+'[18]附表二期间费用明细表（湛江元亨）'!R$16+'[18]附表二期间费用明细表（湛江元亨）'!R$29 -> 0
B17: 外包装卸费 | C17: ='[18]附表一主营业务成本明细表（湛江元亨）'!D14 -> 0 | E17: 0 | F17: ='[18]附表一主营业务成本明细表（湛江元亨）'!G$14 -> 0 | G17: ='[18]附表一主营业务成本明细表（湛江元亨）'!H$14 -> 0 | H17: ='[18]附表一主营业务成本明细表（湛江元亨）'!I$14 -> 0 | I17: ='[18]附表一主营业务成本明细表（湛江元亨）'!J$14 -> 0 | J17: ='[18]附表一主营业务成本明细表（湛江元亨）'!K$14 -> 0 | K17: ='[18]附表一主营业务成本明细表（湛江元亨）'!L$14 -> 0 | L17: ='[18]附表一主营业务成本明细表（湛江元亨）'!M$14 -> 0 | M17: ='[18]附表一主营业务成本明细表（湛江元亨）'!N$14 -> 0 | N17: ='[18]附表一主营业务成本明细表（湛江元亨）'!O$14 -> 0 | O17: ='[18]附表一主营业务成本明细表（湛江元亨）'!P$14 -> 0 | P17: ='[18]附表一主营业务成本明细表（湛江元亨）'!Q$14 -> 0 | Q17: ='[18]附表一主营业务成本明细表（湛江元亨）'!R$14 -> 0
B18: 保险费 | C18: ='[18]附表一主营业务成本明细表（湛江元亨）'!D15 -> 0 | E18: 0 | F18: ='[18]附表一主营业务成本明细表（湛江元亨）'!G$15 -> 0 | G18: ='[18]附表一主营业务成本明细表（湛江元亨）'!H$15 -> 0 | H18: ='[18]附表一主营业务成本明细表（湛江元亨）'!I$15 -> 0 | I18: ='[18]附表一主营业务成本明细表（湛江元亨）'!J$15 -> 0 | J18: ='[18]附表一主营业务成本明细表（湛江元亨）'!K$15 -> 0 | K18: ='[18]附表一主营业务成本明细表（湛江元亨）'!L$15 -> 0 | L18: ='[18]附表一主营业务成本明细表（湛江元亨）'!M$15 -> 0 | M18: ='[18]附表一主营业务成本明细表（湛江元亨）'!N$15 -> 0 | N18: ='[18]附表一主营业务成本明细表（湛江元亨）'!O$15 -> 0 | O18: ='[18]附表一主营业务成本明细表（湛江元亨）'!P$15 -> 0 | P18: ='[18]附表一主营业务成本明细表（湛江元亨）'!Q$15 -> 0 | Q18: ='[18]附表一主营业务成本明细表（湛江元亨）'!R$15 -> 0
B19: 企业宣传费 | C19: ='[18]附表二期间费用明细表（湛江元亨）'!D30+'[18]附表二期间费用明细表（湛江元亨）'!D17 -> 0 | E19: 0 | F19: ='[18]附表二期间费用明细表（湛江元亨）'!G$17+'[18]附表二期间费用明细表（湛江元亨）'!G$30 -> 0 | G19: ='[18]附表二期间费用明细表（湛江元亨）'!H$17+'[18]附表二期间费用明细表（湛江元亨）'!H$30 -> 0 | H19: ='[18]附表二期间费用明细表（湛江元亨）'!I$17+'[18]附表二期间费用明细表（湛江元亨）'!I$30 -> 0 | I19: ='[18]附表二期间费用明细表（湛江元亨）'!J$17+'[18]附表二期间费用明细表（湛江元亨）'!J$30 -> 0 | J19: ='[18]附表二期间费用明细表（湛江元亨）'!K$17+'[18]附表二期间费用明细表（湛江元亨）'!K$30 -> 0 | K19: ='[18]附表二期间费用明细表（湛江元亨）'!L$17+'[18]附表二期间费用明细表（湛江元亨）'!L$30 -> 0 | L19: ='[18]附表二期间费用明细表（湛江元亨）'!M$17+'[18]附表二期间费用明细表（湛江元亨）'!M$30 -> 0 | M19: ='[18]附表二期间费用明细表（湛江元亨）'!N$17+'[18]附表二期间费用明细表（湛江元亨）'!N$30 -> 0 | N19: ='[18]附表二期间费用明细表（湛江元亨）'!O$17+'[18]附表二期间费用明细表（湛江元亨）'!O$30 -> 0 | O19: ='[18]附表二期间费用明细表（湛江元亨）'!P$17+'[18]附表二期间费用明细表（湛江元亨）'!P$30 -> 0 | P19: ='[18]附表二期间费用明细表（湛江元亨）'!Q$17+'[18]附表二期间费用明细表（湛江元亨）'!Q$30 -> 0 | Q19: ='[18]附表二期间费用明细表（湛江元亨）'!R$17+'[18]附表二期间费用明细表（湛江元亨）'!R$30 -> 0
B20: 专项费用 | C20: ='[19]附表二期间费用明细表（汇总）'!D31 -> 0 | E20: 6796.12 | F20: ='[18]附表二期间费用明细表（湛江元亨）'!G$31 -> 0 | G20: ='[18]附表二期间费用明细表（湛江元亨）'!H$31 -> 0 | H20: ='[18]附表二期间费用明细表（湛江元亨）'!I$31 -> 0 | I20: ='[18]附表二期间费用明细表（湛江元亨）'!J$31 -> 0 | J20: ='[18]附表二期间费用明细表（湛江元亨）'!K$31 -> 0 | K20: ='[18]附表二期间费用明细表（湛江元亨）'!L$31 -> 6796.12 | L20: ='[18]附表二期间费用明细表（湛江元亨）'!M$31 -> 0 | M20: ='[18]附表二期间费用明细表（湛江元亨）'!N$31 -> 0 | N20: ='[18]附表二期间费用明细表（湛江元亨）'!O$31 -> 0 | O20: ='[18]附表二期间费用明细表（湛江元亨）'!P$31 -> 0 | P20: ='[18]附表二期间费用明细表（湛江元亨）'!Q$31 -> 0 | Q20: ='[18]附表二期间费用明细表（湛江元亨）'!R$31 -> 0
B21: 残疾人就业保障金 | C21: ='[18]附表二期间费用明细表（湛江元亨）'!D32 -> 7000 | D21: -0.4118342857 | E21: -2882.84 | F21: ='[18]附表二期间费用明细表（湛江元亨）'!G$32 -> 0 | G21: ='[18]附表二期间费用明细表（湛江元亨）'!H$32 -> 0 | H21: ='[18]附表二期间费用明细表（湛江元亨）'!I$32 -> -2882.84 | I21: ='[18]附表二期间费用明细表（湛江元亨）'!J$32 -> 0 | J21: ='[18]附表二期间费用明细表（湛江元亨）'!K$32 -> 0 | K21: ='[18]附表二期间费用明细表（湛江元亨）'!L$32 -> 0 | L21: ='[18]附表二期间费用明细表（湛江元亨）'!M$32 -> 0 | M21: ='[18]附表二期间费用明细表（湛江元亨）'!N$32 -> 0 | N21: ='[18]附表二期间费用明细表（湛江元亨）'!O$32 -> 0 | O21: ='[18]附表二期间费用明细表（湛江元亨）'!P$32 -> 0 | P21: ='[18]附表二期间费用明细表（湛江元亨）'!Q$32 -> 0 | Q21: ='[18]附表二期间费用明细表（湛江元亨）'!R$32 -> 0
B22: 其 他 | C22: ='[18]附表一主营业务成本明细表（湛江元亨）'!D16+'[18]附表一主营业务成本明细表（湛江元亨）'!D27+'[18]附表二期间费用明细表（湛江元亨）'!D18+'[18]附表二期间费用明细表（湛江元亨）'!D33 -> 0 | E22: 6566 | F22: ='[18]附表一主营业务成本明细表（湛江元亨）'!G$16+'[18]附表一主营业务成本明细表（湛江元亨）'!G$27+'[18]附表二期间费用明细表（湛江元亨）'!G$33+'[18]附表二期间费用明细表（湛江元亨）'!G$18 -> 1636.29 | G22: ='[18]附表一主营业务成本明细表（湛江元亨）'!H$16+'[18]附表一主营业务成本明细表（湛江元亨）'!H$27+'[18]附表二期间费用明细表（湛江元亨）'!H$33+'[18]附表二期间费用明细表（湛江元亨）'!H$18 -> 0 | H22: ='[18]附表一主营业务成本明细表（湛江元亨）'!I$16+'[18]附表一主营业务成本明细表（湛江元亨）'!I$27+'[18]附表二期间费用明细表（湛江元亨）'!I$33+'[18]附表二期间费用明细表（湛江元亨）'!I$18 -> 39.55 | I22: ='[18]附表一主营业务成本明细表（湛江元亨）'!J$16+'[18]附表一主营业务成本明细表（湛江元亨）'!J$27+'[18]附表二期间费用明细表（湛江元亨）'!J$33+'[18]附表二期间费用明细表（湛江元亨）'!J$18 -> 0 | J22: ='[18]附表一主营业务成本明细表（湛江元亨）'!K$16+'[18]附表一主营业务成本明细表（湛江元亨）'!K$27+'[18]附表二期间费用明细表（湛江元亨）'!K$33+'[18]附表二期间费用明细表（湛江元亨）'!K$18 -> 824.16 | K22: ='[18]附表一主营业务成本明细表（湛江元亨）'!L$16+'[18]附表一主营业务成本明细表（湛江元亨）'!L$27+'[18]附表二期间费用明细表（湛江元亨）'!L$33+'[18]附表二期间费用明细表（湛江元亨）'!L$18 -> 4066 | L22: ='[18]附表一主营业务成本明细表（湛江元亨）'!M$16+'[18]附表一主营业务成本明细表（湛江元亨）'!M$27+'[18]附表二期间费用明细表（湛江元亨）'!M$33+'[18]附表二期间费用明细表（湛江元亨）'!M$18 -> 0 | M22: ='[18]附表一主营业务成本明细表（湛江元亨）'!N$16+'[18]附表一主营业务成本明细表（湛江元亨）'!N$27+'[18]附表二期间费用明细表（湛江元亨）'!N$33+'[18]附表二期间费用明细表（湛江元亨）'!N$18 -> 0 | N22: ='[18]附表一主营业务成本明细表（湛江元亨）'!O$16+'[18]附表一主营业务成本明细表（湛江元亨）'!O$27+'[18]附表二期间费用明细表（湛江元亨）'!O$33+'[18]附表二期间费用明细表（湛江元亨）'!O$18 -> 0 | O22: ='[18]附表一主营业务成本明细表（湛江元亨）'!P$16+'[18]附表一主营业务成本明细表（湛江元亨）'!P$27+'[18]附表二期间费用明细表（湛江元亨）'!P$33+'[18]附表二期间费用明细表（湛江元亨）'!P$18 -> 0 | P22: ='[18]附表一主营业务成本明细表（湛江元亨）'!Q$16+'[18]附表一主营业务成本明细表（湛江元亨）'!Q$27+'[18]附表二期间费用明细表（湛江元亨）'!Q$33+'[18]附表二期间费用明细表（湛江元亨）'!Q$18 -> 0 | Q22: ='[18]附表一主营业务成本明细表（湛江元亨）'!R$16+'[18]附表一主营业务成本明细表（湛江元亨）'!R$27+'[18]附表二期间费用明细表（湛江元亨）'!R$33+'[18]附表二期间费用明细表（湛江元亨）'!R$18 -> 0
B23: 合计： | C23: =SUM(C11:C22)+C8+C7 -> 26990696 | D23: 0.2567975394 | E23: 6931144.32 | F23: =SUM(F11:F22)+F8+F7 -> 552366.59 | G23: =SUM(G11:G22)+G8+G7 -> 76030.6 | H23: 605219.41 | I23: 3895442.32 | J23: 1216567.81 | K23: 585517.59 | L23: 0 | M23: 0 | N23: 0 | O23: 0 | P23: 0 | Q23: 0
A24: 财务费用 | B24: 合计： | C24: ='[18]附表二期间费用明细表（湛江元亨）'!D39 -> 46500 | D24: 0.1156221505 | E24: 5376.43 | F24: ='[18]附表二期间费用明细表（湛江元亨）'!G$39 -> 5376.43 | G24: ='[19]附表二期间费用明细表（汇总）'!H39 -> 0 | H24: ='[19]附表二期间费用明细表（汇总）'!I39 -> 0 | I24: ='[19]附表二期间费用明细表（汇总）'!J39 -> 0 | J24: ='[19]附表二期间费用明细表（汇总）'!K39 -> 0 | K24: ='[19]附表二期间费用明细表（汇总）'!L39 -> 0 | L24: ='[19]附表二期间费用明细表（汇总）'!M39 -> 0 | M24: ='[19]附表二期间费用明细表（汇总）'!N39 -> 0 | N24: ='[19]附表二期间费用明细表（汇总）'!O39 -> 0 | O24: ='[19]附表二期间费用明细表（汇总）'!P39 -> 0 | P24: ='[19]附表二期间费用明细表（汇总）'!Q39 -> 0 | Q24: ='[19]附表二期间费用明细表（汇总）'!R39 -> 0
A25: 其他支出 | B25: 合计： | C25: ='[18]附表二期间费用明细表（湛江元亨）'!D43 -> 40700 | D25: 0 | E25: 0 | F25: ='[19]附表二期间费用明细表（汇总）'!G43 -> 0 | G25: ='[19]附表二期间费用明细表（汇总）'!H43 -> 0 | H25: ='[19]附表二期间费用明细表（汇总）'!I43 -> 0 | I25: ='[19]附表二期间费用明细表（汇总）'!J43 -> 0 | J25: ='[19]附表二期间费用明细表（汇总）'!K43 -> 0 | K25: ='[19]附表二期间费用明细表（汇总）'!L43 -> 0 | L25: ='[19]附表二期间费用明细表（汇总）'!M43 -> 0 | M25: ='[19]附表二期间费用明细表（汇总）'!N43 -> 0 | N25: ='[19]附表二期间费用明细表（汇总）'!O43 -> 0 | O25: ='[19]附表二期间费用明细表（汇总）'!P43 -> 0 | P25: ='[19]附表二期间费用明细表（汇总）'!Q43 -> 0 | Q25: ='[19]附表二期间费用明细表（汇总）'!R43 -> 0
A26: 总支出合计: | C26: =C25+C24+C23 -> 27077896 | D26: 0.2561691185 | E26: 6936520.75 | F26: 557743.02 | G26: 76030.6 | H26: 605219.41 | I26: 3895442.32 | J26: 1216567.81 | K26: 585517.59 | L26: 0 | M26: 0 | N26: 0 | O26: 0 | P26: 0 | Q26: 0
A27: 制表人： | R27: 日期：2018年
A29: 备注：由于有公式链接，因此不需填写此表

Sheet 附表一主营业务成本明细表（单体） (hidden)
A2: =[18]管理报表封面!A2 -> 湛江元亨
A3: 2019年操作成本明细
A4: 货币单位：元
A6: 类别 | B6: 科目代码 | C6: 科目名称 | D6: 本年预算①
D7: 本年预算金额 | E7: 预算完成百分比 | F7: 本年实际累计 | G7: 1月 | H7: 2月 | I7: 3月 | J7: 4月 | K7: 5月 | L7: 6月 | M7: 7月 | N7: 8月 | O7: 9月 | P7: 10月 | Q7: 11月 | R7: 12月 | S7: 备 注
A8: 主营业务成本（不包含操作成本）6401.01+6401.02 | D8: 25445000 | E8: =IF(ISERROR(F8/#REF!),"",F8/#REF!) ->  | F8: =SUM(G8:R8) -> 6324680 | G8: 465021.37 | H8: 386 | I8: 537477.59 | J8: 3793527.38 | K8: 1093243.05 | L8: 435024.61
A9: 货代直接操作成本明细6401.03 | C9: 其中：汽车费用（取费目） | E9: =IF(ISERROR(F9/D9),"",F9/D9) ->  | F9: =SUM(G9:R9) -> 0
C10: 市内交通 | F10: 0
C11: 招待费 | F11: 0
C12: 办公费及易耗品费 | F12: 0
C13: 差旅费 | F13: 0
C14: 外包装卸费 | F14: 0
C15: 保险费 | F15: 0
B16: 其他直接操作成本 | F16: 0
B17: 直接操作成本合计 | D17: =SUM(D9:D16) -> 0 | F17: 0 | G17: =SUM(G9:G16) -> 0 | H17: =SUM(H9:H16) -> 0 | I17: 0 | J17: 0 | K17: 0 | L17: 0 | M17: 0 | N17: 0 | O17: 0 | P17: 0 | Q17: 0 | R17: 0
A18: 货代间接操作成本、船代仓储运输操作成本明细6401.04 | B18: 6401.04.01 | C18: 其中：职工薪酬 | F18: 0 | G18: =G19+G20 -> 0 | H18: 0 | I18: 0 | J18: 0 | K18: 0 | L18: 0 | M18: 0 | N18: 0 | O18: 0 | P18: 0 | Q18: 0 | R18: 0
C19: ——工资 | F19: 0
C20: ——奖金 | F20: 0
B21: 6401.04.03 | C21: 汽车费用 | F21: 0
B22: 6401.04.03 | C22: 招待费 | F22: 0
B23: 6401.04.03 | C23: 差旅费用 | F23: 0
B24: 6401.04.03 | C24: 办公费用 | F24: 0
B25: 6401.04.03 | C25: 通讯费用 | F25: 0
B26: 6401.04.03 | C26: 折销费用 | F26: 0
B27: 其他间接操作成本 | F27: 0
B28: 间接操作成本合计 | D28: =SUM(D21:D27)+D18 -> 0 | F28: 0 | G28: =SUM(G21:G27)+G18 -> 0 | H28: 0 | I28: 0 | J28: 0 | K28: 0 | L28: 0 | M28: 0 | N28: 0 | O28: 0 | P28: 0 | Q28: 0 | R28: 0
A29: 主营业务成本总合计 | D29: =D8+D17+D28 -> 25445000 | E29: 0.2485627825 | F29: =F8+F17+F28 -> 6324680 | G29: 465021.37 | H29: 386 | I29: 537477.59 | J29: 3793527.38 | K29: 1093243.05 | L29: 435024.61 | M29: 0 | N29: 0 | O29: 0 | P29: 0 | Q29: 0 | R29: 0
A30: 制表人： | S30: 日期：2017年
A32: 备注：
A33: 1、此表为总支出表中主营业务成本的部分明细
A34: 2、为统一格式，绿色底色为货代填写部分，黄色为四大事业部填写部分
A35: 3、代码需要各事业部对应填列

Sheet 附表二期间费用明细表（单体） (hidden)
A1: XXX有限公司
A2: 2018年总支出表
A3: 货币单位：元
S4: 期间：2018年
A5: 类别 | B5: 科目代码 | C5: 科目名称 | D5: 本年预算①
D6: 本年预算金额 | E6: 预算完成百分比 | F6: 本年实际累计 | G6: 1月 | H6: 2月 | I6: 3月 | J6: 4月 | K6: 5月 | L6: 6月 | M6: 7月 | N6: 8月 | O6: 9月 | P6: 10月 | Q6: 11月 | R6: 12月 | S6: 备 注
A7: 销售费用 | C7: 职工薪酬 | D7: 134800 | E7: =IF(ISERROR(F7/D7),"",F7/D7) -> 0.7070600148 | F7: =SUM(G7:R7) -> 95311.69 | G7: ='[20]附表二期间费用明细表（A账）'!G7+'[20]附表二期间费用明细表（B账）'!G7 -> 8516.17 | H7: ='[20]附表二期间费用明细表（A账）'!H7+'[20]附表二期间费用明细表（B账）'!H7 -> 7862.17 | I7: ='[20]附表二期间费用明细表（A账）'!I7+'[20]附表二期间费用明细表（B账）'!I7 -> 7214.67 | J7: ='[20]附表二期间费用明细表（A账）'!J7+'[20]附表二期间费用明细表（B账）'!J7 -> 7212.67 | K7: ='[20]附表二期间费用明细表（A账）'!K7+'[20]附表二期间费用明细表（B账）'!K7 -> 11912.51 | L7: ='[20]附表二期间费用明细表（A账）'!L7+'[20]附表二期间费用明细表（B账）'!L7 -> 11612.51 | M7: ='[20]附表二期间费用明细表（A账）'!M7+'[20]附表二期间费用明细表（B账）'!M7 -> 14548.09 | N7: ='[20]附表二期间费用明细表（A账）'!N7+'[20]附表二期间费用明细表（B账）'!N7 -> 9031.3 | O7: ='[20]附表二期间费用明细表（A账）'!O7+'[20]附表二期间费用明细表（B账）'!O7 -> 8731.3 | P7: ='[20]附表二期间费用明细表（A账）'!P7+'[20]附表二期间费用明细表（B账）'!P7 -> 8670.3 | Q7: ='[20]附表二期间费用明细表（A账）'!Q7+'[20]附表二期间费用明细表（B账）'!Q7 -> 0 | R7: ='[20]附表二期间费用明细表（A账）'!R7+'[20]附表二期间费用明细表（B账）'!R7 -> 0
C8: 其中：工资 | D8: 75100 | E8: 0.9461118509 | F8: =SUM(G8:R8) -> 71053 | G8: ='[20]附表二期间费用明细表（A账）'!G8+'[20]附表二期间费用明细表（B账）'!G8 -> 7111.5 | H8: ='[20]附表二期间费用明细表（A账）'!H8+'[20]附表二期间费用明细表（B账）'!H8 -> 6697.5 | I8: ='[20]附表二期间费用明细表（A账）'!I8+'[20]附表二期间费用明细表（B账）'!I8 -> 6310 | J8: ='[20]附表二期间费用明细表（A账）'!J8+'[20]附表二期间费用明细表（B账）'!J8 -> 6308 | K8: ='[20]附表二期间费用明细表（A账）'!K8+'[20]附表二期间费用明细表（B账）'!K8 -> 6608 | L8: ='[20]附表二期间费用明细表（A账）'!L8+'[20]附表二期间费用明细表（B账）'!L8 -> 6308 | M8: ='[20]附表二期间费用明细表（A账）'!M8+'[20]附表二期间费用明细表（B账）'!M8 -> 12008 | N8: ='[20]附表二期间费用明细表（A账）'!N8+'[20]附表二期间费用明细表（B账）'!N8 -> 6668 | O8: ='[20]附表二期间费用明细表（A账）'!O8+'[20]附表二期间费用明细表（B账）'!O8 -> 6368 | P8: ='[20]附表二期间费用明细表（A账）'!P8+'[20]附表二期间费用明细表（B账）'!P8 -> 6666 | Q8: ='[20]附表二期间费用明细表（A账）'!Q8+'[20]附表二期间费用明细表（B账）'!Q8 -> 0 | R8: ='[20]附表二期间费用明细表（A账）'!R8+'[20]附表二期间费用明细表（B账）'!R8 -> 0
C9: 奖金 | D9: 18200 | E9: 0.8044505495 | F9: 14641 | G9: ='[20]附表二期间费用明细表（A账）'!G9+'[20]附表二期间费用明细表（B账）'!G9 -> 0 | H9: ='[20]附表二期间费用明细表（A账）'!H9+'[20]附表二期间费用明细表（B账）'!H9 -> 0 | I9: ='[20]附表二期间费用明细表（A账）'!I9+'[20]附表二期间费用明细表（B账）'!I9 -> 0 | J9: ='[20]附表二期间费用明细表（A账）'!J9+'[20]附表二期间费用明细表（B账）'!J9 -> 0 | K9: ='[20]附表二期间费用明细表（A账）'!K9+'[20]附表二期间费用明细表（B账）'!K9 -> 4500 | L9: ='[20]附表二期间费用明细表（A账）'!L9+'[20]附表二期间费用明细表（B账）'!L9 -> 4500 | M9: ='[20]附表二期间费用明细表（A账）'!M9+'[20]附表二期间费用明细表（B账）'!M9 -> 1500 | N9: ='[20]附表二期间费用明细表（A账）'!N9+'[20]附表二期间费用明细表（B账）'!N9 -> 1500 | O9: ='[20]附表二期间费用明细表（A账）'!O9+'[20]附表二期间费用明细表（B账）'!O9 -> 1500 | P9: ='[20]附表二期间费用明细表（A账）'!P9+'[20]附表二期间费用明细表（B账）'!P9 -> 1141 | Q9: ='[20]附表二期间费用明细表（A账）'!Q9+'[20]附表二期间费用明细表（B账）'!Q9 -> 0 | R9: ='[20]附表二期间费用明细表（A账）'!R9+'[20]附表二期间费用明细表（B账）'!R9 -> 0
C10: 薪酬其他 | D10: 41500 | E10: 0.2317515663 | F10: 9617.69 | G10: ='[20]附表二期间费用明细表（A账）'!G10+'[20]附表二期间费用明细表（B账）'!G10 -> 1404.67 | H10: ='[20]附表二期间费用明细表（A账）'!H10+'[20]附表二期间费用明细表（B账）'!H10 -> 1164.67 | I10: ='[20]附表二期间费用明细表（A账）'!I10+'[20]附表二期间费用明细表（B账）'!I10 -> 904.67 | J10: ='[20]附表二期间费用明细表（A账）'!J10+'[20]附表二期间费用明细表（B账）'!J10 -> 904.67 | K10: ='[20]附表二期间费用明细表（A账）'!K10+'[20]附表二期间费用明细表（B账）'!K10 -> 804.51 | L10: ='[20]附表二期间费用明细表（A账）'!L10+'[20]附表二期间费用明细表（B账）'!L10 -> 804.51 | M10: ='[20]附表二期间费用明细表（A账）'!M10+'[20]附表二期间费用明细表（B账）'!M10 -> 1040.09 | N10: ='[20]附表二期间费用明细表（A账）'!N10+'[20]附表二期间费用明细表（B账）'!N10 -> 863.3 | O10: ='[20]附表二期间费用明细表（A账）'!O10+'[20]附表二期间费用明细表（B账）'!O10 -> 863.3 | P10: ='[20]附表二期间费用明细表（A账）'!P10+'[20]附表二期间费用明细表（B账）'!P10 -> 863.3 | Q10: ='[20]附表二期间费用明细表（A账）'!Q10+'[20]附表二期间费用明细表（B账）'!Q10 -> 0 | R10: ='[20]附表二期间费用明细表（A账）'!R10+'[20]附表二期间费用明细表（B账）'!R10 -> 0
C11: 车辆费 | D11: 12000 | E11: 0.695 | F11: 8340 | G11: ='[20]附表二期间费用明细表（A账）'!G11+'[20]附表二期间费用明细表（B账）'!G11 -> 0 | H11: ='[20]附表二期间费用明细表（A账）'!H11+'[20]附表二期间费用明细表（B账）'!H11 -> 8010 | I11: ='[20]附表二期间费用明细表（A账）'!I11+'[20]附表二期间费用明细表（B账）'!I11 -> 0 | J11: ='[20]附表二期间费用明细表（A账）'!J11+'[20]附表二期间费用明细表（B账）'!J11 -> 320 | K11: ='[20]附表二期间费用明细表（A账）'!K11+'[20]附表二期间费用明细表（B账）'!K11 -> 0 | L11: ='[20]附表二期间费用明细表（A账）'!L11+'[20]附表二期间费用明细表（B账）'!L11 -> 0 | M11: ='[20]附表二期间费用明细表（A账）'!M11+'[20]附表二期间费用明细表（B账）'!M11 -> 10 | N11: ='[20]附表二期间费用明细表（A账）'!N11+'[20]附表二期间费用明细表（B账）'!N11 -> 0 | O11: ='[20]附表二期间费用明细表（A账）'!O11+'[20]附表二期间费用明细表（B账）'!O11 -> 0 | P11: ='[20]附表二期间费用明细表（A账）'!P11+'[20]附表二期间费用明细表（B账）'!P11 -> 0 | Q11: ='[20]附表二期间费用明细表（A账）'!Q11+'[20]附表二期间费用明细表（B账）'!Q11 -> 0 | R11: ='[20]附表二期间费用明细表（A账）'!R11+'[20]附表二期间费用明细表（B账）'!R11 -> 0
C12: 招待费 | D12: 96000 | E12: 0.9424447917 | F12: 90474.7 | G12: ='[20]附表二期间费用明细表（A账）'!G12+'[20]附表二期间费用明细表（B账）'!G12 -> 19869 | H12: ='[20]附表二期间费用明细表（A账）'!H12+'[20]附表二期间费用明细表（B账）'!H12 -> 0 | I12: ='[20]附表二期间费用明细表（A账）'!I12+'[20]附表二期间费用明细表（B账）'!I12 -> 0 | J12: ='[20]附表二期间费用明细表（A账）'!J12+'[20]附表二期间费用明细表（B账）'!J12 -> 3347 | K12: ='[20]附表二期间费用明细表（A账）'!K12+'[20]附表二期间费用明细表（B账）'!K12 -> 127.4 | L12: ='[20]附表二期间费用明细表（A账）'!L12+'[20]附表二期间费用明细表（B账）'!L12 -> 6758.2 | M12: ='[20]附表二期间费用明细表（A账）'!M12+'[20]附表二期间费用明细表（B账）'!M12 -> 35027.1 | N12: ='[20]附表二期间费用明细表（A账）'!N12+'[20]附表二期间费用明细表（B账）'!N12 -> 308 | O12: ='[20]附表二期间费用明细表（A账）'!O12+'[20]附表二期间费用明细表（B账）'!O12 -> 24580 | P12: ='[20]附表二期间费用明细表（A账）'!P12+'[20]附表二期间费用明细表（B账）'!P12 -> 458 | Q12: ='[20]附表二期间费用明细表（A账）'!Q12+'[20]附表二期间费用明细表（B账）'!Q12 -> 0 | R12: ='[20]附表二期间费用明细表（A账）'!R12+'[20]附表二期间费用明细表（B账）'!R12 -> 0
C13: 差旅费 | D13: 60000 | E13: 0.02959366667 | F13: 1775.62 | G13: ='[20]附表二期间费用明细表（A账）'!G13+'[20]附表二期间费用明细表（B账）'!G13 -> 0 | H13: ='[20]附表二期间费用明细表（A账）'!H13+'[20]附表二期间费用明细表（B账）'!H13 -> 0 | I13: ='[20]附表二期间费用明细表（A账）'!I13+'[20]附表二期间费用明细表（B账）'!I13 -> 0 | J13: ='[20]附表二期间费用明细表（A账）'!J13+'[20]附表二期间费用明细表（B账）'!J13 -> 0 | K13: ='[20]附表二期间费用明细表（A账）'!K13+'[20]附表二期间费用明细表（B账）'!K13 -> 0 | L13: ='[20]附表二期间费用明细表（A账）'!L13+'[20]附表二期间费用明细表（B账）'!L13 -> 0 | M13: ='[20]附表二期间费用明细表（A账）'!M13+'[20]附表二期间费用明细表（B账）'!M13 -> 0 | N13: ='[20]附表二期间费用明细表（A账）'!N13+'[20]附表二期间费用明细表（B账）'!N13 -> 0 | O13: ='[20]附表二期间费用明细表（A账）'!O13+'[20]附表二期间费用明细表（B账）'!O13 -> 1775.62 | P13: ='[20]附表二期间费用明细表（A账）'!P13+'[20]附表二期间费用明细表（B账）'!P13 -> 0 | Q13: ='[20]附表二期间费用明细表（A账）'!Q13+'[20]附表二期间费用明细表（B账）'!Q13 -> 0 | R13: ='[20]附表二期间费用明细表（A账）'!R13+'[20]附表二期间费用明细表（B账）'!R13 -> 0
C14: 办公费 | D14: 16000 | E14: 0.111068125 | F14: 1777.09 | G14: ='[20]附表二期间费用明细表（A账）'!G14+'[20]附表二期间费用明细表（B账）'!G14 -> 915.09 | H14: ='[20]附表二期间费用明细表（A账）'!H14+'[20]附表二期间费用明细表（B账）'!H14 -> 265 | I14: ='[20]附表二期间费用明细表（A账）'!I14+'[20]附表二期间费用明细表（B账）'!I14 -> 0 | J14: ='[20]附表二期间费用明细表（A账）'!J14+'[20]附表二期间费用明细表（B账）'!J14 -> 255 | K14: ='[20]附表二期间费用明细表（A账）'!K14+'[20]附表二期间费用明细表（B账）'!K14 -> 0 | L14: ='[20]附表二期间费用明细表（A账）'!L14+'[20]附表二期间费用明细表（B账）'!L14 -> 0 | M14: ='[20]附表二期间费用明细表（A账）'!M14+'[20]附表二期间费用明细表（B账）'!M14 -> 67 | N14: ='[20]附表二期间费用明细表（A账）'!N14+'[20]附表二期间费用明细表（B账）'!N14 -> 227 | O14: ='[20]附表二期间费用明细表（A账）'!O14+'[20]附表二期间费用明细表（B账）'!O14 -> 48 | P14: ='[20]附表二期间费用明细表（A账）'!P14+'[20]附表二期间费用明细表（B账）'!P14 -> 0 | Q14: ='[20]附表二期间费用明细表（A账）'!Q14+'[20]附表二期间费用明细表（B账）'!Q14 -> 0 | R14: ='[20]附表二期间费用明细表（A账）'!R14+'[20]附表二期间费用明细表（B账）'!R14 -> 0
C15: 通讯费 | F15: 0 | G15: ='[20]附表二期间费用明细表（A账）'!G15+'[20]附表二期间费用明细表（B账）'!G15 -> 0 | H15: ='[20]附表二期间费用明细表（A账）'!H15+'[20]附表二期间费用明细表（B账）'!H15 -> 0 | I15: ='[20]附表二期间费用明细表（A账）'!I15+'[20]附表二期间费用明细表（B账）'!I15 -> 0 | J15: ='[20]附表二期间费用明细表（A账）'!J15+'[20]附表二期间费用明细表（B账）'!J15 -> 0 | K15: ='[20]附表二期间费用明细表（A账）'!K15+'[20]附表二期间费用明细表（B账）'!K15 -> 0 | L15: ='[20]附表二期间费用明细表（A账）'!L15+'[20]附表二期间费用明细表（B账）'!L15 -> 0 | M15: ='[20]附表二期间费用明细表（A账）'!M15+'[20]附表二期间费用明细表（B账）'!M15 -> 0 | N15: ='[20]附表二期间费用明细表（A账）'!N15+'[20]附表二期间费用明细表（B账）'!N15 -> 0 | O15: ='[20]附表二期间费用明细表（A账）'!O15+'[20]附表二期间费用明细表（B账）'!O15 -> 0 | P15: ='[20]附表二期间费用明细表（A账）'!P15+'[20]附表二期间费用明细表（B账）'!P15 -> 0 | Q15: ='[20]附表二期间费用明细表（A账）'!Q15+'[20]附表二期间费用明细表（B账）'!Q15 -> 0 | R15: ='[20]附表二期间费用明细表（A账）'!R15+'[20]附表二期间费用明细表（B账）'!R15 -> 0
C16: 折销费 | F16: 0 | G16: ='[20]附表二期间费用明细表（A账）'!G16+'[20]附表二期间费用明细表（B账）'!G16 -> 0 | H16: ='[20]附表二期间费用明细表（A账）'!H16+'[20]附表二期间费用明细表（B账）'!H16 -> 0 | I16: ='[20]附表二期间费用明细表（A账）'!I16+'[20]附表二期间费用明细表（B账）'!I16 -> 0 | J16: ='[20]附表二期间费用明细表（A账）'!J16+'[20]附表二期间费用明细表（B账）'!J16 -> 0 | K16: ='[20]附表二期间费用明细表（A账）'!K16+'[20]附表二期间费用明细表（B账）'!K16 -> 0 | L16: ='[20]附表二期间费用明细表（A账）'!L16+'[20]附表二期间费用明细表（B账）'!L16 -> 0 | M16: ='[20]附表二期间费用明细表（A账）'!M16+'[20]附表二期间费用明细表（B账）'!M16 -> 0 | N16: ='[20]附表二期间费用明细表（A账）'!N16+'[20]附表二期间费用明细表（B账）'!N16 -> 0 | O16: ='[20]附表二期间费用明细表（A账）'!O16+'[20]附表二期间费用明细表（B账）'!O16 -> 0 | P16: ='[20]附表二期间费用明细表（A账）'!P16+'[20]附表二期间费用明细表（B账）'!P16 -> 0 | Q16: ='[20]附表二期间费用明细表（A账）'!Q16+'[20]附表二期间费用明细表（B账）'!Q16 -> 0 | R16: ='[20]附表二期间费用明细表（A账）'!R16+'[20]附表二期间费用明细表（B账）'!R16 -> 0
C17: 企业宣传费 | D17: 9600 | E17: 0 | F17: 0 | G17: ='[20]附表二期间费用明细表（A账）'!G17+'[20]附表二期间费用明细表（B账）'!G17 -> 0 | H17: ='[20]附表二期间费用明细表（A账）'!H17+'[20]附表二期间费用明细表（B账）'!H17 -> 0 | I17: ='[20]附表二期间费用明细表（A账）'!I17+'[20]附表二期间费用明细表（B账）'!I17 -> 0 | J17: ='[20]附表二期间费用明细表（A账）'!J17+'[20]附表二期间费用明细表（B账）'!J17 -> 0 | K17: ='[20]附表二期间费用明细表（A账）'!K17+'[20]附表二期间费用明细表（B账）'!K17 -> 0 | L17: ='[20]附表二期间费用明细表（A账）'!L17+'[20]附表二期间费用明细表（B账）'!L17 -> 0 | M17: ='[20]附表二期间费用明细表（A账）'!M17+'[20]附表二期间费用明细表（B账）'!M17 -> 0 | N17: ='[20]附表二期间费用明细表（A账）'!N17+'[20]附表二期间费用明细表（B账）'!N17 -> 0 | O17: ='[20]附表二期间费用明细表（A账）'!O17+'[20]附表二期间费用明细表（B账）'!O17 -> 0 | P17: ='[20]附表二期间费用明细表（A账）'!P17+'[20]附表二期间费用明细表（B账）'!P17 -> 0 | Q17: ='[20]附表二期间费用明细表（A账）'!Q17+'[20]附表二期间费用明细表（B账）'!Q17 -> 0 | R17: ='[20]附表二期间费用明细表（A账）'!R17+'[20]附表二期间费用明细表（B账）'!R17 -> 0
C18: 其 他 | F18: 0 | G18: ='[20]附表二期间费用明细表（A账）'!G18+'[20]附表二期间费用明细表（B账）'!G18 -> 0 | H18: ='[20]附表二期间费用明细表（A账）'!H18+'[20]附表二期间费用明细表（B账）'!H18 -> 0 | I18: ='[20]附表二期间费用明细表（A账）'!I18+'[20]附表二期间费用明细表（B账）'!I18 -> 0 | J18: ='[20]附表二期间费用明细表（A账）'!J18+'[20]附表二期间费用明细表（B账）'!J18 -> 0 | K18: ='[20]附表二期间费用明细表（A账）'!K18+'[20]附表二期间费用明细表（B账）'!K18 -> 0 | L18: ='[20]附表二期间费用明细表（A账）'!L18+'[20]附表二期间费用明细表（B账）'!L18 -> 0 | M18: ='[20]附表二期间费用明细表（A账）'!M18+'[20]附表二期间费用明细表（B账）'!M18 -> 0 | N18: ='[20]附表二期间费用明细表（A账）'!N18+'[20]附表二期间费用明细表（B账）'!N18 -> 0 | O18: ='[20]附表二期间费用明细表（A账）'!O18+'[20]附表二期间费用明细表（B账）'!O18 -> 0 | P18: ='[20]附表二期间费用明细表（A账）'!P18+'[20]附表二期间费用明细表（B账）'!P18 -> 0 | Q18: ='[20]附表二期间费用明细表（A账）'!Q18+'[20]附表二期间费用明细表（B账）'!Q18 -> 0 | R18: ='[20]附表二期间费用明细表（A账）'!R18+'[20]附表二期间费用明细表（B账）'!R18 -> 0
B19: 合计： | D19: =SUM(D11:D18)+D7 -> 328400 | E19: 0.6019461023 | F19: 197679.1 | G19: =SUM(G11:G18)+G7 -> 29300.26 | H19: =SUM(H11:H18)+H7 -> 16137.17 | I19: =SUM(I11:I18)+I7 -> 7214.67 | J19: 11134.67 | K19: 12039.91 | L19: 18370.71 | M19: 49652.19 | N19: 9566.3 | O19: 35134.92 | P19: 9128.3 | Q19: 0 | R19: 0
A20: 管理费用 | C20: 职工薪酬 | D20: 603500 | E20: 0.5080230986 | F20: 306591.94 | G20: ='[20]附表二期间费用明细表（A账）'!G20+'[20]附表二期间费用明细表（B账）'!G20 -> 20142.34 | H20: ='[20]附表二期间费用明细表（A账）'!H20+'[20]附表二期间费用明细表（B账）'!H20 -> 27101.95 | I20: ='[20]附表二期间费用明细表（A账）'!I20+'[20]附表二期间费用明细表（B账）'!I20 -> 20242.34 | J20: ='[20]附表二期间费用明细表（A账）'!J20+'[20]附表二期间费用明细表（B账）'!J20 -> 20142.34 | K20: ='[20]附表二期间费用明细表（A账）'!K20+'[20]附表二期间费用明细表（B账）'!K20 -> 45242.97 | L20: ='[20]附表二期间费用明细表（A账）'!L20+'[20]附表二期间费用明细表（B账）'!L20 -> 49798.02 | M20: ='[20]附表二期间费用明细表（A账）'!M20+'[20]附表二期间费用明细表（B账）'!M20 -> 40701.18 | N20: ='[20]附表二期间费用明细表（A账）'!N20+'[20]附表二期间费用明细表（B账）'!N20 -> 27331.6 | O20: ='[20]附表二期间费用明细表（A账）'!O20+'[20]附表二期间费用明细表（B账）'!O20 -> 28029.6 | P20: ='[20]附表二期间费用明细表（A账）'!P20+'[20]附表二期间费用明细表（B账）'!P20 -> 27859.6 | Q20: ='[20]附表二期间费用明细表（A账）'!Q20+'[20]附表二期间费用明细表（B账）'!Q20 -> 0 | R20: ='[20]附表二期间费用明细表（A账）'!R20+'[20]附表二期间费用明细表（B账）'!R20 -> 0
C21: 其中：工资 | D21: 325200 | E21: 0.571402214 | F21: 185820 | G21: ='[20]附表二期间费用明细表（A账）'!G21+'[20]附表二期间费用明细表（B账）'!G21 -> 18333 | H21: ='[20]附表二期间费用明细表（A账）'!H21+'[20]附表二期间费用明细表（B账）'!H21 -> 19113 | I21: ='[20]附表二期间费用明细表（A账）'!I21+'[20]附表二期间费用明细表（B账）'!I21 -> 18433 | J21: ='[20]附表二期间费用明细表（A账）'!J21+'[20]附表二期间费用明细表（B账）'!J21 -> 18333 | K21: ='[20]附表二期间费用明细表（A账）'!K21+'[20]附表二期间费用明细表（B账）'!K21 -> 18933 | L21: ='[20]附表二期间费用明细表（A账）'!L21+'[20]附表二期间费用明细表（B账）'!L21 -> 18333 | M21: ='[20]附表二期间费用明细表（A账）'!M21+'[20]附表二期间费用明细表（B账）'!M21 -> 18453 | N21: ='[20]附表二期间费用明细表（A账）'!N21+'[20]附表二期间费用明细表（B账）'!N21 -> 19053 | O21: ='[20]附表二期间费用明细表（A账）'!O21+'[20]附表二期间费用明细表（B账）'!O21 -> 18503 | P21: ='[20]附表二期间费用明细表（A账）'!P21+'[20]附表二期间费用明细表（B账）'!P21 -> 18333 | Q21: ='[20]附表二期间费用明细表（A账）'!Q21+'[20]附表二期间费用明细表（B账）'!Q21 -> 0 | R21: ='[20]附表二期间费用明细表（A账）'!R21+'[20]附表二期间费用明细表（B账）'!R21 -> 0
C22: 奖金 | D22: 93300 | E22: 0.8360128617 | F22: 78000 | G22: ='[20]附表二期间费用明细表（A账）'!G22+'[20]附表二期间费用明细表（B账）'!G22 -> 0 | H22: ='[20]附表二期间费用明细表（A账）'!H22+'[20]附表二期间费用明细表（B账）'!H22 -> 0 | I22: ='[20]附表二期间费用明细表（A账）'!I22+'[20]附表二期间费用明细表（B账）'!I22 -> 0 | J22: ='[20]附表二期间费用明细表（A账）'!J22+'[20]附表二期间费用明细表（B账）'!J22 -> 0 | K22: ='[20]附表二期间费用明细表（A账）'!K22+'[20]附表二期间费用明细表（B账）'!K22 -> 23400 | L22: ='[20]附表二期间费用明细表（A账）'!L22+'[20]附表二期间费用明细表（B账）'!L22 -> 23400 | M22: ='[20]附表二期间费用明细表（A账）'!M22+'[20]附表二期间费用明细表（B账）'!M22 -> 7800 | N22: ='[20]附表二期间费用明细表（A账）'!N22+'[20]附表二期间费用明细表（B账）'!N22 -> 7800 | O22: ='[20]附表二期间费用明细表（A账）'!O22+'[20]附表二期间费用明细表（B账）'!O22 -> 7800 | P22: ='[20]附表二期间费用明细表（A账）'!P22+'[20]附表二期间费用明细表（B账）'!P22 -> 7800 | Q22: ='[20]附表二期间费用明细表（A账）'!Q22+'[20]附表二期间费用明细表（B账）'!Q22 -> 0 | R22: ='[20]附表二期间费用明细表（A账）'!R22+'[20]附表二期间费用明细表（B账）'!R22 -> 0
C23: 薪酬其他 | D23: 185000 | E23: 0.2311996757 | F23: 42771.94 | G23: ='[20]附表二期间费用明细表（A账）'!G23+'[20]附表二期间费用明细表（B账）'!G23 -> 1809.34 | H23: ='[20]附表二期间费用明细表（A账）'!H23+'[20]附表二期间费用明细表（B账）'!H23 -> 7988.95 | I23: ='[20]附表二期间费用明细表（A账）'!I23+'[20]附表二期间费用明细表（B账）'!I23 -> 1809.34 | J23: ='[20]附表二期间费用明细表（A账）'!J23+'[20]附表二期间费用明细表（B账）'!J23 -> 1809.34 | K23: ='[20]附表二期间费用明细表（A账）'!K23+'[20]附表二期间费用明细表（B账）'!K23 -> 2909.97 | L23: ='[20]附表二期间费用明细表（A账）'!L23+'[20]附表二期间费用明细表（B账）'!L23 -> 8065.02 | M23: ='[20]附表二期间费用明细表（A账）'!M23+'[20]附表二期间费用明细表（B账）'!M23 -> 14448.18 | N23: ='[20]附表二期间费用明细表（A账）'!N23+'[20]附表二期间费用明细表（B账）'!N23 -> 478.6 | O23: ='[20]附表二期间费用明细表（A账）'!O23+'[20]附表二期间费用明细表（B账）'!O23 -> 1726.6 | P23: ='[20]附表二期间费用明细表（A账）'!P23+'[20]附表二期间费用明细表（B账）'!P23 -> 1726.6 | Q23: ='[20]附表二期间费用明细表（A账）'!Q23+'[20]附表二期间费用明细表（B账）'!Q23 -> 0 | R23: ='[20]附表二期间费用明细表（A账）'!R23+'[20]附表二期间费用明细表（B账）'!R23 -> 0
C24: 车辆费 | D24: 76800 | E24: 0.2966954427 | F24: 22786.21 | G24: ='[20]附表二期间费用明细表（A账）'!G24+'[20]附表二期间费用明细表（B账）'!G24 -> 7096.18 | H24: ='[20]附表二期间费用明细表（A账）'!H24+'[20]附表二期间费用明细表（B账）'!H24 -> 0 | I24: ='[20]附表二期间费用明细表（A账）'!I24+'[20]附表二期间费用明细表（B账）'!I24 -> 5829.35 | J24: ='[20]附表二期间费用明细表（A账）'!J24+'[20]附表二期间费用明细表（B账）'!J24 -> 0 | K24: ='[20]附表二期间费用明细表（A账）'!K24+'[20]附表二期间费用明细表（B账）'!K24 -> 1670.73 | L24: ='[20]附表二期间费用明细表（A账）'!L24+'[20]附表二期间费用明细表（B账）'!L24 -> 979.64 | M24: ='[20]附表二期间费用明细表（A账）'!M24+'[20]附表二期间费用明细表（B账）'!M24 -> 1137.29 | N24: ='[20]附表二期间费用明细表（A账）'!N24+'[20]附表二期间费用明细表（B账）'!N24 -> 939.6 | O24: ='[20]附表二期间费用明细表（A账）'!O24+'[20]附表二期间费用明细表（B账）'!O24 -> 2332.85 | P24: ='[20]附表二期间费用明细表（A账）'!P24+'[20]附表二期间费用明细表（B账）'!P24 -> 2800.57 | Q24: ='[20]附表二期间费用明细表（A账）'!Q24+'[20]附表二期间费用明细表（B账）'!Q24 -> 0 | R24: ='[20]附表二期间费用明细表（A账）'!R24+'[20]附表二期间费用明细表（B账）'!R24 -> 0
C25: 招待费 | D25: 60000 | E25: 0.3940033333 | F25: 23640.2 | G25: ='[20]附表二期间费用明细表（A账）'!G25+'[20]附表二期间费用明细表（B账）'!G25 -> 0 | H25: ='[20]附表二期间费用明细表（A账）'!H25+'[20]附表二期间费用明细表（B账）'!H25 -> 0 | I25: ='[20]附表二期间费用明细表（A账）'!I25+'[20]附表二期间费用明细表（B账）'!I25 -> 95.8 | J25: ='[20]附表二期间费用明细表（A账）'!J25+'[20]附表二期间费用明细表（B账）'!J25 -> 360 | K25: ='[20]附表二期间费用明细表（A账）'!K25+'[20]附表二期间费用明细表（B账）'!K25 -> 0 | L25: ='[20]附表二期间费用明细表（A账）'!L25+'[20]附表二期间费用明细表（B账）'!L25 -> 340.4 | M25: ='[20]附表二期间费用明细表（A账）'!M25+'[20]附表二期间费用明细表（B账）'!M25 -> 0 | N25: ='[20]附表二期间费用明细表（A账）'!N25+'[20]附表二期间费用明细表（B账）'!N25 -> 10000 | O25: ='[20]附表二期间费用明细表（A账）'!O25+'[20]附表二期间费用明细表（B账）'!O25 -> 12844 | P25: ='[20]附表二期间费用明细表（A账）'!P25+'[20]附表二期间费用明细表（B账）'!P25 -> 0 | Q25: ='[20]附表二期间费用明细表（A账）'!Q25+'[20]附表二期间费用明细表（B账）'!Q25 -> 0 | R25: ='[20]附表二期间费用明细表（A账）'!R25+'[20]附表二期间费用明细表（B账）'!R25 -> 0
C26: 差旅费 | D26: 72000 | E26: 0.05382638889 | F26: 3875.5 | G26: ='[20]附表二期间费用明细表（A账）'!G26+'[20]附表二期间费用明细表（B账）'!G26 -> 0 | H26: ='[20]附表二期间费用明细表（A账）'!H26+'[20]附表二期间费用明细表（B账）'!H26 -> 0 | I26: ='[20]附表二期间费用明细表（A账）'!I26+'[20]附表二期间费用明细表（B账）'!I26 -> 3665.5 | J26: ='[20]附表二期间费用明细表（A账）'!J26+'[20]附表二期间费用明细表（B账）'!J26 -> 0 | K26: ='[20]附表二期间费用明细表（A账）'!K26+'[20]附表二期间费用明细表（B账）'!K26 -> 0 | L26: ='[20]附表二期间费用明细表（A账）'!L26+'[20]附表二期间费用明细表（B账）'!L26 -> 0 | M26: ='[20]附表二期间费用明细表（A账）'!M26+'[20]附表二期间费用明细表（B账）'!M26 -> 0 | N26: ='[20]附表二期间费用明细表（A账）'!N26+'[20]附表二期间费用明细表（B账）'!N26 -> 0 | O26: ='[20]附表二期间费用明细表（A账）'!O26+'[20]附表二期间费用明细表（B账）'!O26 -> 210 | P26: ='[20]附表二期间费用明细表（A账）'!P26+'[20]附表二期间费用明细表（B账）'!P26 -> 0 | Q26: ='[20]附表二期间费用明细表（A账）'!Q26+'[20]附表二期间费用明细表（B账）'!Q26 -> 0 | R26: ='[20]附表二期间费用明细表（A账）'!R26+'[20]附表二期间费用明细表（B账）'!R26 -> 0
C27: 办公费 | D27: =138800+60000+10000 -> 208800 | E27: 0.05906111111 | F27: 12331.96 | G27: ='[20]附表二期间费用明细表（A账）'!G27+'[20]附表二期间费用明细表（B账）'!G27 -> 3132.81 | H27: ='[20]附表二期间费用明细表（A账）'!H27+'[20]附表二期间费用明细表（B账）'!H27 -> 154.31 | I27: ='[20]附表二期间费用明细表（A账）'!I27+'[20]附表二期间费用明细表（B账）'!I27 -> 1475 | J27: ='[20]附表二期间费用明细表（A账）'!J27+'[20]附表二期间费用明细表（B账）'!J27 -> 1092.51 | K27: ='[20]附表二期间费用明细表（A账）'!K27+'[20]附表二期间费用明细表（B账）'!K27 -> 90 | L27: ='[20]附表二期间费用明细表（A账）'!L27+'[20]附表二期间费用明细表（B账）'!L27 -> 616.9 | M27: ='[20]附表二期间费用明细表（A账）'!M27+'[20]附表二期间费用明细表（B账）'!M27 -> 2073.6 | N27: ='[20]附表二期间费用明细表（A账）'!N27+'[20]附表二期间费用明细表（B账）'!N27 -> 90 | O27: ='[20]附表二期间费用明细表（A账）'!O27+'[20]附表二期间费用明细表（B账）'!O27 -> 3235.52 | P27: ='[20]附表二期间费用明细表（A账）'!P27+'[20]附表二期间费用明细表（B账）'!P27 -> 371.31 | Q27: ='[20]附表二期间费用明细表（A账）'!Q27+'[20]附表二期间费用明细表（B账）'!Q27 -> 0 | R27: ='[20]附表二期间费用明细表（A账）'!R27+'[20]附表二期间费用明细表（B账）'!R27 -> 0
C28: 通讯费 | D28: 15000 | E28: 0 | F28: 0 | G28: ='[20]附表二期间费用明细表（A账）'!G28+'[20]附表二期间费用明细表（B账）'!G28 -> 0 | H28: ='[20]附表二期间费用明细表（A账）'!H28+'[20]附表二期间费用明细表（B账）'!H28 -> 0 | I28: ='[20]附表二期间费用明细表（A账）'!I28+'[20]附表二期间费用明细表（B账）'!I28 -> 0 | J28: ='[20]附表二期间费用明细表（A账）'!J28+'[20]附表二期间费用明细表（B账）'!J28 -> 0 | K28: ='[20]附表二期间费用明细表（A账）'!K28+'[20]附表二期间费用明细表（B账）'!K28 -> 0 | L28: ='[20]附表二期间费用明细表（A账）'!L28+'[20]附表二期间费用明细表（B账）'!L28 -> 0 | M28: ='[20]附表二期间费用明细表（A账）'!M28+'[20]附表二期间费用明细表（B账）'!M28 -> 0 | N28: ='[20]附表二期间费用明细表（A账）'!N28+'[20]附表二期间费用明细表（B账）'!N28 -> 0 | O28: ='[20]附表二期间费用明细表（A账）'!O28+'[20]附表二期间费用明细表（B账）'!O28 -> 0 | P28: ='[20]附表二期间费用明细表（A账）'!P28+'[20]附表二期间费用明细表（B账）'!P28 -> 0 | Q28: ='[20]附表二期间费用明细表（A账）'!Q28+'[20]附表二期间费用明细表（B账）'!Q28 -> 0 | R28: ='[20]附表二期间费用明细表（A账）'!R28+'[20]附表二期间费用明细表（B账）'!R28 -> 0
C29: 折销费 | D29: 70800 | E29: 0.3470474576 | F29: 24570.96 | G29: ='[20]附表二期间费用明细表（A账）'!G29+'[20]附表二期间费用明细表（B账）'!G29 -> 131.94 | H29: ='[20]附表二期间费用明细表（A账）'!H29+'[20]附表二期间费用明细表（B账）'!H29 -> 2693.07 | I29: ='[20]附表二期间费用明细表（A账）'!I29+'[20]附表二期间费用明细表（B账）'!I29 -> 2693.07 | J29: ='[20]附表二期间费用明细表（A账）'!J29+'[20]附表二期间费用明细表（B账）'!J29 -> 2693.07 | K29: ='[20]附表二期间费用明细表（A账）'!K29+'[20]附表二期间费用明细表（B账）'!K29 -> 2693.07 | L29: ='[20]附表二期间费用明细表（A账）'!L29+'[20]附表二期间费用明细表（B账）'!L29 -> 2693.07 | M29: ='[20]附表二期间费用明细表（A账）'!M29+'[20]附表二期间费用明细表（B账）'!M29 -> 2693.07 | N29: ='[20]附表二期间费用明细表（A账）'!N29+'[20]附表二期间费用明细表（B账）'!N29 -> 2760.2 | O29: ='[20]附表二期间费用明细表（A账）'!O29+'[20]附表二期间费用明细表（B账）'!O29 -> 2760.2 | P29: ='[20]附表二期间费用明细表（A账）'!P29+'[20]附表二期间费用明细表（B账）'!P29 -> 2760.2 | Q29: ='[20]附表二期间费用明细表（A账）'!Q29+'[20]附表二期间费用明细表（B账）'!Q29 -> 0 | R29: ='[20]附表二期间费用明细表（A账）'!R29+'[20]附表二期间费用明细表（B账）'!R29 -> 0
C30: 企业宣传费 | D30: 2400 | E30: 0 | F30: 0 | G30: ='[20]附表二期间费用明细表（A账）'!G30+'[20]附表二期间费用明细表（B账）'!G30 -> 0 | H30: ='[20]附表二期间费用明细表（A账）'!H30+'[20]附表二期间费用明细表（B账）'!H30 -> 0 | I30: ='[20]附表二期间费用明细表（A账）'!I30+'[20]附表二期间费用明细表（B账）'!I30 -> 0 | J30: ='[20]附表二期间费用明细表（A账）'!J30+'[20]附表二期间费用明细表（B账）'!J30 -> 0 | K30: ='[20]附表二期间费用明细表（A账）'!K30+'[20]附表二期间费用明细表（B账）'!K30 -> 0 | L30: ='[20]附表二期间费用明细表（A账）'!L30+'[20]附表二期间费用明细表（B账）'!L30 -> 0 | M30: ='[20]附表二期间费用明细表（A账）'!M30+'[20]附表二期间费用明细表（B账）'!M30 -> 0 | N30: ='[20]附表二期间费用明细表（A账）'!N30+'[20]附表二期间费用明细表（B账）'!N30 -> 0 | O30: ='[20]附表二期间费用明细表（A账）'!O30+'[20]附表二期间费用明细表（B账）'!O30 -> 0 | P30: ='[20]附表二期间费用明细表（A账）'!P30+'[20]附表二期间费用明细表（B账）'!P30 -> 0 | Q30: ='[20]附表二期间费用明细表（A账）'!Q30+'[20]附表二期间费用明细表（B账）'!Q30 -> 0 | R30: ='[20]附表二期间费用明细表（A账）'!R30+'[20]附表二期间费用明细表（B账）'!R30 -> 0
C31: 专项费用 | F31: 0 | G31: ='[20]附表二期间费用明细表（A账）'!G31+'[20]附表二期间费用明细表（B账）'!G31 -> 0 | H31: ='[20]附表二期间费用明细表（A账）'!H31+'[20]附表二期间费用明细表（B账）'!H31 -> 0 | I31: ='[20]附表二期间费用明细表（A账）'!I31+'[20]附表二期间费用明细表（B账）'!I31 -> 0 | J31: ='[20]附表二期间费用明细表（A账）'!J31+'[20]附表二期间费用明细表（B账）'!J31 -> 0 | K31: ='[20]附表二期间费用明细表（A账）'!K31+'[20]附表二期间费用明细表（B账）'!K31 -> 0 | L31: ='[20]附表二期间费用明细表（A账）'!L31+'[20]附表二期间费用明细表（B账）'!L31 -> 0 | M31: ='[20]附表二期间费用明细表（A账）'!M31+'[20]附表二期间费用明细表（B账）'!M31 -> 0 | N31: ='[20]附表二期间费用明细表（A账）'!N31+'[20]附表二期间费用明细表（B账）'!N31 -> 0 | O31: ='[20]附表二期间费用明细表（A账）'!O31+'[20]附表二期间费用明细表（B账）'!O31 -> 0 | P31: ='[20]附表二期间费用明细表（A账）'!P31+'[20]附表二期间费用明细表（B账）'!P31 -> 0 | Q31: ='[20]附表二期间费用明细表（A账）'!Q31+'[20]附表二期间费用明细表（B账）'!Q31 -> 0 | R31: ='[20]附表二期间费用明细表（A账）'!R31+'[20]附表二期间费用明细表（B账）'!R31 -> 0
C32: 残疾人就业保障金 | F32: 0 | G32: ='[20]附表二期间费用明细表（A账）'!G32+'[20]附表二期间费用明细表（B账）'!G32 -> 0 | H32: ='[20]附表二期间费用明细表（A账）'!H32+'[20]附表二期间费用明细表（B账）'!H32 -> 0 | I32: ='[20]附表二期间费用明细表（A账）'!I32+'[20]附表二期间费用明细表（B账）'!I32 -> 0 | J32: ='[20]附表二期间费用明细表（A账）'!J32+'[20]附表二期间费用明细表（B账）'!J32 -> 0 | K32: ='[20]附表二期间费用明细表（A账）'!K32+'[20]附表二期间费用明细表（B账）'!K32 -> 0 | L32: ='[20]附表二期间费用明细表（A账）'!L32+'[20]附表二期间费用明细表（B账）'!L32 -> 0 | M32: ='[20]附表二期间费用明细表（A账）'!M32+'[20]附表二期间费用明细表（B账）'!M32 -> 0 | N32: ='[20]附表二期间费用明细表（A账）'!N32+'[20]附表二期间费用明细表（B账）'!N32 -> 0 | O32: ='[20]附表二期间费用明细表（A账）'!O32+'[20]附表二期间费用明细表（B账）'!O32 -> 0 | P32: ='[20]附表二期间费用明细表（A账）'!P32+'[20]附表二期间费用明细表（B账）'!P32 -> 0 | Q32: ='[20]附表二期间费用明细表（A账）'!Q32+'[20]附表二期间费用明细表（B账）'!Q32 -> 0 | R32: ='[20]附表二期间费用明细表（A账）'!R32+'[20]附表二期间费用明细表（B账）'!R32 -> 0
C33: 其 他 | F33: 0 | G33: ='[20]附表二期间费用明细表（A账）'!G33+'[20]附表二期间费用明细表（B账）'!G33 -> 0 | H33: ='[20]附表二期间费用明细表（A账）'!H33+'[20]附表二期间费用明细表（B账）'!H33 -> 0 | I33: ='[20]附表二期间费用明细表（A账）'!I33+'[20]附表二期间费用明细表（B账）'!I33 -> 0 | J33: ='[20]附表二期间费用明细表（A账）'!J33+'[20]附表二期间费用明细表（B账）'!J33 -> 0 | K33: ='[20]附表二期间费用明细表（A账）'!K33+'[20]附表二期间费用明细表（B账）'!K33 -> 0 | L33: ='[20]附表二期间费用明细表（A账）'!L33+'[20]附表二期间费用明细表（B账）'!L33 -> 0 | M33: ='[20]附表二期间费用明细表（A账）'!M33+'[20]附表二期间费用明细表（B账）'!M33 -> 0 | N33: ='[20]附表二期间费用明细表（A账）'!N33+'[20]附表二期间费用明细表（B账）'!N33 -> 0 | O33: ='[20]附表二期间费用明细表（A账）'!O33+'[20]附表二期间费用明细表（B账）'!O33 -> 0 | P33: ='[20]附表二期间费用明细表（A账）'!P33+'[20]附表二期间费用明细表（B账）'!P33 -> 0 | Q33: ='[20]附表二期间费用明细表（A账）'!Q33+'[20]附表二期间费用明细表（B账）'!Q33 -> 0 | R33: ='[20]附表二期间费用明细表（A账）'!R33+'[20]附表二期间费用明细表（B账）'!R33 -> 0
B34: 合计： | D34: =SUM(D24:D33)+D20 -> 1109300 | E34: 0.354995736 | F34: 393796.77 | G34: =SUM(G24:G33)+G20 -> 30503.27 | H34: =SUM(H24:H33)+H20 -> 29949.33 | I34: =SUM(I24:I33)+I20 -> 34001.06 | J34: =SUM(J24:J33)+J20 -> 24287.92 | K34: 49696.77 | L34: 54428.03 | M34: 46605.14 | N34: 41121.4 | O34: 49412.17 | P34: 33791.68 | Q34: 0 | R34: 0
A35: 财务费用 | C35: 其中：利息收入 | F35: -774.42 | G35: ='[20]附表二期间费用明细表（A账）'!G35+'[20]附表二期间费用明细表（B账）'!G35 -> 0 | H35: ='[20]附表二期间费用明细表（A账）'!H35+'[20]附表二期间费用明细表（B账）'!H35 -> 0 | I35: ='[20]附表二期间费用明细表（A账）'!I35+'[20]附表二期间费用明细表（B账）'!I35 -> -521.14 | J35: ='[20]附表二期间费用明细表（A账）'!J35+'[20]附表二期间费用明细表（B账）'!J35 -> 0 | K35: ='[20]附表二期间费用明细表（A账）'!K35+'[20]附表二期间费用明细表（B账）'!K35 -> 0 | L35: ='[20]附表二期间费用明细表（A账）'!L35+'[20]附表二期间费用明细表（B账）'!L35 -> 0 | M35: ='[20]附表二期间费用明细表（A账）'!M35+'[20]附表二期间费用明细表（B账）'!M35 -> 0 | N35: ='[20]附表二期间费用明细表（A账）'!N35+'[20]附表二期间费用明细表（B账）'!N35 -> 0 | O35: ='[20]附表二期间费用明细表（A账）'!O35+'[20]附表二期间费用明细表（B账）'!O35 -> -253.28 | P35: ='[20]附表二期间费用明细表（A账）'!P35+'[20]附表二期间费用明细表（B账）'!P35 -> 0 | Q35: ='[20]附表二期间费用明细表（A账）'!Q35+'[20]附表二期间费用明细表（B账）'!Q35 -> 0 | R35: ='[20]附表二期间费用明细表（A账）'!R35+'[20]附表二期间费用明细表（B账）'!R35 -> 0
C36: 利息支出 | F36: 0 | G36: ='[20]附表二期间费用明细表（A账）'!G36+'[20]附表二期间费用明细表（B账）'!G36 -> 0 | H36: ='[20]附表二期间费用明细表（A账）'!H36+'[20]附表二期间费用明细表（B账）'!H36 -> 0 | I36: ='[20]附表二期间费用明细表（A账）'!I36+'[20]附表二期间费用明细表（B账）'!I36 -> 0 | J36: ='[20]附表二期间费用明细表（A账）'!J36+'[20]附表二期间费用明细表（B账）'!J36 -> 0 | K36: ='[20]附表二期间费用明细表（A账）'!K36+'[20]附表二期间费用明细表（B账）'!K36 -> 0 | L36: ='[20]附表二期间费用明细表（A账）'!L36+'[20]附表二期间费用明细表（B账）'!L36 -> 0 | M36: ='[20]附表二期间费用明细表（A账）'!M36+'[20]附表二期间费用明细表（B账）'!M36 -> 0 | N36: ='[20]附表二期间费用明细表（A账）'!N36+'[20]附表二期间费用明细表（B账）'!N36 -> 0 | O36: ='[20]附表二期间费用明细表（A账）'!O36+'[20]附表二期间费用明细表（B账）'!O36 -> 0 | P36: ='[20]附表二期间费用明细表（A账）'!P36+'[20]附表二期间费用明细表（B账）'!P36 -> 0 | Q36: ='[20]附表二期间费用明细表（A账）'!Q36+'[20]附表二期间费用明细表（B账）'!Q36 -> 0 | R36: ='[20]附表二期间费用明细表（A账）'!R36+'[20]附表二期间费用明细表（B账）'!R36 -> 0
C37: 汇兑损益 | F37: 0 | G37: ='[20]附表二期间费用明细表（A账）'!G37+'[20]附表二期间费用明细表（B账）'!G37 -> 0 | H37: ='[20]附表二期间费用明细表（A账）'!H37+'[20]附表二期间费用明细表（B账）'!H37 -> 0 | I37: ='[20]附表二期间费用明细表（A账）'!I37+'[20]附表二期间费用明细表（B账）'!I37 -> 0 | J37: ='[20]附表二期间费用明细表（A账）'!J37+'[20]附表二期间费用明细表（B账）'!J37 -> 0 | K37: ='[20]附表二期间费用明细表（A账）'!K37+'[20]附表二期间费用明细表（B账）'!K37 -> 0 | L37: ='[20]附表二期间费用明细表（A账）'!L37+'[20]附表二期间费用明细表（B账）'!L37 -> 0 | M37: ='[20]附表二期间费用明细表（A账）'!M37+'[20]附表二期间费用明细表（B账）'!M37 -> 0 | N37: ='[20]附表二期间费用明细表（A账）'!N37+'[20]附表二期间费用明细表（B账）'!N37 -> 0 | O37: ='[20]附表二期间费用明细表（A账）'!O37+'[20]附表二期间费用明细表（B账）'!O37 -> 0 | P37: ='[20]附表二期间费用明细表（A账）'!P37+'[20]附表二期间费用明细表（B账）'!P37 -> 0 | Q37: ='[20]附表二期间费用明细表（A账）'!Q37+'[20]附表二期间费用明细表（B账）'!Q37 -> 0 | R37: ='[20]附表二期间费用明细表（A账）'!R37+'[20]附表二期间费用明细表（B账）'!R37 -> 0
C38: 其他 | D38: 3800 | E38: 0.7280605263 | F38: 2766.63 | G38: ='[20]附表二期间费用明细表（A账）'!G38+'[20]附表二期间费用明细表（B账）'!G38 -> 301 | H38: ='[20]附表二期间费用明细表（A账）'!H38+'[20]附表二期间费用明细表（B账）'!H38 -> 187 | I38: ='[20]附表二期间费用明细表（A账）'!I38+'[20]附表二期间费用明细表（B账）'!I38 -> 459 | J38: ='[20]附表二期间费用明细表（A账）'!J38+'[20]附表二期间费用明细表（B账）'!J38 -> 302.5 | K38: ='[20]附表二期间费用明细表（A账）'!K38+'[20]附表二期间费用明细表（B账）'!K38 -> 269.5 | L38: ='[20]附表二期间费用明细表（A账）'!L38+'[20]附表二期间费用明细表（B账）'!L38 -> 82.13 | M38: ='[20]附表二期间费用明细表（A账）'!M38+'[20]附表二期间费用明细表（B账）'!M38 -> 327 | N38: ='[20]附表二期间费用明细表（A账）'!N38+'[20]附表二期间费用明细表（B账）'!N38 -> 287.5 | O38: ='[20]附表二期间费用明细表（A账）'!O38+'[20]附表二期间费用明细表（B账）'!O38 -> 250 | P38: ='[20]附表二期间费用明细表（A账）'!P38+'[20]附表二期间费用明细表（B账）'!P38 -> 301 | Q38: ='[20]附表二期间费用明细表（A账）'!Q38+'[20]附表二期间费用明细表（B账）'!Q38 -> 0 | R38: ='[20]附表二期间费用明细表（A账）'!R38+'[20]附表二期间费用明细表（B账）'!R38 -> 0
B39: 合计： | D39: =SUM(D35:D38) -> 3800 | E39: =SUM(E35:E38) -> 0.7280605263 | F39: 1992.21 | G39: =SUM(G35:G38) -> 301 | H39: =SUM(H35:H38) -> 187 | I39: -62.14 | J39: 302.5 | K39: 269.5 | L39: 82.13 | M39: 327 | N39: 287.5 | O39: -3.28 | P39: 301 | Q39: 0 | R39: 0 | S39: 0
A40: 其他支出 | C40: 税金及附加 | D40: 26700 | E40: 0.004812734082 | F40: 128.5 | G40: ='[20]附表二期间费用明细表（A账）'!G40+'[20]附表二期间费用明细表（B账）'!G40 -> 0 | H40: ='[20]附表二期间费用明细表（A账）'!H40+'[20]附表二期间费用明细表（B账）'!H40 -> 0 | I40: ='[20]附表二期间费用明细表（A账）'!I40+'[20]附表二期间费用明细表（B账）'!I40 -> 0 | J40: ='[20]附表二期间费用明细表（A账）'!J40+'[20]附表二期间费用明细表（B账）'!J40 -> 0 | K40: ='[20]附表二期间费用明细表（A账）'!K40+'[20]附表二期间费用明细表（B账）'!K40 -> 37 | L40: ='[20]附表二期间费用明细表（A账）'!L40+'[20]附表二期间费用明细表（B账）'!L40 -> 36.6 | M40: ='[20]附表二期间费用明细表（A账）'!M40+'[20]附表二期间费用明细表（B账）'!M40 -> 85.55 | N40: ='[20]附表二期间费用明细表（A账）'!N40+'[20]附表二期间费用明细表（B账）'!N40 -> -30.65 | O40: ='[20]附表二期间费用明细表（A账）'!O40+'[20]附表二期间费用明细表（B账）'!O40 -> 0 | P40: ='[20]附表二期间费用明细表（A账）'!P40+'[20]附表二期间费用明细表（B账）'!P40 -> 0 | Q40: ='[20]附表二期间费用明细表（A账）'!Q40+'[20]附表二期间费用明细表（B账）'!Q40 -> 0 | R40: ='[20]附表二期间费用明细表（A账）'!R40+'[20]附表二期间费用明细表（B账）'!R40 -> 0
C41: 营业外支出 | F41: 10000 | M41: ='[20]附表二期间费用明细表（A账）'!M41+'[20]附表二期间费用明细表（B账）'!M41 -> 10000
C42: 所得税 | D42: 50900 | E42: 0 | F42: 0
B43: 合计： | D43: =SUM(D40:D42) -> 77600 | E43: 0.1305219072 | F43: 10128.5 | G43: =G40+G41+G42 -> 0 | H43: =H40+H41+H42 -> 0 | I43: =I40+I41+I42 -> 0 | J43: 0 | K43: 37 | L43: 36.6 | M43: 10085.55 | N43: -30.65 | O43: 0 | P43: 0 | Q43: 0 | R43: 0
B44: 总支出合计: | D44: =D19+D34+D43 -> 1515300 | E44: 0.398334706 | F44: 603596.58 | G44: =G19+G34+G39+G43 -> 60104.53 | H44: =H19+H34+H39+H43 -> 46273.5 | I44: =I19+I34+I39+I43 -> 41153.59 | J44: 35725.09 | K44: 62043.18 | L44: 72917.47 | M44: 106669.88 | N44: 50944.55 | O44: 84543.81 | P44: 43220.98 | Q44: 0 | R44: 0
A45: 制表人： | C45: 李微微 | S45: 日期：2019-3-5
A47: 备注：科目代码各单位根据本单位实际情况填入

Sheet 人工成本明细表 (hidden)
B1: 数据全部取K3数 | E1: 附表5-3 人工成本情况表 | T1: 附表：各主要单位人工成本情况表
B2: 此表分两个口径查：即税务及管理口径，在税务口径下查时，股份合并取税务合并口径，单家公司取税务口径，无事业部合并口径，在管理中径下查时，全部以管理口径取，但股份合并的收入、毛利、利润，取税务的合并报表数 | G2: 年 | I2: 月 | M2: 单位：万元
A3: 人工成本项目 | C3: 会计科目 | D3: 核算项:薪酬类别 | E3: 股份公司合并 | O3: 其中：职能 | S3: 其中：货代合计 | W3: 其中:船代 | AA3: 其中：-生生 | AE3: 其中：仓储
E4: 本月数 | F4: 上月数 | G4: 增减额 | H4: 增减% | I4: 本年 | J4: 上年 | K4: 增减额 | L4: 增减% | M4: 预算 | N4: 进度 | O4: 本年 | P4: 上年 | Q4: 增减额 | R4: 增减% | S4: 本年 | T4: 上年 | U4: 增减额 | V4: 增减% | W4: 本年 | X4: 上年 | Y4: 增减额 | Z4: 增减% | AA4: 本年 | AB4: 上年 | AC4: 增减额 | AD4: 增减% | AE4: 本年 | AF4: 上年 | AG4: 增减额 | AH4: 增减%
A5: 一、人工成本合计 | AG5: 93.8 | AH5: 0.3697571744
A6: 期间费用 | B6: 工资 | C6: 6601.01+6602.01+6604.01 | D6: 001+002 | AG6: 60.68 | AH6: 0.3237129901
B7: 奖金 | C7: 6601.01+6602.01+6604.01 | D7: 003
B8: 五险一金 | C8: 6601.01+6602.01+6604.01 | D8: 005+007+008+009+010+011+012 | AG8: 7.15 | AH8: 0.2239974937
B9: 福利费 | C9: 6601.01+6602.01+6604.01 | D9: 004 | AG9: 7.32 | AH9: 0.3656343656
B10: 劳务费 | C10: 6601.01+6602.01+6604.01 | D10: 019 | AG10: 15.59 | AH10: 2.620168067
B11: 商业保险费 | C11: 6601.01+6602.01+6604.01 | D11: 015 | AG11: 0 | AH11: 0
B12: 职工培训教育经费 | C12: 6601.01+6602.01+6604.01 | D12: 006 | AG12: 0 | AH12: 0
B13: 辞退福利 | C13: 6601.01+6602.01+6604.01 | D13: 013 | AG13: 0 | AH13: 0
B14: 董监事会酬金 | C14: 6601.01+6602.01+6604.01 | D14: 016 | AG14: 1.5 | AH14: 0.3239740821
B15: 工会经费 | C15: 6601.01+6602.01+6604.01 | D15: 018 | AG15: 1.2 | AH15: 0.3234501348
B16: 残疾人保障金 | C16: 6601.01+6602.01+6604.01 | D16: 021 | AG16: 0 | AH16: 0
B17: 非货币性福利 | C17: 6601.01+6602.01+6604.01 | D17: 014
B18: 其他 | C18: 6601.01+6602.01+6604.01 | D18: 020 | AG18: 0.36 | AH18: 0
B19: 小计
A20: 间接成本 | B20: 工资 | C20: 6401.04.01 | D20: 001+002 | AG20: 60.68 | AH20: 0.3237129901
B21: 奖金 | C21: 6401.04.01 | D21: 003
B22: 五险一金 | C22: 6401.04.01 | D22: 005+007+008+009+010+011+012 | AG22: 7.15 | AH22: 0.2239974937
B23: 福利费 | C23: 6401.04.01 | D23: 004 | AG23: 7.32 | AH23: 0.3656343656
B24: 劳务费 | C24: 6401.04.01 | D24: 019 | AG24: 15.59 | AH24: 2.620168067
B25: 商业保险费 | C25: 6401.04.01 | D25: 015 | AG25: 0 | AH25: 0
B26: 职工培训教育经费 | C26: 6401.04.01 | D26: 006 | AG26: 0 | AH26: 0
B27: 辞退福利 | C27: 6401.04.01 | D27: 013 | AG27: 0 | AH27: 0
B28: 工会经费 | C28: 6401.04.01 | D28: 018 | AG28: 1.2 | AH28: 0.3234501348
B29: 残疾人保障金 | C29: 6401.04.01 | D29: 021 | AG29: 0 | AH29: 0
B30: 非货币性福利 | C30: 6401.04.01 | D30: 014
B31: 其他 | C31: 6401.04.01 | D31: 020 | AG31: 0.36 | AH31: 0
B32: 小计
A33: 人工成本合计 | B33: 工资 | C33: 6601.01+6602.01+6604.01+6401.04.01 | D33: 001+002 | AG33: 60.68 | AH33: 0.3237129901
B34: 奖金 | C34: 6601.01+6602.01+6604.01+6401.04.01 | D34: 003
B35: 五险一金 | C35: 6601.01+6602.01+6604.01+6401.04.01 | D35: 005+007+008+009+010+011+012 | AG35: 7.15 | AH35: 0.2239974937
B36: 福利费 | C36: 6601.01+6602.01+6604.01+6401.04.01 | D36: 004 | AG36: 7.32 | AH36: 0.3656343656
B37: 劳务费 | C37: 6601.01+6602.01+6604.01+6401.04.01 | D37: 019 | AG37: 15.59 | AH37: 2.620168067
B38: 商业保险费 | C38: 6601.01+6602.01+6604.01+6401.04.01 | D38: 015 | AG38: 0 | AH38: 0
B39: 职工培训教育经费 | C39: 6601.01+6602.01+6604.01+6401.04.01 | D39: 006 | AG39: 0 | AH39: 0
B40: 辞退福利 | C40: 6601.01+6602.01+6604.01+6401.04.01 | D40: 013 | AG40: 0 | AH40: 0
B41: 董监事会酬金 | C41: 6601.01+6602.01+6604.01+6401.04.01 | D41: 016 | AG41: 1.5 | AH41: 0.3239740821
B42: 工会经费 | C42: 6601.01+6602.01+6604.01+6401.04.01 | D42: 018 | AG42: 1.2 | AH42: 0.3234501348
B43: 残疾人保障金 | C43: 6601.01+6602.01+6604.01+6401.04.01 | D43: 021 | AG43: 0 | AH43: 0
B44: 非货币性福利 | C44: 6601.01+6602.01+6604.01+6401.04.01 | D44: 014
B45: 其他 | C45: 6601.01+6602.01+6604.01+6401.04.01 | D45: 020 | AG45: 0.36 | AH45: 0
B46: 合计
A47: 二、人工成本毛利率 | C47: 人工成本合计/毛利 | AG47: -6.395450841 | AH47: -0.2012111839
A48: 三、人工成本利润率 | C48: 人工成本合计/利润总额 | AG48: -4.087668488 | AH48: -0.3737276699
A49: 附加信息：
A50: 1 | B50: 主营业务收入
A51: 2 | B51: 毛利
A52: 3 | B52: 利润总额
A53: 4 | B53: 经营费用+管理费用
A54: 5 | B54: 从业人数（含劳务工）
A55: 6 | B55: 人均毛利润 | C55: 毛利/从业人数
A56: 7 | B56: 人均利润总额 | C56: 利润总额/从业人数
A57: 8 | B57: 人均消耗经营管理成本 | C57: （经营费用+管理费用）/从业人数
A58: 9 | B58: 人均人工成本 | C58: 人工成本/从业人数

Sheet 股份各公司应收帐款明细表
A1: 应收账款情况表
A2: 编制单位：
A3: 序号 | B3: 企业名称 | C3: 应收账款 | L3: 各月应收账款余额 | X3: 主营业务收入
C4: 年初数 | D4: 上月数 | E4: 期末数 | F4: 比年初 | G4: 增幅 | H4: 比上月 | I4: 增幅 | J4: 本期应收帐款/主营业务收入比 | K4: 本年累计应收帐款/主营业务收入比 | L4: 1月 | M4: 2月 | N4: 3月 | O4: 4月 | P4: 5月 | Q4: 6月 | R4: 7月 | S4: 8月 | T4: 9月 | U4: 10月 | V4: 11月 | W4: 12月 | X4: 本月数 | Y4: 本年累计 | Z4: 上年同期 | AA4: 本年比上年
A5: 一 | B5: 股份总部汇总 | C5: 0 | D5: 0 | E5: 0 | F5: 0 | H5: 0 | L5: 0 | M5: 0 | N5: 0 | O5: 0 | P5: 0 | Q5: 0 | X5: 0 | Y5: 0 | Z5: 0
A6: 1-1 | B6: 惠安物业 | C6: 0 | D6: 0 | E6: 0 | F6: 0 | H6: 0 | L6: 0 | M6: 0 | N6: 0 | O6: 0 | P6: 0 | Q6: 0 | X6: 0 | Y6: 0 | Z6: 0
A7: 1-2 | C7: 0 | D7: 0 | E7: 0 | F7: 0 | H7: 0 | L7: 0 | M7: 0 | N7: 0 | O7: 0 | P7: 0 | Q7: 0 | X7: 0 | Y7: 0 | Z7: 0
C8: 0 | D8: 0 | E8: 0 | F8: 0 | H8: 0 | L8: 0 | M8: 0 | N8: 0 | O8: 0 | P8: 0 | Q8: 0 | X8: 0 | Y8: 0 | Z8: 0
A9: 二 | B9: 货代事业部 | C9: 24213.20617 | D9: 19330.03057 | E9: 18579.28311 | F9: -5633.923053 | G9: -0.2326797622 | H9: -750.747451 | I9: -0.03883839958 | L9: 25317.90008 | M9: 27007.735 | N9: 26619.84519 | O9: 26681.5933 | P9: 25061.6784 | Q9: 24148.44295 | R9: 23029.79119 | S9: 21596.27517 | T9: 20469.45426 | U9: 19360.85103 | V9: 19330.03057 | X9: 15221.49983 | Y9: 151459.1317 | Z9: 160489.4381 | AA9: -9030.306325
A10: 2-1 | C10: 4342.311617 | D10: 3985.158199 | E10: 3491.289196 | F10: -851.022421 | G10: -0.1959837285 | H10: -493.869003 | I10: -0.123927076 | L10: 5133.246436 | M10: 5458.324943 | N10: 5105.209648 | O10: 5117.343622 | P10: 5148.951341 | Q10: 5227.745673 | R10: 4684.465012 | S10: 4813.087813 | T10: 4591.658514 | U10: 4214.330286 | V10: 3985.158199 | X10: 3460.880537 | Y10: 40044.10404 | Z10: 42499.34431 | AA10: -2455.240274
A11: 2-2 | C11: 2741.293151 | D11: 2234.878925 | E11: 2159.00643 | F11: -582.286721 | G11: -0.2124131528 | H11: -75.872495 | I11: -0.03394926416 | L11: 3416.104142 | M11: 3681.84456 | N11: 4056.947928 | O11: 4236.640219 | P11: 3274.018286 | Q11: 2682.654028 | R11: 2482.55376 | S11: 2430.196351 | T11: 2616.9181 | U11: 2502.925303 | V11: 2234.878925 | X11: 1968.380175 | Y11: 19147.41894 | Z11: 20399.61214 | AA11: -1252.193202
A12: 2-3 | C12: 4050.712 | D12: 3039.701468 | E12: 2572.470049 | F12: -1478.241951 | G12: -0.3649338563 | H12: -467.231419 | I12: -0.1537096402 | L12: 3844.382698 | M12: 3926.356341 | N12: 3508.763063 | O12: 3168.404672 | P12: 2912.447013 | Q12: 3600.501144 | R12: 3022.989206 | S12: 2814.52267 | T12: 2425.185482 | U12: 2611.483695 | V12: 3039.701468 | X12: 2153.515825 | Y12: 17380.44204 | Z12: 17011.09337 | AA12: 369.348666
A13: 2-4 | C13: 219.836741 | D13: 212.376444 | E13: 195.708337 | F13: -24.128404 | G13: -0.1097560121 | H13: -16.668107 | I13: -0.0784837842 | L13: 176.673433 | M13: 200.140955 | N13: 139.672939 | O13: 171.867898 | P13: 156.052706 | Q13: 154.690946 | R13: 154.629658 | S13: 158.466439 | T13: 182.186905 | U13: 202.223226 | V13: 212.376444 | X13: 62.660046 | Y13: 624.939038 | Z13: 666.310426 | AA13: -41.371388
A14: 2-5 | C14: 258.229175 | D14: 149.691979 | E14: 158.200851 | F14: -100.028324 | G14: -0.3873625976 | H14: 8.508872 | I14: 0.05684253797 | L14: 240.234334 | M14: 316.091191 | N14: 341.94939 | O14: 328.740813 | P14: 302.903482 | Q14: 209.395846 | R14: 213.011003 | S14: 249.15438 | T14: 179.705644 | U14: 186.556007 | V14: 149.691979 | X14: 152.632106 | Y14: 1594.173227 | Z14: 1924.827015 | AA14: -330.653788
A16: 三 | B16: 船代事业部 | C16: 2278.359675 | D16: 2333.243348 | E16: 2299.255537 | F16: 20.895862 | G16: 0.00917145007 | H16: -33.987811 | I16: -0.01456676648 | L16: 2342.947797 | M16: 2743.438782 | N16: 2608.158114 | O16: 2775.192507 | P16: 3229.36198 | Q16: 2633.943718 | R16: 2645.342402 | S16: 2765.189171 | T16: 2610.818394 | U16: 2577.799321 | V16: 2333.243348 | X16: 1859.409653 | Y16: 19787.07686 | Z16: 25495.00386 | AA16: -5707.926997
A17: 2-7 | C17: 820.580145 | D17: 802.933591 | E17: 754.06621 | F17: -66.513935 | G17: -0.0810572074 | H17: -48.867381 | I17: -0.06086104947 | L17: 900.605981 | M17: 1114.842822 | N17: 968.84087 | O17: 974.671811 | P17: 1005.093966 | Q17: 867.473738 | R17: 859.923659 | S17: 895.318393 | T17: 893.960396 | U17: 838.551909 | V17: 802.933591 | X17: 772.516721 | Y17: 8509.46012 | Z17: 7320.542505 | AA17: 1188.917615
A18: 3-1 | C18: 1067.566849 | D18: 1242.026941 | E18: 1293.214186 | F18: 225.647337 | G18: 0.2113660022 | H18: 51.187245 | I18: 0.04121266883 | L18: 1103.476443 | M18: 1111.793673 | N18: 1239.280868 | O18: 1242.089383 | P18: 1819.354254 | Q18: 1577.078249 | R18: 1563.454885 | S18: 1564.612672 | T18: 1479.983011 | U18: 1212.147983 | V18: 1242.026941 | X18: 998.556842 | Y18: 10406.42071 | Z18: 10153.34263 | AA18: 253.078079
A19: 3-2 | C19: 39.335989 | D19: 51.262769 | E19: 46.031823 | F19: 6.695834 | G19: 0.170221575 | H19: -5.230946 | I19: -0.1020418152 | L19: 52.564204 | M19: 54.87599 | N19: 45.409684 | O19: 54.978123 | P19: 52.552123 | Q19: 52.723906 | R19: 53.339252 | S19: 53.666448 | T19: 53.108509 | U19: 44.020062 | V19: 51.262769 | X19: 47.577556 | Y19: 539.529891 | Z19: 496.982966 | AA19: 42.546925
A20: 3-3 | C20: 350.876692 | D20: 237.020047 | E20: 205.943318 | F20: -144.933374 | G20: -0.4130607057 | H20: -31.076729 | I20: -0.1311143483 | L20: 286.301169 | M20: 461.926297 | N20: 354.626692 | O20: 503.45319 | P20: 352.361637 | Q20: 136.667825 | R20: 168.624606 | S20: 251.591658 | T20: 183.766478 | U20: 483.079367 | V20: 237.020047 | X20: 400.938534 | Y20: 3806.01614 | Z20: 7524.135756 | AA20: -3718.119616
A21: 3-4
A22: 3-5
A23: 3-4
A26: 4 | B26: 仓储事业部 | C26: 8461.627785 | D26: 5978.655935 | E26: 6382.6324 | F26: -2078.995385 | G26: -0.2456968609 | H26: 403.976465 | I26: 0.0675697798 | L26: 8477.082524 | M26: 8829.706018 | N26: 9209.991137 | O26: 9315.046877 | P26: 8433.993503 | Q26: 8058.182577 | R26: 8344.519644 | S26: 6833.774659 | T26: 6248.320202 | U26: 5728.627266 | V26: 5978.655935 | X26: 4148.513927 | Y26: 38975.01187 | Z26: 39392.05495 | AA26: -417.043083
A28: 4-1 | C28: 7761.547689 | D28: 5182.221676 | E28: 5583.651444 | F28: -2177.896245 | G28: -0.2806007683 | H28: 401.429768 | I28: 0.07746287077 | L28: 6992.099478 | M28: 6923.241391 | N28: 6828.14157 | O28: 6802.125374 | P28: 6160.461863 | Q28: 6219.543569 | R28: 6256.847954 | S28: 5748.600211 | T28: 5249.546028 | U28: 4993.343235 | V28: 5182.221676 | X28: 3487.443182 | Y28: 32361.6642 | Z28: 35609.29981 | AA28: -3247.635614
A29: 4-2 | C29: 0 | D29: 0 | E29: 0 | F29: 0 | H29: 0 | L29: 0 | M29: 0 | N29: 0 | O29: 0 | P29: 0 | Q29: 0 | R29: 0 | S29: 0 | T29: 0 | U29: 0 | V29: 0 | X29: 0 | Y29: 0 | Z29: 0 | AA29: 0
A30: 4-3 | C30: 7690.477689 | D30: 5144.118197 | E30: 5561.986588 | F30: -2128.491101 | G30: -0.2767696868 | H30: 417.868391 | I30: 0.08123226858 | L30: 6945.244044 | M30: 6819.755587 | N30: 6789.945319 | O30: 6753.388064 | P30: 6095.278179 | Q30: 6173.457013 | R30: 6180.447141 | S30: 5624.263 | T30: 5238.763958 | U30: 4965.680884 | V30: 5144.118197 | X30: 3321.769863 | Y30: 30461.62562 | Z30: 33725.56322 | AA30: -3263.937601
A31: 4-4 | C31: 0 | D31: 6606.008642 | E31: 6210.034022 | F31: 6210.034022 | H31: -395.97462 | L31: 0 | M31: 0 | N31: 0 | O31: 0 | P31: 0 | Q31: 0 | R31: 0 | S31: 2126.016148 | T31: 4254.578967 | U31: 5644.365297 | V31: 6606.008642 | X31: 7510.531772 | Y31: 27335.74347 | Z31: 0 | AA31: 27335.74347
A32: 4-5 | C32: 0 | D32: 0.002804 | E32: 0.002804 | F32: 0.002804 | H32: 0 | L32: 0 | M32: 0 | N32: 0 | O32: 0.002804 | P32: 0.002804 | Q32: 0.002804 | R32: 0.002804 | S32: 0.002804 | T32: 0.002804 | U32: 0.002804 | V32: 0.002804 | X32: 0 | Y32: 0 | Z32: 0 | AA32: 0
A33: 4-6 | C33: 71.07 | D33: 38.100675 | E33: 21.662052 | F33: -49.407948 | G33: -0.6952011819 | H33: -16.438623 | I33: -0.4314522774 | L33: 46.855434 | M33: 103.485804 | N33: 38.196251 | O33: 48.734506 | P33: 65.18088 | Q33: 46.083752 | R33: 76.398009 | S33: 124.334407 | T33: 10.779266 | U33: 27.659547 | V33: 38.100675 | X33: 165.673319 | Y33: 1900.038575 | Z33: 1883.736588 | AA33: 16.301987
A34: 4-7 | C34: 0 | D34: 0 | E34: 0 | F34: 0 | H34: 0 | L34: 0 | M34: 0 | N34: 0 | O34: 0 | P34: 0 | Q34: 0 | R34: 0 | S34: 0 | T34: 0 | U34: 0 | V34: 0 | X34: 0 | Y34: 0 | Z34: 0 | AA34: 0
A35: 4-8 | C35: 0 | D35: 0 | E35: 0 | F35: 0 | H35: 0 | L35: 0 | M35: 0 | N35: 0 | O35: 0 | P35: 0 | Q35: 0 | R35: 0 | S35: 0 | T35: 0 | U35: 0 | V35: 0 | X35: 0 | Y35: 0 | Z35: 0 | AA35: 0
A36: 4-2 | C36: 22.204966 | D36: 0 | E36: 0 | F36: -22.204966 | G36: -1 | H36: 0 | L36: 12.396511 | M36: 11.119919 | N36: 3.796782 | O36: 3.542454 | P36: 1.675231 | Q36: 0.61414 | R36: 0 | S36: 0 | T36: 0 | U36: 0 | V36: 0 | X36: 0 | Y36: -2.493179 | Z36: 1246.017938 | AA36: -1248.511117
A37: 4-3 | C37: 677.87513 | D37: 796.434259 | E37: 798.980956 | F37: 121.105826 | G37: 0.1786550659 | H37: 2.546697 | I37: 0.003197623622 | L37: 1472.586535 | M37: 1895.344708 | N37: 2378.052785 | O37: 2509.379049 | P37: 2271.856409 | Q37: 1838.024868 | R37: 2087.67169 | S37: 1085.174448 | T37: 998.774174 | U37: 735.284031 | V37: 796.434259 | X37: 661.070745 | Y37: 6615.840848 | Z37: 2536.7372 | AA37: 4079.103648
A39: 五 | B39: 运输 | C39: 29561.65972 | D39: 31703.47023 | E39: 30745.93873 | F39: 1184.279007 | G39: 0.04006131652 | H39: -957.531496 | I39: -0.03020273456 | L39: 33674.70331 | M39: 30864.37123 | N39: 29036.12682 | O39: 29004.00607 | P39: 28249.90637 | Q39: 26548.91062 | R39: 29009.54775 | S39: 30206.33993 | T39: 29334.01141 | U39: 30841.76827 | V39: 31703.47023 | X39: 21833.2976 | Y39: 205917.1475 | Z39: 255509.4743 | AA39: -49592.3268
A40: 5 | C40: 0 | D40: 0 | E40: 0 | F40: 0 | H40: 0 | L40: 0 | M40: 0 | N40: 0 | O40: 0 | P40: 0 | Q40: 0 | R40: 0 | S40: 0 | T40: 0 | U40: 0 | V40: 0 | X40: 0 | Y40: 0 | Z40: 0 | AA40: 0
A41: 5 | C41: 29561.65972 | D41: 31703.47023 | E41: 30745.93873 | F41: 1184.279007 | G41: 0.04006131652 | H41: -957.531496 | I41: -0.03020273456 | L41: 33674.70331 | M41: 30864.37123 | N41: 29036.12682 | O41: 29004.00607 | P41: 28249.90637 | Q41: 26548.91062 | R41: 29009.54775 | S41: 28080.32378 | T41: 25079.43244 | U41: 30841.76827 | V41: 31703.47023 | X41: 21833.2976 | Y41: 205917.1475 | Z41: 255509.4743 | AA41: -49592.3268
A42: 5-1 | C42: 9824.015982 | D42: 8668.218873 | E42: 7592.271581 | F42: -2231.744401 | G42: -0.2271723097 | H42: -1075.947292 | I42: -0.1241255335 | L42: 9948.557303 | M42: 8386.049877 | N42: 8874.398247 | O42: 9314.051233 | P42: 8905.34824 | Q42: 8465.961009 | R42: 10287.07072 | S42: 10282.97846 | T42: 9134.640902 | U42: 8606.493003 | V42: 8668.218873 | X42: 4435.705899 | Y42: 74216.82891 | Z42: 121879.5105 | AA42: -47662.68159
A43: 5-2 | C43: -454.564536 | D43: -152.833694 | E43: -131.441054 | F43: 323.123482 | G43: -0.7108418198 | H43: 21.39264 | I43: -0.1399733229 | L43: -900.152574 | M43: -232.504443 | N43: -336.759359 | O43: -93.694395 | P43: -44.177565 | Q43: -62.132908 | R43: -57.4877 | S43: -83.609143 | T43: -161.282569 | U43: -138.207421 | V43: -152.833694 | X43: -262.392508 | Y43: -3839.23897 | Z43: -7234.11971 | AA43: 3394.88074
A44: 5-3 | C44: 7465.674644 | D44: 6630.080025 | E44: 5873.017396 | F44: -1592.657248 | G44: -0.2133306531 | H44: -757.062629 | I44: -0.1141860469 | L44: 8559.547561 | M44: 6436.315797 | N44: 6988.604601 | O44: 7683.537407 | P44: 7447.443957 | Q44: 7032.73105 | R44: 7639.681908 | S44: 8097.490631 | T44: 7243.865485 | U44: 6822.806502 | V44: 6630.080025 | X44: 2859.558187 | Y44: 44661.07605 | Z44: 76708.57462 | AA44: -32047.49857
A45: 5-4 | C45: 2812.905874 | D45: 2190.972542 | E45: 1850.695239 | F45: -962.210635 | G45: -0.3420699725 | H45: -340.277303 | I45: -0.1553087939 | L45: 2289.162316 | M45: 2182.238523 | N45: 2222.553005 | O45: 1724.208221 | P45: 1502.081848 | Q45: 1495.362867 | R45: 2704.876511 | S45: 2269.096971 | T45: 2052.057986 | U45: 1921.893922 | V45: 2190.972542 | X45: 1769.60818 | Y45: 32625.86561 | Z45: 51428.54052 | AA45: -18802.67491
A46: 5-5 | C46: 0 | D46: 0 | E46: 0 | F46: 0 | H46: 0 | L46: 0 | M46: 0 | N46: 0 | O46: 0 | P46: 0 | Q46: 0 | R46: 0 | S46: 0 | T46: 0 | U46: 0 | V46: 0 | X46: 24.271845 | Y46: 251.45631 | Z46: 266.134951 | AA46: -14.678641
A47: 5-6 | C47: 0 | D47: 0 | E47: 0 | F47: 0 | H47: 0 | L47: 0 | M47: 0 | N47: 0 | O47: 0 | P47: 0 | Q47: 0 | R47: 0 | S47: 0 | T47: 0 | U47: 0 | V47: 0 | X47: 28.15534 | Y47: 347.766993 | Z47: 345.695146 | AA47: 2.071847
A48: 5-7 | C48: 0 | D48: 0 | E48: 0 | F48: 0 | H48: 0 | L48: 0 | M48: 0 | N48: 0 | O48: 0 | P48: 0 | Q48: 0 | R48: 0 | S48: 0 | T48: 0 | U48: 0 | V48: 0 | X48: 16.504855 | Y48: 169.902914 | Z48: 219.684466 | AA48: -49.781552
A49: 5-8 | C49: 0 | D49: 0 | E49: 0 | F49: 0 | H49: 0 | L49: 0 | M49: 0 | N49: 0 | O49: 0 | P49: 0 | Q49: 0 | R49: 0 | S49: 0 | T49: 0 | U49: 0 | V49: 0 | X49: 0 | Y49: 0 | Z49: 0 | AA49: 0
A50: 5-9 | C50: 0 | D50: 0 | E50: 0 | F50: 0 | H50: 0 | L50: 0 | M50: 0 | N50: 0 | O50: 0 | P50: 0 | Q50: 0 | R50: 0 | S50: 0 | T50: 0 | U50: 0 | V50: 0 | X50: 0 | Y50: 0 | Z50: 0 | AA50: 0
A51: 5-10 | C51: 0 | D51: 0 | E51: 0 | F51: 0 | H51: 0 | L51: 0 | M51: 0 | N51: 0 | O51: 0 | P51: 0 | Q51: 0 | R51: 0 | S51: 0 | T51: 0 | U51: 0 | V51: 0 | X51: 0 | Y51: 0 | Z51: 145.0005 | AA51: -145.0005
A52: 5-11 | C52: 6366.289865 | D52: 1865.755029 | E52: 1242.09953 | F52: -5124.190335 | G52: -0.8048942859 | H52: -623.655499 | I52: -0.3342644073 | L52: 7197.515549 | M52: 5575.859301 | N52: 5306.54924 | O52: 3662.727874 | P52: 3350.320218 | Q52: 2861.464231 | R52: 3369.273903 | S52: 2880.637489 | T52: 1844.739519 | U52: 2004.635757 | V52: 1865.755029 | X52: 1136.052863 | Y52: 17671.97 | Z52: 39237.2369 | AA52: -21565.26689
A53: 5-12 | C53: -253.251057 | D53: -45.592728 | E53: -48.696328 | F53: 204.554729 | G53: -0.8077152033 | H53: -3.1036 | I53: 0.06807225924 | L53: -278.69175 | M53: -287.044977 | N53: -290.484756 | O53: -19.039761 | P53: -25.761275 | Q53: -9.971805 | R53: -18.77951 | S53: -42.845225 | T53: -61.140175 | U53: -27.884565 | V53: -45.592728 | X53: -1.660762 | Y53: -101.093219 | Z53: -1216.18119 | AA53: 1115.087971
A54: 5-13 | C54: 4312.547269 | D54: 1676.751513 | E54: 1245.835805 | F54: -3066.711464 | G54: -0.7111137044 | H54: -430.915708 | I54: -0.2569943755 | L54: 4937.517347 | M54: 3806.302404 | N54: 3306.63977 | O54: 2314.865597 | P54: 2255.718387 | Q54: 2128.806607 | R54: 2543.069068 | S54: 2396.803433 | T54: 1555.813041 | U54: 1735.31604 | V54: 1676.751513 | X54: 1137.424447 | Y54: 14643.61233 | Z54: 30917.17769 | AA54: -16273.56536
A55: 5-14 | C55: 2306.993653 | D55: 234.596244 | E55: 44.960053 | F55: -2262.0336 | G55: -0.9805114102 | H55: -189.636191 | I55: -0.808351352 | L55: 2538.689952 | M55: 2056.601874 | N55: 2290.394226 | O55: 1366.902038 | P55: 1120.363106 | Q55: 742.629429 | R55: 844.984345 | S55: 526.679281 | T55: 350.066653 | U55: 297.204282 | V55: 234.596244 | X55: 0.289178 | Y55: 3129.45089 | Z55: 9399.852921 | AA55: -6270.402031
A56: 5-15 | C56: 0 | D56: 0 | E56: 0 | F56: 0 | H56: 0 | L56: 0 | M56: 0 | N56: 0 | O56: 0 | P56: 0 | Q56: 0 | R56: 0 | S56: 0 | T56: 0 | U56: 0 | V56: 0 | X56: 0 | Y56: 0 | Z56: 60 | AA56: -60
A57: 5-16 | C57: 0 | D57: 0 | E57: 0 | F57: 0 | H57: 0 | L57: 0 | M57: 0 | N57: 0 | O57: 0 | P57: 0 | Q57: 0 | R57: 0 | S57: 0 | T57: 0 | U57: 0 | V57: 0 | X57: 0 | Y57: 0 | Z57: 0 | AA57: 0
A58: 5-17 | C58: 0 | D58: 0 | E58: 0 | F58: 0 | H58: 0 | L58: 0 | M58: 0 | N58: 0 | O58: 0 | P58: 0 | Q58: 0 | R58: 0 | S58: 0 | T58: 0 | U58: 0 | V58: 0 | X58: 0 | Y58: 0 | Z58: 0 | AA58: 0
A59: 5-18 | C59: 0 | D59: 0 | E59: 0 | F59: 0 | H59: 0 | L59: 0 | M59: 0 | N59: 0 | O59: 0 | P59: 0 | Q59: 0 | R59: 0 | S59: 0 | T59: 0 | U59: 0 | V59: 0 | X59: 0 | Y59: 0 | Z59: 24.676 | AA59: -24.676
A60: 5-19 | C60: 0 | D60: 0 | E60: 0 | F60: 0 | H60: 0 | L60: 0 | M60: 0 | N60: 0 | O60: 0 | P60: 0 | Q60: 0 | R60: 0 | S60: 0 | T60: 0 | U60: 0 | V60: 0 | X60: 0 | Y60: 0 | Z60: 40 | AA60: -40
A61: 5-20 | C61: 0 | D61: 0 | E61: 0 | F61: 0 | H61: 0 | L61: 0 | M61: 0 | N61: 0 | O61: 0 | P61: 0 | Q61: 0 | R61: 0 | S61: 0 | T61: 0 | U61: 0 | V61: 0 | X61: 0 | Y61: 0 | Z61: 145.0005 | AA61: -145.0005
A62: 5-21 | C62: 0 | D62: 0 | E62: 0 | F62: 0 | H62: 0 | L62: 0 | M62: 0 | N62: 0 | O62: 0 | P62: 0 | Q62: 0 | R62: 0 | S62: 0 | T62: 0 | U62: 0 | V62: 0 | X62: 0 | Y62: 0 | Z62: 11.711474 | AA62: -11.711474
A63: 5-22 | C63: 3338.645243 | D63: 2757.767331 | E63: 2798.929826 | F63: -539.715417 | G63: -0.1616570129 | H63: 41.162495 | I63: 0.01492602169 | L63: 3904.492895 | M63: 4119.676558 | N63: 4363.248776 | O63: 3742.827549 | P63: 3847.608329 | Q63: 3663.799368 | R63: 3782.619894 | S63: 3326.282677 | T63: 3016.302376 | U63: 2805.907442 | V63: 2757.767331 | X63: 1515.015328 | Y63: 18189.61421 | Z63: 19902.60216 | AA63: -1712.98795
A64: 5-23 | C64: 2253.111121 | D64: 1729.619774 | E64: 1865.991788 | F64: -387.119333 | G64: -0.1718154641 | H64: 136.372014 | I64: 0.07884508263 | L64: 3438.36766 | M64: 4330.18173 | N64: 3078.374634 | O64: 4203.476308 | P64: 3400.238191 | Q64: 2736.357074 | R64: 2551.104831 | S64: 2501.327262 | T64: 1384.849279 | U64: 1559.324769 | V64: 1729.619774 | X64: 1677.262858 | Y64: 23548.2569 | Z64: 32051.23642 | AA64: -8502.979521
A65: 5-24 | C65: 2253.111121 | D65: 1729.619774 | E65: 1865.991788 | F65: -387.119333 | G65: -0.1718154641 | H65: 136.372014 | I65: 0.07884508263 | L65: 3438.36766 | M65: 4330.18173 | N65: 3078.374634 | O65: 4203.476308 | P65: 3400.238191 | Q65: 2736.357074 | R65: 2551.104831 | S65: 2501.327262 | T65: 1384.849279 | U65: 1559.324769 | V65: 1729.619774 | X65: 1677.262858 | Y65: 23548.2569 | Z65: 32051.23642 | AA65: -8502.979521
A66: 5-25 | C66: 13.078427 | D66: 13.2667 | E66: 0 | F66: -13.078427 | H66: -13.2667 | L66: 14.694885 | M66: 16.311343 | N66: 11.040712 | O66: 12.65717 | P66: 7.533302 | Q66: 0 | R66: 0 | S66: 0 | T66: 0 | U66: 0 | V66: 13.2667 | X66: 26.225566 | Y66: 304.478279 | Z66: 32.000841 | AA66: 272.477438
A67: 5-26 | C67: 0 | D67: 0 | E67: 0 | F67: 0 | H67: 0 | L67: 96.534641 | M67: 131.908724 | N67: 81.007164 | O67: 93.584845 | P67: 0 | Q67: 0 | R67: 0 | S67: 0 | T67: 0 | U67: 0 | V67: 0 | X67: 0 | Y67: 0 | Z67: 0 | AA67: 0
A68: 5-27 | C68: 4434.049507 | D68: 6546.680686 | E68: 7522.909811 | F68: 3088.860304 | G68: 0.6966228724 | H68: 976.229125 | I68: 0.1491181825 | L68: 5543.60337 | M68: 5202.598369 | N68: 4605.879217 | O68: 4698.775101 | P68: 4836.64515 | Q68: 5257.663695 | R68: 5168.264955 | S68: 5626.655006 | T68: 6520.571571 | U68: 5910.604909 | V68: 6546.680686 | X68: 3331.900444 | Y68: 23467.3918 | Z68: 21663.10104 | AA68: 1804.290758
A69: 5-28 | C69: 11.642185 | D69: 9.680631 | E69: 0.821755 | F69: -10.82043 | G69: -0.9294157411 | H69: -8.858876 | I69: -0.915113488 | L69: 11.639373 | M69: 14.598623 | N69: 12.442405 | O69: 13.79428 | P69: 9.055052 | Q69: 6.560631 | R69: 6.560631 | S69: 6.560631 | T69: 6.560631 | U69: 6.560631 | V69: 9.680631 | X69: 3.203884 | Y69: 26.849924 | Z69: 150.838274 | AA69: -123.98835
A70: 5-29 | C70: 3125.746186 | D70: 3350.79917 | E70: 3298.464807 | F70: 172.718621 | G70: 0.05525676454 | H70: -52.334363 | I70: -0.015618472 | L70: 3268.497414 | M70: 2916.989552 | N70: 2651.126116 | O70: 3215.355543 | P70: 3532.53228 | Q70: 3516.572577 | R70: 3775.47395 | S70: 3365.925121 | T70: 3095.999567 | U70: 3830.52295 | V70: 3350.79917 | X70: 2080.38564 | Y70: 20378.28285 | Z70: 20132.58039 | AA70: 245.702453
A71: 5-30 | C71: 195.081208 | D71: 155.673391 | E71: 205.806916 | F71: 10.725708 | G71: 0.05498073397 | H71: 50.133525 | I71: 0.3220429945 | L71: 250.800221 | M71: 170.197154 | N71: 52.060313 | O71: 46.756171 | P71: 360.625607 | Q71: 40.532033 | R71: 69.178866 | S71: 89.957138 | T71: 75.768593 | U71: 473.353515 | V71: 155.673391 | X71: 117.013343 | Y71: 776.751161 | Z71: 453.18918 | AA71: 323.561981
A72: 5-31 | C72: 0 | D72: 6606.008642 | E72: 6210.034022 | F72: 6210.034022 | H72: -395.97462 | I72: -0.05994158371 | L72: 250.800221 | M72: 170.197154 | N72: 52.060313 | O72: 46.756171 | P72: 360.625607 | Q72: 40.532033 | R72: 69.178866 | S72: 89.957138 | T72: 75.768593 | U72: 5644.365297 | V72: 6606.008642 | X72: 7510.531772 | Y72: 27335.74347 | Z72: 0 | AA72: 27335.74347
A73: 5-32 | C73: 0 | D73: 0 | E73: 8.608695 | F73: 8.608695 | H73: 8.608695 | L73: 250.800221 | M73: 170.197154 | N73: 52.060313 | O73: 46.756171 | P73: 360.625607 | Q73: 40.532033 | R73: 69.178866 | S73: 89.957138 | T73: 75.768593 | U73: 0 | V73: 0 | X73: 0 | Y73: 0.98 | Z73: 7.178602 | AA73: -6.198602
A75: 六 | B75: 东北汇总 | C75: 6837.312308 | D75: 10949.60808 | E75: 10478.732 | F75: 3641.41969 | G75: 0.5325805705 | H75: -470.87608 | I75: -0.04300392093 | L75: 8255.07382 | M75: 8170.148583 | N75: 8810.280752 | O75: 9517.10481 | P75: 9161.536133 | Q75: 8863.942087 | R75: 13113.44264 | S75: 12720.38264 | T75: 10343.8917 | U75: 11072.2148 | V75: 12171.60808 | X75: 16970.21981 | Y75: 239040.6121 | Z75: 55198.43254 | AA75: 183842.1795
A76: 6-1 | C76: 4114.825715 | D76: 5086.323481 | E76: 4330.842246 | F76: 216.016531 | G76: 0.05249712769 | H76: -755.481235 | I76: -0.1485318891 | L76: 4763.516431 | M76: 4923.43109 | N76: 5321.821645 | O76: 4815.326801 | P76: 4222.274884 | Q76: 4415.018438 | R76: 5570.617234 | S76: 6042.580554 | T76: 5634.738702 | U76: 6000.034431 | V76: 5086.323481 | X76: 10436.71856 | Y76: 149316.2821 | Z76: 30394.09794 | AA76: 118922.1841
A77: 6-2 | C77: 3486.73665 | D77: 4313.950284 | E77: 3644.196996 | F77: 157.460346 | G77: 0.04515980466 | H77: -669.753288 | I77: -0.1552528991 | L77: 4130.705169 | M77: 4225.514005 | N77: 4579.256475 | O77: 4088.055322 | P77: 3499.205179 | Q77: 3688.013283 | R77: 4826.132282 | S77: 5267.109959 | T77: 4846.670136 | U77: 5155.128244 | V77: 4313.950284 | X77: 10240.32361 | Y77: 147316.3068 | Z77: 28869.59831 | AA77: 118446.7085
A78: 6-3 | C78: 1728.407732 | D78: 2211.969432 | E78: 2125.402636 | F78: 396.994904 | G78: 0.229688225 | H78: -86.566796 | I78: -0.03913562039 | L78: 2112.063117 | M78: 2033.681425 | N78: 1990.041616 | O78: 2088.690059 | P78: 1739.891494 | Q78: 1362.159286 | R78: 2963.595047 | S78: 2406.529057 | T78: 2371.193753 | U78: 2057.688991 | V78: 2211.969432 | X78: 3834.624153 | Y78: 21908.10432 | Z78: 3875.60188 | AA78: 18032.50244
A79: 6-4 | C79: 1758.328918 | D79: 2101.980852 | E79: 1518.79436 | F79: -239.534558 | G79: -0.1362285267 | H79: -583.186492 | I79: -0.2774461487 | L79: 2018.642052 | M79: 2191.83258 | N79: 2589.214859 | O79: 1999.365263 | P79: 1759.313685 | Q79: 1580.240379 | R79: 1862.537235 | S79: 2243.361079 | T79: 2475.476383 | U79: 2834.973891 | V79: 2101.980852 | X79: 604.78362 | Y79: 7755.897987 | Z79: 3371.150461 | AA79: 4384.747526
A80: 6-5 | C80: 0 | D80: 0 | E80: 0 | F80: 0 | H80: 0 | L80: 0 | M80: 0 | N80: 0 | O80: 0 | P80: 0 | Q80: 745.613618 | R80: 0 | S80: 617.219823 | T80: 0 | U80: 262.465362 | V80: 0 | X80: 5796.043558 | Y80: 117510.9448 | Z80: 21539.01444 | AA80: 95971.93039
A81: 6-6 | C81: 0 | D81: 0 | E81: 0 | F81: 0 | H81: 0 | L81: 0 | M81: 0 | N81: 0 | O81: 0 | P81: 0 | Q81: 0 | R81: 0 | S81: 0 | T81: 0 | U81: 0 | V81: 0 | X81: 4.872276 | Y81: 141.35969 | Z81: 83.831533 | AA81: 57.528157
A82: 6-7 | C82: 296.533454 | D82: 476.484656 | E82: 393.208737 | F82: 96.675283 | G82: 0.3260181328 | H82: -83.275919 | I82: -0.17477146 | L82: 311.343526 | M82: 376.426352 | N82: 367.797241 | O82: 350.404032 | P82: 375.867298 | Q82: 387.039448 | R82: 420.2327 | S82: 437.914699 | T82: 458.545139 | U82: 535.021232 | V82: 476.484656 | X82: 171.435144 | Y82: 1767.503138 | Z82: 1275.641478 | AA82: 491.86166
A83: 6-8 | C83: 331.555611 | D83: 295.888541 | E83: 293.436513 | F83: -38.119098 | G83: -0.1149704506 | H83: -2.452028 | I83: -0.008286998853 | L83: 321.467736 | M83: 321.490733 | N83: 374.767929 | O83: 376.867447 | P83: 347.202407 | Q83: 339.965707 | R83: 324.252252 | S83: 337.555896 | T83: 329.523427 | U83: 309.884955 | V83: 295.888541 | X83: 24.95981 | Y83: 232.472102 | Z83: 248.858151 | AA83: -16.386049
A84: 6-9 | C84: 1544.908179 | D84: 4236.198601 | E84: 4224.45204 | F84: 2679.543861 | G84: 1.734435675 | H84: -11.746561 | I84: -0.002772901393 | L84: 2290.051449 | M84: 2030.302686 | N84: 2107.112859 | O84: 3372.225895 | P84: 3625.411507 | Q84: 3083.550066 | R84: 5753.075566 | S84: 5002.70225 | T84: 3238.026629 | U84: 3435.656431 | V84: 5458.198601 | X84: 5392.52816 | Y84: 79680.83463 | Z84: 19463.00461 | AA84: 60217.83001
A85: 6-10 | C85: 1188.662586 | D85: 3459.960139 | E85: 3564.451041 | F85: 2375.788455 | G85: 1.998707188 | H85: 104.490902 | I85: 0.03020003058 | L85: 1486.276855 | M85: 1221.967776 | N85: 1308.935027 | O85: 2694.722795 | P85: 2773.302919 | Q85: 2571.067451 | R85: 5186.700139 | S85: 4652.387752 | T85: 4130.194639 | U85: 2739.589032 | V85: 4681.960139 | X85: 4481.63946 | Y85: 70065.67067 | Z85: 13377.17627 | AA85: 56688.4944
A86: 6-11 | C86: 3.46 | D86: 2.37124 | E86: 2.40124 | F86: -1.05876 | G86: -0.306 | H86: 0.03 | I86: 0.01265160844 | L86: 5.43 | M86: 7.0867 | N86: 3.232 | O86: 4.084 | P86: 3.744 | Q86: 3 | R86: 4.98 | S86: 3.02 | T86: 4.62 | U86: 3.2 | V86: 2.37124 | X86: 2.284906 | Y86: 39.821758 | Z86: 59.050502 | AA86: -19.228744
A87: 6-12 | C87: 0 | D87: -0.316266 | E87: 0.003039 | F87: 0.003039 | H87: 0.319305 | I87: -1.009609 | L87: 109.828582 | M87: 48.182908 | N87: 25.006225 | O87: 24.727766 | P87: 149.098379 | Q87: 93.396226 | R87: 0 | S87: 1.291695 | T87: -0.316266 | U87: -0.316266 | V87: -0.316266 | X87: 348.923404 | Y87: 3021.568344 | Z87: 1522.888082 | AA87: 1498.680262
A88: 6-13 | C88: 23.907629 | D88: 105.215078 | E88: 64.395892 | F88: 40.488263 | G88: 1.693528999 | H88: -40.819186 | I88: -0.387959471 | L88: 72.843832 | M88: 29.552906 | N88: 44.669214 | O88: 38.88942 | P88: 7278.981281 | Q88: 25.911044 | R88: 108.432903 | S88: 76.068438 | T88: 287.168757 | U88: 111.464612 | V88: 105.215078 | X88: 168.837414 | Y88: 1705.815481 | Z88: 1331.220958 | AA88: 374.594523
A89: 6-14 | C89: 0 | D89: 0 | E89: 0 | F89: 0 | H89: 0 | L89: 0 | M89: 0 | N89: 0 | O89: 0 | P89: 0 | Q89: 0 | R89: 0 | S89: 0 | T89: 0 | U89: 0 | V89: 0 | X89: 0 | Y89: 0 | Z89: 0 | AA89: 0
A90: 6-15 | C90: 67.92499 | D90: 106.415355 | E90: 163.467587 | F90: 95.542597 | G90: 1.406589784 | H90: 57.052232 | I90: 0.5361278173 | L90: 311.782871 | M90: 301.867147 | N90: 367.598303 | O90: 289.99341 | P90: 419.731963 | Q90: 90.926619 | R90: 65.661221 | S90: 98.808373 | T90: 100.157112 | U90: 91.371745 | V90: 106.415355 | X90: 148.772605 | Y90: 1534.638546 | Z90: 386.420595 | AA90: 1148.217951
A91: 6-16 | C91: 15.5846 | D91: 29.615374 | E91: 22.041899 | F91: 6.457299 | G91: 0.4143384495 | H91: -7.573475 | I91: -0.2557278189 | L91: 34.4084 | M91: 28.791601 | N91: 17.9768 | O91: 20.7733 | P91: 15.6583 | Q91: 18.1941 | R91: 20.716374 | S91: 21.918274 | T91: 27.032374 | U91: 29.095774 | V91: 29.615374 | X91: 5.42534 | Y91: 203.664173 | Z91: 107.79847 | AA91: 95.865703
A92: 6-17 | C92: 54.739791 | D92: 62.980484 | E92: 60.386706 | F92: 5.646915 | G92: 0.1031592357 | H92: -2.593778 | I92: -0.0411838372 | L92: 59.733335 | M92: 68.10914 | N92: 59.851019 | O92: 37.709627 | P92: 67.359489 | Q92: 75.472364 | R92: 65.079745 | S92: 69.306826 | T92: 60.615003 | U92: 54.13924 | V92: 62.980484 | X92: 8.157638 | Y92: 168.529418 | Z92: 40.588538 | AA92: 127.94088
A93: 6-18 | C93: 150.262996 | D93: 361.988287 | E93: 285.669449 | F93: 135.406453 | G93: 0.9011297299 | H93: -76.318838 | I93: -0.2108323411 | L93: 139.85117 | M93: 229.854816 | N93: 201.995185 | O93: 204.219271 | P93: 229.756382 | Q93: 243.834594 | R93: 225.75727 | S93: 232.293969 | T93: 291.439575 | U93: 329.959886 | V93: 361.988287 | X93: 202.291594 | Y93: 2644.251061 | Z93: 846.873502 | AA93: 1797.377559
A94: 6-19 | C94: 0 | D94: 0 | E94: 0 | F94: 0 | H94: 0 | L94: 0 | M94: 0 | N94: 0 | O94: 0 | P94: 0 | Q94: 0 | R94: 11.503695 | S94: 11.503695 | T94: 10.523695 | U94: 0 | V94: 0 | X94: 0 | Y94: 0 | Z94: 0 | AA94: 0
A95: 6-20 | C95: 25.565352 | D95: 71.389539 | E95: 47.779782 | F95: 22.21443 | G95: 0.8689272105 | H95: -23.609757 | I95: -0.3307173198 | L95: 50.758905 | M95: 66.006812 | N95: 60.097961 | O95: 31.492898 | P95: 52.021369 | Q95: 31.33151 | R95: 40.322492 | S95: 38.03602 | T95: 29.341732 | U95: 51.531393 | V95: 71.389539 | X95: 13.480939 | Y95: 179.292189 | Z95: 225.296383 | AA95: -46.004194
A96: 6-21 | C96: 14.800235 | D96: 36.617107 | E96: 13.855405 | F96: -0.94483 | G96: -0.06383885121 | H96: -22.761702 | I96: -0.6216138812 | L96: 19.137499 | M96: 28.88288 | N96: 17.751125 | O96: 25.613408 | P96: 16.82402 | Q96: 23.812384 | R96: 23.921727 | S96: 26.535427 | T96: 19.9779 | U96: 25.658751 | V96: 36.617107 | X96: 12.71486 | Y96: 117.582982 | Z96: 1565.691312 | AA96: -1448.10833
A97: 6-22 | C97: 700.819962 | D97: 955.220506 | E97: 1258.330772 | F97: 557.51081 | G97: 0.7955121718 | H97: 303.110266 | I97: 0.3173196807 | L97: 624.056463 | M97: 629.165009 | N97: 836.863572 | O97: 708.147537 | P97: 768.418245 | Q97: 724.743031 | R97: 1173.667852 | S97: 1020.740234 | T97: 878.563799 | U97: 949.838526 | V97: 955.220506 | X97: 752.251719 | Y97: 6538.075906 | Z97: 2373.344033 | AA97: 4164.731873
A98: 6-23 | C98: 476.758452 | D98: 671.86549 | E98: 665.10694 | F98: 188.348488 | G98: 0.3950606166 | H98: -6.75855 | I98: -0.01005937959 | L98: 577.449477 | M98: 587.249798 | N98: 544.482676 | O98: 621.404577 | P98: 545.431497 | Q98: 640.630552 | R98: 616.081984 | S98: 654.359606 | T98: 592.562566 | U98: 686.685412 | V98: 671.86549 | X98: 388.721366 | Y98: 3505.419459 | Z98: 2967.985954 | AA98: 537.433505
A99: 6-24 | C99: 0 | D99: 0 | E99: 0 | F99: 0 | H99: 0 | L99: 0 | M99: 0 | N99: 0 | O99: 0 | P99: 0 | Q99: 0 | R99: 0 | S99: 0 | T99: 0 | U99: 0 | V99: 0 | X99: 0 | Y99: 0 | Z99: 0 | AA99: 0
C100: 0 | D100: 0 | E100: 0 | F100: 0 | H100: 0 | L100: 0 | M100: 0 | N100: 0 | O100: 0 | P100: 0 | Q100: 0 | R100: 0 | S100: 0 | T100: 0 | U100: 0 | V100: 0 | X100: 0 | Y100: 0 | Z100: 0 | AA100: 0
A101: 七 | B101: 其他 | C101: 5003.401137 | D101: 5507.383462 | E101: 5589.156054 | F101: 585.754917 | G101: 0.1170713483 | H101: 81.772592 | I101: 0.01484781159 | L101: 5169.484722 | M101: 5437.560252 | N101: 5198.407267 | O101: 5181.948509 | P101: 5024.585411 | Q101: 5011.802047 | R101: 5262.522379 | S101: 5545.137702 | T101: 5699.857181 | U101: 5201.501598 | V101: 5507.383462 | X101: 2545.819496 | Y101: 28584.97745 | Z101: 28666.22509 | AA101: -81.24764
A102: 7-1 | C102: 1681.497301 | D102: 1604.937474 | E102: 1429.301737 | F102: -252.195564 | G102: -0.1499827349 | H102: -175.635737 | I102: -0.109434629 | L102: 1613.451671 | M102: 1540.68681 | N102: 1422.916581 | O102: 1659.544327 | P102: 1657.271467 | Q102: 1700.52897 | R102: 1847.693003 | S102: 1814.018282 | T102: 1780.934175 | U102: 1571.272752 | V102: 1604.937474 | X102: 1521.097543 | Y102: 17364.3257 | Z102: 17971.67637 | AA102: -607.35067
A103: 7-2 | C103: 96.601177 | D103: 61.136433 | E103: 68.805769 | F103: -27.795408 | G103: -0.287733637 | H103: 7.669336 | I103: 0.1254462458 | L103: 108.004111 | M103: 117.128072 | N103: 120.380391 | O103: 134.31555 | P103: 83.600419 | Q103: 95.077366 | R103: 77.071433 | S103: 95.963314 | T103: 115.51051 | U103: 102.235634 | V103: 61.136433 | X103: 12.433018 | Y103: 171.301687 | Z103: 164.431641 | AA103: 6.870046
A105: 十四 | B105: 广东公司汇总 | C105: 69744.63557 | D105: 71103.98395 | E105: 67837.41739 | F105: -1907.218187 | G105: -0.02734573306 | H105: -3266.566559 | I105: -0.04594069668 | L105: 75735.20693 | M105: 75713.3812 | N105: 74022.89307 | O105: 75311.16587 | P105: 71413.65094 | Q105: 68965.0329 | R105: 74924.37206 | S105: 73961.71143 | T105: 68514.32771 | U105: 68682.54584 | V105: 71103.98395 | X105: 58960.97153 | Y105: 651267.4163 | Z105: 515164.9964 | AA105: 136102.4199
B106: 抵消其它板块和板块间的内部交易收入 | C106: 0 | D106: 0 | E106: 0 | F106: 0 | H106: 0 | L106: 0 | M106: 0 | N106: 0 | O106: 0 | P106: 0 | Q106: 0 | R106: 0 | S106: 0 | T106: 0 | U106: 0 | V106: 0 | X106: 0 | Y106: 0 | Z106: 0 | AA106: 0
A107: 十五 | B107: 广东公司合并 | C107: 61012.64825 | D107: 64758.90493 | E107: 63323.95854 | F107: 2311.310288 | G107: 0.03788247772 | H107: -1434.946388 | I107: -0.0221582868 | L107: 64953.8883 | M107: 65066.53484 | N107: 64650.60967 | O107: 66630.6085 | P107: 65234.60274 | Q107: 62324.47208 | R107: 66169.79398 | S107: 68170.21235 | T107: 65682.75476 | U107: 64698.88286 | V107: 65980.90493 | X107: 52830.28222 | Y107: 597408.8314 | Z107: 466515.6678 | AA107: 130893.1637
A110: 本月应收账款周转天数39.3天，期末应收账款余额6.33亿元，较上月减少1,435万；与年初相比，增2,311万元，增幅4%。
